Workbook

Sheet Basic
J1: Boat Table Offset Export:
B2: Canoe Design | C2: Scale 1 in | D2: 1 | E2: Length Scale 1 in | F2: 1 | J2: Station | K2: 1 | P2: 2 | U2: 3 | Z2: 4 | AE2: 5 | AJ2: 6 | AO2: 7 | AT2: 8 | AY2: 9
B3: LWL | C3: =('Hull Long'!B53-'Hull Long'!B12)/1000 -> 4 | D3: m | J3: Chine | K3: X | L3: Y | M3: Z | N3: Break | O3: Colour | P3: X | Q3: Y | R3: Z | S3: Break | T3: Colour | U3: X | V3: Y | W3: Z | X3: Break | Y3: Colour | Z3: X | AA3: Y | AB3: Z | AC3: Break | AD3: Colour | AE3: X | AF3: Y | AG3: Z | AH3: Break | AI3: Colour | AJ3: X | AK3: Y | AL3: Z | AM3: Break | AN3: Colour | AO3: X | AP3: Y | AQ3: Z | AR3: Break | AS3: Colour | AT3: X | AU3: Y | AV3: Z | AW3: Break | AX3: Colour | AY3: X | AZ3: Y | BA3: Z | BB3: Break | BC3: Colour
B4: LOA | C4: =('Hull Long'!B56-'Hull Long'!B9)/1000 -> 4.6 | D4: m | J4: Deck | K4: =K5 -> 0 | L4: ='Hull Plan'!C213 -> 0 | M4: =M5 -> 300 | N4: TRUE | O4: 1 | P4: =P5 -> 300 | Q4: ='Hull Plan'!H213 -> 0 | R4: =R5 -> 276.3592183 | S4: FALSE | T4: 1 | U4: =U5 -> 899.9 | V4: ='Hull Plan'!M213 -> 0 | W4: =W5 -> 234.3686047 | X4: FALSE | Y4: 1 | Z4: =Z5 -> 1300 | AA4: ='Hull Plan'!R213 -> 0 | AB4: =AB5 -> 210.8358953 | AC4: FALSE | AD4: 1 | AE4: =AE5 -> 2300 | AF4: ='Hull Plan'!W213 -> 0 | AG4: =AG5 -> 175 | AH4: FALSE | AI4: 1 | AJ4: =AJ5 -> 3300 | AK4: ='Hull Plan'!AB213 -> 0 | AL4: =AL5 -> 210.8358953 | AM4: FALSE | AN4: 1 | AO4: =AO5 -> 3699.9 | AP4: ='Hull Plan'!AG213 -> 0 | AQ4: =AQ5 -> 234.3558843 | AR4: FALSE | AS4: 1 | AT4: =AT5 -> 4300 | AU4: ='Hull Plan'!AL213 -> 0 | AV4: =AV5 -> 276.3592183 | AW4: FALSE | AX4: 1 | AY4: =AY5 -> 4600 | AZ4: ='Hull Plan'!AQ213 -> 0 | BA4: =BA5 -> 300 | BB4: TRUE | BC4: 0
B5: BWL | C5: =('Hull Plan'!C134-'Hull Plan'!F134)/1000 -> 0.7 | D5: m | J5: Sheer | K5: ='Hull Long'!B162 -> 0 | L5: ='Hull Plan'!C162 -> 0 | M5: ='Hull Long'!C162 -> 300 | N5: TRUE | O5: 2 | P5: ='Hull Long'!B165 -> 300 | Q5: ='Hull Plan'!C165 -> 60.96408318 | R5: ='Hull Long'!C165 -> 276.3592183 | S5: FALSE | T5: 2 | U5: ='Hull Long'!B170 -> 899.9 | V5: ='Hull Plan'!C170 -> 157.3591678 | W5: ='Hull Long'!C170 -> 234.3686047 | X5: FALSE | Y5: 2 | Z5: ='Hull Long'!B175 -> 1300 | AA5: ='Hull Plan'!C175 -> 202.7410208 | AB5: ='Hull Long'!C175 -> 210.8358953 | AC5: FALSE | AD5: 2 | AE5: ='Hull Long'!B185 -> 2300 | AF5: ='Hull Plan'!C185 -> 250 | AG5: ='Hull Long'!C185 -> 175 | AH5: FALSE | AI5: 2 | AJ5: ='Hull Long'!B196 -> 3300 | AK5: ='Hull Plan'!C196 -> 202.7410208 | AL5: ='Hull Long'!C196 -> 210.8358953 | AM5: FALSE | AN5: 2 | AO5: ='Hull Long'!B200 -> 3699.9 | AP5: ='Hull Plan'!C200 -> 157.3856328 | AQ5: ='Hull Long'!C200 -> 234.3558843 | AR5: FALSE | AS5: 2 | AT5: ='Hull Long'!B206 -> 4300 | AU5: ='Hull Plan'!C206 -> 60.96408318 | AV5: ='Hull Long'!C206 -> 276.3592183 | AW5: FALSE | AX5: 2 | AY5: ='Hull Long'!B209 -> 4600 | AZ5: ='Hull Plan'!C209 -> 0 | BA5: ='Hull Long'!C209 -> 300 | BB5: TRUE | BC5: 0
B6: BOA | C6: =('Hull Plan'!C185-'Hull Plan'!F185)/1000 -> 0.5 | D6: m | J6: Chine | K6: ='Hull Long'!B111 -> 0 | L6: ='Hull Plan'!C111 -> 0 | M6: ='Hull Long'!C111 -> 300 | N6: TRUE | O6: 3 | P6: ='Hull Long'!B114 -> 300 | Q6: ='Hull Plan'!C114 -> 120.4364438 | R6: ='Hull Long'!C114 -> 247.9902802 | S6: FALSE | T6: 3 | U6: ='Hull Long'!B119 -> 899.9 | V6: ='Hull Plan'!C119 -> 271.7370918 | W6: ='Hull Long'!C119 -> 155.6109304 | X6: FALSE | Y6: 3 | Z6: ='Hull Long'!B124 -> 1300 | AA6: ='Hull Plan'!C124 -> 321.6535632 | AB6: ='Hull Long'!C124 -> 103.8389696 | AC6: FALSE | AD6: 3 | AE6: ='Hull Long'!B134 -> 2300 | AF6: ='Hull Plan'!C134 -> 350 | AG6: ='Hull Long'!C134 -> 25 | AH6: FALSE | AI6: 3 | AJ6: ='Hull Long'!B145 -> 3300 | AK6: ='Hull Plan'!C145 -> 321.6535632 | AL6: ='Hull Long'!C145 -> 103.8389696 | AM6: FALSE | AN6: 3 | AO6: ='Hull Long'!B149 -> 3699.9 | AP6: ='Hull Plan'!C149 -> 271.7708232 | AQ6: ='Hull Long'!C149 -> 155.5829454 | AR6: FALSE | AS6: 3 | AT6: ='Hull Long'!B155 -> 4300 | AU6: ='Hull Plan'!C155 -> 120.4364438 | AV6: ='Hull Long'!C155 -> 247.9902802 | AW6: FALSE | AX6: 3 | AY6: ='Hull Long'!B158 -> 4600 | AZ6: ='Hull Plan'!C158 -> 0 | BA6: ='Hull Long'!C158 -> 300 | BB6: TRUE | BC6: 0
B7: DWL | C7: =('Hull Long'!C134-'Hull Long'!C83)/1000 -> 0.1 | D7: m | J7: Rabbet | K7: ='Hull Long'!B60 -> 0 | L7: ='Hull Plan'!C60 -> 0 | M7: ='Hull Long'!C60 -> 300 | N7: TRUE | O7: 4 | P7: ='Hull Long'!B63 -> 300 | Q7: ='Hull Plan'!C63 -> 0 | R7: ='Hull Long'!C63 -> -75 | S7: TRUE | T7: 4 | U7: ='Hull Long'!B68 -> 899.9 | V7: ='Hull Plan'!C68 -> 101.9859995 | W7: ='Hull Long'!C68 -> -75 | X7: FALSE | Y7: 4 | Z7: ='Hull Long'!B73 -> 1300 | AA7: ='Hull Plan'!C73 -> 150 | AB7: ='Hull Long'!C73 -> -75 | AC7: FALSE | AD7: 4 | AE7: ='Hull Long'!B83 -> 2300 | AF7: ='Hull Plan'!C83 -> 200 | AG7: ='Hull Long'!C83 -> -75 | AH7: FALSE | AI7: 4 | AJ7: ='Hull Long'!B94 -> 3300 | AK7: ='Hull Plan'!C94 -> 150 | AL7: ='Hull Long'!C94 -> -75 | AM7: FALSE | AN7: 4 | AO7: ='Hull Long'!B98 -> 3699.9 | AP7: ='Hull Plan'!C98 -> 102.0139995 | AQ7: ='Hull Long'!C98 -> -75 | AR7: FALSE | AS7: 4 | AT7: ='Hull Long'!B104 -> 4300 | AU7: ='Hull Plan'!C104 -> 0 | AV7: ='Hull Long'!C104 -> -75 | AW7: TRUE | AX7: 4 | AY7: ='Hull Long'!B107 -> 4600 | AZ7: ='Hull Plan'!C107 -> 0 | BA7: ='Hull Long'!C107 -> 300 | BB7: TRUE | BC7: 0
B8: Dead rise | C8: =DEGREES(ATAN(('Hull Long'!C134-'Hull Long'!C83)/('Hull Plan'!C134-'Hull Plan'!C83))) -> 33.69006753 | D8: degrees | J8: Centreline | K8: ='Hull Long'!B9 -> 0 | L8: ='Hull Plan'!C9 -> 0 | M8: ='Hull Long'!C9 -> 300 | N8: TRUE | O8: 5 | P8: ='Hull Long'!B12 -> 300 | Q8: ='Hull Plan'!C12 -> 0 | R8: ='Hull Long'!C12 -> -75 | S8: TRUE | T8: 5 | U8: ='Hull Long'!B17 -> 899.9 | V8: ='Hull Plan'!C17 -> 0 | W8: ='Hull Long'!C17 -> -75 | X8: FALSE | Y8: 5 | Z8: ='Hull Long'!B22 -> 1300 | AA8: ='Hull Plan'!C22 -> 0 | AB8: ='Hull Long'!C22 -> -75 | AC8: FALSE | AD8: 5 | AE8: ='Hull Long'!B32 -> 2300 | AF8: ='Hull Plan'!C32 -> 0 | AG8: ='Hull Long'!C32 -> -75 | AH8: FALSE | AI8: 5 | AJ8: ='Hull Long'!B43 -> 3300 | AK8: ='Hull Plan'!C43 -> 0 | AL8: ='Hull Long'!C43 -> -75 | AM8: FALSE | AN8: 5 | AO8: ='Hull Long'!B47 -> 3699.9 | AP8: ='Hull Plan'!C47 -> 0 | AQ8: ='Hull Long'!C47 -> -75 | AR8: FALSE | AS8: 5 | AT8: ='Hull Long'!B53 -> 4300 | AU8: ='Hull Plan'!C53 -> 0 | AV8: ='Hull Long'!C53 -> -75 | AW8: TRUE | AX8: 5 | AY8: ='Hull Long'!B56 -> 4600 | AZ8: ='Hull Plan'!C56 -> 0 | BA8: ='Hull Long'!C56 -> 300 | BB8: TRUE | BC8: 0
B9: Deck Height | C9: =('Hull Long'!C236-'Hull Long'!C134)/1000 -> 0.15 | D9: m | E9: Chine to Deck
B10: Deck Width | C10: =ABS('Hull Plan'!C185-'Hull Plan'!C134)/1000 -> 0.1 | D10: m
B11: Amidships FreeBoard | C11: =('Hull Long'!C185-'Hull Long'!C83)/1000-C7 -> 0.15 | D11: m | F11: =F12/1.35 -> 0.5031111111
B12: Forward FreeBoard | C12: =('Hull Long'!C162-'Hull Long'!C134)/1000 -> 0.275 | D12: m | F12: =0.191*C3-C3*C3*0.0053 -> 0.6792
B13: Rear FreeBoard | C13: =('Hull Long'!C209-'Hull Long'!C134)/1000 -> 0.275 | D13: m
B14: MSA | C14: =ABS('Hull Long'!C32*'Hull Plan'!C83-'Hull Long'!C83*'Hull Plan'!C32+'Hull Long'!C83*'Hull Plan'!C134-'Hull Long'!C134*'Hull Plan'!C83+'Hull Long'!C134*'Hull Plan'!C185-'Hull Long'!C185*'Hull Plan'!C134+'Hull Long'!C185*'Hull Plan'!C236-'Hull Long'!C236*'Hull Plan'!C185+'Hull Long'!C236*'Hull Plan'!C32-'Hull Long'!C236*'Hull Plan'!C236+'Hull Long'!C236*'Hull Plan'!C32-'Hull Long'!C32*'Hull Plan'!C32)/1000000 -> 0.145 | D14: m^2
B15: Pd | C15: =MAX(6.5,10*(1.3*C7+0.1*C3)) -> 6.5 | D15: KN | E15: AS4132:4.1.2(b&c)
B17: Skin Design
B18: Pd (Design Pressure) | C18: =C15 -> 6.5 | D18: kPa
B19: L (Span) | C19: =C6*1000/F19 -> 500 | D19: mm | E19: Panels (has no keelson) | F19: 1
B20: S (Allowable Stress) | C20: 14000 | D20: kPa
B21: t (Thickness) | C21: =(C18*C19*C19/C20/2)^0.5 -> 7.618117503 | D21: mm | E21: t^2=P*L^2/2/S, ~fixed sides
B22: E (Modulus of Elasticity) | C22: =10500000*80% -> 8400000 | D22: kPa
B23: I (Moment of Inertia) | C23: =1000*C21^3/12 -> 36843.57423 | D23: mm^4
B24: d=P*L^4/384EI (2% max) | C24: =C18*C19^4/384/C22/C23*1000 -> 3.418386059 | D24: mm | E24: Deflection Ratio: | F24: =C19/C24 -> 146.2678561
B25: Concentrated Load Stress | C25: =3*P/(2*PI*t*t)*((1+v)*ln(2*b/PI/r)+0.067)
B26: Foot Print Area | C26: =110*160 -> 17600 | D26: mm^2
B27: Foot Print Radius | C27: =(C26/PI())^0.5 -> 74.84820637 | D27: mm
B28: Maximum Concentrated Load | C28: =C20*2*PI()*C21*C21/3/(1.25*LN(2*C19/PI()/C27)+0.067)/1000000 -> 0.9068679376 | D28: kN | E28: ~S*t*t | F28: =C20*C21*C21/1000000 -> 0.8125

Sheet drawing

Sheet Hull Long
A1: Long
A5: Parameters | B5: =200 -> 200 | C5: =1000 -> 1000
A6: Number of Lines | B6: =COUNT(B8:B695) -> 255 | E6: =COUNT(E8:E696) -> 22
A7: Line Id | B7: X | C7: Z | D7: Line Id | E7: X | F7: Z | G7: Keel
A8: 0 | B8: =-100*Basic!$D$2*Basic!$F$2 -> -100 | C8: =C12+(C9-C12)*ABS(B12-B8)/ABS(B9-B12) -> 425 | D8: 1 | E8: ='Hull Plan'!C236+$G$8 -> 699 | F8: =C236+$H$8 -> -250 | G8: 450 | H8: -425
A9: 1 | B9: =0*Basic!$D$2*Basic!$F$2 -> 0 | C9: =300*Basic!$D$2 -> 300 | D9: 1 | E9: ='Hull Plan'!C185+$G$8 -> 700 | F9: =C185+$H$8 -> -250
A10: 1 | B10: =100*Basic!$D$2*Basic!$F$2 -> 100 | C10: =C12+(C9-C12)*ABS(B12-B10)/ABS(B9-B12) -> 175 | D10: 1 | E10: ='Hull Plan'!C134+$G$8 -> 800 | F10: =C134+$H$8 -> -400
A11: 1 | B11: =200*Basic!$D$2*Basic!$F$2 -> 200 | C11: =C12+(C9-C12)*ABS(B12-B11)/ABS(B9-B12) -> 50 | D11: 1 | E11: ='Hull Plan'!C83+$G$8 -> 650 | F11: =C83+$H$8 -> -500
A12: 1 | B12: =300*Basic!$D$2*Basic!$F$2 -> 300 | C12: =-75*Basic!$D$2 -> -75 | D12: 1 | E12: ='Hull Plan'!C32+$G$8 -> 450 | F12: =C32+$H$8 -> -500 | G12: 2
A13: 1 | B13: =400*Basic!$D$2*Basic!$F$2 -> 400 | C13: =C$32+(C$12-C$32)*ABS(B$32-B13)^G$12/ABS(B$12-B$32)^G$12 -> -75 | D13: =D12 -> 1 | E13: =2*$E$12-E12 -> 450 | F13: =F12 -> -500
A14: 1 | B14: =500*Basic!$D$2*Basic!$F$2 -> 500 | C14: =C$32+(C$12-C$32)*ABS(B$32-B14)^G$12/ABS(B$12-B$32)^G$12 -> -75 | D14: =D11 -> 1 | E14: =2*$E$12-E11 -> 250 | F14: =F11 -> -500
A15: 1 | B15: =600*Basic!$D$2*Basic!$F$2 -> 600 | C15: -75 | D15: =D10 -> 1 | E15: =2*$E$12-E10 -> 100 | F15: =F10 -> -400
A16: 1 | B16: =700*Basic!$D$2*Basic!$F$2 -> 700 | C16: -75 | D16: =D9 -> 1 | E16: =2*$E$12-E9 -> 200 | F16: =F9 -> -250
A17: 1 | B17: =899.9*Basic!$D$2*Basic!$F$2 -> 899.9 | C17: -75 | D17: =D8 -> 1 | E17: =2*$E$12-E8 -> 201 | F17: =F8 -> -250
A18: 1 | B18: =900.1*Basic!$D$2*Basic!$F$2 -> 900.1 | C18: -75 | D18: 0 | E18: 0 | F18: 0
A19: 1 | B19: =1000*Basic!$D$2*Basic!$F$2 -> 1000 | C19: -75 | D19: 1 | E19: ='Hull Plan'!C221+$G$8 -> 450 | F19: =C221+$H$8 -> -190.6313953
A20: 1 | B20: =1100*Basic!$D$2*Basic!$F$2 -> 1100 | C20: -75 | D20: 1 | E20: ='Hull Plan'!C170+$G$8 -> 607.3591678 | F20: =C170+$H$8 -> -190.6313953
A21: 1 | B21: =1200*Basic!$D$2*Basic!$F$2 -> 1200 | C21: -75 | D21: 1 | E21: ='Hull Plan'!C119+$G$8 -> 721.7370918 | F21: =C119+$H$8 -> -269.3890696
A22: 1 | B22: =1300*Basic!$D$2*Basic!$F$2 -> 1300 | C22: -75 | D22: 1 | E22: ='Hull Plan'!C68+$G$8 -> 551.9859995 | F22: =C68+$H$8 -> -500
A23: 1 | B23: =1400*Basic!$D$2*Basic!$F$2 -> 1400 | C23: -75 | D23: 1 | E23: ='Hull Plan'!C17+$G$8 -> 450 | F23: =C17+$H$8 -> -500
A24: 1 | B24: =1500*Basic!$D$2*Basic!$F$2 -> 1500 | C24: -75 | D24: =D23 -> 1 | E24: =2*$E$12-E23 -> 450 | F24: =F23 -> -500
A25: 1 | B25: =1600*Basic!$D$2*Basic!$F$2 -> 1600 | C25: -75 | D25: =D22 -> 1 | E25: =2*$E$12-E22 -> 348.0140005 | F25: =F22 -> -500
A26: 1 | B26: =1700*Basic!$D$2*Basic!$F$2 -> 1700 | C26: -75 | D26: =D21 -> 1 | E26: =2*$E$12-E21 -> 178.2629082 | F26: =F21 -> -269.3890696
A27: 1 | B27: =1800*Basic!$D$2*Basic!$F$2 -> 1800 | C27: -75 | D27: =D20 -> 1 | E27: =2*$E$12-E20 -> 292.6408322 | F27: =F20 -> -190.6313953
A28: 1 | B28: =1900*Basic!$D$2*Basic!$F$2 -> 1900 | C28: -75 | D28: =D19 -> 1 | E28: =2*$E$12-E19 -> 450 | F28: =F19 -> -190.6313953
A29: 1 | B29: =2000*Basic!$D$2*Basic!$F$2 -> 2000 | C29: -75 | D29: 0 | E29: 0 | F29: 0
A30: 1 | B30: =2100*Basic!$D$2*Basic!$F$2 -> 2100 | C30: -75
A31: 1 | B31: =2200*Basic!$D$2*Basic!$F$2 -> 2200 | C31: -75
A32: 1 | B32: =2300*Basic!$D$2*Basic!$F$2 -> 2300 | C32: =-75*Basic!$D$2 -> -75
A33: 1 | B33: =2300*Basic!$D$2*Basic!$F$2 -> 2300 | C33: =-75*Basic!$D$2 -> -75
A34: 1 | B34: =2400*Basic!$D$2*Basic!$F$2 -> 2400 | C34: =C$33+(C$53-C$33)*ABS(B$33-$B34)^G$53/ABS(B$53-B$33)^G$53 -> -75
A35: 1 | B35: =2500*Basic!$D$2*Basic!$F$2 -> 2500 | C35: -75
A36: 1 | B36: =2600*Basic!$D$2*Basic!$F$2 -> 2600 | C36: -75
A37: 1 | B37: =2700*Basic!$D$2*Basic!$F$2 -> 2700 | C37: -75
A38: 1 | B38: =2800*Basic!$D$2*Basic!$F$2 -> 2800 | C38: -75
A39: 1 | B39: =2900*Basic!$D$2*Basic!$F$2 -> 2900 | C39: -75
A40: 1 | B40: =3000*Basic!$D$2*Basic!$F$2 -> 3000 | C40: -75
A41: 1 | B41: =3100*Basic!$D$2*Basic!$F$2 -> 3100 | C41: -75
A42: 1 | B42: =3200*Basic!$D$2*Basic!$F$2 -> 3200 | C42: -75
A43: 1 | B43: =3300*Basic!$D$2*Basic!$F$2 -> 3300 | C43: -75
A44: 1 | B44: =3400*Basic!$D$2*Basic!$F$2 -> 3400 | C44: -75
A45: 1 | B45: =3500*Basic!$D$2*Basic!$F$2 -> 3500 | C45: -75
A46: 1 | B46: =3600*Basic!$D$2*Basic!$F$2 -> 3600 | C46: -75
A47: 1 | B47: =3699.9*Basic!$D$2*Basic!$F$2 -> 3699.9 | C47: -75
A48: 1 | B48: =3700.1*Basic!$D$2*Basic!$F$2 -> 3700.1 | C48: -75
A49: 1 | B49: =3900*Basic!$D$2*Basic!$F$2 -> 3900 | C49: -75
A50: 1 | B50: =4000*Basic!$D$2*Basic!$F$2 -> 4000 | C50: -75
A51: 1 | B51: =4100*Basic!$D$2*Basic!$F$2 -> 4100 | C51: -75
A52: 1 | B52: =4200*Basic!$D$2*Basic!$F$2 -> 4200 | C52: =C$33+(C$53-C$33)*ABS(B$33-$B52)^G$53/ABS(B$53-B$33)^G$53 -> -75
A53: 1 | B53: =4300*Basic!$D$2*Basic!$F$2 -> 4300 | C53: =-75*Basic!$D$2 -> -75 | G53: 2
A54: 1 | B54: =4400*Basic!$D$2*Basic!$F$2 -> 4400 | C54: =C53+(C56-C53)*ABS(B53-B54)/ABS(B56-B53) -> 50
A55: 1 | B55: =4500*Basic!$D$2*Basic!$F$2 -> 4500 | C55: =C53+(C56-C53)*ABS(B53-B55)/ABS(B56-B53) -> 175
A56: 1 | B56: =4600*Basic!$D$2*Basic!$F$2 -> 4600 | C56: =300*Basic!$D$2 -> 300
A57: 0 | B57: =4700*Basic!$D$2*Basic!$F$2 -> 4700 | C57: =C53+(C56-C53)*ABS(B53-B57)/ABS(B56-B53) -> 425
A58: 0 | B58: 0 | C58: 0 | G58: Rabbet | J58: Qz | K58: Qx | L58: a | M58: b | N58: c | O58: AA | P58: TA
A59: 0 | B59: =B8 -> -100 | C59: =C8 -> 425
A60: 2 | B60: =B9 -> 0 | C60: =C9 -> 300
A61: 2 | B61: 100 | C61: =C63+(C60-C63)*ABS(B63-B61)/ABS(B60-B63) -> 175
A62: 2 | B62: 200 | C62: =C63+(C60-C63)*ABS(B63-B62)/ABS(B60-B63) -> 50
A63: 2 | B63: 300 | C63: =-75*Basic!$D$2 -> -75 | G63: 2
A64: 2 | B64: 400 | C64: =C$83+(C$63-C$83)*ABS(B$83-B64)^G$63/ABS(B$63-B$83)^G$63 -> -75 | J64: =DEGREES(ATAN2('Hull Plan'!B64-'Hull Plan'!B63,'Hull Plan'!C64-'Hull Plan'!C63)) -> 11.034209 | K64: =DEGREES(ATAN2('Hull Long'!B64-'Hull Long'!B63,'Hull Long'!C64-'Hull Long'!C63)) -> 0 | L64: =SQRT(('Hull Plan'!C13-'Hull Plan'!C64)^2+('Hull Long'!C13-'Hull Long'!C64)^2) -> 19.5 | M64: =SQRT(('Hull Plan'!C64-'Hull Plan'!C115)^2+('Hull Long'!C64-'Hull Long'!C115)^2) -> 334.4331131 | N64: =SQRT(('Hull Plan'!C13-'Hull Plan'!C115)^2+('Hull Long'!C13-'Hull Long'!C115)^2) -> 342.7041653 | O64: =DEGREES(ACOS((N64*N64-L64*L64-M64*M64)/-2/L64/M64)) -> 113.5936667 | P64: =IF(DEGREES(ATAN(COS(RADIANS(J64))/COS(RADIANS(K64))*TAN(RADIANS(O64))))>0,DEGREES(ATAN(COS(RADIANS(J64))/COS(RADIANS(K64))*TAN(RADIANS(O64)))),DEGREES(ATAN(COS(RADIANS(J64))/COS(RADIANS(K64))*TAN(RADIANS(O64))))+180) -> 113.9882993
A65: 2 | B65: 500 | C65: -75 | J65: =DEGREES(ATAN2('Hull Plan'!B65-'Hull Plan'!B64,'Hull Plan'!C65-'Hull Plan'!C64)) -> 10.48121814 | K65: =DEGREES(ATAN2('Hull Long'!B65-'Hull Long'!B64,'Hull Long'!C65-'Hull Long'!C64)) -> 0 | L65: =SQRT(('Hull Plan'!C14-'Hull Plan'!C65)^2+('Hull Long'!C14-'Hull Long'!C65)^2) -> 38 | M65: =SQRT(('Hull Plan'!C65-'Hull Plan'!C116)^2+('Hull Long'!C65-'Hull Long'!C116)^2) -> 324.5626718 | N65: =SQRT(('Hull Plan'!C14-'Hull Plan'!C116)^2+('Hull Long'!C14-'Hull Long'!C116)^2) -> 343.2227038 | O65: 116.5276213 | P65: 116.9148135
A66: 2 | B66: 600 | C66: -75 | J66: =DEGREES(ATAN2('Hull Plan'!B66-'Hull Plan'!B65,'Hull Plan'!C66-'Hull Plan'!C65)) -> 9.926245507 | K66: =DEGREES(ATAN2('Hull Long'!B66-'Hull Long'!B65,'Hull Long'!C66-'Hull Long'!C65)) -> 0 | L66: =SQRT(('Hull Plan'!C15-'Hull Plan'!C66)^2+('Hull Long'!C15-'Hull Long'!C66)^2) -> 55.5 | M66: =SQRT(('Hull Plan'!C66-'Hull Plan'!C117)^2+('Hull Long'!C66-'Hull Long'!C117)^2) -> 314.9274209 | N66: =SQRT(('Hull Plan'!C15-'Hull Plan'!C117)^2+('Hull Long'!C15-'Hull Long'!C117)^2) -> 345.4634646 | O66: 119.2589606 | P66: 119.6288913
A67: 2 | B67: 700 | C67: -75 | J67: =DEGREES(ATAN2('Hull Plan'!B67-'Hull Plan'!B66,'Hull Plan'!C67-'Hull Plan'!C66)) -> 9.369385096 | K67: =DEGREES(ATAN2('Hull Long'!B67-'Hull Long'!B66,'Hull Long'!C67-'Hull Long'!C66)) -> 0 | L67: =SQRT(('Hull Plan'!C16-'Hull Plan'!C67)^2+('Hull Long'!C16-'Hull Long'!C67)^2) -> 72 | M67: =SQRT(('Hull Plan'!C67-'Hull Plan'!C118)^2+('Hull Long'!C67-'Hull Long'!C118)^2) -> 305.3978409 | N67: =SQRT(('Hull Plan'!C16-'Hull Plan'!C118)^2+('Hull Long'!C16-'Hull Long'!C118)^2) -> 348.7479382 | O67: 121.7987672 | P67: 122.1444125
A68: 2 | B68: 899.9 | C68: -75 | J68: =DEGREES(ATAN2('Hull Plan'!B68-'Hull Plan'!B67,'Hull Plan'!C68-'Hull Plan'!C67)) -> 8.531045785 | K68: =DEGREES(ATAN2('Hull Long'!B68-'Hull Long'!B67,'Hull Long'!C68-'Hull Long'!C67)) -> 0 | L68: =SQRT(('Hull Plan'!C17-'Hull Plan'!C68)^2+('Hull Long'!C17-'Hull Long'!C68)^2) -> 101.9859995 | M68: =SQRT(('Hull Plan'!C68-'Hull Plan'!C119)^2+('Hull Long'!C68-'Hull Long'!C119)^2) -> 286.3508941 | N68: =SQRT(('Hull Plan'!C17-'Hull Plan'!C119)^2+('Hull Long'!C17-'Hull Long'!C119)^2) -> 356.402088 | O68: 126.3565245 | P68: 126.6613621
A69: 2 | B69: 900.1 | C69: -75 | J69: =DEGREES(ATAN2('Hull Plan'!B69-'Hull Plan'!B68,'Hull Plan'!C69-'Hull Plan'!C68)) -> 7.969610394 | K69: =DEGREES(ATAN2('Hull Long'!B69-'Hull Long'!B68,'Hull Long'!C69-'Hull Long'!C68)) -> 0 | L69: =SQRT(('Hull Plan'!C18-'Hull Plan'!C69)^2+('Hull Long'!C18-'Hull Long'!C69)^2) -> 102.0139995 | M69: =SQRT(('Hull Plan'!C69-'Hull Plan'!C120)^2+('Hull Long'!C69-'Hull Long'!C120)^2) -> 286.3317549 | N69: =SQRT(('Hull Plan'!C18-'Hull Plan'!C120)^2+('Hull Long'!C18-'Hull Long'!C120)^2) -> 356.4097011 | O69: 126.3607678 | P69: 126.6266335
A70: 2 | B70: 1000 | C70: -75 | J70: =DEGREES(ATAN2('Hull Plan'!B70-'Hull Plan'!B69,'Hull Plan'!C70-'Hull Plan'!C69)) -> 7.688166418 | K70: =DEGREES(ATAN2('Hull Long'!B70-'Hull Long'!B69,'Hull Long'!C70-'Hull Long'!C69)) -> 0 | L70: =SQRT(('Hull Plan'!C19-'Hull Plan'!C70)^2+('Hull Long'!C19-'Hull Long'!C70)^2) -> 115.5 | M70: =SQRT(('Hull Plan'!C70-'Hull Plan'!C121)^2+('Hull Long'!C70-'Hull Long'!C121)^2) -> 276.7459431 | N70: =SQRT(('Hull Plan'!C19-'Hull Plan'!C121)^2+('Hull Long'!C19-'Hull Long'!C121)^2) -> 360.0628602 | O70: 128.4088826 | P70: 128.661007
A71: 2 | B71: 1100 | C71: -75 | J71: =DEGREES(ATAN2('Hull Plan'!B71-'Hull Plan'!B70,'Hull Plan'!C71-'Hull Plan'!C70)) -> 7.125016349 | K71: =DEGREES(ATAN2('Hull Long'!B71-'Hull Long'!B70,'Hull Long'!C71-'Hull Long'!C70)) -> 0 | L71: =SQRT(('Hull Plan'!C20-'Hull Plan'!C71)^2+('Hull Long'!C20-'Hull Long'!C71)^2) -> 128 | M71: =SQRT(('Hull Plan'!C71-'Hull Plan'!C122)^2+('Hull Long'!C71-'Hull Long'!C122)^2) -> 267.1108701 | N71: =SQRT(('Hull Plan'!C20-'Hull Plan'!C122)^2+('Hull Long'!C20-'Hull Long'!C122)^2) -> 363.2963438 | O71: 130.3266845 | P71: 130.5459531
A72: 2 | B72: 1200 | C72: -75 | J72: =DEGREES(ATAN2('Hull Plan'!B72-'Hull Plan'!B71,'Hull Plan'!C72-'Hull Plan'!C71)) -> 6.560196401 | K72: =DEGREES(ATAN2('Hull Long'!B72-'Hull Long'!B71,'Hull Long'!C72-'Hull Long'!C71)) -> 0 | L72: =SQRT(('Hull Plan'!C21-'Hull Plan'!C72)^2+('Hull Long'!C21-'Hull Long'!C72)^2) -> 139.5 | M72: =SQRT(('Hull Plan'!C72-'Hull Plan'!C123)^2+('Hull Long'!C72-'Hull Long'!C123)^2) -> 257.4721606 | N72: =SQRT(('Hull Plan'!C21-'Hull Plan'!C123)^2+('Hull Long'!C21-'Hull Long'!C123)^2) -> 365.9747471 | O72: 132.1273478 | P72: 132.3146552
A73: 2 | B73: 1300 | C73: -75 | J73: =DEGREES(ATAN2('Hull Plan'!B73-'Hull Plan'!B72,'Hull Plan'!C73-'Hull Plan'!C72)) -> 5.994092949 | K73: =DEGREES(ATAN2('Hull Long'!B73-'Hull Long'!B72,'Hull Long'!C73-'Hull Long'!C72)) -> 0 | L73: =SQRT(('Hull Plan'!C22-'Hull Plan'!C73)^2+('Hull Long'!C22-'Hull Long'!C73)^2) -> 150 | M73: =SQRT(('Hull Plan'!C73-'Hull Plan'!C124)^2+('Hull Long'!C73-'Hull Long'!C124)^2) -> 247.8877222 | N73: =SQRT(('Hull Plan'!C22-'Hull Plan'!C124)^2+('Hull Long'!C22-'Hull Long'!C124)^2) -> 368.0277052 | O73: 133.8255504 | P73: 133.9824926
A74: 2 | B74: 1400 | C74: -75 | J74: =DEGREES(ATAN2('Hull Plan'!B74-'Hull Plan'!B73,'Hull Plan'!C74-'Hull Plan'!C73)) -> 5.426812499 | K74: =DEGREES(ATAN2('Hull Long'!B74-'Hull Long'!B73,'Hull Long'!C74-'Hull Long'!C73)) -> 0 | L74: =SQRT(('Hull Plan'!C23-'Hull Plan'!C74)^2+('Hull Long'!C23-'Hull Long'!C74)^2) -> 159.5 | M74: =SQRT(('Hull Plan'!C74-'Hull Plan'!C125)^2+('Hull Long'!C74-'Hull Long'!C125)^2) -> 238.43461 | N74: =SQRT(('Hull Plan'!C23-'Hull Plan'!C125)^2+('Hull Long'!C23-'Hull Long'!C125)^2) -> 369.4334462 | O74: 135.4349859 | P74: 135.56366
A75: 2 | B75: 1500 | C75: -75 | J75: =DEGREES(ATAN2('Hull Plan'!B75-'Hull Plan'!B74,'Hull Plan'!C75-'Hull Plan'!C74)) -> 4.858462919 | K75: =DEGREES(ATAN2('Hull Long'!B75-'Hull Long'!B74,'Hull Long'!C75-'Hull Long'!C74)) -> 0 | L75: =SQRT(('Hull Plan'!C24-'Hull Plan'!C75)^2+('Hull Long'!C24-'Hull Long'!C75)^2) -> 168 | M75: =SQRT(('Hull Plan'!C75-'Hull Plan'!C126)^2+('Hull Long'!C75-'Hull Long'!C126)^2) -> 229.2068506 | N75: =SQRT(('Hull Plan'!C24-'Hull Plan'!C126)^2+('Hull Long'!C24-'Hull Long'!C126)^2) -> 370.2086696 | O75: 136.9679044 | P75: 137.0707667
A76: 2 | B76: 1600 | C76: -75 | J76: =DEGREES(ATAN2('Hull Plan'!B76-'Hull Plan'!B75,'Hull Plan'!C76-'Hull Plan'!C75)) -> 4.289153329 | K76: =DEGREES(ATAN2('Hull Long'!B76-'Hull Long'!B75,'Hull Long'!C76-'Hull Long'!C75)) -> 0 | L76: =SQRT(('Hull Plan'!C25-'Hull Plan'!C76)^2+('Hull Long'!C25-'Hull Long'!C76)^2) -> 175.5 | M76: =SQRT(('Hull Plan'!C76-'Hull Plan'!C127)^2+('Hull Long'!C76-'Hull Long'!C127)^2) -> 220.3138131 | N76: =SQRT(('Hull Plan'!C25-'Hull Plan'!C127)^2+('Hull Long'!C25-'Hull Long'!C127)^2) -> 370.4006419 | O76: 138.434464 | P76: 138.5142202
A77: 2 | B77: 1700 | C77: -75 | J77: =DEGREES(ATAN2('Hull Plan'!B77-'Hull Plan'!B76,'Hull Plan'!C77-'Hull Plan'!C76)) -> 3.718993973 | K77: =DEGREES(ATAN2('Hull Long'!B77-'Hull Long'!B76,'Hull Long'!C77-'Hull Long'!C76)) -> 0 | L77: =SQRT(('Hull Plan'!C26-'Hull Plan'!C77)^2+('Hull Long'!C26-'Hull Long'!C77)^2) -> 182 | M77: =SQRT(('Hull Plan'!C77-'Hull Plan'!C128)^2+('Hull Long'!C77-'Hull Long'!C128)^2) -> 211.8791918 | N77: =SQRT(('Hull Plan'!C26-'Hull Plan'!C128)^2+('Hull Long'!C26-'Hull Long'!C128)^2) -> 370.0811944 | O77: 139.8417683 | P77: 139.9012884
A78: 2 | B78: 1800 | C78: -75 | J78: =DEGREES(ATAN2('Hull Plan'!B78-'Hull Plan'!B77,'Hull Plan'!C78-'Hull Plan'!C77)) -> 3.1480961 | K78: =DEGREES(ATAN2('Hull Long'!B78-'Hull Long'!B77,'Hull Long'!C78-'Hull Long'!C77)) -> 0 | L78: =SQRT(('Hull Plan'!C27-'Hull Plan'!C78)^2+('Hull Long'!C27-'Hull Long'!C78)^2) -> 187.5 | M78: =SQRT(('Hull Plan'!C78-'Hull Plan'!C129)^2+('Hull Long'!C78-'Hull Long'!C129)^2) -> 204.0407762 | N78: =SQRT(('Hull Plan'!C27-'Hull Plan'!C129)^2+('Hull Long'!C27-'Hull Long'!C129)^2) -> 369.342402 | O78: 141.1924125 | P78: 141.2346634
A79: 2 | B79: 1900 | C79: -75 | J79: =DEGREES(ATAN2('Hull Plan'!B79-'Hull Plan'!B78,'Hull Plan'!C79-'Hull Plan'!C78)) -> 2.57657183 | K79: =DEGREES(ATAN2('Hull Long'!B79-'Hull Long'!B78,'Hull Long'!C79-'Hull Long'!C78)) -> 0 | L79: =SQRT(('Hull Plan'!C28-'Hull Plan'!C79)^2+('Hull Long'!C28-'Hull Long'!C79)^2) -> 192 | M79: =SQRT(('Hull Plan'!C79-'Hull Plan'!C130)^2+('Hull Long'!C79-'Hull Long'!C130)^2) -> 196.9514556 | N79: =SQRT(('Hull Plan'!C28-'Hull Plan'!C130)^2+('Hull Long'!C28-'Hull Long'!C130)^2) -> 368.2939212 | O79: 142.4822475 | P79: 142.5102377
A80: 2 | B80: 2000 | C80: -75 | J80: =DEGREES(ATAN2('Hull Plan'!B80-'Hull Plan'!B79,'Hull Plan'!C80-'Hull Plan'!C79)) -> 2.004534032 | K80: =DEGREES(ATAN2('Hull Long'!B80-'Hull Long'!B79,'Hull Long'!C80-'Hull Long'!C79)) -> 0 | L80: =SQRT(('Hull Plan'!C29-'Hull Plan'!C80)^2+('Hull Long'!C29-'Hull Long'!C80)^2) -> 195.5 | M80: =SQRT(('Hull Plan'!C80-'Hull Plan'!C131)^2+('Hull Long'!C80-'Hull Long'!C131)^2) -> 190.7826629 | N80: =SQRT(('Hull Plan'!C29-'Hull Plan'!C131)^2+('Hull Long'!C29-'Hull Long'!C131)^2) -> 367.0624126 | O80: 143.6967528 | P80: 143.7134855
A81: 2 | B81: 2100 | C81: -75 | J81: =DEGREES(ATAN2('Hull Plan'!B81-'Hull Plan'!B80,'Hull Plan'!C81-'Hull Plan'!C80)) -> 1.432096184 | K81: =DEGREES(ATAN2('Hull Long'!B81-'Hull Long'!B80,'Hull Long'!C81-'Hull Long'!C80)) -> 0 | L81: =SQRT(('Hull Plan'!C30-'Hull Plan'!C81)^2+('Hull Long'!C30-'Hull Long'!C81)^2) -> 198 | M81: =SQRT(('Hull Plan'!C81-'Hull Plan'!C132)^2+('Hull Long'!C81-'Hull Long'!C132)^2) -> 185.7338965 | N81: =SQRT(('Hull Plan'!C30-'Hull Plan'!C132)^2+('Hull Long'!C30-'Hull Long'!C132)^2) -> 365.7947436 | O81: 144.8043218 | P81: 144.812752
A82: 2 | B82: 2200 | C82: -75 | J82: =DEGREES(ATAN2('Hull Plan'!B82-'Hull Plan'!B81,'Hull Plan'!C82-'Hull Plan'!C81)) -> 0.8593722436 | K82: =DEGREES(ATAN2('Hull Long'!B82-'Hull Long'!B81,'Hull Long'!C82-'Hull Long'!C81)) -> 0 | L82: =SQRT(('Hull Plan'!C31-'Hull Plan'!C82)^2+('Hull Long'!C31-'Hull Long'!C82)^2) -> 199.5 | M82: =SQRT(('Hull Plan'!C82-'Hull Plan'!C133)^2+('Hull Long'!C82-'Hull Long'!C133)^2) -> 182.0628885 | N82: =SQRT(('Hull Plan'!C31-'Hull Plan'!C133)^2+('Hull Long'!C31-'Hull Long'!C133)^2) -> 364.6721619 | O82: =DEGREES(ACOS((N82*N82-L82*L82-M82*M82)/-2/L82/M82)) -> 145.7396374 | P82: =IF(DEGREES(ATAN(COS(RADIANS(J82))/COS(RADIANS(K82))*TAN(RADIANS(O82))))>0,DEGREES(ATAN(COS(RADIANS(J82))/COS(RADIANS(K82))*TAN(RADIANS(O82)))),DEGREES(ATAN(COS(RADIANS(J82))/COS(RADIANS(K82))*TAN(RADIANS(O82))))+180) -> 145.7426361
A83: 2 | B83: 2300 | C83: =-75*Basic!$D$2 -> -75 | J83: =DEGREES(ATAN2('Hull Plan'!B83-'Hull Plan'!B82,'Hull Plan'!C83-'Hull Plan'!C82)) -> 0.2864765103 | K83: =DEGREES(ATAN2('Hull Long'!B83-'Hull Long'!B82,'Hull Long'!C83-'Hull Long'!C82)) -> 0 | L83: =SQRT(('Hull Plan'!C32-'Hull Plan'!C83)^2+('Hull Long'!C32-'Hull Long'!C83)^2) -> 200 | M83: =SQRT(('Hull Plan'!C83-'Hull Plan'!C134)^2+('Hull Long'!C83-'Hull Long'!C134)^2) -> 180.2775638 | N83: =SQRT(('Hull Plan'!C32-'Hull Plan'!C134)^2+('Hull Long'!C32-'Hull Long'!C134)^2) -> 364.0054945 | O83: =DEGREES(ACOS((N83*N83-L83*L83-M83*M83)/-2/L83/M83)) -> 146.3099325 | P83: =IF(DEGREES(ATAN(COS(RADIANS(J83))/COS(RADIANS(K83))*TAN(RADIANS(O83))))>0,DEGREES(ATAN(COS(RADIANS(J83))/COS(RADIANS(K83))*TAN(RADIANS(O83)))),DEGREES(ATAN(COS(RADIANS(J83))/COS(RADIANS(K83))*TAN(RADIANS(O83))))+180) -> 146.310263
A84: 2 | B84: 2300 | C84: =-75*Basic!$D$2 -> -75 | J84: =DEGREES(ATAN2('Hull Plan'!B85-'Hull Plan'!B84,'Hull Plan'!C85-'Hull Plan'!C84)) -> -0.2864765103 | K84: =DEGREES(ATAN2('Hull Long'!B85-'Hull Long'!B84,'Hull Long'!C85-'Hull Long'!C84)) -> 0 | L84: =SQRT(('Hull Plan'!C33-'Hull Plan'!C84)^2+('Hull Long'!C33-'Hull Long'!C84)^2) -> 200 | M84: =SQRT(('Hull Plan'!C84-'Hull Plan'!C135)^2+('Hull Long'!C84-'Hull Long'!C135)^2) -> 180.2775638 | N84: =SQRT(('Hull Plan'!C33-'Hull Plan'!C135)^2+('Hull Long'!C33-'Hull Long'!C135)^2) -> 364.0054945 | O84: =DEGREES(ACOS((N84*N84-L84*L84-M84*M84)/-2/L84/M84)) -> 146.3099325 | P84: =IF(DEGREES(ATAN(COS(RADIANS(J84))/COS(RADIANS(K84))*TAN(RADIANS(O84))))>0,DEGREES(ATAN(COS(RADIANS(J84))/COS(RADIANS(K84))*TAN(RADIANS(O84)))),DEGREES(ATAN(COS(RADIANS(J84))/COS(RADIANS(K84))*TAN(RADIANS(O84))))+180) -> 146.310263
A85: 2 | B85: 2400 | C85: =C$84+(C$104-C$84)*ABS(B$84-$B85)^G$104/ABS(B$104-B$84)^G$104 -> -75 | J85: =DEGREES(ATAN2('Hull Plan'!B86-'Hull Plan'!B85,'Hull Plan'!C86-'Hull Plan'!C85)) -> -0.8593722436 | K85: =DEGREES(ATAN2('Hull Long'!B86-'Hull Long'!B85,'Hull Long'!C86-'Hull Long'!C85)) -> 0 | L85: =SQRT(('Hull Plan'!C34-'Hull Plan'!C85)^2+('Hull Long'!C34-'Hull Long'!C85)^2) -> 199.5 | M85: =SQRT(('Hull Plan'!C85-'Hull Plan'!C136)^2+('Hull Long'!C85-'Hull Long'!C136)^2) -> 182.0628885 | N85: =SQRT(('Hull Plan'!C34-'Hull Plan'!C136)^2+('Hull Long'!C34-'Hull Long'!C136)^2) -> 364.6721619 | O85: =DEGREES(ACOS((N85*N85-L85*L85-M85*M85)/-2/L85/M85)) -> 145.7396374 | P85: =IF(DEGREES(ATAN(COS(RADIANS(J85))/COS(RADIANS(K85))*TAN(RADIANS(O85))))>0,DEGREES(ATAN(COS(RADIANS(J85))/COS(RADIANS(K85))*TAN(RADIANS(O85)))),DEGREES(ATAN(COS(RADIANS(J85))/COS(RADIANS(K85))*TAN(RADIANS(O85))))+180) -> 145.7426361
A86: 2 | B86: 2500 | C86: -75 | J86: =DEGREES(ATAN2('Hull Plan'!B87-'Hull Plan'!B86,'Hull Plan'!C87-'Hull Plan'!C86)) -> -1.432096184 | K86: =DEGREES(ATAN2('Hull Long'!B87-'Hull Long'!B86,'Hull Long'!C87-'Hull Long'!C86)) -> 0 | L86: =SQRT(('Hull Plan'!C35-'Hull Plan'!C86)^2+('Hull Long'!C35-'Hull Long'!C86)^2) -> 198 | M86: =SQRT(('Hull Plan'!C86-'Hull Plan'!C137)^2+('Hull Long'!C86-'Hull Long'!C137)^2) -> 185.7338965 | N86: =SQRT(('Hull Plan'!C35-'Hull Plan'!C137)^2+('Hull Long'!C35-'Hull Long'!C137)^2) -> 365.7947436 | O86: 144.8043218 | P86: 144.812752
A87: 2 | B87: 2600 | C87: -75 | J87: =DEGREES(ATAN2('Hull Plan'!B88-'Hull Plan'!B87,'Hull Plan'!C88-'Hull Plan'!C87)) -> -2.004534032 | K87: =DEGREES(ATAN2('Hull Long'!B88-'Hull Long'!B87,'Hull Long'!C88-'Hull Long'!C87)) -> 0 | L87: =SQRT(('Hull Plan'!C36-'Hull Plan'!C87)^2+('Hull Long'!C36-'Hull Long'!C87)^2) -> 195.5 | M87: =SQRT(('Hull Plan'!C87-'Hull Plan'!C138)^2+('Hull Long'!C87-'Hull Long'!C138)^2) -> 190.7826629 | N87: =SQRT(('Hull Plan'!C36-'Hull Plan'!C138)^2+('Hull Long'!C36-'Hull Long'!C138)^2) -> 367.0624126 | O87: 143.6967528 | P87: 143.7134855
A88: 2 | B88: 2700 | C88: -75 | J88: =DEGREES(ATAN2('Hull Plan'!B89-'Hull Plan'!B88,'Hull Plan'!C89-'Hull Plan'!C88)) -> -2.57657183 | K88: =DEGREES(ATAN2('Hull Long'!B89-'Hull Long'!B88,'Hull Long'!C89-'Hull Long'!C88)) -> 0 | L88: =SQRT(('Hull Plan'!C37-'Hull Plan'!C88)^2+('Hull Long'!C37-'Hull Long'!C88)^2) -> 192 | M88: =SQRT(('Hull Plan'!C88-'Hull Plan'!C139)^2+('Hull Long'!C88-'Hull Long'!C139)^2) -> 196.9514556 | N88: =SQRT(('Hull Plan'!C37-'Hull Plan'!C139)^2+('Hull Long'!C37-'Hull Long'!C139)^2) -> 368.2939212 | O88: 142.4822475 | P88: 142.5102377
A89: 2 | B89: 2800 | C89: -75 | J89: =DEGREES(ATAN2('Hull Plan'!B90-'Hull Plan'!B89,'Hull Plan'!C90-'Hull Plan'!C89)) -> -3.1480961 | K89: =DEGREES(ATAN2('Hull Long'!B90-'Hull Long'!B89,'Hull Long'!C90-'Hull Long'!C89)) -> 0 | L89: =SQRT(('Hull Plan'!C38-'Hull Plan'!C89)^2+('Hull Long'!C38-'Hull Long'!C89)^2) -> 187.5 | M89: =SQRT(('Hull Plan'!C89-'Hull Plan'!C140)^2+('Hull Long'!C89-'Hull Long'!C140)^2) -> 204.0407762 | N89: =SQRT(('Hull Plan'!C38-'Hull Plan'!C140)^2+('Hull Long'!C38-'Hull Long'!C140)^2) -> 369.342402 | O89: 141.1924125 | P89: 141.2346634
A90: 2 | B90: 2900 | C90: -75 | J90: =DEGREES(ATAN2('Hull Plan'!B91-'Hull Plan'!B90,'Hull Plan'!C91-'Hull Plan'!C90)) -> -3.718993973 | K90: =DEGREES(ATAN2('Hull Long'!B91-'Hull Long'!B90,'Hull Long'!C91-'Hull Long'!C90)) -> 0 | L90: =SQRT(('Hull Plan'!C39-'Hull Plan'!C90)^2+('Hull Long'!C39-'Hull Long'!C90)^2) -> 182 | M90: =SQRT(('Hull Plan'!C90-'Hull Plan'!C141)^2+('Hull Long'!C90-'Hull Long'!C141)^2) -> 211.8791918 | N90: =SQRT(('Hull Plan'!C39-'Hull Plan'!C141)^2+('Hull Long'!C39-'Hull Long'!C141)^2) -> 370.0811944 | O90: 139.8417683 | P90: 139.9012884
A91: 2 | B91: 3000 | C91: -75 | J91: =DEGREES(ATAN2('Hull Plan'!B92-'Hull Plan'!B91,'Hull Plan'!C92-'Hull Plan'!C91)) -> -4.289153329 | K91: =DEGREES(ATAN2('Hull Long'!B92-'Hull Long'!B91,'Hull Long'!C92-'Hull Long'!C91)) -> 0 | L91: =SQRT(('Hull Plan'!C40-'Hull Plan'!C91)^2+('Hull Long'!C40-'Hull Long'!C91)^2) -> 175.5 | M91: =SQRT(('Hull Plan'!C91-'Hull Plan'!C142)^2+('Hull Long'!C91-'Hull Long'!C142)^2) -> 220.3138131 | N91: =SQRT(('Hull Plan'!C40-'Hull Plan'!C142)^2+('Hull Long'!C40-'Hull Long'!C142)^2) -> 370.4006419 | O91: 138.434464 | P91: 138.5142202
A92: 2 | B92: 3100 | C92: -75 | J92: =DEGREES(ATAN2('Hull Plan'!B93-'Hull Plan'!B92,'Hull Plan'!C93-'Hull Plan'!C92)) -> -4.858462919 | K92: =DEGREES(ATAN2('Hull Long'!B93-'Hull Long'!B92,'Hull Long'!C93-'Hull Long'!C92)) -> 0 | L92: =SQRT(('Hull Plan'!C41-'Hull Plan'!C92)^2+('Hull Long'!C41-'Hull Long'!C92)^2) -> 168 | M92: =SQRT(('Hull Plan'!C92-'Hull Plan'!C143)^2+('Hull Long'!C92-'Hull Long'!C143)^2) -> 229.2068506 | N92: =SQRT(('Hull Plan'!C41-'Hull Plan'!C143)^2+('Hull Long'!C41-'Hull Long'!C143)^2) -> 370.2086696 | O92: 136.9679044 | P92: 137.0707667
A93: 2 | B93: 3200 | C93: -75 | J93: =DEGREES(ATAN2('Hull Plan'!B94-'Hull Plan'!B93,'Hull Plan'!C94-'Hull Plan'!C93)) -> -5.426812499 | K93: =DEGREES(ATAN2('Hull Long'!B94-'Hull Long'!B93,'Hull Long'!C94-'Hull Long'!C93)) -> 0 | L93: =SQRT(('Hull Plan'!C42-'Hull Plan'!C93)^2+('Hull Long'!C42-'Hull Long'!C93)^2) -> 159.5 | M93: =SQRT(('Hull Plan'!C93-'Hull Plan'!C144)^2+('Hull Long'!C93-'Hull Long'!C144)^2) -> 238.43461 | N93: =SQRT(('Hull Plan'!C42-'Hull Plan'!C144)^2+('Hull Long'!C42-'Hull Long'!C144)^2) -> 369.4334462 | O93: 135.4349859 | P93: 135.56366
A94: 2 | B94: 3300 | C94: -75 | J94: =DEGREES(ATAN2('Hull Plan'!B95-'Hull Plan'!B94,'Hull Plan'!C95-'Hull Plan'!C94)) -> -5.994092949 | K94: =DEGREES(ATAN2('Hull Long'!B95-'Hull Long'!B94,'Hull Long'!C95-'Hull Long'!C94)) -> 0 | L94: =SQRT(('Hull Plan'!C43-'Hull Plan'!C94)^2+('Hull Long'!C43-'Hull Long'!C94)^2) -> 150 | M94: =SQRT(('Hull Plan'!C94-'Hull Plan'!C145)^2+('Hull Long'!C94-'Hull Long'!C145)^2) -> 247.8877222 | N94: =SQRT(('Hull Plan'!C43-'Hull Plan'!C145)^2+('Hull Long'!C43-'Hull Long'!C145)^2) -> 368.0277052 | O94: 133.8255504 | P94: 133.9824926
A95: 2 | B95: 3400 | C95: -75 | J95: =DEGREES(ATAN2('Hull Plan'!B96-'Hull Plan'!B95,'Hull Plan'!C96-'Hull Plan'!C95)) -> -6.560196401 | K95: =DEGREES(ATAN2('Hull Long'!B96-'Hull Long'!B95,'Hull Long'!C96-'Hull Long'!C95)) -> 0 | L95: =SQRT(('Hull Plan'!C44-'Hull Plan'!C95)^2+('Hull Long'!C44-'Hull Long'!C95)^2) -> 139.5 | M95: =SQRT(('Hull Plan'!C95-'Hull Plan'!C146)^2+('Hull Long'!C95-'Hull Long'!C146)^2) -> 257.4721606 | N95: =SQRT(('Hull Plan'!C44-'Hull Plan'!C146)^2+('Hull Long'!C44-'Hull Long'!C146)^2) -> 365.9747471 | O95: 132.1273478 | P95: 132.3146552
A96: 2 | B96: 3500 | C96: -75 | J96: =DEGREES(ATAN2('Hull Plan'!B97-'Hull Plan'!B96,'Hull Plan'!C97-'Hull Plan'!C96)) -> -7.125016349 | K96: =DEGREES(ATAN2('Hull Long'!B97-'Hull Long'!B96,'Hull Long'!C97-'Hull Long'!C96)) -> 0 | L96: =SQRT(('Hull Plan'!C45-'Hull Plan'!C96)^2+('Hull Long'!C45-'Hull Long'!C96)^2) -> 128 | M96: =SQRT(('Hull Plan'!C96-'Hull Plan'!C147)^2+('Hull Long'!C96-'Hull Long'!C147)^2) -> 267.1108701 | N96: =SQRT(('Hull Plan'!C45-'Hull Plan'!C147)^2+('Hull Long'!C45-'Hull Long'!C147)^2) -> 363.2963438 | O96: 130.3266845 | P96: 130.5459531
A97: 2 | B97: 3600 | C97: -75 | J97: =DEGREES(ATAN2('Hull Plan'!B98-'Hull Plan'!B97,'Hull Plan'!C98-'Hull Plan'!C97)) -> -7.688166418 | K97: =DEGREES(ATAN2('Hull Long'!B98-'Hull Long'!B97,'Hull Long'!C98-'Hull Long'!C97)) -> 0 | L97: =SQRT(('Hull Plan'!C46-'Hull Plan'!C97)^2+('Hull Long'!C46-'Hull Long'!C97)^2) -> 115.5 | M97: =SQRT(('Hull Plan'!C97-'Hull Plan'!C148)^2+('Hull Long'!C97-'Hull Long'!C148)^2) -> 276.7459431 | N97: =SQRT(('Hull Plan'!C46-'Hull Plan'!C148)^2+('Hull Long'!C46-'Hull Long'!C148)^2) -> 360.0628602 | O97: 128.4088826 | P97: 128.661007
A98: 2 | B98: 3699.9 | C98: -75 | J98: =DEGREES(ATAN2('Hull Plan'!B99-'Hull Plan'!B98,'Hull Plan'!C99-'Hull Plan'!C98)) -> -7.969610394 | K98: =DEGREES(ATAN2('Hull Long'!B99-'Hull Long'!B98,'Hull Long'!C99-'Hull Long'!C98)) -> 0 | L98: =SQRT(('Hull Plan'!C47-'Hull Plan'!C98)^2+('Hull Long'!C47-'Hull Long'!C98)^2) -> 102.0139995 | M98: =SQRT(('Hull Plan'!C98-'Hull Plan'!C149)^2+('Hull Long'!C98-'Hull Long'!C149)^2) -> 286.3317549 | N98: =SQRT(('Hull Plan'!C47-'Hull Plan'!C149)^2+('Hull Long'!C47-'Hull Long'!C149)^2) -> 356.4097011 | O98: 126.3607678 | P98: 126.6266335
A99: 2 | B99: 3700.1 | C99: -75 | J99: =DEGREES(ATAN2('Hull Plan'!B100-'Hull Plan'!B99,'Hull Plan'!C100-'Hull Plan'!C99)) -> -8.531045785 | K99: =DEGREES(ATAN2('Hull Long'!B100-'Hull Long'!B99,'Hull Long'!C100-'Hull Long'!C99)) -> 0 | L99: =SQRT(('Hull Plan'!C48-'Hull Plan'!C99)^2+('Hull Long'!C48-'Hull Long'!C99)^2) -> 101.9859995 | M99: =SQRT(('Hull Plan'!C99-'Hull Plan'!C150)^2+('Hull Long'!C99-'Hull Long'!C150)^2) -> 286.3508941 | N99: =SQRT(('Hull Plan'!C48-'Hull Plan'!C150)^2+('Hull Long'!C48-'Hull Long'!C150)^2) -> 356.402088 | O99: 126.3565245 | P99: 126.6613621
A100: 2 | B100: 3900 | C100: -75 | J100: =DEGREES(ATAN2('Hull Plan'!B101-'Hull Plan'!B100,'Hull Plan'!C101-'Hull Plan'!C100)) -> -9.369385096 | K100: =DEGREES(ATAN2('Hull Long'!B101-'Hull Long'!B100,'Hull Long'!C101-'Hull Long'!C100)) -> 0 | L100: =SQRT(('Hull Plan'!C49-'Hull Plan'!C100)^2+('Hull Long'!C49-'Hull Long'!C100)^2) -> 72 | M100: =SQRT(('Hull Plan'!C100-'Hull Plan'!C151)^2+('Hull Long'!C100-'Hull Long'!C151)^2) -> 305.3978409 | N100: =SQRT(('Hull Plan'!C49-'Hull Plan'!C151)^2+('Hull Long'!C49-'Hull Long'!C151)^2) -> 348.7479382 | O100: 121.7987672 | P100: 122.1444125
A101: 2 | B101: 4000 | C101: -75 | J101: =DEGREES(ATAN2('Hull Plan'!B102-'Hull Plan'!B101,'Hull Plan'!C102-'Hull Plan'!C101)) -> -9.926245507 | K101: =DEGREES(ATAN2('Hull Long'!B102-'Hull Long'!B101,'Hull Long'!C102-'Hull Long'!C101)) -> 0 | L101: =SQRT(('Hull Plan'!C50-'Hull Plan'!C101)^2+('Hull Long'!C50-'Hull Long'!C101)^2) -> 55.5 | M101: =SQRT(('Hull Plan'!C101-'Hull Plan'!C152)^2+('Hull Long'!C101-'Hull Long'!C152)^2) -> 314.9274209 | N101: =SQRT(('Hull Plan'!C50-'Hull Plan'!C152)^2+('Hull Long'!C50-'Hull Long'!C152)^2) -> 345.4634646 | O101: 119.2589606 | P101: 119.6288913
A102: 2 | B102: 4100 | C102: =C$84+(C$104-C$84)*ABS(B$84-$B102)^G$104/ABS(B$104-B$84)^G$104 -> -75 | J102: =DEGREES(ATAN2('Hull Plan'!B103-'Hull Plan'!B102,'Hull Plan'!C103-'Hull Plan'!C102)) -> -10.48121814 | K102: =DEGREES(ATAN2('Hull Long'!B103-'Hull Long'!B102,'Hull Long'!C103-'Hull Long'!C102)) -> 0 | L102: =SQRT(('Hull Plan'!C51-'Hull Plan'!C102)^2+('Hull Long'!C51-'Hull Long'!C102)^2) -> 38 | M102: =SQRT(('Hull Plan'!C102-'Hull Plan'!C153)^2+('Hull Long'!C102-'Hull Long'!C153)^2) -> 324.5626718 | N102: =SQRT(('Hull Plan'!C51-'Hull Plan'!C153)^2+('Hull Long'!C51-'Hull Long'!C153)^2) -> 343.2227038 | O102: =DEGREES(ACOS((N102*N102-L102*L102-M102*M102)/-2/L102/M102)) -> 116.5276213 | P102: =IF(DEGREES(ATAN(COS(RADIANS(J102))/COS(RADIANS(K102))*TAN(RADIANS(O102))))>0,DEGREES(ATAN(COS(RADIANS(J102))/COS(RADIANS(K102))*TAN(RADIANS(O102)))),DEGREES(ATAN(COS(RADIANS(J102))/COS(RADIANS(K102))*TAN(RADIANS(O102))))+180) -> 116.9148135
A103: 2 | B103: 4200 | C103: =C$84+(C$104-C$84)*ABS(B$84-$B103)^G$104/ABS(B$104-B$84)^G$104 -> -75 | J103: =DEGREES(ATAN2('Hull Plan'!B104-'Hull Plan'!B103,'Hull Plan'!C104-'Hull Plan'!C103)) -> -11.034209 | K103: =DEGREES(ATAN2('Hull Long'!B104-'Hull Long'!B103,'Hull Long'!C104-'Hull Long'!C103)) -> 0 | L103: =SQRT(('Hull Plan'!C52-'Hull Plan'!C103)^2+('Hull Long'!C52-'Hull Long'!C103)^2) -> 19.5 | M103: =SQRT(('Hull Plan'!C103-'Hull Plan'!C154)^2+('Hull Long'!C103-'Hull Long'!C154)^2) -> 334.4331131 | N103: =SQRT(('Hull Plan'!C52-'Hull Plan'!C154)^2+('Hull Long'!C52-'Hull Long'!C154)^2) -> 342.7041653 | O103: =DEGREES(ACOS((N103*N103-L103*L103-M103*M103)/-2/L103/M103)) -> 113.5936667 | P103: =IF(DEGREES(ATAN(COS(RADIANS(J103))/COS(RADIANS(K103))*TAN(RADIANS(O103))))>0,DEGREES(ATAN(COS(RADIANS(J103))/COS(RADIANS(K103))*TAN(RADIANS(O103)))),DEGREES(ATAN(COS(RADIANS(J103))/COS(RADIANS(K103))*TAN(RADIANS(O103))))+180) -> 113.9882993
A104: 2 | B104: 4300 | C104: =-75*Basic!$D$2 -> -75 | G104: 2
A105: 2 | B105: 4400 | C105: =C104+(C107-C104)*ABS(B104-B105)/ABS(B107-B104) -> 50
A106: 2 | B106: 4500 | C106: =C104+(C107-C104)*ABS(B104-B106)/ABS(B107-B104) -> 175
A107: 2 | B107: 4600 | C107: =C56 -> 300
A108: 0 | B108: 4700 | C108: =C57 -> 425
A109: 0 | B109: 0 | C109: 0 | G109: Chine | J109: Qz | K109: Qx | L109: a | M109: b | N109: c | O109: AA | P109: TA | Q109: =SUM(Q113:Q134) -> 80.15573739
A110: 0 | B110: =B8 -> -100 | C110: =C59 -> 425
A111: 3 | B111: =B9 -> 0 | C111: =C60 -> 300 | F111: 3.017654325 | G111: 1.5
A112: 3 | B112: 100 | C112: =C$134+(C$111-C$134)*ABS(B$134-B112)^G$111/ABS(B$111-B$134)^G$111 -> 282.2615969 | F112: =AVERAGE(P112:P134) -> 89.99996333 | G112: =VAR(P112:P134) -> 3.680354453 | J112: =DEGREES(ATAN2('Hull Plan'!B112-'Hull Plan'!B111,'Hull Plan'!C112-'Hull Plan'!C111)) -> 23.71893167 | K112: =DEGREES(ATAN2('Hull Long'!B112-'Hull Long'!B111,'Hull Long'!C112-'Hull Long'!C111)) -> -10.05872766 | L112: =SQRT(('Hull Plan'!C61-'Hull Plan'!C112)^2+('Hull Long'!C61-'Hull Long'!C112)^2) -> 115.9113999 | M112: =SQRT(('Hull Plan'!C112-'Hull Plan'!C163)^2+('Hull Long'!C112-'Hull Long'!C163)^2) -> 24.64822953 | N112: =SQRT(('Hull Plan'!C61-'Hull Plan'!C163)^2+('Hull Long'!C61-'Hull Long'!C163)^2) -> 118.8551583 | O112: =DEGREES(ACOS((N112*N112-L112*L112-M112*M112)/-2/L112/M112)) -> 90.83791274 | P112: =IF(DEGREES(ATAN(COS(RADIANS(J112))/COS(RADIANS(K112))*TAN(RADIANS(O112))))>0,DEGREES(ATAN(COS(RADIANS(J112))/COS(RADIANS(K112))*TAN(RADIANS(O112)))),DEGREES(ATAN(COS(RADIANS(J112))/COS(RADIANS(K112))*TAN(RADIANS(O112))))+180) -> 90.90114406 | Q112: =(90-P112)^2 -> 0.8120606164
A113: 3 | B113: 200 | C113: =C$134+(C$111-C$134)*ABS(B$134-B113)^G$111/ABS(B$111-B$134)^G$111 -> 264.9218944 | J113: =DEGREES(ATAN2('Hull Plan'!B113-'Hull Plan'!B112,'Hull Plan'!C113-'Hull Plan'!C112)) -> 21.84394363 | K113: =DEGREES(ATAN2('Hull Long'!B113-'Hull Long'!B112,'Hull Long'!C113-'Hull Long'!C112)) -> -9.837106727 | L113: =SQRT(('Hull Plan'!C62-'Hull Plan'!C113)^2+('Hull Long'!C62-'Hull Long'!C113)^2) -> 230.7622125 | M113: =SQRT(('Hull Plan'!C113-'Hull Plan'!C164)^2+('Hull Long'!C113-'Hull Long'!C164)^2) -> 46.54873963 | N113: =SQRT(('Hull Plan'!C62-'Hull Plan'!C164)^2+('Hull Long'!C62-'Hull Long'!C164)^2) -> 237.7214481 | O113: =DEGREES(ACOS((N113*N113-L113*L113-M113*M113)/-2/L113/M113)) -> 92.91761321 | P113: =IF(DEGREES(ATAN(COS(RADIANS(J113))/COS(RADIANS(K113))*TAN(RADIANS(O113))))>0,DEGREES(ATAN(COS(RADIANS(J113))/COS(RADIANS(K113))*TAN(RADIANS(O113)))),DEGREES(ATAN(COS(RADIANS(J113))/COS(RADIANS(K113))*TAN(RADIANS(O113))))+180) -> 93.09674612 | Q113: =(90-P113)^2 -> 9.589836546
A114: 3 | B114: 300 | C114: =C$134+(C$111-C$134)*ABS(B$134-B114)^G$111/ABS(B$111-B$134)^G$111 -> 247.9902802 | J114: =DEGREES(ATAN2('Hull Plan'!B114-'Hull Plan'!B113,'Hull Plan'!C114-'Hull Plan'!C113)) -> 20.00856763 | K114: =DEGREES(ATAN2('Hull Long'!B114-'Hull Long'!B113,'Hull Long'!C114-'Hull Long'!C113)) -> -9.60995938 | L114: =SQRT(('Hull Plan'!C63-'Hull Plan'!C114)^2+('Hull Long'!C63-'Hull Long'!C114)^2) -> 344.7138786 | M114: =SQRT(('Hull Plan'!C114-'Hull Plan'!C165)^2+('Hull Long'!C114-'Hull Long'!C165)^2) -> 65.89202017 | N114: =SQRT(('Hull Plan'!C63-'Hull Plan'!C165)^2+('Hull Long'!C63-'Hull Long'!C165)^2) -> 356.608917 | O114: 95.05217761 | P114: 95.29987131 | Q114: =(90-P114)^2 -> 28.0886359
A115: 3 | B115: 400 | C115: 231.4768382 | J115: =DEGREES(ATAN2('Hull Plan'!B115-'Hull Plan'!B114,'Hull Plan'!C115-'Hull Plan'!C114)) -> 18.22136574 | K115: =DEGREES(ATAN2('Hull Long'!B115-'Hull Long'!B114,'Hull Long'!C115-'Hull Long'!C114)) -> -9.376882519 | L115: =SQRT(('Hull Plan'!C64-'Hull Plan'!C115)^2+('Hull Long'!C64-'Hull Long'!C115)^2) -> 334.4331131 | M115: =SQRT(('Hull Plan'!C115-'Hull Plan'!C166)^2+('Hull Long'!C115-'Hull Long'!C166)^2) -> 82.86867251 | N115: =SQRT(('Hull Plan'!C64-'Hull Plan'!C166)^2+('Hull Long'!C64-'Hull Long'!C166)^2) -> 349.0306309 | O115: 93.21613002 | P115: 93.34039553 | Q115: 11.1582423
A116: 3 | B116: 500 | C116: 215.392439 | J116: =DEGREES(ATAN2('Hull Plan'!B116-'Hull Plan'!B115,'Hull Plan'!C116-'Hull Plan'!C115)) -> 16.49036933 | K116: =DEGREES(ATAN2('Hull Long'!B116-'Hull Long'!B115,'Hull Long'!C116-'Hull Long'!C115)) -> -9.13742083 | L116: =SQRT(('Hull Plan'!C65-'Hull Plan'!C116)^2+('Hull Long'!C65-'Hull Long'!C116)^2) -> 324.5626718 | M116: =SQRT(('Hull Plan'!C116-'Hull Plan'!C167)^2+('Hull Long'!C116-'Hull Long'!C167)^2) -> 97.66908364 | N116: =SQRT(('Hull Plan'!C65-'Hull Plan'!C167)^2+('Hull Long'!C65-'Hull Long'!C167)^2) -> 341.6540516 | O116: 91.66970193 | P116: 91.71920092 | Q116: 2.955651805
A117: 3 | B117: 600 | C117: 199.7488482 | J117: =DEGREES(ATAN2('Hull Plan'!B117-'Hull Plan'!B116,'Hull Plan'!C117-'Hull Plan'!C116)) -> 14.82297037 | K117: =DEGREES(ATAN2('Hull Long'!B117-'Hull Long'!B116,'Hull Long'!C117-'Hull Long'!C116)) -> -8.891056774 | L117: =SQRT(('Hull Plan'!C66-'Hull Plan'!C117)^2+('Hull Long'!C66-'Hull Long'!C117)^2) -> 314.9274209 | M117: =SQRT(('Hull Plan'!C117-'Hull Plan'!C168)^2+('Hull Long'!C117-'Hull Long'!C168)^2) -> 110.4829685 | N117: =SQRT(('Hull Plan'!C66-'Hull Plan'!C168)^2+('Hull Long'!C66-'Hull Long'!C168)^2) -> 334.4845046 | O117: 90.40683694 | P117: 90.41578504 | Q117: 0.1728771963
A118: 3 | B118: 700 | C118: 184.558856 | J118: =DEGREES(ATAN2('Hull Plan'!B118-'Hull Plan'!B117,'Hull Plan'!C118-'Hull Plan'!C117)) -> 13.22584331 | K118: =DEGREES(ATAN2('Hull Long'!B118-'Hull Long'!B117,'Hull Long'!C118-'Hull Long'!C117)) -> -8.637197942 | L118: =SQRT(('Hull Plan'!C67-'Hull Plan'!C118)^2+('Hull Long'!C67-'Hull Long'!C118)^2) -> 305.3978409 | M118: =SQRT(('Hull Plan'!C118-'Hull Plan'!C169)^2+('Hull Long'!C118-'Hull Long'!C169)^2) -> 121.498748 | N118: =SQRT(('Hull Plan'!C67-'Hull Plan'!C169)^2+('Hull Long'!C67-'Hull Long'!C169)^2) -> 327.527779 | O118: 89.41681625 | P118: 89.40772099 | Q118: 0.3507944292
A119: 3 | B119: 899.9 | C119: 155.6109304 | J119: =DEGREES(ATAN2('Hull Plan'!B119-'Hull Plan'!B118,'Hull Plan'!C119-'Hull Plan'!C118)) -> 10.98754082 | K119: =DEGREES(ATAN2('Hull Long'!B119-'Hull Long'!B118,'Hull Long'!C119-'Hull Long'!C118)) -> -8.239839046 | L119: =SQRT(('Hull Plan'!C68-'Hull Plan'!C119)^2+('Hull Long'!C68-'Hull Long'!C119)^2) -> 286.3508941 | M119: =SQRT(('Hull Plan'!C119-'Hull Plan'!C170)^2+('Hull Long'!C119-'Hull Long'!C170)^2) -> 138.8707341 | N119: =SQRT(('Hull Plan'!C68-'Hull Plan'!C170)^2+('Hull Long'!C68-'Hull Long'!C170)^2) -> 314.2850957 | O119: 88.19376628 | P119: 88.17904144 | Q119: 3.315890086
A120: 3 | B120: 900.1 | C120: 155.5829454 | J120: =DEGREES(ATAN2('Hull Plan'!B120-'Hull Plan'!B119,'Hull Plan'!C120-'Hull Plan'!C119)) -> 9.573230141 | K120: =DEGREES(ATAN2('Hull Long'!B120-'Hull Long'!B119,'Hull Long'!C120-'Hull Long'!C119)) -> -7.965412087 | L120: =SQRT(('Hull Plan'!C69-'Hull Plan'!C120)^2+('Hull Long'!C69-'Hull Long'!C120)^2) -> 286.3317549 | M120: =SQRT(('Hull Plan'!C120-'Hull Plan'!C171)^2+('Hull Long'!C120-'Hull Long'!C171)^2) -> 138.8853761 | N120: =SQRT(('Hull Plan'!C69-'Hull Plan'!C171)^2+('Hull Long'!C69-'Hull Long'!C171)^2) -> 314.2723037 | O120: 88.19300955 | P120: 88.1851752 | Q120: 3.293589062
A121: 3 | B121: 1000 | C121: 141.8573324 | J121: =DEGREES(ATAN2('Hull Plan'!B121-'Hull Plan'!B120,'Hull Plan'!C121-'Hull Plan'!C120)) -> 8.910638385 | K121: =DEGREES(ATAN2('Hull Long'!B121-'Hull Long'!B120,'Hull Long'!C121-'Hull Long'!C120)) -> -7.823088924 | L121: =SQRT(('Hull Plan'!C70-'Hull Plan'!C121)^2+('Hull Long'!C70-'Hull Long'!C121)^2) -> 276.7459431 | M121: =SQRT(('Hull Plan'!C121-'Hull Plan'!C172)^2+('Hull Long'!C121-'Hull Long'!C172)^2) -> 145.6033971 | N121: =SQRT(('Hull Plan'!C70-'Hull Plan'!C172)^2+('Hull Long'!C70-'Hull Long'!C172)^2) -> 308.0009546 | O121: 87.9206663 | P121: 87.91485826 | Q121: 4.347816084
A122: 3 | B122: 1100 | C122: 128.636517 | J122: =DEGREES(ATAN2('Hull Plan'!B122-'Hull Plan'!B121,'Hull Plan'!C122-'Hull Plan'!C121)) -> 7.646628969 | K122: =DEGREES(ATAN2('Hull Long'!B122-'Hull Long'!B121,'Hull Long'!C122-'Hull Long'!C121)) -> -7.531292133 | L122: =SQRT(('Hull Plan'!C71-'Hull Plan'!C122)^2+('Hull Long'!C71-'Hull Long'!C122)^2) -> 267.1108701 | M122: =SQRT(('Hull Plan'!C122-'Hull Plan'!C173)^2+('Hull Long'!C122-'Hull Long'!C173)^2) -> 151.2513728 | N122: =SQRT(('Hull Plan'!C71-'Hull Plan'!C173)^2+('Hull Long'!C71-'Hull Long'!C173)^2) -> 301.9654906 | O122: 87.84241004 | P122: 87.84183185 | Q122: 4.657689764
A123: 3 | B123: 1200 | C123: 115.9557098 | J123: =DEGREES(ATAN2('Hull Plan'!B123-'Hull Plan'!B122,'Hull Plan'!C123-'Hull Plan'!C122)) -> 6.474180792 | K123: =DEGREES(ATAN2('Hull Long'!B123-'Hull Long'!B122,'Hull Long'!C123-'Hull Long'!C122)) -> -7.226994655 | L123: =SQRT(('Hull Plan'!C72-'Hull Plan'!C123)^2+('Hull Long'!C72-'Hull Long'!C123)^2) -> 257.4721606 | M123: =SQRT(('Hull Plan'!C123-'Hull Plan'!C174)^2+('Hull Long'!C123-'Hull Long'!C174)^2) -> 155.9867085 | N123: =SQRT(('Hull Plan'!C72-'Hull Plan'!C174)^2+('Hull Long'!C72-'Hull Long'!C174)^2) -> 296.1818718 | O123: 87.93092145 | P123: 87.93418215 | Q123: 4.2676034
A124: 3 | B124: 1300 | C124: 103.8389696 | J124: =DEGREES(ATAN2('Hull Plan'!B124-'Hull Plan'!B123,'Hull Plan'!C124-'Hull Plan'!C123)) -> 5.396266314 | K124: =DEGREES(ATAN2('Hull Long'!B124-'Hull Long'!B123,'Hull Long'!C124-'Hull Long'!C123)) -> -6.90870198 | L124: =SQRT(('Hull Plan'!C73-'Hull Plan'!C124)^2+('Hull Long'!C73-'Hull Long'!C124)^2) -> 247.8877222 | M124: =SQRT(('Hull Plan'!C124-'Hull Plan'!C175)^2+('Hull Long'!C124-'Hull Long'!C175)^2) -> 159.9641673 | N124: =SQRT(('Hull Plan'!C73-'Hull Plan'!C175)^2+('Hull Long'!C73-'Hull Long'!C175)^2) -> 290.6609267 | O124: 88.15517598 | P124: 88.16041463 | Q124: 3.384074318
A125: 3 | B125: 1400 | C125: 92.31389236 | J125: =DEGREES(ATAN2('Hull Plan'!B125-'Hull Plan'!B124,'Hull Plan'!C125-'Hull Plan'!C124)) -> 4.414641188 | K125: =DEGREES(ATAN2('Hull Long'!B125-'Hull Long'!B124,'Hull Long'!C125-'Hull Long'!C124)) -> -6.574376681 | L125: =SQRT(('Hull Plan'!C74-'Hull Plan'!C125)^2+('Hull Long'!C74-'Hull Long'!C125)^2) -> 238.43461 | M125: =SQRT(('Hull Plan'!C125-'Hull Plan'!C176)^2+('Hull Long'!C125-'Hull Long'!C176)^2) -> 163.3263239 | N125: =SQRT(('Hull Plan'!C74-'Hull Plan'!C176)^2+('Hull Long'!C74-'Hull Long'!C176)^2) -> 285.4150558 | O125: 88.48086823 | P125: 88.4863646 | Q125: 2.291092126
A126: 3 | B126: 1500 | C126: 81.41257453 | J126: =DEGREES(ATAN2('Hull Plan'!B126-'Hull Plan'!B125,'Hull Plan'!C126-'Hull Plan'!C125)) -> 3.530580949 | K126: =DEGREES(ATAN2('Hull Long'!B126-'Hull Long'!B125,'Hull Long'!C126-'Hull Long'!C125)) -> -6.221427763 | L126: =SQRT(('Hull Plan'!C75-'Hull Plan'!C126)^2+('Hull Long'!C75-'Hull Long'!C126)^2) -> 229.2068506 | M126: =SQRT(('Hull Plan'!C126-'Hull Plan'!C177)^2+('Hull Long'!C126-'Hull Long'!C177)^2) -> 166.2012866 | N126: =SQRT(('Hull Plan'!C75-'Hull Plan'!C177)^2+('Hull Long'!C75-'Hull Long'!C177)^2) -> 280.4586576 | O126: 88.8706983 | P126: 88.8752134 | Q126: 1.265144904
A127: 3 | B127: 1600 | C127: 71.1729901 | J127: =DEGREES(ATAN2('Hull Plan'!B127-'Hull Plan'!B126,'Hull Plan'!C127-'Hull Plan'!C126)) -> 2.74495357 | K127: =DEGREES(ATAN2('Hull Long'!B127-'Hull Long'!B126,'Hull Long'!C127-'Hull Long'!C126)) -> -5.846473287 | L127: =SQRT(('Hull Plan'!C76-'Hull Plan'!C127)^2+('Hull Long'!C76-'Hull Long'!C127)^2) -> 220.3138131 | M127: =SQRT(('Hull Plan'!C127-'Hull Plan'!C178)^2+('Hull Long'!C127-'Hull Long'!C178)^2) -> 168.7004916 | N127: =SQRT(('Hull Plan'!C76-'Hull Plan'!C178)^2+('Hull Long'!C76-'Hull Long'!C178)^2) -> 275.8087378 | O127: 89.28502051 | P127: 89.28792221 | Q127: 0.5070547849
A128: 3 | B128: 1700 | C128: 61.64104198 | J128: =DEGREES(ATAN2('Hull Plan'!B128-'Hull Plan'!B127,'Hull Plan'!C128-'Hull Plan'!C127)) -> 2.058287627 | K128: =DEGREES(ATAN2('Hull Long'!B128-'Hull Long'!B127,'Hull Long'!C128-'Hull Long'!C127)) -> -5.444953157 | L128: =SQRT(('Hull Plan'!C77-'Hull Plan'!C128)^2+('Hull Long'!C77-'Hull Long'!C128)^2) -> 211.8791918 | M128: =SQRT(('Hull Plan'!C128-'Hull Plan'!C179)^2+('Hull Long'!C128-'Hull Long'!C179)^2) -> 170.9166746 | N128: =SQRT(('Hull Plan'!C77-'Hull Plan'!C179)^2+('Hull Long'!C77-'Hull Long'!C179)^2) -> 271.4858185 | O128: 89.68297191 | P128: 89.68419862 | Q128: 0.09973051092
A129: 3 | B129: 1800 | C129: 52.87378503 | J129: =DEGREES(ATAN2('Hull Plan'!B129-'Hull Plan'!B128,'Hull Plan'!C129-'Hull Plan'!C128)) -> 1.47083302 | K129: =DEGREES(ATAN2('Hull Long'!B129-'Hull Long'!B128,'Hull Long'!C129-'Hull Long'!C128)) -> -5.010456827 | L129: =SQRT(('Hull Plan'!C78-'Hull Plan'!C129)^2+('Hull Long'!C78-'Hull Long'!C129)^2) -> 204.0407762 | M129: =SQRT(('Hull Plan'!C129-'Hull Plan'!C180)^2+('Hull Long'!C129-'Hull Long'!C180)^2) -> 172.9220398 | N129: =SQRT(('Hull Plan'!C78-'Hull Plan'!C180)^2+('Hull Long'!C78-'Hull Long'!C180)^2) -> 267.515369 | O129: 90.02419789 | P129: 90.02411337 | Q129: 0.0005814544765
A130: 3 | B130: 1900 | C130: 44.944857 | J130: =DEGREES(ATAN2('Hull Plan'!B130-'Hull Plan'!B129,'Hull Plan'!C130-'Hull Plan'!C129)) -> 0.9826111492 | K130: =DEGREES(ATAN2('Hull Long'!B130-'Hull Long'!B129,'Hull Long'!C130-'Hull Long'!C129)) -> -4.533456701 | L130: =SQRT(('Hull Plan'!C79-'Hull Plan'!C130)^2+('Hull Long'!C79-'Hull Long'!C130)^2) -> 196.9514556 | M130: =SQRT(('Hull Plan'!C130-'Hull Plan'!C181)^2+('Hull Long'!C130-'Hull Long'!C181)^2) -> 174.7663889 | N130: =SQRT(('Hull Plan'!C79-'Hull Plan'!C181)^2+('Hull Long'!C79-'Hull Long'!C181)^2) -> 263.9302185 | O130: 90.27132285 | P130: 90.27051377 | Q130: 0.07317770045
A131: 3 | B131: 2000 | C131: 37.95456463 | J131: =DEGREES(ATAN2('Hull Plan'!B131-'Hull Plan'!B130,'Hull Plan'!C131-'Hull Plan'!C130)) -> 0.5934504581 | K131: =DEGREES(ATAN2('Hull Long'!B131-'Hull Long'!B130,'Hull Long'!C131-'Hull Long'!C130)) -> -3.998637963 | L131: =SQRT(('Hull Plan'!C80-'Hull Plan'!C131)^2+('Hull Long'!C80-'Hull Long'!C131)^2) -> 190.7826629 | M131: =SQRT(('Hull Plan'!C131-'Hull Plan'!C182)^2+('Hull Long'!C131-'Hull Long'!C182)^2) -> 176.4743062 | N131: =SQRT(('Hull Plan'!C80-'Hull Plan'!C182)^2+('Hull Long'!C80-'Hull Long'!C182)^2) -> 260.7750429 | O131: 90.39346869 | P131: 90.39253195 | Q131: 0.1540813346
A132: 3 | B132: 2100 | C132: 32.05157182 | J132: =DEGREES(ATAN2('Hull Plan'!B132-'Hull Plan'!B131,'Hull Plan'!C132-'Hull Plan'!C131)) -> 0.3029995038 | K132: =DEGREES(ATAN2('Hull Long'!B132-'Hull Long'!B131,'Hull Long'!C132-'Hull Long'!C131)) -> -3.378245516 | L132: =SQRT(('Hull Plan'!C81-'Hull Plan'!C132)^2+('Hull Long'!C81-'Hull Long'!C132)^2) -> 185.7338965 | M132: =SQRT(('Hull Plan'!C132-'Hull Plan'!C183)^2+('Hull Long'!C132-'Hull Long'!C183)^2) -> 178.0384153 | N132: =SQRT(('Hull Plan'!C81-'Hull Plan'!C183)^2+('Hull Long'!C81-'Hull Long'!C183)^2) -> 258.1160199 | O132: 90.37176775 | P132: 90.37112692 | Q132: 0.1377351931
A133: 3 | B133: 2200 | C133: 27.49310712 | J133: =DEGREES(ATAN2('Hull Plan'!B133-'Hull Plan'!B132,'Hull Plan'!C133-'Hull Plan'!C132)) -> 0.1106961953 | K133: =DEGREES(ATAN2('Hull Long'!B133-'Hull Long'!B132,'Hull Long'!C133-'Hull Long'!C132)) -> -2.610001054 | L133: =SQRT(('Hull Plan'!C82-'Hull Plan'!C133)^2+('Hull Long'!C82-'Hull Long'!C133)^2) -> 182.0628885 | M133: =SQRT(('Hull Plan'!C133-'Hull Plan'!C184)^2+('Hull Long'!C133-'Hull Long'!C184)^2) -> 179.3966531 | N133: =SQRT(('Hull Plan'!C82-'Hull Plan'!C184)^2+('Hull Long'!C82-'Hull Long'!C184)^2) -> 256.0676497 | O133: 90.21102287 | P133: 90.21080436 | Q133: 0.04443847836
A134: 3 | B134: 2300 | C134: =25*Basic!$D$2 -> 25 | J134: =DEGREES(ATAN2('Hull Plan'!B134-'Hull Plan'!B133,'Hull Plan'!C134-'Hull Plan'!C133)) -> 0.01559433185 | K134: =DEGREES(ATAN2('Hull Long'!B134-'Hull Long'!B133,'Hull Long'!C134-'Hull Long'!C133)) -> -1.428149317 | L134: =SQRT(('Hull Plan'!C83-'Hull Plan'!C134)^2+('Hull Long'!C83-'Hull Long'!C134)^2) -> 180.2775638 | M134: =SQRT(('Hull Plan'!C134-'Hull Plan'!C185)^2+('Hull Long'!C134-'Hull Long'!C185)^2) -> 180.2775638 | N134: =SQRT(('Hull Plan'!C83-'Hull Plan'!C185)^2+('Hull Long'!C83-'Hull Long'!C185)^2) -> 254.9509757 | O134: 90 | P134: 90 | Q134: 0
A135: 3 | B135: 2300 | C135: =25*Basic!$D$2 -> 25 | J135: =DEGREES(ATAN2('Hull Plan'!B136-'Hull Plan'!B135,'Hull Plan'!C136-'Hull Plan'!C135)) -> -0.01559433185 | K135: =DEGREES(ATAN2('Hull Long'!B136-'Hull Long'!B135,'Hull Long'!C136-'Hull Long'!C135)) -> 1.428149317 | L135: =SQRT(('Hull Plan'!C84-'Hull Plan'!C135)^2+('Hull Long'!C84-'Hull Long'!C135)^2) -> 180.2775638 | M135: =SQRT(('Hull Plan'!C135-'Hull Plan'!C186)^2+('Hull Long'!C135-'Hull Long'!C186)^2) -> 180.2775638 | N135: =SQRT(('Hull Plan'!C84-'Hull Plan'!C186)^2+('Hull Long'!C84-'Hull Long'!C186)^2) -> 254.9509757 | O135: 90 | P135: 90 | Q135: 0
A136: 3 | B136: 2400 | C136: =C$135+(C$158-C$135)*ABS(B$135-$B136)^G$158/ABS(B$158-B$135)^G$158 -> 27.49310712 | J136: =DEGREES(ATAN2('Hull Plan'!B137-'Hull Plan'!B136,'Hull Plan'!C137-'Hull Plan'!C136)) -> -0.1106961953 | K136: =DEGREES(ATAN2('Hull Long'!B137-'Hull Long'!B136,'Hull Long'!C137-'Hull Long'!C136)) -> 2.610001054 | L136: =SQRT(('Hull Plan'!C85-'Hull Plan'!C136)^2+('Hull Long'!C85-'Hull Long'!C136)^2) -> 182.0628885 | M136: =SQRT(('Hull Plan'!C136-'Hull Plan'!C187)^2+('Hull Long'!C136-'Hull Long'!C187)^2) -> 179.3966531 | N136: =SQRT(('Hull Plan'!C85-'Hull Plan'!C187)^2+('Hull Long'!C85-'Hull Long'!C187)^2) -> 256.0676497 | O136: 90.21102287 | P136: 90.21080436 | Q136: 0.04443847836
A137: 3 | B137: 2500 | C137: 32.05157182 | J137: =DEGREES(ATAN2('Hull Plan'!B138-'Hull Plan'!B137,'Hull Plan'!C138-'Hull Plan'!C137)) -> -0.3029995038 | K137: =DEGREES(ATAN2('Hull Long'!B138-'Hull Long'!B137,'Hull Long'!C138-'Hull Long'!C137)) -> 3.378245516 | L137: =SQRT(('Hull Plan'!C86-'Hull Plan'!C137)^2+('Hull Long'!C86-'Hull Long'!C137)^2) -> 185.7338965 | M137: =SQRT(('Hull Plan'!C137-'Hull Plan'!C188)^2+('Hull Long'!C137-'Hull Long'!C188)^2) -> 178.0384153 | N137: =SQRT(('Hull Plan'!C86-'Hull Plan'!C188)^2+('Hull Long'!C86-'Hull Long'!C188)^2) -> 258.1160199 | O137: 90.37176775 | P137: 90.37112692 | Q137: 0.1377351931
A138: 3 | B138: 2600 | C138: 37.95456463 | J138: =DEGREES(ATAN2('Hull Plan'!B139-'Hull Plan'!B138,'Hull Plan'!C139-'Hull Plan'!C138)) -> -0.5934504581 | K138: =DEGREES(ATAN2('Hull Long'!B139-'Hull Long'!B138,'Hull Long'!C139-'Hull Long'!C138)) -> 3.998637963 | L138: =SQRT(('Hull Plan'!C87-'Hull Plan'!C138)^2+('Hull Long'!C87-'Hull Long'!C138)^2) -> 190.7826629 | M138: =SQRT(('Hull Plan'!C138-'Hull Plan'!C189)^2+('Hull Long'!C138-'Hull Long'!C189)^2) -> 176.4743062 | N138: =SQRT(('Hull Plan'!C87-'Hull Plan'!C189)^2+('Hull Long'!C87-'Hull Long'!C189)^2) -> 260.7750429 | O138: 90.39346869 | P138: 90.39253195 | Q138: 0.1540813346
A139: 3 | B139: 2700 | C139: 44.944857 | J139: =DEGREES(ATAN2('Hull Plan'!B140-'Hull Plan'!B139,'Hull Plan'!C140-'Hull Plan'!C139)) -> -0.9826111492 | K139: =DEGREES(ATAN2('Hull Long'!B140-'Hull Long'!B139,'Hull Long'!C140-'Hull Long'!C139)) -> 4.533456701 | L139: =SQRT(('Hull Plan'!C88-'Hull Plan'!C139)^2+('Hull Long'!C88-'Hull Long'!C139)^2) -> 196.9514556 | M139: =SQRT(('Hull Plan'!C139-'Hull Plan'!C190)^2+('Hull Long'!C139-'Hull Long'!C190)^2) -> 174.7663889 | N139: =SQRT(('Hull Plan'!C88-'Hull Plan'!C190)^2+('Hull Long'!C88-'Hull Long'!C190)^2) -> 263.9302185 | O139: 90.27132285 | P139: 90.27051377 | Q139: 0.07317770045
A140: 3 | B140: 2800 | C140: 52.87378503 | J140: =DEGREES(ATAN2('Hull Plan'!B141-'Hull Plan'!B140,'Hull Plan'!C141-'Hull Plan'!C140)) -> -1.47083302 | K140: =DEGREES(ATAN2('Hull Long'!B141-'Hull Long'!B140,'Hull Long'!C141-'Hull Long'!C140)) -> 5.010456827 | L140: =SQRT(('Hull Plan'!C89-'Hull Plan'!C140)^2+('Hull Long'!C89-'Hull Long'!C140)^2) -> 204.0407762 | M140: =SQRT(('Hull Plan'!C140-'Hull Plan'!C191)^2+('Hull Long'!C140-'Hull Long'!C191)^2) -> 172.9220398 | N140: =SQRT(('Hull Plan'!C89-'Hull Plan'!C191)^2+('Hull Long'!C89-'Hull Long'!C191)^2) -> 267.515369 | O140: 90.02419789 | P140: 90.02411337 | Q140: 0.0005814544765
A141: 3 | B141: 2900 | C141: 61.64104198 | J141: =DEGREES(ATAN2('Hull Plan'!B142-'Hull Plan'!B141,'Hull Plan'!C142-'Hull Plan'!C141)) -> -2.058287627 | K141: =DEGREES(ATAN2('Hull Long'!B142-'Hull Long'!B141,'Hull Long'!C142-'Hull Long'!C141)) -> 5.444953157 | L141: =SQRT(('Hull Plan'!C90-'Hull Plan'!C141)^2+('Hull Long'!C90-'Hull Long'!C141)^2) -> 211.8791918 | M141: =SQRT(('Hull Plan'!C141-'Hull Plan'!C192)^2+('Hull Long'!C141-'Hull Long'!C192)^2) -> 170.9166746 | N141: =SQRT(('Hull Plan'!C90-'Hull Plan'!C192)^2+('Hull Long'!C90-'Hull Long'!C192)^2) -> 271.4858185 | O141: 89.68297191 | P141: 89.68419862 | Q141: 0.09973051092
A142: 3 | B142: 3000 | C142: 71.1729901 | J142: =DEGREES(ATAN2('Hull Plan'!B143-'Hull Plan'!B142,'Hull Plan'!C143-'Hull Plan'!C142)) -> -2.74495357 | K142: =DEGREES(ATAN2('Hull Long'!B143-'Hull Long'!B142,'Hull Long'!C143-'Hull Long'!C142)) -> 5.846473287 | L142: =SQRT(('Hull Plan'!C91-'Hull Plan'!C142)^2+('Hull Long'!C91-'Hull Long'!C142)^2) -> 220.3138131 | M142: =SQRT(('Hull Plan'!C142-'Hull Plan'!C193)^2+('Hull Long'!C142-'Hull Long'!C193)^2) -> 168.7004916 | N142: =SQRT(('Hull Plan'!C91-'Hull Plan'!C193)^2+('Hull Long'!C91-'Hull Long'!C193)^2) -> 275.8087378 | O142: 89.28502051 | P142: 89.28792221 | Q142: 0.5070547849
A143: 3 | B143: 3100 | C143: 81.41257453 | J143: =DEGREES(ATAN2('Hull Plan'!B144-'Hull Plan'!B143,'Hull Plan'!C144-'Hull Plan'!C143)) -> -3.530580949 | K143: =DEGREES(ATAN2('Hull Long'!B144-'Hull Long'!B143,'Hull Long'!C144-'Hull Long'!C143)) -> 6.221427763 | L143: =SQRT(('Hull Plan'!C92-'Hull Plan'!C143)^2+('Hull Long'!C92-'Hull Long'!C143)^2) -> 229.2068506 | M143: =SQRT(('Hull Plan'!C143-'Hull Plan'!C194)^2+('Hull Long'!C143-'Hull Long'!C194)^2) -> 166.2012866 | N143: =SQRT(('Hull Plan'!C92-'Hull Plan'!C194)^2+('Hull Long'!C92-'Hull Long'!C194)^2) -> 280.4586576 | O143: 88.8706983 | P143: 88.8752134 | Q143: 1.265144904
A144: 3 | B144: 3200 | C144: 92.31389236 | J144: =DEGREES(ATAN2('Hull Plan'!B145-'Hull Plan'!B144,'Hull Plan'!C145-'Hull Plan'!C144)) -> -4.414641188 | K144: =DEGREES(ATAN2('Hull Long'!B145-'Hull Long'!B144,'Hull Long'!C145-'Hull Long'!C144)) -> 6.574376681 | L144: =SQRT(('Hull Plan'!C93-'Hull Plan'!C144)^2+('Hull Long'!C93-'Hull Long'!C144)^2) -> 238.43461 | M144: =SQRT(('Hull Plan'!C144-'Hull Plan'!C195)^2+('Hull Long'!C144-'Hull Long'!C195)^2) -> 163.3263239 | N144: =SQRT(('Hull Plan'!C93-'Hull Plan'!C195)^2+('Hull Long'!C93-'Hull Long'!C195)^2) -> 285.4150558 | O144: 88.48086823 | P144: 88.4863646 | Q144: 2.291092126
A145: 3 | B145: 3300 | C145: 103.8389696 | J145: =DEGREES(ATAN2('Hull Plan'!B146-'Hull Plan'!B145,'Hull Plan'!C146-'Hull Plan'!C145)) -> -5.396266314 | K145: =DEGREES(ATAN2('Hull Long'!B146-'Hull Long'!B145,'Hull Long'!C146-'Hull Long'!C145)) -> 6.90870198 | L145: =SQRT(('Hull Plan'!C94-'Hull Plan'!C145)^2+('Hull Long'!C94-'Hull Long'!C145)^2) -> 247.8877222 | M145: =SQRT(('Hull Plan'!C145-'Hull Plan'!C196)^2+('Hull Long'!C145-'Hull Long'!C196)^2) -> 159.9641673 | N145: =SQRT(('Hull Plan'!C94-'Hull Plan'!C196)^2+('Hull Long'!C94-'Hull Long'!C196)^2) -> 290.6609267 | O145: 88.15517598 | P145: 88.16041463 | Q145: 3.384074318
A146: 3 | B146: 3400 | C146: 115.9557098 | J146: =DEGREES(ATAN2('Hull Plan'!B147-'Hull Plan'!B146,'Hull Plan'!C147-'Hull Plan'!C146)) -> -6.474180792 | K146: =DEGREES(ATAN2('Hull Long'!B147-'Hull Long'!B146,'Hull Long'!C147-'Hull Long'!C146)) -> 7.226994655 | L146: =SQRT(('Hull Plan'!C95-'Hull Plan'!C146)^2+('Hull Long'!C95-'Hull Long'!C146)^2) -> 257.4721606 | M146: =SQRT(('Hull Plan'!C146-'Hull Plan'!C197)^2+('Hull Long'!C146-'Hull Long'!C197)^2) -> 155.9867085 | N146: =SQRT(('Hull Plan'!C95-'Hull Plan'!C197)^2+('Hull Long'!C95-'Hull Long'!C197)^2) -> 296.1818718 | O146: 87.93092145 | P146: 87.93418215 | Q146: 4.2676034
A147: 3 | B147: 3500 | C147: 128.636517 | J147: =DEGREES(ATAN2('Hull Plan'!B148-'Hull Plan'!B147,'Hull Plan'!C148-'Hull Plan'!C147)) -> -7.646628969 | K147: =DEGREES(ATAN2('Hull Long'!B148-'Hull Long'!B147,'Hull Long'!C148-'Hull Long'!C147)) -> 7.531292133 | L147: =SQRT(('Hull Plan'!C96-'Hull Plan'!C147)^2+('Hull Long'!C96-'Hull Long'!C147)^2) -> 267.1108701 | M147: =SQRT(('Hull Plan'!C147-'Hull Plan'!C198)^2+('Hull Long'!C147-'Hull Long'!C198)^2) -> 151.2513728 | N147: =SQRT(('Hull Plan'!C96-'Hull Plan'!C198)^2+('Hull Long'!C96-'Hull Long'!C198)^2) -> 301.9654906 | O147: 87.84241004 | P147: 87.84183185 | Q147: 4.657689764
A148: 3 | B148: 3600 | C148: 141.8573324 | J148: =DEGREES(ATAN2('Hull Plan'!B149-'Hull Plan'!B148,'Hull Plan'!C149-'Hull Plan'!C148)) -> -8.910638385 | K148: =DEGREES(ATAN2('Hull Long'!B149-'Hull Long'!B148,'Hull Long'!C149-'Hull Long'!C148)) -> 7.823088924 | L148: =SQRT(('Hull Plan'!C97-'Hull Plan'!C148)^2+('Hull Long'!C97-'Hull Long'!C148)^2) -> 276.7459431 | M148: =SQRT(('Hull Plan'!C148-'Hull Plan'!C199)^2+('Hull Long'!C148-'Hull Long'!C199)^2) -> 145.6033971 | N148: =SQRT(('Hull Plan'!C97-'Hull Plan'!C199)^2+('Hull Long'!C97-'Hull Long'!C199)^2) -> 308.0009546 | O148: 87.9206663 | P148: 87.91485826 | Q148: 4.347816084
A149: 3 | B149: 3699.9 | C149: 155.5829454 | J149: =DEGREES(ATAN2('Hull Plan'!B150-'Hull Plan'!B149,'Hull Plan'!C150-'Hull Plan'!C149)) -> -9.573230141 | K149: =DEGREES(ATAN2('Hull Long'!B150-'Hull Long'!B149,'Hull Long'!C150-'Hull Long'!C149)) -> 7.965412087 | L149: =SQRT(('Hull Plan'!C98-'Hull Plan'!C149)^2+('Hull Long'!C98-'Hull Long'!C149)^2) -> 286.3317549 | M149: =SQRT(('Hull Plan'!C149-'Hull Plan'!C200)^2+('Hull Long'!C149-'Hull Long'!C200)^2) -> 138.8853761 | N149: =SQRT(('Hull Plan'!C98-'Hull Plan'!C200)^2+('Hull Long'!C98-'Hull Long'!C200)^2) -> 314.2723037 | O149: 88.19300955 | P149: 88.1851752 | Q149: 3.293589062
A150: 3 | B150: 3700.1 | C150: 155.6109304 | J150: =DEGREES(ATAN2('Hull Plan'!B151-'Hull Plan'!B150,'Hull Plan'!C151-'Hull Plan'!C150)) -> -10.98754082 | K150: =DEGREES(ATAN2('Hull Long'!B151-'Hull Long'!B150,'Hull Long'!C151-'Hull Long'!C150)) -> 8.239839046 | L150: =SQRT(('Hull Plan'!C99-'Hull Plan'!C150)^2+('Hull Long'!C99-'Hull Long'!C150)^2) -> 286.3508941 | M150: =SQRT(('Hull Plan'!C150-'Hull Plan'!C201)^2+('Hull Long'!C150-'Hull Long'!C201)^2) -> 138.8707341 | N150: =SQRT(('Hull Plan'!C99-'Hull Plan'!C201)^2+('Hull Long'!C99-'Hull Long'!C201)^2) -> 314.2850957 | O150: 88.19376628 | P150: 88.17904144 | Q150: 3.315890086
A151: 3 | B151: 3900 | C151: 184.558856 | J151: =DEGREES(ATAN2('Hull Plan'!B152-'Hull Plan'!B151,'Hull Plan'!C152-'Hull Plan'!C151)) -> -13.22584331 | K151: =DEGREES(ATAN2('Hull Long'!B152-'Hull Long'!B151,'Hull Long'!C152-'Hull Long'!C151)) -> 8.637197942 | L151: =SQRT(('Hull Plan'!C100-'Hull Plan'!C151)^2+('Hull Long'!C100-'Hull Long'!C151)^2) -> 305.3978409 | M151: =SQRT(('Hull Plan'!C151-'Hull Plan'!C202)^2+('Hull Long'!C151-'Hull Long'!C202)^2) -> 121.498748 | N151: =SQRT(('Hull Plan'!C100-'Hull Plan'!C202)^2+('Hull Long'!C100-'Hull Long'!C202)^2) -> 327.527779 | O151: 89.41681625 | P151: 89.40772099 | Q151: 0.3507944292
A152: 3 | B152: 4000 | C152: 199.7488482 | J152: =DEGREES(ATAN2('Hull Plan'!B153-'Hull Plan'!B152,'Hull Plan'!C153-'Hull Plan'!C152)) -> -14.82297037 | K152: =DEGREES(ATAN2('Hull Long'!B153-'Hull Long'!B152,'Hull Long'!C153-'Hull Long'!C152)) -> 8.891056774 | L152: =SQRT(('Hull Plan'!C101-'Hull Plan'!C152)^2+('Hull Long'!C101-'Hull Long'!C152)^2) -> 314.9274209 | M152: =SQRT(('Hull Plan'!C152-'Hull Plan'!C203)^2+('Hull Long'!C152-'Hull Long'!C203)^2) -> 110.4829685 | N152: =SQRT(('Hull Plan'!C101-'Hull Plan'!C203)^2+('Hull Long'!C101-'Hull Long'!C203)^2) -> 334.4845046 | O152: 90.40683694 | P152: 90.41578504 | Q152: 0.1728771963
A153: 3 | B153: 4100 | C153: 215.392439 | J153: =DEGREES(ATAN2('Hull Plan'!B154-'Hull Plan'!B153,'Hull Plan'!C154-'Hull Plan'!C153)) -> -16.49036933 | K153: =DEGREES(ATAN2('Hull Long'!B154-'Hull Long'!B153,'Hull Long'!C154-'Hull Long'!C153)) -> 9.13742083 | L153: =SQRT(('Hull Plan'!C102-'Hull Plan'!C153)^2+('Hull Long'!C102-'Hull Long'!C153)^2) -> 324.5626718 | M153: =SQRT(('Hull Plan'!C153-'Hull Plan'!C204)^2+('Hull Long'!C153-'Hull Long'!C204)^2) -> 97.66908364 | N153: =SQRT(('Hull Plan'!C102-'Hull Plan'!C204)^2+('Hull Long'!C102-'Hull Long'!C204)^2) -> 341.6540516 | O153: 91.66970193 | P153: 91.71920092 | Q153: 2.955651805
A154: 3 | B154: 4200 | C154: 231.4768382 | J154: =DEGREES(ATAN2('Hull Plan'!B155-'Hull Plan'!B154,'Hull Plan'!C155-'Hull Plan'!C154)) -> -18.22136574 | K154: =DEGREES(ATAN2('Hull Long'!B155-'Hull Long'!B154,'Hull Long'!C155-'Hull Long'!C154)) -> 9.376882519 | L154: =SQRT(('Hull Plan'!C103-'Hull Plan'!C154)^2+('Hull Long'!C103-'Hull Long'!C154)^2) -> 334.4331131 | M154: =SQRT(('Hull Plan'!C154-'Hull Plan'!C205)^2+('Hull Long'!C154-'Hull Long'!C205)^2) -> 82.86867251 | N154: =SQRT(('Hull Plan'!C103-'Hull Plan'!C205)^2+('Hull Long'!C103-'Hull Long'!C205)^2) -> 349.0306309 | O154: 93.21613002 | P154: 93.34039553 | Q154: 11.1582423
A155: 3 | B155: 4300 | C155: =C$135+(C$158-C$135)*ABS(B$135-$B155)^G$158/ABS(B$158-B$135)^G$158 -> 247.9902802 | J155: =DEGREES(ATAN2('Hull Plan'!B156-'Hull Plan'!B155,'Hull Plan'!C156-'Hull Plan'!C155)) -> -20.00856763 | K155: =DEGREES(ATAN2('Hull Long'!B156-'Hull Long'!B155,'Hull Long'!C156-'Hull Long'!C155)) -> 9.60995938 | L155: =SQRT(('Hull Plan'!C104-'Hull Plan'!C155)^2+('Hull Long'!C104-'Hull Long'!C155)^2) -> 344.7138786 | M155: =SQRT(('Hull Plan'!C155-'Hull Plan'!C206)^2+('Hull Long'!C155-'Hull Long'!C206)^2) -> 65.89202017 | N155: =SQRT(('Hull Plan'!C104-'Hull Plan'!C206)^2+('Hull Long'!C104-'Hull Long'!C206)^2) -> 356.608917 | O155: 95.05217761 | P155: 95.29987131 | Q155: 28.0886359
A156: 3 | B156: 4400 | C156: =C$135+(C$158-C$135)*ABS(B$135-$B156)^G$158/ABS(B$158-B$135)^G$158 -> 264.9218944 | J156: =DEGREES(ATAN2('Hull Plan'!B157-'Hull Plan'!B156,'Hull Plan'!C157-'Hull Plan'!C156)) -> -21.84394363 | K156: =DEGREES(ATAN2('Hull Long'!B157-'Hull Long'!B156,'Hull Long'!C157-'Hull Long'!C156)) -> 9.837106727 | L156: =SQRT(('Hull Plan'!C105-'Hull Plan'!C156)^2+('Hull Long'!C105-'Hull Long'!C156)^2) -> 230.7622125 | M156: =SQRT(('Hull Plan'!C156-'Hull Plan'!C207)^2+('Hull Long'!C156-'Hull Long'!C207)^2) -> 46.54873963 | N156: =SQRT(('Hull Plan'!C105-'Hull Plan'!C207)^2+('Hull Long'!C105-'Hull Long'!C207)^2) -> 237.7214481 | O156: 92.91761321 | P156: 93.09674612 | Q156: 9.589836546
A157: 3 | B157: 4500 | C157: =C$135+(C$158-C$135)*ABS(B$135-$B157)^G$158/ABS(B$158-B$135)^G$158 -> 282.2615969 | J157: =DEGREES(ATAN2('Hull Plan'!B158-'Hull Plan'!B157,'Hull Plan'!C158-'Hull Plan'!C157)) -> -23.71893167 | K157: =DEGREES(ATAN2('Hull Long'!B158-'Hull Long'!B157,'Hull Long'!C158-'Hull Long'!C157)) -> 10.05872766 | L157: =SQRT(('Hull Plan'!C106-'Hull Plan'!C157)^2+('Hull Long'!C106-'Hull Long'!C157)^2) -> 115.9113999 | M157: =SQRT(('Hull Plan'!C157-'Hull Plan'!C208)^2+('Hull Long'!C157-'Hull Long'!C208)^2) -> 24.64822953 | N157: =SQRT(('Hull Plan'!C106-'Hull Plan'!C208)^2+('Hull Long'!C106-'Hull Long'!C208)^2) -> 118.8551583 | O157: =DEGREES(ACOS((N157*N157-L157*L157-M157*M157)/-2/L157/M157)) -> 90.83791274 | P157: =IF(DEGREES(ATAN(COS(RADIANS(J157))/COS(RADIANS(K157))*TAN(RADIANS(O157))))>0,DEGREES(ATAN(COS(RADIANS(J157))/COS(RADIANS(K157))*TAN(RADIANS(O157)))),DEGREES(ATAN(COS(RADIANS(J157))/COS(RADIANS(K157))*TAN(RADIANS(O157))))+180) -> 90.90114406 | Q157: =(90-P157)^2 -> 0.8120606164
A158: 3 | B158: 4600 | C158: =C107 -> 300 | G158: =$G$111 -> 1.5
A159: 0 | B159: 4700 | C159: =C108 -> 425
A160: 0 | B160: 0 | C160: 0 | G160: Sheer
A161: 0 | B161: =B8 -> -100 | C161: =C110 -> 425
A162: 5 | B162: =B9 -> 0 | C162: =C111 -> 300 | G162: 1.5
A163: 5 | B163: 100 | C163: =C$185+(C$162-C$185)*ABS(B$185-B163)^G$162/ABS(B$162-B$185)^G$162 -> 291.9370895
A164: 5 | B164: 200 | C164: 284.0554065
A165: 5 | B165: 300 | C165: 276.3592183
A166: 5 | B166: 400 | C166: 268.8531083
A167: 5 | B167: 500 | C167: 261.5420177
A168: 5 | B168: 600 | C168: 254.4312946
A169: 5 | B169: 700 | C169: 247.5267527
A170: 5 | B170: 899.9 | C170: 234.3686047
A171: 5 | B171: 900.1 | C171: 234.3558843
A172: 5 | B172: 1000 | C172: 228.1169693
A173: 5 | B173: 1100 | C173: 222.1075077
A174: 5 | B174: 1200 | C174: 216.3435045
A175: 5 | B175: 1300 | C175: 210.8358953
A176: 5 | B176: 1400 | C176: 205.5972238
A177: 5 | B177: 1500 | C177: 200.6420793
A178: 5 | B178: 1600 | C178: 195.9877228
A179: 5 | B179: 1700 | C179: 191.6550191
A180: 5 | B180: 1800 | C180: 187.6699023
A181: 5 | B181: 1900 | C181: 184.0658441
A182: 5 | B182: 2000 | C182: 180.8884385
A183: 5 | B183: 2100 | C183: 178.2052599
A184: 5 | B184: 2200 | C184: 176.1332305
A185: 5 | B185: 2300 | C185: =175*Basic!$D$2 -> 175
A186: 5 | B186: 2300 | C186: =175*Basic!$D$2 -> 175
A187: 5 | B187: 2400 | C187: =C$186+(C$209-C$186)*ABS(B$186-$B187)^G$209/ABS(B$209-B$186)^G$209 -> 176.1332305
A188: 5 | B188: 2500 | C188: 178.2052599
A189: 5 | B189: 2600 | C189: 180.8884385
A190: 5 | B190: 2700 | C190: 184.0658441
A191: 5 | B191: 2800 | C191: 187.6699023
A192: 5 | B192: 2900 | C192: 191.6550191
A193: 5 | B193: 3000 | C193: 195.9877228
A194: 5 | B194: 3100 | C194: 200.6420793
A195: 5 | B195: 3200 | C195: 205.5972238
A196: 5 | B196: 3300 | C196: 210.8358953
A197: 5 | B197: 3400 | C197: 216.3435045
A198: 5 | B198: 3500 | C198: 222.1075077
A199: 5 | B199: 3600 | C199: 228.1169693
A200: 5 | B200: 3699.9 | C200: 234.3558843
A201: 5 | B201: 3700.1 | C201: 234.3686047
A202: 5 | B202: 3900 | C202: 247.5267527
A203: 5 | B203: 4000 | C203: 254.4312946
... 59 more rows

Sheet Hull Plan
A1: Plan
A5: Parameters | B5: =200 -> 200 | C5: =1000 -> 1000
A6: Number of Lines | B6: =COUNT(A8:A1010) -> 255 | E6: =COUNT(D8:D1010) -> 255
A7: Line Id | B7: X | C7: Y | D7: Line Id | E7: X | F7: Y | G7: Keel
A8: 0 | B8: ='Hull Long'!B8 -> -100 | C8: =0*Basic!$D$2 -> 0 | D8: 0 | E8: =B8 -> -100 | F8: =0*Basic!$D$2 -> 0
A9: 0 | B9: ='Hull Long'!B9 -> 0 | C9: =0*Basic!$D$2 -> 0 | D9: 0 | E9: =B9 -> 0 | F9: =0*Basic!$D$2 -> 0
A10: 0 | B10: ='Hull Long'!B10 -> 100 | C10: =0*Basic!$D$2 -> 0 | D10: 0 | E10: 100 | F10: =0*Basic!$D$2 -> 0
A11: 0 | B11: ='Hull Long'!B11 -> 200 | C11: =0*Basic!$D$2 -> 0 | D11: 0 | E11: 200 | F11: =0*Basic!$D$2 -> 0
A12: 0 | B12: ='Hull Long'!B12 -> 300 | C12: =0*Basic!$D$2 -> 0 | D12: 0 | E12: 300 | F12: =0*Basic!$D$2 -> 0 | H12: 1 | I12: 1
A13: 0 | B13: ='Hull Long'!B13 -> 400 | C13: =C$32+(C$12-C$32)*ABS($B$32-$B13)^H$12/ABS($B$12-$B$32)^H$12 -> 0 | D13: 0 | E13: 400 | F13: =F$32+(F$12-F$32)*ABS($E$32-$E13)^I$12/ABS($E$12-$E$32)^I$12 -> 0
A14: 0 | B14: ='Hull Long'!B14 -> 500 | C14: =C$32+(C$12-C$32)*ABS($B$32-$B14)^H$12/ABS($B$12-$B$32)^H$12 -> 0 | D14: 0 | E14: 500 | F14: =F$32+(F$12-F$32)*ABS($E$32-$E14)^I$12/ABS($E$12-$E$32)^I$12 -> 0
A15: 0 | B15: ='Hull Long'!B15 -> 600 | C15: 0 | D15: 0 | E15: 600 | F15: 0
A16: 0 | B16: ='Hull Long'!B16 -> 700 | C16: 0 | D16: 0 | E16: 700 | F16: 0
A17: 0 | B17: ='Hull Long'!B17 -> 899.9 | C17: 0 | D17: 0 | E17: 899.9 | F17: 0
A18: 0 | B18: ='Hull Long'!B18 -> 900.1 | C18: 0 | D18: 0 | E18: 900.1 | F18: 0
A19: 0 | B19: ='Hull Long'!B19 -> 1000 | C19: 0 | D19: 0 | E19: 1000 | F19: 0
A20: 0 | B20: ='Hull Long'!B20 -> 1100 | C20: 0 | D20: 0 | E20: 1100 | F20: 0
A21: 0 | B21: ='Hull Long'!B21 -> 1200 | C21: 0 | D21: 0 | E21: 1200 | F21: 0
A22: 0 | B22: ='Hull Long'!B22 -> 1300 | C22: 0 | D22: 0 | E22: 1300 | F22: 0
A23: 0 | B23: ='Hull Long'!B23 -> 1400 | C23: 0 | D23: 0 | E23: 1400 | F23: 0
A24: 0 | B24: ='Hull Long'!B24 -> 1500 | C24: 0 | D24: 0 | E24: 1500 | F24: 0
A25: 0 | B25: ='Hull Long'!B25 -> 1600 | C25: 0 | D25: 0 | E25: 1600 | F25: 0
A26: 0 | B26: ='Hull Long'!B26 -> 1700 | C26: 0 | D26: 0 | E26: 1700 | F26: 0
A27: 0 | B27: ='Hull Long'!B27 -> 1800 | C27: 0 | D27: 0 | E27: 1800 | F27: 0
A28: 0 | B28: ='Hull Long'!B28 -> 1900 | C28: 0 | D28: 0 | E28: 1900 | F28: 0
A29: 0 | B29: ='Hull Long'!B29 -> 2000 | C29: 0 | D29: 0 | E29: 2000 | F29: 0
A30: 0 | B30: ='Hull Long'!B30 -> 2100 | C30: 0 | D30: 0 | E30: 2100 | F30: 0
A31: 0 | B31: ='Hull Long'!B31 -> 2200 | C31: 0 | D31: 0 | E31: =B31 -> 2200 | F31: 0
A32: 0 | B32: ='Hull Long'!B32 -> 2300 | C32: =0*Basic!$D$2 -> 0 | D32: 0 | E32: =B32 -> 2300 | F32: =0*Basic!$D$2 -> 0
A33: 0 | B33: ='Hull Long'!B33 -> 2300 | C33: =0*Basic!$D$2 -> 0 | D33: 0 | E33: 2300 | F33: =0*Basic!$D$2 -> 0
A34: 0 | B34: ='Hull Long'!B34 -> 2400 | C34: =C$33+(C$53-C$33)*ABS($B$33-$B34)^H$53/ABS($B$53-$B$33)^H$53 -> 0 | D34: 0 | E34: 2400 | F34: =F$33+(F$53-F$33)*ABS($E$33-$E34)^I$53/ABS($E$53-$E$33)^I$53 -> 0
A35: 0 | B35: ='Hull Long'!B35 -> 2500 | C35: 0 | D35: 0 | E35: 2500 | F35: 0
A36: 0 | B36: ='Hull Long'!B36 -> 2600 | C36: 0 | D36: 0 | E36: 2600 | F36: 0
A37: 0 | B37: ='Hull Long'!B37 -> 2700 | C37: 0 | D37: 0 | E37: 2700 | F37: 0
A38: 0 | B38: ='Hull Long'!B38 -> 2800 | C38: 0 | D38: 0 | E38: 2800 | F38: 0
A39: 0 | B39: ='Hull Long'!B39 -> 2900 | C39: 0 | D39: 0 | E39: 2900 | F39: 0
A40: 0 | B40: ='Hull Long'!B40 -> 3000 | C40: 0 | D40: 0 | E40: 3000 | F40: 0
A41: 0 | B41: ='Hull Long'!B41 -> 3100 | C41: 0 | D41: 0 | E41: 3100 | F41: 0
A42: 0 | B42: ='Hull Long'!B42 -> 3200 | C42: 0 | D42: 0 | E42: 3200 | F42: 0
A43: 0 | B43: ='Hull Long'!B43 -> 3300 | C43: 0 | D43: 0 | E43: 3300 | F43: 0
A44: 0 | B44: ='Hull Long'!B44 -> 3400 | C44: 0 | D44: 0 | E44: 3400 | F44: 0
A45: 0 | B45: ='Hull Long'!B45 -> 3500 | C45: 0 | D45: 0 | E45: 3500 | F45: 0
A46: 0 | B46: ='Hull Long'!B46 -> 3600 | C46: 0 | D46: 0 | E46: 3600 | F46: 0
A47: 0 | B47: ='Hull Long'!B47 -> 3699.9 | C47: 0 | D47: 0 | E47: 3699.9 | F47: 0
A48: 0 | B48: ='Hull Long'!B48 -> 3700.1 | C48: 0 | D48: 0 | E48: =B48 -> 3700.1 | F48: 0
A49: 0 | B49: ='Hull Long'!B49 -> 3900 | C49: 0 | D49: 0 | E49: 3900 | F49: 0
A50: 0 | B50: ='Hull Long'!B50 -> 4000 | C50: 0 | D50: 0 | E50: 4000 | F50: 0
A51: 0 | B51: ='Hull Long'!B51 -> 4100 | C51: 0 | D51: 0 | E51: 4100 | F51: 0
A52: 0 | B52: ='Hull Long'!B52 -> 4200 | C52: =C$33+(C$53-C$33)*ABS($B$33-$B52)^H$53/ABS($B$53-$B$33)^H$53 -> 0 | D52: 0 | E52: 4200 | F52: =F$33+(F$53-F$33)*ABS($E$33-$E52)^I$53/ABS($E$53-$E$33)^I$53 -> 0
A53: 0 | B53: ='Hull Long'!B53 -> 4300 | C53: =0*Basic!$D$2 -> 0 | D53: 0 | E53: 4300 | F53: =0*Basic!$D$2 -> 0 | H53: 1 | I53: 1
A54: 0 | B54: ='Hull Long'!B54 -> 4400 | C54: =0*Basic!$D$2 -> 0 | D54: 0 | E54: 4400 | F54: =0*Basic!$D$2 -> 0
A55: 0 | B55: ='Hull Long'!B55 -> 4500 | C55: =0*Basic!$D$2 -> 0 | D55: 0 | E55: =B55 -> 4500 | F55: =0*Basic!$D$2 -> 0
A56: 0 | B56: ='Hull Long'!B56 -> 4600 | C56: =0*Basic!$D$2 -> 0 | D56: 0 | E56: =B56 -> 4600 | F56: =0*Basic!$D$2 -> 0
A57: 0 | B57: ='Hull Long'!B57 -> 4700 | C57: =0*Basic!$D$2 -> 0 | D57: 0 | E57: =B57 -> 4700 | F57: =0*Basic!$D$2 -> 0
A58: 0 | B58: 0 | C58: 0 | D58: 0 | E58: 0 | F58: 0 | G58: Rabbet
A59: 0 | B59: ='Hull Long'!B59 -> -100 | C59: =0*Basic!$D$2 -> 0 | D59: 0 | E59: =B59 -> -100 | F59: =0*Basic!$D$2 -> 0
A60: 0 | B60: ='Hull Long'!B60 -> 0 | C60: =0*Basic!$D$2 -> 0 | D60: 0 | E60: =B60 -> 0 | F60: =0*Basic!$D$2 -> 0
A61: 0 | B61: ='Hull Long'!B61 -> 100 | C61: =0*Basic!$D$2 -> 0 | D61: 0 | E61: 100 | F61: =0*Basic!$D$2 -> 0
A62: 0 | B62: ='Hull Long'!B62 -> 200 | C62: =0*Basic!$D$2 -> 0 | D62: 0 | E62: 200 | F62: =0*Basic!$D$2 -> 0
A63: 2 | B63: ='Hull Long'!B63 -> 300 | C63: =0*Basic!$D$2 -> 0 | D63: 2 | E63: 300 | F63: =0*Basic!$D$2 -> 0 | H63: 2 | I63: 2
A64: 2 | B64: ='Hull Long'!B64 -> 400 | C64: =C$83+(C$63-C$83)*ABS($B$83-$B64)^H$63/ABS($B$63-$B$83)^H$63 -> 19.5 | D64: 2 | E64: 400 | F64: =F$83+(F$63-F$83)*ABS($E$83-$E64)^I$63/ABS($E$63-$E$83)^I$63 -> -19.5
A65: 2 | B65: ='Hull Long'!B65 -> 500 | C65: =C$83+(C$63-C$83)*ABS($B$83-$B65)^H$63/ABS($B$63-$B$83)^H$63 -> 38 | D65: 2 | E65: 500 | F65: =F$83+(F$63-F$83)*ABS($E$83-$E65)^I$63/ABS($E$63-$E$83)^I$63 -> -38
A66: 2 | B66: ='Hull Long'!B66 -> 600 | C66: 55.5 | D66: 2 | E66: 600 | F66: -55.5
A67: 2 | B67: ='Hull Long'!B67 -> 700 | C67: 72 | D67: 2 | E67: 700 | F67: -72
A68: 2 | B68: ='Hull Long'!B68 -> 899.9 | C68: 101.9859995 | D68: 2 | E68: 899.9 | F68: -101.9859995
A69: 2 | B69: ='Hull Long'!B69 -> 900.1 | C69: 102.0139995 | D69: 2 | E69: 900.1 | F69: -102.0139995
A70: 2 | B70: ='Hull Long'!B70 -> 1000 | C70: 115.5 | D70: 2 | E70: 1000 | F70: -115.5
A71: 2 | B71: ='Hull Long'!B71 -> 1100 | C71: 128 | D71: 2 | E71: 1100 | F71: -128
A72: 2 | B72: ='Hull Long'!B72 -> 1200 | C72: 139.5 | D72: 2 | E72: 1200 | F72: -139.5
A73: 2 | B73: ='Hull Long'!B73 -> 1300 | C73: 150 | D73: 2 | E73: 1300 | F73: -150
A74: 2 | B74: ='Hull Long'!B74 -> 1400 | C74: 159.5 | D74: 2 | E74: 1400 | F74: -159.5
A75: 2 | B75: ='Hull Long'!B75 -> 1500 | C75: 168 | D75: 2 | E75: 1500 | F75: -168
A76: 2 | B76: ='Hull Long'!B76 -> 1600 | C76: 175.5 | D76: 2 | E76: 1600 | F76: -175.5
A77: 2 | B77: ='Hull Long'!B77 -> 1700 | C77: 182 | D77: 2 | E77: 1700 | F77: -182
A78: 2 | B78: ='Hull Long'!B78 -> 1800 | C78: 187.5 | D78: 2 | E78: 1800 | F78: -187.5
A79: 2 | B79: ='Hull Long'!B79 -> 1900 | C79: 192 | D79: 2 | E79: 1900 | F79: -192
A80: 2 | B80: ='Hull Long'!B80 -> 2000 | C80: 195.5 | D80: 2 | E80: 2000 | F80: -195.5
A81: 2 | B81: ='Hull Long'!B81 -> 2100 | C81: 198 | D81: 2 | E81: 2100 | F81: -198
A82: 2 | B82: ='Hull Long'!B82 -> 2200 | C82: 199.5 | D82: 2 | E82: =B82 -> 2200 | F82: -199.5
A83: 2 | B83: ='Hull Long'!B83 -> 2300 | C83: =200*Basic!$D$2 -> 200 | D83: 2 | E83: 2300 | F83: =-200*Basic!$D$2 -> -200
A84: 2 | B84: ='Hull Long'!B84 -> 2300 | C84: =200*Basic!$D$2 -> 200 | D84: 2 | E84: 2300 | F84: =-200*Basic!$D$2 -> -200
A85: 2 | B85: ='Hull Long'!B85 -> 2400 | C85: =C$84+(C$104-C$84)*ABS($B$84-$B85)^H$104/ABS($B$104-$B$84)^H$104 -> 199.5 | D85: 2 | E85: 2400 | F85: =F$84+(F$104-F$84)*ABS($E$84-$E85)^I$104/ABS($E$104-$E$84)^I$104 -> -199.5
A86: 2 | B86: ='Hull Long'!B86 -> 2500 | C86: 198 | D86: 2 | E86: 2500 | F86: -198
A87: 2 | B87: ='Hull Long'!B87 -> 2600 | C87: 195.5 | D87: 2 | E87: 2600 | F87: -195.5
A88: 2 | B88: ='Hull Long'!B88 -> 2700 | C88: 192 | D88: 2 | E88: 2700 | F88: -192
A89: 2 | B89: ='Hull Long'!B89 -> 2800 | C89: 187.5 | D89: 2 | E89: 2800 | F89: -187.5
A90: 2 | B90: ='Hull Long'!B90 -> 2900 | C90: 182 | D90: 2 | E90: 2900 | F90: -182
A91: 2 | B91: ='Hull Long'!B91 -> 3000 | C91: 175.5 | D91: 2 | E91: 3000 | F91: -175.5
A92: 2 | B92: ='Hull Long'!B92 -> 3100 | C92: 168 | D92: 2 | E92: 3100 | F92: -168
A93: 2 | B93: ='Hull Long'!B93 -> 3200 | C93: 159.5 | D93: 2 | E93: 3200 | F93: -159.5
A94: 2 | B94: ='Hull Long'!B94 -> 3300 | C94: 150 | D94: 2 | E94: 3300 | F94: -150
A95: 2 | B95: ='Hull Long'!B95 -> 3400 | C95: 139.5 | D95: 2 | E95: 3400 | F95: -139.5
A96: 2 | B96: ='Hull Long'!B96 -> 3500 | C96: 128 | D96: 2 | E96: 3500 | F96: -128
A97: 2 | B97: ='Hull Long'!B97 -> 3600 | C97: 115.5 | D97: 2 | E97: 3600 | F97: -115.5
A98: 2 | B98: ='Hull Long'!B98 -> 3699.9 | C98: 102.0139995 | D98: 2 | E98: =B98 -> 3699.9 | F98: -102.0139995
A99: 2 | B99: ='Hull Long'!B99 -> 3700.1 | C99: 101.9859995 | D99: 2 | E99: =B99 -> 3700.1 | F99: -101.9859995
A100: 2 | B100: ='Hull Long'!B100 -> 3900 | C100: 72 | D100: 2 | E100: 3900 | F100: -72
A101: 2 | B101: ='Hull Long'!B101 -> 4000 | C101: 55.5 | D101: 2 | E101: 4000 | F101: -55.5
A102: 2 | B102: ='Hull Long'!B102 -> 4100 | C102: 38 | D102: 2 | E102: 4100 | F102: -38
A103: 2 | B103: ='Hull Long'!B103 -> 4200 | C103: =C$84+(C$104-C$84)*ABS($B$84-$B103)^H$104/ABS($B$104-$B$84)^H$104 -> 19.5 | D103: 2 | E103: 4200 | F103: =F$84+(F$104-F$84)*ABS($E$84-$E103)^I$104/ABS($E$104-$E$84)^I$104 -> -19.5
A104: 2 | B104: ='Hull Long'!B104 -> 4300 | C104: =0*Basic!$D$2 -> 0 | D104: 2 | E104: 4300 | F104: =0*Basic!$D$2 -> 0 | H104: 2 | I104: 2
A105: 0 | B105: ='Hull Long'!B105 -> 4400 | C105: =0*Basic!$D$2 -> 0 | D105: 0 | E105: =B105 -> 4400 | F105: =0*Basic!$D$2 -> 0
A106: 0 | B106: ='Hull Long'!B106 -> 4500 | C106: =0*Basic!$D$2 -> 0 | D106: 0 | E106: 4500 | F106: =0*Basic!$D$2 -> 0
A107: 0 | B107: ='Hull Long'!B107 -> 4600 | C107: =0*Basic!$D$2 -> 0 | D107: 0 | E107: 4600 | F107: =0*Basic!$D$2 -> 0
A108: 0 | B108: ='Hull Long'!B108 -> 4700 | C108: =0*Basic!$D$2 -> 0 | D108: 0 | E108: 4700 | F108: =0*Basic!$D$2 -> 0
A109: 0 | B109: 0 | C109: 0 | D109: 0 | E109: 0 | F109: 0 | G109: Chine
A110: 0 | B110: ='Hull Long'!B110 -> -100 | C110: =0*Basic!$D$2 -> 0 | D110: 0 | E110: =B110 -> -100 | F110: =0*Basic!$D$2 -> 0
A111: 3 | B111: ='Hull Long'!B111 -> 0 | C111: =0*Basic!$D$2 -> 0 | D111: 3 | E111: =B111 -> 0 | F111: =0*Basic!$D$2 -> 0 | H111: ='Hull Long'!F111 -> 3.017654325 | I111: =$H$111 -> 3.017654325
A112: 3 | B112: ='Hull Long'!B112 -> 100 | C112: =C$134+(C$111-C$134)*ABS($B$134-$B112)^'Hull Plan'!H$111/ABS($B$111-$B$134)^'Hull Plan'!H$111 -> 43.9363457 | D112: 3 | E112: 100 | F112: =F$134+(F$111-F$134)*ABS($E$134-$E112)^I$111/ABS($E$111-$E$134)^I$111 -> -43.9363457
A113: 3 | B113: ='Hull Long'!B113 -> 200 | C113: =C$134+(C$111-C$134)*ABS($B$134-$B113)^'Hull Plan'!H$111/ABS($B$111-$B$134)^'Hull Plan'!H$111 -> 84.02248517 | D113: 3 | E113: 200 | F113: -84.02248517
A114: 3 | B114: ='Hull Long'!B114 -> 300 | C114: =C$134+(C$111-C$134)*ABS($B$134-$B114)^'Hull Plan'!H$111/ABS($B$111-$B$134)^'Hull Plan'!H$111 -> 120.4364438 | D114: 3 | E114: 300 | F114: -120.4364438
A115: 3 | B115: ='Hull Long'!B115 -> 400 | C115: =C$134+(C$111-C$134)*ABS($B$134-$B115)^'Hull Plan'!H$111/ABS($B$111-$B$134)^'Hull Plan'!H$111 -> 153.3560972 | D115: 3 | E115: 400 | F115: -153.3560972
A116: 3 | B116: ='Hull Long'!B116 -> 500 | C116: =C$134+(C$111-C$134)*ABS($B$134-$B116)^'Hull Plan'!H$111/ABS($B$111-$B$134)^'Hull Plan'!H$111 -> 182.9591641 | D116: 3 | E116: 500 | F116: -182.9591641
A117: 3 | B117: ='Hull Long'!B117 -> 600 | C117: =C$134+(C$111-C$134)*ABS($B$134-$B117)^'Hull Plan'!H$111/ABS($B$111-$B$134)^'Hull Plan'!H$111 -> 209.4231978 | D117: 3 | E117: 600 | F117: -209.4231978
A118: 3 | B118: ='Hull Long'!B118 -> 700 | C118: =C$134+(C$111-C$134)*ABS($B$134-$B118)^'Hull Plan'!H$111/ABS($B$111-$B$134)^'Hull Plan'!H$111 -> 232.9255776 | D118: 3 | E118: 700 | F118: -232.9255776
A119: 3 | B119: ='Hull Long'!B119 -> 899.9 | C119: =C$134+(C$111-C$134)*ABS($B$134-$B119)^'Hull Plan'!H$111/ABS($B$111-$B$134)^'Hull Plan'!H$111 -> 271.7370918 | D119: 3 | E119: 899.9 | F119: -271.7370918
A120: 3 | B120: ='Hull Long'!B120 -> 900.1 | C120: =C$134+(C$111-C$134)*ABS($B$134-$B120)^'Hull Plan'!H$111/ABS($B$111-$B$134)^'Hull Plan'!H$111 -> 271.7708232 | D120: 3 | E120: 900.1 | F120: -271.7708232
A121: 3 | B121: ='Hull Long'!B121 -> 1000 | C121: =C$134+(C$111-C$134)*ABS($B$134-$B121)^'Hull Plan'!H$111/ABS($B$111-$B$134)^'Hull Plan'!H$111 -> 287.43375 | D121: 3 | E121: 1000 | F121: -287.43375
A122: 3 | B122: ='Hull Long'!B122 -> 1100 | C122: =C$134+(C$111-C$134)*ABS($B$134-$B122)^'Hull Plan'!H$111/ABS($B$111-$B$134)^'Hull Plan'!H$111 -> 300.8594396 | D122: 3 | E122: 1100 | F122: -300.8594396
A123: 3 | B123: ='Hull Long'!B123 -> 1200 | C123: =C$134+(C$111-C$134)*ABS($B$134-$B123)^'Hull Plan'!H$111/ABS($B$111-$B$134)^'Hull Plan'!H$111 -> 312.2073548 | D123: 3 | E123: 1200 | F123: -312.2073548
A124: 3 | B124: ='Hull Long'!B124 -> 1300 | C124: =C$134+(C$111-C$134)*ABS($B$134-$B124)^'Hull Plan'!H$111/ABS($B$111-$B$134)^'Hull Plan'!H$111 -> 321.6535632 | D124: 3 | E124: 1300 | F124: -321.6535632
A125: 3 | B125: ='Hull Long'!B125 -> 1400 | C125: =C$134+(C$111-C$134)*ABS($B$134-$B125)^'Hull Plan'!H$111/ABS($B$111-$B$134)^'Hull Plan'!H$111 -> 329.3738493 | D125: 3 | E125: 1400 | F125: -329.3738493
A126: 3 | B126: ='Hull Long'!B126 -> 1500 | C126: =C$134+(C$111-C$134)*ABS($B$134-$B126)^'Hull Plan'!H$111/ABS($B$111-$B$134)^'Hull Plan'!H$111 -> 335.5436866 | D126: 3 | E126: 1500 | F126: -335.5436866
A127: 3 | B127: ='Hull Long'!B127 -> 1600 | C127: =C$134+(C$111-C$134)*ABS($B$134-$B127)^'Hull Plan'!H$111/ABS($B$111-$B$134)^'Hull Plan'!H$111 -> 340.3382031 | D127: 3 | E127: 1600 | F127: -340.3382031
A128: 3 | B128: ='Hull Long'!B128 -> 1700 | C128: =C$134+(C$111-C$134)*ABS($B$134-$B128)^'Hull Plan'!H$111/ABS($B$111-$B$134)^'Hull Plan'!H$111 -> 343.9321388 | D128: 3 | E128: 1700 | F128: -343.9321388
A129: 3 | B129: ='Hull Long'!B129 -> 1800 | C129: =C$134+(C$111-C$134)*ABS($B$134-$B129)^'Hull Plan'!H$111/ABS($B$111-$B$134)^'Hull Plan'!H$111 -> 346.4997908 | D129: 3 | E129: 1800 | F129: -346.4997908
A130: 3 | B130: ='Hull Long'!B130 -> 1900 | C130: =C$134+(C$111-C$134)*ABS($B$134-$B130)^'Hull Plan'!H$111/ABS($B$111-$B$134)^'Hull Plan'!H$111 -> 348.2149389 | D130: 3 | E130: 1900 | F130: -348.2149389
A131: 3 | B131: ='Hull Long'!B131 -> 2000 | C131: =C$134+(C$111-C$134)*ABS($B$134-$B131)^'Hull Plan'!H$111/ABS($B$111-$B$134)^'Hull Plan'!H$111 -> 349.2507424 | D131: 3 | E131: 2000 | F131: -349.2507424
A132: 3 | B132: ='Hull Long'!B132 -> 2100 | C132: =C$134+(C$111-C$134)*ABS($B$134-$B132)^'Hull Plan'!H$111/ABS($B$111-$B$134)^'Hull Plan'!H$111 -> 349.7795812 | D132: 3 | E132: 2100 | F132: -349.7795812
A133: 3 | B133: ='Hull Long'!B133 -> 2200 | C133: =C$134+(C$111-C$134)*ABS($B$134-$B133)^'Hull Plan'!H$111/ABS($B$111-$B$134)^'Hull Plan'!H$111 -> 349.9727828 | D133: 3 | E133: =B133 -> 2200 | F133: -349.9727828
A134: 3 | B134: ='Hull Long'!B134 -> 2300 | C134: =350*Basic!$D$2 -> 350 | D134: 3 | E134: 2300 | F134: =-350*Basic!$D$2 -> -350
A135: 3 | B135: ='Hull Long'!B135 -> 2300 | C135: =350*Basic!$D$2 -> 350 | D135: 3 | E135: 2300 | F135: =-350*Basic!$D$2 -> -350
A136: 3 | B136: ='Hull Long'!B136 -> 2400 | C136: =C$135+(C$158-C$135)*ABS($B$135-$B136)^H$158/ABS($B$158-$B$135)^H$158 -> 349.9727828 | D136: 3 | E136: 2400 | F136: =F$135+(F$158-F$135)*ABS($E$135-$E136)^I$158/ABS($E$158-$E$135)^I$158 -> -349.9727828
A137: 3 | B137: ='Hull Long'!B137 -> 2500 | C137: 349.7795812 | D137: 3 | E137: 2500 | F137: -349.7795812
A138: 3 | B138: ='Hull Long'!B138 -> 2600 | C138: 349.2507424 | D138: 3 | E138: 2600 | F138: -349.2507424
A139: 3 | B139: ='Hull Long'!B139 -> 2700 | C139: 348.2149389 | D139: 3 | E139: 2700 | F139: -348.2149389
A140: 3 | B140: ='Hull Long'!B140 -> 2800 | C140: 346.4997908 | D140: 3 | E140: 2800 | F140: -346.4997908
A141: 3 | B141: ='Hull Long'!B141 -> 2900 | C141: 343.9321388 | D141: 3 | E141: 2900 | F141: -343.9321388
A142: 3 | B142: ='Hull Long'!B142 -> 3000 | C142: 340.3382031 | D142: 3 | E142: 3000 | F142: -340.3382031
A143: 3 | B143: ='Hull Long'!B143 -> 3100 | C143: 335.5436866 | D143: 3 | E143: 3100 | F143: -335.5436866
A144: 3 | B144: ='Hull Long'!B144 -> 3200 | C144: 329.3738493 | D144: 3 | E144: 3200 | F144: -329.3738493
A145: 3 | B145: ='Hull Long'!B145 -> 3300 | C145: 321.6535632 | D145: 3 | E145: 3300 | F145: -321.6535632
A146: 3 | B146: ='Hull Long'!B146 -> 3400 | C146: 312.2073548 | D146: 3 | E146: 3400 | F146: -312.2073548
A147: 3 | B147: ='Hull Long'!B147 -> 3500 | C147: 300.8594396 | D147: 3 | E147: 3500 | F147: -300.8594396
A148: 3 | B148: ='Hull Long'!B148 -> 3600 | C148: 287.43375 | D148: 3 | E148: 3600 | F148: -287.43375
A149: 3 | B149: ='Hull Long'!B149 -> 3699.9 | C149: 271.7708232 | D149: 3 | E149: =B149 -> 3699.9 | F149: -271.7708232
A150: 3 | B150: ='Hull Long'!B150 -> 3700.1 | C150: 271.7370918 | D150: 3 | E150: =B150 -> 3700.1 | F150: -271.7370918
A151: 3 | B151: ='Hull Long'!B151 -> 3900 | C151: 232.9255776 | D151: 3 | E151: 3900 | F151: -232.9255776
A152: 3 | B152: ='Hull Long'!B152 -> 4000 | C152: 209.4231978 | D152: 3 | E152: 4000 | F152: -209.4231978
A153: 3 | B153: ='Hull Long'!B153 -> 4100 | C153: 182.9591641 | D153: 3 | E153: 4100 | F153: -182.9591641
A154: 3 | B154: ='Hull Long'!B154 -> 4200 | C154: 153.3560972 | D154: 3 | E154: 4200 | F154: -153.3560972
A155: 3 | B155: ='Hull Long'!B155 -> 4300 | C155: 120.4364438 | D155: 3 | E155: 4300 | F155: -120.4364438
A156: 3 | B156: ='Hull Long'!B156 -> 4400 | C156: 84.02248517 | D156: 3 | E156: =B156 -> 4400 | F156: -84.02248517
A157: 3 | B157: ='Hull Long'!B157 -> 4500 | C157: 43.9363457 | D157: 3 | E157: =B157 -> 4500 | F157: -43.9363457
A158: 3 | B158: ='Hull Long'!B158 -> 4600 | C158: =0*Basic!$D$2 -> 0 | D158: 3 | E158: =B158 -> 4600 | F158: =0*Basic!$D$2 -> 0 | H158: =$H$111 -> 3.017654325 | I158: =$H$158 -> 3.017654325
A159: 0 | B159: ='Hull Long'!B159 -> 4700 | C159: =0*Basic!$D$2 -> 0 | D159: 0 | E159: =B159 -> 4700 | F159: =0*Basic!$D$2 -> 0
A160: 0 | B160: 0 | C160: 0 | D160: 0 | E160: 0 | F160: 0 | G160: Sheer
A161: 0 | B161: ='Hull Long'!B161 -> -100 | C161: =0*Basic!$D$2 -> 0 | D161: 0 | E161: =B161 -> -100 | F161: =0*Basic!$D$2 -> 0
A162: 5 | B162: ='Hull Long'!B162 -> 0 | C162: =0*Basic!$D$2 -> 0 | D162: 5 | E162: =B162 -> 0 | F162: =0*Basic!$D$2 -> 0 | H162: 2 | I162: 2
A163: 5 | B163: ='Hull Long'!B163 -> 100 | C163: =C$185+(C$162-C$185)*ABS($B$185-$B163)^H$162/ABS($B$162-$B$185)^H$162 -> 21.26654064 | D163: 5 | E163: 100 | F163: =F$185+(F$162-F$185)*ABS($E$185-$E163)^I$162/ABS($E$162-$E$185)^I$162 -> -21.26654064
A164: 5 | B164: ='Hull Long'!B164 -> 200 | C164: 41.5879017 | D164: 5 | E164: 200 | F164: -41.5879017
A165: 5 | B165: ='Hull Long'!B165 -> 300 | C165: 60.96408318 | D165: 5 | E165: 300 | F165: -60.96408318
A166: 5 | B166: ='Hull Long'!B166 -> 400 | C166: 79.39508507 | D166: 5 | E166: 400 | F166: -79.39508507
A167: 5 | B167: ='Hull Long'!B167 -> 500 | C167: 96.88090737 | D167: 5 | E167: 500 | F167: -96.88090737
A168: 5 | B168: ='Hull Long'!B168 -> 600 | C168: 113.4215501 | D168: 5 | E168: 600 | F168: -113.4215501
A169: 5 | B169: ='Hull Long'!B169 -> 700 | C169: 129.0170132 | D169: 5 | E169: 700 | F169: -129.0170132
A170: 5 | B170: ='Hull Long'!B170 -> 899.9 | C170: 157.3591678 | D170: 5 | E170: 899.9 | F170: -157.3591678
A171: 5 | B171: ='Hull Long'!B171 -> 900.1 | C171: =C$185+(C$162-C$185)*ABS($B$185-$B171)^H$162/ABS($B$162-$B$185)^H$162 -> 157.3856328 | D171: 5 | E171: 900.1 | F171: =F$185+(F$162-F$185)*ABS($E$185-$E171)^I$162/ABS($E$162-$E$185)^I$162 -> -157.3856328
A172: 5 | B172: ='Hull Long'!B172 -> 1000 | C172: 170.1323251 | D172: 5 | E172: 1000 | F172: -170.1323251
A173: 5 | B173: ='Hull Long'!B173 -> 1100 | C173: 181.9470699 | D173: 5 | E173: 1100 | F173: -181.9470699
A174: 5 | B174: ='Hull Long'!B174 -> 1200 | C174: 192.8166352 | D174: 5 | E174: 1200 | F174: -192.8166352
A175: 5 | B175: ='Hull Long'!B175 -> 1300 | C175: 202.7410208 | D175: 5 | E175: 1300 | F175: -202.7410208
A176: 5 | B176: ='Hull Long'!B176 -> 1400 | C176: 211.7202268 | D176: 5 | E176: 1400 | F176: -211.7202268
A177: 5 | B177: ='Hull Long'!B177 -> 1500 | C177: 219.7542533 | D177: 5 | E177: 1500 | F177: -219.7542533
A178: 5 | B178: ='Hull Long'!B178 -> 1600 | C178: 226.8431002 | D178: 5 | E178: 1600 | F178: -226.8431002
A179: 5 | B179: ='Hull Long'!B179 -> 1700 | C179: 232.9867675 | D179: 5 | E179: 1700 | F179: -232.9867675
A180: 5 | B180: ='Hull Long'!B180 -> 1800 | C180: 238.1852552 | D180: 5 | E180: 1800 | F180: -238.1852552
A181: 5 | B181: ='Hull Long'!B181 -> 1900 | C181: 242.4385633 | D181: 5 | E181: 1900 | F181: -242.4385633
A182: 5 | B182: ='Hull Long'!B182 -> 2000 | C182: 245.7466919 | D182: 5 | E182: 2000 | F182: -245.7466919
A183: 5 | B183: ='Hull Long'!B183 -> 2100 | C183: 248.1096408 | D183: 5 | E183: 2100 | F183: -248.1096408
A184: 5 | B184: ='Hull Long'!B184 -> 2200 | C184: 249.5274102 | D184: 5 | E184: =B184 -> 2200 | F184: -249.5274102
A185: 5 | B185: ='Hull Long'!B185 -> 2300 | C185: =250*Basic!$D$2 -> 250 | D185: 5 | E185: 2300 | F185: =-250*Basic!$D$2 -> -250
A186: 5 | B186: ='Hull Long'!B186 -> 2300 | C186: =250*Basic!$D$2 -> 250 | D186: 5 | E186: 2300 | F186: =-250*Basic!$D$2 -> -250
A187: 5 | B187: ='Hull Long'!B187 -> 2400 | C187: =C$186+(C$209-C$186)*ABS($B$186-$B187)^H$209/ABS($B$209-$B$186)^H$209 -> 249.5274102 | D187: 5 | E187: 2400 | F187: =F$186+(F$209-F$186)*ABS($E$186-$E187)^I$209/ABS($E$209-$E$186)^I$209 -> -249.5274102
A188: 5 | B188: ='Hull Long'!B188 -> 2500 | C188: 248.1096408 | D188: 5 | E188: 2500 | F188: -248.1096408
A189: 5 | B189: ='Hull Long'!B189 -> 2600 | C189: 245.7466919 | D189: 5 | E189: 2600 | F189: -245.7466919
A190: 5 | B190: ='Hull Long'!B190 -> 2700 | C190: 242.4385633 | D190: 5 | E190: 2700 | F190: -242.4385633
A191: 5 | B191: ='Hull Long'!B191 -> 2800 | C191: 238.1852552 | D191: 5 | E191: 2800 | F191: -238.1852552
A192: 5 | B192: ='Hull Long'!B192 -> 2900 | C192: 232.9867675 | D192: 5 | E192: 2900 | F192: -232.9867675
A193: 5 | B193: ='Hull Long'!B193 -> 3000 | C193: 226.8431002 | D193: 5 | E193: 3000 | F193: -226.8431002
A194: 5 | B194: ='Hull Long'!B194 -> 3100 | C194: 219.7542533 | D194: 5 | E194: 3100 | F194: -219.7542533
A195: 5 | B195: ='Hull Long'!B195 -> 3200 | C195: 211.7202268 | D195: 5 | E195: 3200 | F195: -211.7202268
A196: 5 | B196: ='Hull Long'!B196 -> 3300 | C196: 202.7410208 | D196: 5 | E196: 3300 | F196: -202.7410208
A197: 5 | B197: ='Hull Long'!B197 -> 3400 | C197: 192.8166352 | D197: 5 | E197: 3400 | F197: -192.8166352
A198: 5 | B198: ='Hull Long'!B198 -> 3500 | C198: 181.9470699 | D198: 5 | E198: 3500 | F198: -181.9470699
A199: 5 | B199: ='Hull Long'!B199 -> 3600 | C199: 170.1323251 | D199: 5 | E199: 3600 | F199: -170.1323251
A200: 5 | B200: ='Hull Long'!B200 -> 3699.9 | C200: 157.3856328 | D200: 5 | E200: =B200 -> 3699.9 | F200: -157.3856328
A201: 5 | B201: ='Hull Long'!B201 -> 3700.1 | C201: 157.3591678 | D201: 5 | E201: =B201 -> 3700.1 | F201: -157.3591678
A202: 5 | B202: ='Hull Long'!B202 -> 3900 | C202: 129.0170132 | D202: 5 | E202: 3900 | F202: -129.0170132
A203: 5 | B203: ='Hull Long'!B203 -> 4000 | C203: 113.4215501 | D203: 5 | E203: 4000 | F203: -113.4215501
... 59 more rows

Sheet Hull Unfold
A1: Unfold
A5: Parameters | B5: =200 -> 200 | C5: =1200 -> 1200
A6: Number of Lines | B6: =COUNT(A8:A1052) -> 422 | E6: =COUNT(D8:D1052) -> 408
A7: Line Id | B7: X | C7: Y | D7: Line Id | E7: X | F7: Y | H7: X | I7: Y | O7: X0 | P7: Z0 | Q7: Y0 | R7: X1 | S7: Z1 | T7: Y1 | U7: F | V7: L | W7: D | X7: U | Y7: F' | Z7: A1 | AA7: A2 | AB7: A3 | AC7: A | AD7: B1 | AE7: B2 | AF7: B3 | AG7: B | AH7: XA | AI7: YA | AJ7: XB | AK7: YB | AL7: Check F | AM7: Error F
A8: 0 | B8: =AH8+$H$8 -> -228.4749975 | C8: =AI8+$I$8 -> -122.5526646 | D8: 0 | E8: =AJ8+$H$8 -> -228.4750003 | F8: =AK8+$I$8 -> -122.5526504 | G8: Bottom Plank | H8: =100*Basic!$D$2 -> 100 | I8: =0*Basic!$D$2-AI32 -> 75 | O8: ='Hull Long'!B8 -> -100 | P8: ='Hull Long'!C59 -> 425 | Q8: ='Hull Plan'!C8 -> 0 | R8: ='Hull Long'!B59 -> -100 | S8: ='Hull Long'!C59 -> 425 | T8: ='Hull Plan'!C59 -> 0 | U8: =((O8-R8)^2+(S8-P8)^2+(T8-Q8)^2)^0.5+0.00001 -> 1e-05 | AH8: =AH9-V9*SIN(AC9*PI()/180) -> -328.4749975 | AI8: =AI9+V9*COS(AC9*PI()/180) -> -197.5526646 | AJ8: =AJ9-X9*SIN(AG9*PI()/180) -> -328.4750003 | AK8: =AK9+X9*COS(AG9*PI()/180) -> -197.5526504 | AL8: =((AH8-AJ8)^2+(AI8-AK8)^2)^0.5 -> 1.440933253e-05 | AM8: =U8-AL8 -> -4.409332534e-06
A9: 0 | B9: =AH9+$H$8 -> -71.35624824 | C9: =AI9+$I$8 -> -91.9144757 | D9: 0 | E9: -71.35625062 | F9: -91.91446352 | O9: ='Hull Long'!B9 -> 0 | P9: ='Hull Long'!C9 -> 300 | Q9: ='Hull Plan'!C9 -> 0 | R9: ='Hull Long'!B60 -> 0 | S9: ='Hull Long'!C60 -> 300 | T9: ='Hull Plan'!C60 -> 0 | U9: 1e-05 | V9: =((O9-O8)^2+(P9-P8)^2+(Q9-Q8)^2)^0.5 -> 160.0781059 | W9: =((R9-O8)^2+(S9-P8)^2+(T9-Q8)^2)^0.5 -> 160.0781059 | X9: =((R9-R8)^2+(S9-S8)^2+(T9-T8)^2)^0.5 -> 160.0781059 | Y9: =U8 -> 1e-05 | Z9: =ACOS((U9*U9+V9*V9-W9*W9)/2/U9/V9)*180/PI() -> 89.99999824 | AA9: =ACOS((V9*V9+W9*W9-U9*U9)/2/V9/W9)*180/PI() -> 3.622254811e-06 | AB9: =ACOS((W9*W9+Y9*Y9-X9*X9)/2/W9/Y9)*180/PI() -> 89.99999824 | AC9: =AC10+Z9+AA10+AB10-180 -> 101.0342205 | AD9: =ACOS((U9*U9+W9*W9-V9*V9)/2/U9/W9)*180/PI() -> 89.99999824 | AE9: =ACOS((W9*W9+X9*X9-Y9*Y9)/2/W9/X9)*180/PI() -> 3.622254811e-06 | AF9: =ACOS((X9*X9+Y9*Y9-W9*W9)/2/X9/Y9)*180/PI() -> 89.99999824 | AG9: =180+AG10-AF10-AE9-AD9 -> 101.0342198 | AH9: -171.3562482 | AI9: -166.9144757 | AJ9: -171.3562506 | AK9: -166.9144635 | AL9: 1.240293105e-05 | AM9: -2.402931047e-06
A10: 0 | B10: =AH10+$H$8 -> 85.76250111 | C10: =AI10+$I$8 -> -61.2762871 | D10: 0 | E10: 85.76249901 | F10: -61.27627632 | O10: ='Hull Long'!B10 -> 100 | P10: ='Hull Long'!C10 -> 175 | Q10: ='Hull Plan'!C10 -> 0 | R10: ='Hull Long'!B61 -> 100 | S10: ='Hull Long'!C61 -> 175 | T10: ='Hull Plan'!C61 -> 0 | U10: 1e-05 | V10: 160.0781059 | W10: 160.0781059 | X10: 160.0781059 | Y10: 1e-05 | Z10: 89.99999824 | AA10: 3.622254811e-06 | AB10: 89.99999824 | AC10: 101.0342204 | AD10: 89.99999824 | AE10: 3.622254811e-06 | AF10: 89.99999824 | AG10: 101.0342199 | AH10: -14.23749889 | AI10: -136.2762871 | AJ10: -14.23750099 | AK10: -136.2762763 | AL10: 1.099180698e-05 | AM10: -9.918069784e-07
A11: 0 | B11: =AH11+$H$8 -> 242.8812505 | C11: =AI11+$I$8 -> -30.6380988 | D11: 0 | E11: 242.8812486 | F11: -30.63808881 | O11: ='Hull Long'!B11 -> 200 | P11: ='Hull Long'!C11 -> 50 | Q11: ='Hull Plan'!C11 -> 0 | R11: ='Hull Long'!B62 -> 200 | S11: ='Hull Long'!C62 -> 50 | T11: ='Hull Plan'!C62 -> 0 | U11: 1e-05 | V11: 160.0781059 | W11: 160.0781059 | X11: 160.0781059 | Y11: 1e-05 | Z11: 89.99999824 | AA11: 3.622254811e-06 | AB11: 89.99999824 | AC11: 101.0342203 | AD11: 89.99999824 | AE11: 3.622254811e-06 | AF11: 89.99999824 | AG11: 101.03422 | AH11: 142.8812505 | AI11: -105.6380988 | AJ11: 142.8812486 | AK11: -105.6380888 | AL11: 1.017596039e-05 | AM11: -1.759603906e-07
A12: 0 | B12: =AH12+$H$8 -> 400 | C12: =AI12+$I$8 -> 8.920768337e-05 | D12: 1 | E12: 399.9999981 | F12: 9.897902858e-05 | O12: ='Hull Long'!B12 -> 300 | P12: ='Hull Long'!C12 -> -75 | Q12: ='Hull Plan'!C12 -> 0 | R12: ='Hull Long'!B63 -> 300 | S12: ='Hull Long'!C63 -> -75 | T12: ='Hull Plan'!C63 -> 0 | U12: 1e-05 | V12: 160.0781059 | W12: 160.0781059 | X12: 160.0781059 | Y12: 1e-05 | Z12: 89.99999824 | AA12: 3.622254811e-06 | AB12: 89.99999824 | AC12: 101.0342202 | AD12: 89.99999824 | AE12: 3.622254811e-06 | AF12: 89.99999824 | AG12: 101.0342201 | AH12: 300 | AI12: -74.99991079 | AJ12: 299.9999981 | AK12: -74.99990102 | AL12: 9.95539118e-06 | AM12: 4.460882007e-08
A13: 0 | B13: 500 | C13: 0.0001067221317 | D13: 1 | E13: 499.9999946 | F13: 19.50011672 | O13: ='Hull Long'!B13 -> 400 | P13: ='Hull Long'!C13 -> -75 | Q13: ='Hull Plan'!C13 -> 0 | R13: ='Hull Long'!B64 -> 400 | S13: ='Hull Long'!C64 -> -75 | T13: ='Hull Plan'!C64 -> 19.5 | U13: 19.50001 | V13: 100 | W13: 101.8835119 | X13: 101.8835119 | Y13: 1e-05 | Z13: 89.99999427 | AA13: 11.03421473 | AB13: 89.99999719 | AC13: 90.00001004 | AD13: 78.965791 | AE13: 5.598568197e-06 | AF13: 89.99999719 | AG13: 101.0342192 | AH13: 400 | AI13: -74.99989328 | AJ13: 399.9999946 | AK13: -55.49988328 | AL13: 19.50001 | AM13: -4.618527782e-14
A14: 0 | B14: 600 | C14: 0.0001147494055 | D14: 1 | E14: 599.9999931 | F14: 38.00012475 | O14: ='Hull Long'!B14 -> 500 | P14: ='Hull Long'!C14 -> -75 | Q14: ='Hull Plan'!C14 -> 0 | R14: ='Hull Long'!B65 -> 500 | S14: ='Hull Long'!C65 -> -75 | T14: ='Hull Plan'!C65 -> 38 | U14: 38.00001 | V14: 100 | W14: 106.976633 | X14: 101.6968534 | Y14: 19.50001 | Z14: 89.99999427 | AA14: 20.80679674 | AB14: 69.19321442 | AC14: 90.0000046 | AD14: 69.19320899 | AE14: 10.3255786 | AF14: 100.481207 | AG14: 100.4812227 | AH14: 500 | AI14: -74.99988525 | AJ14: 499.9999931 | AK14: -36.99987525 | AL14: 38.00001 | AM14: 6.110667528e-13
A15: 0 | B15: 700 | C15: 0.0001181714175 | D15: 1 | E15: 699.9999926 | F15: 55.50012817 | O15: ='Hull Long'!B15 -> 600 | P15: ='Hull Long'!C15 -> -75 | Q15: ='Hull Plan'!C15 -> 0 | R15: ='Hull Long'!B66 -> 600 | S15: ='Hull Long'!C66 -> -75 | T15: ='Hull Plan'!C66 -> 55.5 | U15: 55.50001 | V15: 100 | W15: 114.3689206 | X15: 101.5197025 | Y15: 38.00001 | Z15: 89.99999427 | AA15: 29.03028041 | AB15: 60.96972796 | AC15: 90.00000196 | AD15: 60.96972532 | AE15: 19.10403491 | AF15: 99.92623714 | AG15: 99.92624747 | AH15: 600 | AI15: -74.99988183 | AJ15: 599.9999926 | AK15: -19.49987183 | AL15: 55.50001 | AM15: 1.385558335e-12
A16: 0 | B16: 800 | C16: 0.000118620457 | D16: 1 | E16: 799.9999925 | F16: 72.00012862 | O16: ='Hull Long'!B16 -> 700 | P16: ='Hull Long'!C16 -> -75 | Q16: ='Hull Plan'!C16 -> 0 | R16: ='Hull Long'!B67 -> 700 | S16: ='Hull Long'!C67 -> -75 | T16: ='Hull Plan'!C67 -> 72 | U16: 72.00001 | V16: 100 | W16: 123.2233744 | X16: 101.352109 | Y16: 55.50001 | Z16: 89.99999427 | AA16: 35.75389298 | AB16: 54.24611445 | AC16: 90.00000026 | AD16: 54.24611275 | AE16: 26.38450789 | AF16: 99.36937766 | AG16: 99.36938535 | AH16: 700 | AI16: -74.99988138 | AJ16: 699.9999925 | AK16: -2.99987138 | AL16: 72.00001 | AM16: 2.01794137e-12
A17: 0 | B17: 999.9 | C17: 0.0001253433649 | D17: 1 | E17: 999.8999915 | F17: 101.9861348 | O17: ='Hull Long'!B17 -> 899.9 | P17: ='Hull Long'!C17 -> -75 | Q17: ='Hull Plan'!C17 -> 0 | R17: ='Hull Long'!B68 -> 899.9 | S17: ='Hull Long'!C68 -> -75 | T17: ='Hull Plan'!C68 -> 101.9859995 | U17: 101.9860095 | V17: 199.9 | W17: 224.4129098 | X17: 202.1365137 | Y17: 72.00001 | Z17: 89.99999713 | AA17: 27.02999973 | AB17: 62.97000433 | AC17: 90.00000193 | AD17: 62.97000314 | AE17: 18.49895394 | AF17: 98.53104172 | AG17: 98.53104771 | AH17: 899.9 | AI17: -74.99987466 | AJ17: 899.8999915 | AK17: 26.98613484 | AL17: 101.9860095 | AM17: 3.439026841e-12
A18: 0 | B18: 1000.1 | C18: 0.0001153573512 | D18: 1 | E18: 1000.099993 | F18: 102.0141249 | O18: ='Hull Long'!B18 -> 900.1 | P18: ='Hull Long'!C18 -> -75 | Q18: ='Hull Plan'!C18 -> 0 | R18: ='Hull Long'!B69 -> 900.1 | S18: ='Hull Long'!C69 -> -75 | T18: ='Hull Plan'!C69 -> 102.0139995 | U18: 102.0140095 | V18: 0.2 | W18: 102.0141956 | X18: 0.201950489 | Y18: 101.9860095 | Z18: 89.99713521 | AA18: 89.89053568 | AB18: 0.112329891 | AC18: 89.99713922 | AD18: 0.1123291045 | AE18: 81.92092528 | AF18: 97.96674483 | AG18: 97.96674962 | AH18: 900.1 | AI18: -74.99988464 | AJ18: 900.0999929 | AK18: 27.01412486 | AL18: 102.0140095 | AM18: 3.439026841e-12
A19: 0 | B19: 1100 | C19: 0.0001110212923 | D19: 1 | E19: 1099.999993 | F19: 115.500121 | O19: ='Hull Long'!B19 -> 1000 | P19: ='Hull Long'!C19 -> -75 | Q19: ='Hull Plan'!C19 -> 0 | R19: ='Hull Long'!B70 -> 1000 | S19: ='Hull Long'!C70 -> -75 | T19: ='Hull Plan'!C70 -> 115.5 | U19: 115.50001 | V19: 99.9 | W19: 152.7097246 | X19: 100.8061616 | Y19: 102.0140095 | Z19: 89.99999426 | AA19: 49.14232853 | AB19: 40.85767796 | AC19: 89.99999751 | AD19: 40.8576772 | AE19: 41.45416212 | AF19: 97.68815992 | AG19: 97.68816393 | AH19: 1000 | AI19: -74.99988898 | AJ19: 999.9999935 | AK19: 40.50012102 | AL19: 115.50001 | AM19: 2.870592652e-12
A20: 0 | B20: 1200 | C20: 0.0001056086522 | D20: 1 | E20: 1199.999994 | F20: 128.0001156 | O20: ='Hull Long'!B20 -> 1100 | P20: ='Hull Long'!C20 -> -75 | Q20: ='Hull Plan'!C20 -> 0 | R20: ='Hull Long'!B71 -> 1100 | S20: ='Hull Long'!C71 -> -75 | T20: ='Hull Plan'!C71 -> 128 | U20: 128.00001 | V20: 100 | W20: 162.431524 | X20: 100.7782219 | Y20: 115.50001 | Z20: 89.99999427 | AA20: 52.00127329 | AB20: 37.99873306 | AC20: 89.9999969 | AD20: 37.99873244 | AE20: 44.87625694 | AF20: 97.12501 | AG20: 97.12501325 | AH20: 1100 | AI20: -74.99989439 | AJ20: 1099.999994 | AK20: 53.00011561 | AL20: 128.00001 | AM20: 2.387423592e-12
A21: 0 | B21: 1300 | C21: 9.929757464e-05 | D21: 1 | E21: 1299.999995 | F21: 139.5001093 | O21: ='Hull Long'!B21 -> 1200 | P21: ='Hull Long'!C21 -> -75 | Q21: ='Hull Plan'!C21 -> 0 | R21: ='Hull Long'!B72 -> 1200 | S21: ='Hull Long'!C72 -> -75 | T21: ='Hull Plan'!C72 -> 139.5 | U21: 139.50001 | V21: 100 | W21: 171.6398846 | X21: 100.6590781 | Y21: 128.00001 | Z21: 89.99999427 | AA21: 54.3653152 | AB21: 35.63469105 | AC21: 89.99999638 | AD21: 35.63469053 | AE21: 47.8051188 | AF21: 96.56019016 | AG21: 96.56019278 | AH21: 1200 | AI21: -74.9999007 | AJ21: 1199.999995 | AK21: 64.5001093 | AL21: 139.50001 | AM21: 1.98951966e-12
A22: 0 | B22: 1400 | C22: 9.223380894e-05 | D22: 1 | E22: 1399.999996 | F22: 150.0001022 | O22: ='Hull Long'!B22 -> 1300 | P22: ='Hull Long'!C22 -> -75 | Q22: ='Hull Plan'!C22 -> 0 | R22: ='Hull Long'!B73 -> 1300 | S22: ='Hull Long'!C73 -> -75 | T22: ='Hull Plan'!C73 -> 150 | U22: 150.00001 | V22: 100 | W22: 180.2775638 | X22: 100.5497389 | Y22: 139.50001 | Z22: 89.99999427 | AA22: 56.3099382 | AB22: 33.69006796 | AC22: 89.99999595 | AD22: 33.69006753 | AE22: 50.31584525 | AF22: 95.99408679 | AG22: 95.9940889 | AH22: 1300 | AI22: -74.99990777 | AJ22: 1299.999996 | AK22: 75.00010223 | AL22: 150.00001 | AM22: 1.5063506e-12
A23: 0 | B23: 1500 | C23: 8.453671006e-05 | D23: 1 | E23: 1499.999996 | F23: 159.5000945 | O23: ='Hull Long'!B23 -> 1400 | P23: ='Hull Long'!C23 -> -75 | Q23: ='Hull Plan'!C23 -> 0 | R23: ='Hull Long'!B74 -> 1400 | S23: ='Hull Long'!C74 -> -75 | T23: ='Hull Plan'!C74 -> 159.5 | U23: 159.50001 | V23: 100 | W23: 188.25581 | X23: 100.4502364 | Y23: 150.00001 | Z23: 89.99999427 | AA23: 57.91396973 | AB23: 32.08603636 | AC23: 89.99999559 | AD23: 32.086036 | AE23: 52.48715723 | AF23: 95.42680641 | AG23: 95.42680809 | AH23: 1400 | AI23: -74.99991546 | AJ23: 1399.999996 | AK23: 84.50009454 | AL23: 159.50001 | AM23: 1.165290087e-12
A24: 0 | B24: 1600 | C24: 7.630669592e-05 | D24: 1 | E24: 1599.999997 | F24: 168.0000863 | O24: ='Hull Long'!B24 -> 1500 | P24: ='Hull Long'!C24 -> -75 | Q24: ='Hull Plan'!C24 -> 0 | R24: ='Hull Long'!B75 -> 1500 | S24: ='Hull Long'!C75 -> -75 | T24: ='Hull Plan'!C75 -> 168 | U24: 168.00001 | V24: 100 | W24: 195.5095906 | X24: 100.3605998 | Y24: 159.50001 | Z24: 89.99999427 | AA24: 59.2372862 | AB24: 30.76271984 | AC24: 89.99999528 | AD24: 30.76271953 | AE24: 54.37882328 | AF24: 94.85845688 | AG24: 94.8584582 | AH24: 1500 | AI24: -74.99992369 | AJ24: 1499.999997 | AK24: 93.00008631 | AL24: 168.00001 | AM24: 8.810729923e-13
A25: 0 | B25: 1700 | C25: 6.763025326e-05 | D25: 1 | E25: 1699.999998 | F25: 175.5000776 | O25: ='Hull Long'!B25 -> 1600 | P25: ='Hull Long'!C25 -> -75 | Q25: ='Hull Plan'!C25 -> 0 | R25: ='Hull Long'!B76 -> 1600 | S25: ='Hull Long'!C76 -> -75 | T25: ='Hull Plan'!C76 -> 175.5 | U25: 175.50001 | V25: 100 | W25: 201.9907176 | X25: 100.2808556 | Y25: 168.00001 | Z25: 89.99999427 | AA25: 60.32549072 | AB25: 29.67451526 | AC25: 89.99999503 | AD25: 29.67451501 | AE25: 56.03633739 | AF25: 94.28914734 | AG25: 94.28914836 | AH25: 1600 | AI25: -74.99993237 | AJ25: 1599.999998 | AK25: 100.5000776 | AL25: 175.50001 | AM25: 6.536993169e-13
A26: 0 | B26: 1800 | C26: 5.858344031e-05 | D26: 1 | E26: 1799.999998 | F26: 182.0000686 | O26: ='Hull Long'!B26 -> 1700 | P26: ='Hull Long'!C26 -> -75 | Q26: ='Hull Plan'!C26 -> 0 | R26: ='Hull Long'!B77 -> 1700 | S26: ='Hull Long'!C77 -> -75 | T26: ='Hull Plan'!C77 -> 182 | U26: 182.00001 | V26: 100 | W26: 207.6631888 | X26: 100.2110273 | Y26: 175.50001 | Z26: 89.99999427 | AA26: 61.21338742 | AB26: 28.78661852 | AC26: 89.99999482 | AD26: 28.78661831 | AE26: 57.49439345 | AF26: 93.71898803 | AG26: 93.71898879 | AH26: 1700 | AI26: -74.99994142 | AJ26: 1699.999998 | AK26: 107.0000686 | AL26: 182.00001 | AM26: 5.684341886e-13
A27: 0 | B27: 1900 | C27: 4.923442954e-05 | D27: 1 | E27: 1899.999999 | F27: 187.5000592 | O27: ='Hull Long'!B27 -> 1800 | P27: ='Hull Long'!C27 -> -75 | Q27: ='Hull Plan'!C27 -> 0 | R27: ='Hull Long'!B78 -> 1800 | S27: ='Hull Long'!C78 -> -75 | T27: ='Hull Plan'!C78 -> 187.5 | U27: 187.50001 | V27: 100 | W27: 212.5 | X27: 100.1511358 | Y27: 182.00001 | Z27: 89.99999427 | AA27: 61.92751879 | AB27: 28.07248711 | AC27: 89.99999464 | AD27: 28.07248694 | AE27: 58.77942269 | AF27: 93.1480902 | AG27: 93.14809074 | AH27: 1800 | AI27: -74.99995077 | AJ27: 1799.999999 | AK27: 112.5000592 | AL27: 187.50001 | AM27: 4.831690603e-13
A28: 0 | B28: 2000 | C28: 3.964541881e-05 | D28: 1 | E28: 1999.999999 | F28: 192.0000496 | O28: ='Hull Long'!B28 -> 1900 | P28: ='Hull Long'!C28 -> -75 | Q28: ='Hull Plan'!C28 -> 0 | R28: ='Hull Long'!B79 -> 1900 | S28: ='Hull Long'!C79 -> -75 | T28: ='Hull Plan'!C79 -> 192 | U28: 192.00001 | V28: 100 | W28: 216.480946 | X28: 100.1011988 | Y28: 187.50001 | Z28: 89.99999427 | AA28: 62.48800311 | AB28: 27.51200276 | AC28: 89.99999451 | AD28: 27.51200262 | AE28: 59.91143128 | AF28: 92.57656596 | AG28: 92.57656634 | AH28: 1900 | AI28: -74.99996035 | AJ28: 1899.999999 | AK28: 117.0000496 | AL28: 192.00001 | AM28: 3.126388037e-13
A29: 0 | B29: 2100 | C29: 2.987411646e-05 | D29: 1 | E29: 2100 | F29: 195.5000399 | O29: ='Hull Long'!B29 -> 2000 | P29: ='Hull Long'!C29 -> -75 | Q29: ='Hull Plan'!C29 -> 0 | R29: ='Hull Long'!B80 -> 2000 | S29: ='Hull Long'!C80 -> -75 | T29: ='Hull Plan'!C80 -> 195.5 | U29: 195.50001 | V29: 100 | W29: 219.5910973 | X29: 100.0612313 | Y29: 192.00001 | Z29: 89.99999427 | AA29: 62.90985519 | AB29: 27.09015065 | AC29: 89.9999944 | AD29: 27.09015054 | AE29: 60.90532115 | AF29: 92.0045282 | AG29: 92.00452843 | AH29: 2000 | AI29: -74.99997013 | AJ29: 2000 | AK29: 120.5000399 | AL29: 195.50001 | AM29: 0
A30: 0 | B30: 2200 | C30: 1.997493685e-05 | D30: 1 | E30: 2200 | F30: 198.00003 | O30: ='Hull Long'!B30 -> 2100 | P30: ='Hull Long'!C30 -> -75 | Q30: ='Hull Plan'!C30 -> 0 | R30: ='Hull Long'!B81 -> 2100 | S30: ='Hull Long'!C81 -> -75 | T30: ='Hull Plan'!C81 -> 198 | U30: 198.00001 | V30: 100 | W30: 221.8197466 | X30: 100.0312451 | Y30: 195.50001 | Z30: 89.99999427 | AA30: 63.20392444 | AB30: 26.79608137 | AC30: 89.99999433 | AD30: 26.79608129 | AE30: 61.77182825 | AF30: 91.43209038 | AG30: 91.43209051 | AH30: 2100 | AI30: -74.99998003 | AJ30: 2100 | AK30: 123.00003 | AL30: 198.00001 | AM30: 0
A31: 0 | B31: 2300 | C31: 9.999999747e-06 | D31: 1 | E31: 2300 | F31: 199.50002 | O31: ='Hull Long'!B31 -> 2200 | P31: ='Hull Long'!C31 -> -75 | Q31: ='Hull Plan'!C31 -> 0 | R31: ='Hull Long'!B82 -> 2200 | S31: ='Hull Long'!C82 -> -75 | T31: ='Hull Plan'!C82 -> 199.5 | U31: =((O31-R31)^2+(S31-P31)^2+(T31-Q31)^2)^0.5+0.00001 -> 199.50001 | V31: =((O31-O30)^2+(P31-P30)^2+(Q31-Q30)^2)^0.5 -> 100 | W31: =((R31-O30)^2+(S31-P30)^2+(T31-Q30)^2)^0.5 -> 223.1596962 | X31: =((R31-R30)^2+(S31-S30)^2+(T31-T30)^2)^0.5 -> 100.0112494 | Y31: =U30 -> 198.00001 | Z31: =ACOS((U31*U31+V31*V31-W31*W31)/2/U31/V31)*180/PI() -> 89.99999427 | AA31: =ACOS((V31*V31+W31*W31-U31*U31)/2/V31/W31)*180/PI() -> 63.37754397 | AB31: =ACOS((W31*W31+Y31*Y31-X31*X31)/2/W31/Y31)*180/PI() -> 26.6224618 | AC31: =AC32+Z31+AA32+AB32-180 -> 89.99999428 | AD31: =ACOS((U31*U31+W31*W31-V31*V31)/2/U31/W31)*180/PI() -> 26.62246176 | AE31: =ACOS((W31*W31+X31*X31-Y31*Y31)/2/W31/X31)*180/PI() -> 62.51817173 | AF31: =ACOS((X31*X31+Y31*Y31-W31*W31)/2/X31/Y31)*180/PI() -> 90.85936647 | AG31: =180+AG32-AF32-AE31-AD31 -> 90.85936653 | AH31: =AH32-V32*SIN(AC32*PI()/180) -> 2200 | AI31: =AI32+V32*COS(AC32*PI()/180) -> -74.99999 | AJ31: =AJ32-X32*SIN(AG32*PI()/180) -> 2200 | AK31: =AK32+X32*COS(AG32*PI()/180) -> 124.50002 | AL31: =((AH31-AJ31)^2+(AI31-AK31)^2)^0.5 -> 199.50001 | AM31: =U31-AL31 -> 0
A32: 1 | B32: 2400 | C32: 0 | D32: 1 | E32: 2400 | F32: 200.00001 | O32: ='Hull Long'!B32 -> 2300 | P32: ='Hull Long'!C32 -> -75 | Q32: ='Hull Plan'!C32 -> 0 | R32: ='Hull Long'!B83 -> 2300 | S32: ='Hull Long'!C83 -> -75 | T32: ='Hull Plan'!C83 -> 200 | U32: =((O32-R32)^2+(S32-P32)^2+(T32-Q32)^2)^0.5+0.00001 -> 200.00001 | V32: =((O32-O31)^2+(P32-P31)^2+(Q32-Q31)^2)^0.5 -> 100 | W32: =((R32-O31)^2+(S32-P31)^2+(T32-Q31)^2)^0.5 -> 223.6067977 | X32: =((R32-R31)^2+(S32-S31)^2+(T32-T31)^2)^0.5 -> 100.00125 | Y32: =U31 -> 199.50001 | Z32: =ACOS((U32*U32+V32*V32-W32*W32)/2/U32/V32)*180/PI() -> 89.99999427 | AA32: =ACOS((V32*V32+W32*W32-U32*U32)/2/V32/W32)*180/PI() -> 63.43495455 | AB32: =ACOS((W32*W32+Y32*Y32-X32*X32)/2/W32/Y32)*180/PI() -> 26.56505119 | AC32: =Z32 -> 89.99999427 | AD32: =ACOS((U32*U32+W32*W32-V32*V32)/2/U32/W32)*180/PI() -> 26.56505118 | AE32: =ACOS((W32*W32+X32*X32-Y32*Y32)/2/W32/X32)*180/PI() -> 63.14847804 | AF32: =ACOS((X32*X32+Y32*Y32-W32*W32)/2/X32/Y32)*180/PI() -> 90.28647077 | AG32: =180-AD32-AE32 -> 90.28647078 | AH32: =O32 -> 2300 | AI32: =P32 -> -75 | AJ32: =AH32 -> 2300 | AK32: =AI32+U32 -> 125.00001 | AL32: =((AH32-AJ32)^2+(AI32-AK32)^2)^0.5 -> 200.00001 | AM32: =U32-AL32 -> 0
A33: 1 | B33: =E32 -> 2400 | C33: =F32 -> 200.00001 | D33: 0 | E33: 2400 | F33: 200.00001 | O33: ='Hull Long'!B33 -> 2300 | P33: ='Hull Long'!C33 -> -75 | Q33: ='Hull Plan'!C33 -> 0 | R33: ='Hull Long'!B84 -> 2300 | S33: ='Hull Long'!C84 -> -75 | T33: ='Hull Plan'!C84 -> 200 | U33: =((O33-R33)^2+(S33-P33)^2+(T33-Q33)^2)^0.5+0.00001 -> 200.00001 | V33: =((O33-O34)^2+(P33-P34)^2+(Q33-Q34)^2)^0.5 -> 100 | W33: =((R33-O34)^2+(S33-P34)^2+(T33-Q34)^2)^0.5 -> 223.6067977 | X33: =((R33-R34)^2+(S33-S34)^2+(T33-T34)^2)^0.5 -> 100.00125 | Y33: =U34 -> 199.50001 | Z33: =ACOS((U33*U33+V33*V33-W33*W33)/2/U33/V33)*180/PI() -> 89.99999427 | AA33: =ACOS((V33*V33+W33*W33-U33*U33)/2/V33/W33)*180/PI() -> 63.43495455 | AB33: =ACOS((W33*W33+Y33*Y33-X33*X33)/2/W33/Y33)*180/PI() -> 26.56505119 | AC33: =Z33 -> 89.99999427 | AD33: =ACOS((U33*U33+W33*W33-V33*V33)/2/U33/W33)*180/PI() -> 26.56505118 | AE33: =ACOS((W33*W33+X33*X33-Y33*Y33)/2/W33/X33)*180/PI() -> 63.14847804 | AF33: =ACOS((X33*X33+Y33*Y33-W33*W33)/2/X33/Y33)*180/PI() -> 90.28647077 | AG33: =180-AD33-AE33 -> 90.28647078 | AH33: =O33 -> 2300 | AI33: =P33 -> -75 | AJ33: =AH33 -> 2300 | AK33: =AI33+U33 -> 125.00001 | AL33: =((AH33-AJ33)^2+(AI33-AK33)^2)^0.5 -> 200.00001 | AM33: =U33-AL33 -> 0
A34: 0 | B34: =AH34+$H$8 -> 2500 | C34: =AI34+$I$8 -> 9.999999747e-06 | D34: 0 | E34: 2500 | F34: 199.50002 | O34: ='Hull Long'!B34 -> 2400 | P34: ='Hull Long'!C34 -> -75 | Q34: ='Hull Plan'!C34 -> 0 | R34: ='Hull Long'!B85 -> 2400 | S34: ='Hull Long'!C85 -> -75 | T34: ='Hull Plan'!C85 -> 199.5 | U34: =((O34-R34)^2+(S34-P34)^2+(T34-Q34)^2)^0.5+0.00001 -> 199.50001 | V34: =((O34-O35)^2+(P34-P35)^2+(Q34-Q35)^2)^0.5 -> 100 | W34: =((R34-O35)^2+(S34-P35)^2+(T34-Q35)^2)^0.5 -> 223.1596962 | X34: =((R34-R35)^2+(S34-S35)^2+(T34-T35)^2)^0.5 -> 100.0112494 | Y34: =U35 -> 198.00001 | Z34: =ACOS((U34*U34+V34*V34-W34*W34)/2/U34/V34)*180/PI() -> 89.99999427 | AA34: =ACOS((V34*V34+W34*W34-U34*U34)/2/V34/W34)*180/PI() -> 63.37754397 | AB34: =ACOS((W34*W34+Y34*Y34-X34*X34)/2/W34/Y34)*180/PI() -> 26.6224618 | AC34: =AC33+Z34+AA33+AB33-180 -> 89.99999428 | AD34: =ACOS((U34*U34+W34*W34-V34*V34)/2/U34/W34)*180/PI() -> 26.62246176 | AE34: =ACOS((W34*W34+X34*X34-Y34*Y34)/2/W34/X34)*180/PI() -> 62.51817173 | AF34: =ACOS((X34*X34+Y34*Y34-W34*W34)/2/X34/Y34)*180/PI() -> 90.85936647 | AG34: =180+AG33-AF33-AE34-AD34 -> 90.85936653 | AH34: =AH33+V33*SIN(AC33*PI()/180) -> 2400 | AI34: =AI33+V33*COS(AC33*PI()/180) -> -74.99999 | AJ34: =AJ33+X33*SIN(AG33*PI()/180) -> 2400 | AK34: =AK33+X33*COS(AG33*PI()/180) -> 124.50002 | AL34: =((AH34-AJ34)^2+(AI34-AK34)^2)^0.5 -> 199.50001 | AM34: =U34-AL34 -> 0
A35: 0 | B35: =AH35+$H$8 -> 2600 | C35: =AI35+$I$8 -> 1.997493685e-05 | D35: 0 | E35: 2600 | F35: 198.00003 | O35: ='Hull Long'!B35 -> 2500 | P35: ='Hull Long'!C35 -> -75 | Q35: ='Hull Plan'!C35 -> 0 | R35: ='Hull Long'!B86 -> 2500 | S35: ='Hull Long'!C86 -> -75 | T35: ='Hull Plan'!C86 -> 198 | U35: =((O35-R35)^2+(S35-P35)^2+(T35-Q35)^2)^0.5+0.00001 -> 198.00001 | V35: =((O35-O36)^2+(P35-P36)^2+(Q35-Q36)^2)^0.5 -> 100 | W35: =((R35-O36)^2+(S35-P36)^2+(T35-Q36)^2)^0.5 -> 221.8197466 | X35: =((R35-R36)^2+(S35-S36)^2+(T35-T36)^2)^0.5 -> 100.0312451 | Y35: =U36 -> 195.50001 | Z35: =ACOS((U35*U35+V35*V35-W35*W35)/2/U35/V35)*180/PI() -> 89.99999427 | AA35: =ACOS((V35*V35+W35*W35-U35*U35)/2/V35/W35)*180/PI() -> 63.20392444 | AB35: =ACOS((W35*W35+Y35*Y35-X35*X35)/2/W35/Y35)*180/PI() -> 26.79608137 | AC35: =AC34+Z35+AA34+AB34-180 -> 89.99999433 | AD35: =ACOS((U35*U35+W35*W35-V35*V35)/2/U35/W35)*180/PI() -> 26.79608129 | AE35: =ACOS((W35*W35+X35*X35-Y35*Y35)/2/W35/X35)*180/PI() -> 61.77182825 | AF35: =ACOS((X35*X35+Y35*Y35-W35*W35)/2/X35/Y35)*180/PI() -> 91.43209038 | AG35: =180+AG34-AF34-AE35-AD35 -> 91.43209051 | AH35: =AH34+V34*SIN(AC34*PI()/180) -> 2500 | AI35: =AI34+V34*COS(AC34*PI()/180) -> -74.99998003 | AJ35: =AJ34+X34*SIN(AG34*PI()/180) -> 2500 | AK35: =AK34+X34*COS(AG34*PI()/180) -> 123.00003 | AL35: =((AH35-AJ35)^2+(AI35-AK35)^2)^0.5 -> 198.00001 | AM35: =U35-AL35 -> 0
A36: 0 | B36: =AH36+$H$8 -> 2700 | C36: =AI36+$I$8 -> 2.987411646e-05 | D36: 0 | E36: =AJ36+$H$8 -> 2700 | F36: =AK36+$I$8 -> 195.5000399 | O36: ='Hull Long'!B36 -> 2600 | P36: ='Hull Long'!C36 -> -75 | Q36: ='Hull Plan'!C36 -> 0 | R36: ='Hull Long'!B87 -> 2600 | S36: ='Hull Long'!C87 -> -75 | T36: ='Hull Plan'!C87 -> 195.5 | U36: 195.50001 | V36: 100 | W36: 219.5910973 | X36: 100.0612313 | Y36: 192.00001 | Z36: 89.99999427 | AA36: 62.90985519 | AB36: 27.09015065 | AC36: 89.9999944 | AD36: 27.09015054 | AE36: 60.90532115 | AF36: 92.0045282 | AG36: 92.00452843 | AH36: 2600 | AI36: -74.99997013 | AJ36: 2600 | AK36: 120.5000399 | AL36: 195.50001 | AM36: 0
A37: 0 | B37: 2800 | C37: 3.964541881e-05 | D37: 0 | E37: 2800.000001 | F37: 192.0000496 | O37: ='Hull Long'!B37 -> 2700 | P37: ='Hull Long'!C37 -> -75 | Q37: ='Hull Plan'!C37 -> 0 | R37: ='Hull Long'!B88 -> 2700 | S37: ='Hull Long'!C88 -> -75 | T37: ='Hull Plan'!C88 -> 192 | U37: 192.00001 | V37: 100 | W37: 216.480946 | X37: 100.1011988 | Y37: 187.50001 | Z37: 89.99999427 | AA37: 62.48800311 | AB37: 27.51200276 | AC37: 89.99999451 | AD37: 27.51200262 | AE37: 59.91143128 | AF37: 92.57656596 | AG37: 92.57656634 | AH37: 2700 | AI37: -74.99996035 | AJ37: 2700.000001 | AK37: 117.0000496 | AL37: 192.00001 | AM37: 3.126388037e-13
A38: 0 | B38: 2900 | C38: 4.923442954e-05 | D38: 0 | E38: 2900.000001 | F38: 187.5000592 | O38: ='Hull Long'!B38 -> 2800 | P38: ='Hull Long'!C38 -> -75 | Q38: ='Hull Plan'!C38 -> 0 | R38: ='Hull Long'!B89 -> 2800 | S38: ='Hull Long'!C89 -> -75 | T38: ='Hull Plan'!C89 -> 187.5 | U38: 187.50001 | V38: 100 | W38: 212.5 | X38: 100.1511358 | Y38: 182.00001 | Z38: 89.99999427 | AA38: 61.92751879 | AB38: 28.07248711 | AC38: 89.99999464 | AD38: 28.07248694 | AE38: 58.77942269 | AF38: 93.1480902 | AG38: 93.14809074 | AH38: 2800 | AI38: -74.99995077 | AJ38: 2800.000001 | AK38: 112.5000592 | AL38: 187.50001 | AM38: 4.831690603e-13
A39: 0 | B39: 3000 | C39: 5.858344031e-05 | D39: 0 | E39: 3000.000002 | F39: 182.0000686 | O39: ='Hull Long'!B39 -> 2900 | P39: ='Hull Long'!C39 -> -75 | Q39: ='Hull Plan'!C39 -> 0 | R39: ='Hull Long'!B90 -> 2900 | S39: ='Hull Long'!C90 -> -75 | T39: ='Hull Plan'!C90 -> 182 | U39: 182.00001 | V39: 100 | W39: 207.6631888 | X39: 100.2110273 | Y39: 175.50001 | Z39: 89.99999427 | AA39: 61.21338742 | AB39: 28.78661852 | AC39: 89.99999482 | AD39: 28.78661831 | AE39: 57.49439345 | AF39: 93.71898803 | AG39: 93.71898879 | AH39: 2900 | AI39: -74.99994142 | AJ39: 2900.000002 | AK39: 107.0000686 | AL39: 182.00001 | AM39: 5.684341886e-13
A40: 0 | B40: 3100 | C40: 6.763025326e-05 | D40: 0 | E40: 3100.000002 | F40: 175.5000776 | O40: ='Hull Long'!B40 -> 3000 | P40: ='Hull Long'!C40 -> -75 | Q40: ='Hull Plan'!C40 -> 0 | R40: ='Hull Long'!B91 -> 3000 | S40: ='Hull Long'!C91 -> -75 | T40: ='Hull Plan'!C91 -> 175.5 | U40: 175.50001 | V40: 100 | W40: 201.9907176 | X40: 100.2808556 | Y40: 168.00001 | Z40: 89.99999427 | AA40: 60.32549072 | AB40: 29.67451526 | AC40: 89.99999503 | AD40: 29.67451501 | AE40: 56.03633739 | AF40: 94.28914734 | AG40: 94.28914836 | AH40: 3000 | AI40: -74.99993237 | AJ40: 3000.000002 | AK40: 100.5000776 | AL40: 175.50001 | AM40: 6.536993169e-13
A41: 0 | B41: 3200 | C41: 7.630669592e-05 | D41: 0 | E41: 3200.000003 | F41: 168.0000863 | O41: ='Hull Long'!B41 -> 3100 | P41: ='Hull Long'!C41 -> -75 | Q41: ='Hull Plan'!C41 -> 0 | R41: ='Hull Long'!B92 -> 3100 | S41: ='Hull Long'!C92 -> -75 | T41: ='Hull Plan'!C92 -> 168 | U41: 168.00001 | V41: 100 | W41: 195.5095906 | X41: 100.3605998 | Y41: 159.50001 | Z41: 89.99999427 | AA41: 59.2372862 | AB41: 30.76271984 | AC41: 89.99999528 | AD41: 30.76271953 | AE41: 54.37882328 | AF41: 94.85845688 | AG41: 94.8584582 | AH41: 3100 | AI41: -74.99992369 | AJ41: 3100.000003 | AK41: 93.00008631 | AL41: 168.00001 | AM41: 8.810729923e-13
A42: 0 | B42: 3300 | C42: 8.453671006e-05 | D42: 0 | E42: 3300.000004 | F42: 159.5000945 | O42: ='Hull Long'!B42 -> 3200 | P42: ='Hull Long'!C42 -> -75 | Q42: ='Hull Plan'!C42 -> 0 | R42: ='Hull Long'!B93 -> 3200 | S42: ='Hull Long'!C93 -> -75 | T42: ='Hull Plan'!C93 -> 159.5 | U42: 159.50001 | V42: 100 | W42: 188.25581 | X42: 100.4502364 | Y42: 150.00001 | Z42: 89.99999427 | AA42: 57.91396973 | AB42: 32.08603636 | AC42: 89.99999559 | AD42: 32.086036 | AE42: 52.48715723 | AF42: 95.42680641 | AG42: 95.42680809 | AH42: 3200 | AI42: -74.99991546 | AJ42: 3200.000004 | AK42: 84.50009454 | AL42: 159.50001 | AM42: 1.165290087e-12
A43: 0 | B43: 3400 | C43: 9.223380894e-05 | D43: 0 | E43: 3400.000004 | F43: 150.0001022 | O43: ='Hull Long'!B43 -> 3300 | P43: ='Hull Long'!C43 -> -75 | Q43: ='Hull Plan'!C43 -> 0 | R43: ='Hull Long'!B94 -> 3300 | S43: ='Hull Long'!C94 -> -75 | T43: ='Hull Plan'!C94 -> 150 | U43: 150.00001 | V43: 100 | W43: 180.2775638 | X43: 100.5497389 | Y43: 139.50001 | Z43: 89.99999427 | AA43: 56.3099382 | AB43: 33.69006796 | AC43: 89.99999595 | AD43: 33.69006753 | AE43: 50.31584525 | AF43: 95.99408679 | AG43: 95.9940889 | AH43: 3300 | AI43: -74.99990777 | AJ43: 3300.000004 | AK43: 75.00010223 | AL43: 150.00001 | AM43: 1.5063506e-12
A44: 0 | B44: 3500 | C44: 9.929757464e-05 | D44: 0 | E44: 3500.000005 | F44: 139.5001093 | O44: ='Hull Long'!B44 -> 3400 | P44: ='Hull Long'!C44 -> -75 | Q44: ='Hull Plan'!C44 -> 0 | R44: ='Hull Long'!B95 -> 3400 | S44: ='Hull Long'!C95 -> -75 | T44: ='Hull Plan'!C95 -> 139.5 | U44: 139.50001 | V44: 100 | W44: 171.6398846 | X44: 100.6590781 | Y44: 128.00001 | Z44: 89.99999427 | AA44: 54.3653152 | AB44: 35.63469105 | AC44: 89.99999638 | AD44: 35.63469053 | AE44: 47.8051188 | AF44: 96.56019016 | AG44: 96.56019278 | AH44: 3400 | AI44: -74.9999007 | AJ44: 3400.000005 | AK44: 64.5001093 | AL44: 139.50001 | AM44: 1.98951966e-12
A45: 0 | B45: 3600 | C45: 0.0001056086522 | D45: 0 | E45: 3600.000006 | F45: 128.0001156 | O45: ='Hull Long'!B45 -> 3500 | P45: ='Hull Long'!C45 -> -75 | Q45: ='Hull Plan'!C45 -> 0 | R45: ='Hull Long'!B96 -> 3500 | S45: ='Hull Long'!C96 -> -75 | T45: ='Hull Plan'!C96 -> 128 | U45: 128.00001 | V45: 100 | W45: 162.431524 | X45: 100.7782219 | Y45: 115.50001 | Z45: 89.99999427 | AA45: 52.00127329 | AB45: 37.99873306 | AC45: 89.9999969 | AD45: 37.99873244 | AE45: 44.87625694 | AF45: 97.12501 | AG45: 97.12501325 | AH45: 3500 | AI45: -74.99989439 | AJ45: 3500.000006 | AK45: 53.00011561 | AL45: 128.00001 | AM45: 2.387423592e-12
A46: 0 | B46: 3700 | C46: 0.0001110212923 | D46: 0 | E46: 3700.000007 | F46: 115.500121 | O46: ='Hull Long'!B46 -> 3600 | P46: ='Hull Long'!C46 -> -75 | Q46: ='Hull Plan'!C46 -> 0 | R46: ='Hull Long'!B97 -> 3600 | S46: ='Hull Long'!C97 -> -75 | T46: ='Hull Plan'!C97 -> 115.5 | U46: 115.50001 | V46: 99.9 | W46: 152.7097246 | X46: 100.8061616 | Y46: 102.0140095 | Z46: 89.99999426 | AA46: 49.14232853 | AB46: 40.85767796 | AC46: 89.99999751 | AD46: 40.8576772 | AE46: 41.45416212 | AF46: 97.68815992 | AG46: 97.68816393 | AH46: 3600 | AI46: -74.99988898 | AJ46: 3600.000007 | AK46: 40.50012102 | AL46: 115.50001 | AM46: 2.870592652e-12
A47: 0 | B47: 3799.9 | C47: 0.0001153573512 | D47: 0 | E47: 3799.900007 | F47: 102.0141249 | O47: ='Hull Long'!B47 -> 3699.9 | P47: ='Hull Long'!C47 -> -75 | Q47: ='Hull Plan'!C47 -> 0 | R47: ='Hull Long'!B98 -> 3699.9 | S47: ='Hull Long'!C98 -> -75 | T47: ='Hull Plan'!C98 -> 102.0139995 | U47: 102.0140095 | V47: 0.2 | W47: 102.0141956 | X47: 0.201950489 | Y47: 101.9860095 | Z47: 89.99713521 | AA47: 89.89053568 | AB47: 0.112329891 | AC47: 89.99713922 | AD47: 0.1123291045 | AE47: 81.92092528 | AF47: 97.96674483 | AG47: 97.96674962 | AH47: 3699.9 | AI47: -74.99988464 | AJ47: 3699.900007 | AK47: 27.01412486 | AL47: 102.0140095 | AM47: 3.481659405e-12
A48: 0 | B48: 3800.1 | C48: 0.0001253433649 | D48: 0 | E48: 3800.100009 | F48: 101.9861348 | O48: ='Hull Long'!B48 -> 3700.1 | P48: ='Hull Long'!C48 -> -75 | Q48: ='Hull Plan'!C48 -> 0 | R48: ='Hull Long'!B99 -> 3700.1 | S48: ='Hull Long'!C99 -> -75 | T48: ='Hull Plan'!C99 -> 101.9859995 | U48: 101.9860095 | V48: 199.9 | W48: 224.4129098 | X48: 202.1365137 | Y48: 72.00001 | Z48: 89.99999713 | AA48: 27.02999973 | AB48: 62.97000433 | AC48: 90.00000193 | AD48: 62.97000314 | AE48: 18.49895394 | AF48: 98.53104172 | AG48: 98.53104771 | AH48: 3700.1 | AI48: -74.99987466 | AJ48: 3700.100009 | AK48: 26.98613484 | AL48: 101.9860095 | AM48: 3.453237696e-12
A49: 0 | B49: 4000 | C49: 0.0001186204395 | D49: 0 | E49: 4000.000008 | F49: 72.00012862 | O49: ='Hull Long'!B49 -> 3900 | P49: ='Hull Long'!C49 -> -75 | Q49: ='Hull Plan'!C49 -> 0 | R49: ='Hull Long'!B100 -> 3900 | S49: ='Hull Long'!C100 -> -75 | T49: ='Hull Plan'!C100 -> 72 | U49: 72.00001 | V49: 100 | W49: 123.2233744 | X49: 101.352109 | Y49: 55.50001 | Z49: 89.99999427 | AA49: 35.75389298 | AB49: 54.24611445 | AC49: 90.00000026 | AD49: 54.24611275 | AE49: 26.38450789 | AF49: 99.36937766 | AG49: 99.36938535 | AH49: 3900 | AI49: -74.99988138 | AJ49: 3900.000008 | AK49: -2.99987138 | AL49: 72.00001 | AM49: -1.504929514e-11
A50: 0 | B50: 4100 | C50: 0.0001181713913 | D50: 0 | E50: 4100.000007 | F50: 55.50012817 | O50: ='Hull Long'!B50 -> 4000 | P50: ='Hull Long'!C50 -> -75 | Q50: ='Hull Plan'!C50 -> 0 | R50: ='Hull Long'!B101 -> 4000 | S50: ='Hull Long'!C101 -> -75 | T50: ='Hull Plan'!C101 -> 55.5 | U50: 55.50001 | V50: 100 | W50: 114.3689206 | X50: 101.5197025 | Y50: 38.00001 | Z50: 89.99999427 | AA50: 29.03028041 | AB50: 60.96972796 | AC50: 90.00000196 | AD50: 60.96972532 | AE50: 19.10403491 | AF50: 99.92623714 | AG50: 99.92624747 | AH50: 4000 | AI50: -74.99988183 | AJ50: 4000.000007 | AK50: -19.49987183 | AL50: 55.50001 | AM50: -2.428635071e-11
A51: 0 | B51: 4200 | C51: 0.0001147493706 | D51: 0 | E51: 4200.000007 | F51: 38.00012475 | O51: ='Hull Long'!B51 -> 4100 | P51: ='Hull Long'!C51 -> -75 | Q51: ='Hull Plan'!C51 -> 0 | R51: ='Hull Long'!B102 -> 4100 | S51: ='Hull Long'!C102 -> -75 | T51: ='Hull Plan'!C102 -> 38 | U51: 38.00001 | V51: 100 | W51: 106.976633 | X51: 101.6968534 | Y51: 19.50001 | Z51: 89.99999427 | AA51: 20.80679674 | AB51: 69.19321442 | AC51: 90.0000046 | AD51: 69.19320899 | AE51: 10.3255786 | AF51: 100.481207 | AG51: 100.4812227 | AH51: 4100 | AI51: -74.99988525 | AJ51: 4100.000007 | AK51: -36.99987525 | AL51: 38.00001 | AM51: -3.365840939e-11
A52: 0 | B52: 4300 | C52: 0.000106722088 | D52: 0 | E52: 4300.000005 | F52: 19.50011672 | O52: ='Hull Long'!B52 -> 4200 | P52: ='Hull Long'!C52 -> -75 | Q52: ='Hull Plan'!C52 -> 0 | R52: ='Hull Long'!B103 -> 4200 | S52: ='Hull Long'!C103 -> -75 | T52: ='Hull Plan'!C103 -> 19.5 | U52: 19.50001 | V52: 100 | W52: 101.8835119 | X52: 101.8835119 | Y52: 1e-05 | Z52: 89.99999427 | AA52: 11.03421473 | AB52: 89.99999719 | AC52: 90.00001004 | AD52: 78.965791 | AE52: 5.598568197e-06 | AF52: 89.99999719 | AG52: 101.0342192 | AH52: 4200 | AI52: -74.99989328 | AJ52: 4200.000005 | AK52: -55.49988328 | AL52: 19.50001 | AM52: -4.295586109e-11
A53: 0 | B53: 4400 | C53: 8.920763096e-05 | D53: 0 | E53: 4400.000002 | F53: 9.897902768e-05 | O53: ='Hull Long'!B53 -> 4300 | P53: ='Hull Long'!C53 -> -75 | Q53: ='Hull Plan'!C53 -> 0 | R53: ='Hull Long'!B104 -> 4300 | S53: ='Hull Long'!C104 -> -75 | T53: ='Hull Plan'!C104 -> 0 | U53: 1e-05 | V53: 160.0781059 | W53: 160.0781059 | X53: 160.0781059 | Y53: 1e-05 | Z53: 89.99999824 | AA53: 3.622254811e-06 | AB53: 89.99999824 | AC53: 101.0342202 | AD53: 89.99999824 | AE53: 3.622254811e-06 | AF53: 89.99999824 | AG53: 101.0342201 | AH53: 4300 | AI53: -74.99991079 | AJ53: 4300.000002 | AK53: -74.99990102 | AL53: 9.95544196e-06 | AM53: 4.455804048e-08
A54: 0 | B54: =AH54+$H$8 -> 4557.118749 | C54: =AI54+$I$8 -> -30.6380988 | D54: 0 | E54: =AJ54+$H$8 -> 4557.118751 | F54: =AK54+$I$8 -> -30.63808881 | O54: ='Hull Long'!B54 -> 4400 | P54: ='Hull Long'!C54 -> 50 | Q54: ='Hull Plan'!C54 -> 0 | R54: ='Hull Long'!B105 -> 4400 | S54: ='Hull Long'!C105 -> 50 | T54: ='Hull Plan'!C105 -> 0 | U54: 1e-05 | V54: 160.0781059 | W54: 160.0781059 | X54: 160.0781059 | Y54: 1e-05 | Z54: 89.99999824 | AA54: 3.622254811e-06 | AB54: 89.99999824 | AC54: 101.0342203 | AD54: 89.99999824 | AE54: 3.622254811e-06 | AF54: 89.99999824 | AG54: 101.03422 | AH54: 4457.118749 | AI54: -105.6380988 | AJ54: 4457.118751 | AK54: -105.6380888 | AL54: 1.017602502e-05 | AM54: -1.760250207e-07
A55: 0 | B55: =AH55+$H$8 -> 4714.237499 | C55: =AI55+$I$8 -> -61.2762871 | D55: 0 | E55: =AJ55+$H$8 -> 4714.237501 | F55: =AK55+$I$8 -> -61.27627632 | O55: ='Hull Long'!B55 -> 4500 | P55: ='Hull Long'!C55 -> 175 | Q55: ='Hull Plan'!C55 -> 0 | R55: ='Hull Long'!B106 -> 4500 | S55: ='Hull Long'!C106 -> 175 | T55: ='Hull Plan'!C106 -> 0 | U55: 1e-05 | V55: 160.0781059 | W55: 160.0781059 | X55: 160.0781059 | Y55: 1e-05 | Z55: 89.99999824 | AA55: 3.622254811e-06 | AB55: 89.99999824 | AC55: 101.0342204 | AD55: 89.99999824 | AE55: 3.622254811e-06 | AF55: 89.99999824 | AG55: 101.0342199 | AH55: 4614.237499 | AI55: -136.2762871 | AJ55: 4614.237501 | AK55: -136.2762763 | AL55: 1.099188534e-05 | AM55: -9.918853377e-07
A56: 0 | B56: =AH56+$H$8 -> 4871.356248 | C56: =AI56+$I$8 -> -91.9144757 | D56: 0 | E56: =AJ56+$H$8 -> 4871.356251 | F56: =AK56+$I$8 -> -91.91446352 | O56: ='Hull Long'!B56 -> 4600 | P56: ='Hull Long'!C56 -> 300 | Q56: ='Hull Plan'!C56 -> 0 | R56: ='Hull Long'!B107 -> 4600 | S56: ='Hull Long'!C107 -> 300 | T56: ='Hull Plan'!C107 -> 0 | U56: 1e-05 | V56: 160.0781059 | W56: 160.0781059 | X56: 160.0781059 | Y56: 1e-05 | Z56: 89.99999824 | AA56: 3.622254811e-06 | AB56: 89.99999824 | AC56: 101.0342205 | AD56: 89.99999824 | AE56: 3.622254811e-06 | AF56: 89.99999824 | AG56: 101.0342198 | AH56: 4771.356248 | AI56: -166.9144757 | AJ56: 4771.356251 | AK56: -166.9144635 | AL56: 1.240302324e-05 | AM56: -2.403023245e-06
A57: 0 | B57: =AH57+$H$8 -> 5028.474998 | C57: =AI57+$I$8 -> -122.5526646 | D57: 0 | E57: =AJ57+$H$8 -> 5028.475 | F57: =AK57+$I$8 -> -122.5526504 | O57: ='Hull Long'!B57 -> 4700 | P57: ='Hull Long'!C57 -> 425 | Q57: ='Hull Plan'!C57 -> 0 | R57: ='Hull Long'!B108 -> 4700 | S57: ='Hull Long'!C108 -> 425 | T57: ='Hull Plan'!C108 -> 0 | U57: 1e-05 | AH57: 4928.474998 | AI57: -197.5526646 | AJ57: 4928.475 | AK57: -197.5526504 | AL57: 1.440943849e-05 | AM57: -4.409438491e-06
A58: 0 | B58: 0 | C58: 0 | D58: 0 | E58: 0 | F58: 0 | O58: X0 | P58: Z0 | Q58: Y0 | R58: X1 | S58: Z1 | T58: Y1 | U58: F | V58: L | W58: D | X58: U | Y58: F' | Z58: A1 | AA58: A2 | AB58: A3 | AC58: A | AD58: B1 | AE58: B2 | AF58: B3 | AG58: B | AH58: XA | AI58: YA | AJ58: XB | AK58: YB | AL58: Check F | AM58: Error F
A59: 0 | B59: =AH59+$H$59 -> -122.3971898 | C59: =AI59+$I$59 -> 346.5092683 | D59: 0 | E59: =AJ59+$H$59 -> -122.3971906 | F59: =AK59+$I$59 -> 346.5092783 | G59: Side Plank | H59: =100*Basic!$D$2 -> 100 | I59: =2*Basic!$D$2-AI83+AK32+I8 -> 277.00001 | O59: ='Hull Long'!B59 -> -100 | P59: ='Hull Long'!C59 -> 425 | Q59: ='Hull Plan'!C59 -> 0 | R59: ='Hull Long'!B110 -> -100 | S59: ='Hull Long'!C110 -> 425 | T59: ='Hull Plan'!C110 -> 0 | U59: =((O59-R59)^2+(S59-P59)^2+(T59-Q59)^2)^0.5+0.00001 -> 1e-05 | AH59: =AH60-V60*SIN(AC60*PI()/180) -> -222.3971898 | AI59: =AI60+V60*COS(AC60*PI()/180) -> 69.50925828 | AJ59: =AJ60-X60*SIN(AG60*PI()/180) -> -222.3971906 | AK59: =AK60+X60*COS(AG60*PI()/180) -> 69.50926827 | AL59: =((AH59-AJ59)^2+(AI59-AK59)^2)^0.5 -> 1.003087596e-05 | AM59: =U59-AL59 -> -3.087596056e-08
A60: 1 | B60: 37.15468256 | C60: 359.4784632 | D60: 1 | E60: 37.15468175 | F60: 359.478473 | O60: ='Hull Long'!B60 -> 0 | P60: ='Hull Long'!C60 -> 300 | Q60: ='Hull Plan'!C60 -> 0 | R60: ='Hull Long'!B111 -> 0 | S60: ='Hull Long'!C111 -> 300 | T60: ='Hull Plan'!C111 -> 0 | U60: 1e-05 | V60: =((O60-O59)^2+(P60-P59)^2+(Q60-Q59)^2)^0.5 -> 160.0781059 | W60: =((R60-O59)^2+(S60-P59)^2+(T60-Q59)^2)^0.5 -> 160.0781059 | X60: =((R60-R59)^2+(S60-S59)^2+(T60-T59)^2)^0.5 -> 160.0781059 | Y60: =U59 -> 1e-05 | Z60: =ACOS((U60*U60+V60*V60-W60*W60)/2/U60/V60)*180/PI() -> 89.99999824 | AA60: =ACOS((V60*V60+W60*W60-U60*U60)/2/V60/W60)*180/PI() -> 3.622254811e-06 | AB60: =ACOS((W60*W60+Y60*Y60-X60*X60)/2/W60/Y60)*180/PI() -> 89.99999824 | AC60: =AC61+Z60+AA61+AB61-180 -> 94.64707809 | AD60: =ACOS((U60*U60+W60*W60-V60*V60)/2/U60/W60)*180/PI() -> 89.99999824 | AE60: =ACOS((W60*W60+X60*X60-Y60*Y60)/2/W60/X60)*180/PI() -> 3.622254811e-06 | AF60: =ACOS((X60*X60+Y60*Y60-W60*W60)/2/X60/Y60)*180/PI() -> 89.99999824 | AG60: =180+AG61-AF61-AE60-AD60 -> 94.64707804 | AH60: -62.84531744 | AI60: 82.47845316 | AJ60: -62.84531825 | AK60: 82.47846302 | AL60: 9.893650805e-06 | AM60: 1.063491949e-07
A61: 1 | B61: 156.5891818 | C61: 252.8932841 | D61: 1 | E61: 147.4482813 | F61: 368.4437012 | O61: ='Hull Long'!B61 -> 100 | P61: ='Hull Long'!C61 -> 175 | Q61: ='Hull Plan'!C61 -> 0 | R61: ='Hull Long'!B112 -> 100 | S61: ='Hull Long'!C112 -> 282.2615969 | T61: ='Hull Plan'!C112 -> 43.9363457 | U61: 115.9114099 | V61: 160.0781059 | W61: 110.6573695 | X61: 110.6573695 | Y61: 1e-05 | Z61: 43.73068408 | AA61: 46.39329401 | AB61: 89.99999741 | AC61: 48.25378843 | AD61: 89.87602191 | AE61: 5.122641878e-06 | AF61: 89.99999741 | AG61: 94.64707731 | AH61: 56.58918181 | AI61: -24.10672587 | AJ61: 47.44828131 | AK61: 91.44369123 | AL61: 115.9114099 | AM61: -9.831069292e-11
A62: 1 | B62: 275.9996507 | C62: 146.2811839 | D62: 1 | E62: 256.2940251 | F62: 376.2004994 | O62: ='Hull Long'!B62 -> 200 | P62: ='Hull Long'!C62 -> 50 | Q62: ='Hull Plan'!C62 -> 0 | R62: ='Hull Long'!B113 -> 200 | S62: ='Hull Long'!C113 -> 264.9218944 | T62: ='Hull Plan'!C113 -> 84.02248517 | U62: 230.7622225 | V62: 160.0781059 | W62: 158.5740367 | X62: 109.1217845 | Y62: 115.9114099 | Z62: 43.34221138 | AA62: 92.80050902 | AB62: 43.481723 | AC62: 48.24087233 | AD62: 43.8572796 | AE62: 46.96513817 | AF62: 89.55313883 | AG62: 94.07624317 | AH62: 175.9996507 | AI62: -130.7188261 | AJ62: 156.2940251 | AK62: 99.20048937 | AL62: 230.7622225 | AM62: -8.554934539e-11
A63: 1 | B63: 395.374736 | C63: 39.62946561 | D63: 1 | E63: 363.8476915 | F63: 382.8986173 | O63: ='Hull Long'!B63 -> 300 | P63: ='Hull Long'!C63 -> -75 | Q63: ='Hull Plan'!C63 -> 0 | R63: ='Hull Long'!B114 -> 300 | S63: ='Hull Long'!C114 -> 247.9902802 | T63: ='Hull Plan'!C114 -> 120.4364438 | U63: 344.7138886 | V63: 160.0781059 | W63: 252.3986689 | X63: 107.7620339 | Y63: 230.7622225 | Z63: 42.97433595 | AA63: 111.4098837 | AB63: 25.2669173 | AC63: 48.22185992 | AD63: 25.61578032 | AE63: 66.06813764 | AF63: 88.66494506 | AG63: 93.563606 | AH63: 295.374736 | AI63: -237.3705444 | AJ63: 263.8476915 | AK63: 105.8986073 | AL63: 344.7138886 | AM63: -7.281641956e-11
A64: 1 | B64: 496.0541512 | C64: 55.24693544 | D64: 1 | E64: 470.2569541 | F64: 388.6836138 | O64: ='Hull Long'!B64 -> 400 | P64: ='Hull Long'!C64 -> -75 | Q64: ='Hull Plan'!C64 -> 19.5 | R64: ='Hull Long'!B115 -> 400 | S64: ='Hull Long'!C115 -> 231.4768382 | T64: ='Hull Plan'!C115 -> 153.3560972 | U64: 334.4331231 | V64: 101.8835119 | W64: 356.9960013 | X64: 106.5663988 | Y64: 344.7138886 | Z64: 94.3934667 | AA64: 69.07442841 | AB64: 17.35560464 | AC64: 98.81749092 | AD64: 16.5321049 | AE64: 74.78006702 | AF64: 87.86432834 | AG64: 93.11185231 | AH64: 396.0541512 | AI64: -221.7530746 | AJ64: 370.2569541 | AK64: 111.6836038 | AL64: 334.4331231 | AM64: -6.082245818e-11
A65: 1 | B65: 596.6669567 | C65: 70.0561675 | D65: 1 | E65: 575.6488193 | F65: 393.9375845 | O65: ='Hull Long'!B65 -> 500 | P65: ='Hull Long'!C65 -> -75 | Q65: ='Hull Plan'!C65 -> 38 | R65: ='Hull Long'!B116 -> 500 | S65: ='Hull Long'!C116 -> 215.392439 | T65: ='Hull Plan'!C116 -> 182.9591641 | U65: 324.5626818 | V65: 101.6968534 | W65: 347.9176152 | X65: 105.5227438 | Y65: 334.4331231 | Z65: 94.66028399 | AA65: 68.40180831 | AB65: 17.64895467 | AC65: 98.37326125 | AD65: 16.9379077 | AE65: 73.92113631 | AF65: 88.42990903 | AG65: 92.85393325 | AH65: 496.6669567 | AI65: -206.9438425 | AJ65: 475.6488193 | AK65: 116.9375745 | AL65: 324.5626818 | AM65: -4.888534022e-11
A66: 1 | B66: 697.2143588 | C66: 84.07294059 | D66: 1 | E66: 680.166271 | F66: 398.5385976 | O66: ='Hull Long'!B66 -> 600 | P66: ='Hull Long'!C66 -> -75 | Q66: ='Hull Plan'!C66 -> 55.5 | R66: ='Hull Long'!B117 -> 600 | S66: ='Hull Long'!C117 -> 199.7488482 | T66: ='Hull Plan'!C117 -> 209.4231978 | U66: 314.9274309 | V66: 101.5197025 | W66: 338.9289635 | X66: 104.6186743 | Y66: 324.5626818 | Z66: 94.83301972 | AA66: 67.80149405 | AB66: 17.97533215 | AC66: 97.93615106 | AD66: 17.36548623 | AE66: 73.21702742 | AF66: 88.80764043 | AG66: 92.52061769 | AH66: 597.2143588 | AI66: -192.9270694 | AJ66: 580.166271 | AK66: 121.5385876 | AL66: 314.9274309 | AM66: -3.689137884e-11
A67: 1 | B67: 797.6984734 | C67: 97.30897915 | D67: 1 | E67: 783.9362744 | F67: 402.3965882 | O67: ='Hull Long'!B67 -> 700 | P67: ='Hull Long'!C67 -> -75 | Q67: ='Hull Plan'!C67 -> 72 | R67: ='Hull Long'!B118 -> 700 | S67: ='Hull Long'!C118 -> 184.558856 | T67: ='Hull Plan'!C118 -> 232.9255776 | U67: 305.3978509 | V67: 101.352109 | W67: 329.9251965 | X67: 103.8416955 | Y67: 314.9274309 | Z67: 94.92114876 | AA67: 67.25661397 | AB67: 18.34256382 | AC67: 97.50395355 | AD67: 17.82223728 | AE67: 72.63138939 | AF67: 89.02604679 | AG67: 92.12917813 | AH67: 697.6984734 | AI67: -179.6910309 | AJ67: 683.9362744 | AK67: 125.3965782 | AL67: 305.3978509 | AM67: -2.495426088e-11
A68: 1 | B68: 998.4060106 | C68: 121.301784 | D68: 1 | E68: 989.5527129 | F68: 407.5157938 | O68: ='Hull Long'!B68 -> 899.9 | P68: ='Hull Long'!C68 -> -75 | Q68: ='Hull Plan'!C68 -> 101.9859995 | R68: ='Hull Long'!B119 -> 899.9 | S68: ='Hull Long'!C119 -> 155.6109304 | T68: ='Hull Plan'!C119 -> 271.7370918 | U68: 286.3509041 | V68: 202.1365137 | W68: 364.7414387 | X68: 205.6801547 | Y68: 305.3978509 | Z68: 95.04512031 | AA68: 51.44751433 | AB68: 34.31843682 | AC68: 96.81685365 | AD68: 33.50736535 | AE68: 56.83817707 | AF68: 88.84338611 | AG68: 91.42619091 | AH68: 898.4060106 | AI68: -155.698226 | AJ68: 889.5527129 | AK68: 130.5157838 | AL68: 286.3509041 | AM68: -1.47792889e-12
A69: 1 | B69: 998.6066696 | C69: 121.3245867 | D69: 1 | E69: 989.7574241 | F69: 407.5195735 | O69: ='Hull Long'!B69 -> 900.1 | P69: ='Hull Long'!C69 -> -75 | Q69: ='Hull Plan'!C69 -> 102.0139995 | R69: ='Hull Long'!B120 -> 900.1 | S69: ='Hull Long'!C120 -> 155.5829454 | T69: ='Hull Plan'!C120 -> 271.7708232 | U69: 286.3317649 | V69: 0.201950489 | W69: 286.348426 | X69: 0.2047461061 | Y69: 286.3509041 | Z69: 94.7121756 | AA69: 85.24755248 | AB69: 0.04096470191 | AC69: 96.48321615 | AD69: 0.04027192176 | AE69: 90.67302633 | AF69: 89.28600897 | AG69: 91.05774231 | AH69: 898.6066696 | AI69: -155.6754233 | AJ69: 889.7574241 | AK69: 130.5195635 | AL69: 286.3317649 | AM69: -1.421085472e-12
A70: 1 | B70: 1098.819057 | C70: 132.2497653 | D70: 1 | E70: 1091.795681 | F70: 408.906583 | O70: ='Hull Long'!B70 -> 1000 | P70: ='Hull Long'!C70 -> -75 | Q70: ='Hull Plan'!C70 -> 115.5 | R70: ='Hull Long'!B121 -> 1000 | S70: ='Hull Long'!C121 -> 141.8573324 | T70: ='Hull Plan'!C121 -> 287.43375 | U70: 276.7459531 | V70: 100.8061616 | W70: 302.3038149 | X70: 102.0476836 | Y70: 286.3317649 | Z70: 94.76759495 | AA70: 65.82360417 | AB70: 19.72560871 | AC70: 96.22182767 | AD70: 19.40880088 | AE70: 71.26665629 | AF70: 89.007735 | AG70: 90.77877555 | AH70: 998.8190575 | AI70: -144.7502447 | AJ70: 991.7956813 | AK70: 131.906573 | AL70: 276.7459531 | AM70: -1.193711796e-12
A71: 1 | B71: 1199.083121 | C71: 142.4167464 | D71: 1 | E71: 1193.553832 | F71: 409.4703912 | O71: ='Hull Long'!B71 -> 1100 | P71: ='Hull Long'!C71 -> -75 | Q71: ='Hull Plan'!C71 -> 128 | R71: ='Hull Long'!B122 -> 1100 | S71: ='Hull Long'!C122 -> 128.636517 | T71: ='Hull Plan'!C122 -> 300.8594396 | U71: 267.1108801 | V71: 100.7782219 | W71: 292.9606678 | X71: 101.7597126 | Y71: 276.7459531 | Z71: 94.60399036 | AA71: 65.34301373 | AB71: 20.32110109 | AC71: 95.79011791 | AD71: 20.05299591 | AE71: 70.81567796 | AF71: 88.86322096 | AG71: 90.31745368 | AH71: 1099.083121 | AI71: -134.5832636 | AJ71: 1093.553832 | AK71: 132.4703812 | AL71: 267.1108801 | AM71: -1.023181539e-12
A72: 1 | B72: 1299.302929 | C72: 151.8103736 | D72: 1 | E72: 1294.991142 | F72: 409.2464378 | O72: ='Hull Long'!B72 -> 1200 | P72: ='Hull Long'!C72 -> -75 | Q72: ='Hull Plan'!C72 -> 139.5 | R72: ='Hull Long'!B123 -> 1200 | S72: ='Hull Long'!C123 -> 115.9557098 | T72: ='Hull Plan'!C123 -> 312.2073548 | U72: 257.4721706 | V72: 100.6590781 | W72: 283.542647 | X72: 101.4375574 | Y72: 267.1108801 | Z72: 94.39514806 | AA72: 64.87506651 | AB72: 20.95635796 | AC72: 95.35470308 | AD72: 20.72978543 | AE72: 70.35626708 | AF72: 88.68737496 | AG72: 89.87350251 | AH72: 1199.302929 | AI72: -125.1896364 | AJ72: 1194.991142 | AK72: 132.2464278 | AL72: 257.4721706 | AM72: -8.526512829e-13
A73: 1 | B73: 1399.482961 | C73: 160.4249546 | D73: 1 | E73: 1396.159973 | F73: 408.2904131 | O73: ='Hull Long'!B73 -> 1300 | P73: ='Hull Long'!C73 -> -75 | Q73: ='Hull Plan'!C73 -> 150 | R73: ='Hull Long'!B124 -> 1300 | S73: ='Hull Long'!C124 -> 103.8389696 | T73: ='Hull Plan'!C124 -> 321.6535632 | U73: 247.8877322 | V73: 100.5497389 | W73: 274.159256 | X73: 101.1733475 | Y73: 257.4721706 | Z73: 94.14674552 | AA73: 64.39664213 | AB73: 21.648082 | AC73: 94.91483089 | AD73: 21.45661235 | AE73: 69.85289028 | AF73: 88.49902772 | AG73: 89.45858274 | AH73: 1299.482961 | AI73: -116.5750554 | AJ73: 1296.159973 | AK73: 131.2904031 | AL73: 247.8877322 | AM73: -6.821210263e-13
A74: 1 | B74: =AH74+$H$59 -> 1499.627683 | C74: =AI74+$I$59 -> 168.2534158 | D74: 1 | E74: =AJ74+$H$59 -> 1497.104609 | F74: =AK74+$I$59 -> 406.6746861 | O74: ='Hull Long'!B74 -> 1400 | P74: ='Hull Long'!C74 -> -75 | Q74: ='Hull Plan'!C74 -> 159.5 | R74: ='Hull Long'!B125 -> 1400 | S74: ='Hull Long'!C125 -> 92.31389236 | T74: ='Hull Plan'!C125 -> 329.3738493 | U74: 238.43462 | V74: 100.4502364 | W74: 264.8941607 | X74: 100.9575665 | Y74: 247.8877322 | Z74: 93.86350086 | AA74: 63.90515962 | AB74: 22.39311963 | AC74: 94.46980612 | AD74: 22.23133952 | AE74: 69.2919677 | AF74: 88.31491267 | AG74: 89.08299804 | AH74: 1399.627683 | AI74: -108.7465942 | AJ74: 1397.104609 | AK74: 129.6746761 | AL74: 238.43462 | AM74: -4.831690603e-13
A75: 1 | B75: 1599.741464 | C75: =AI75+$I$59 -> 175.2876736 | D75: 1 | E75: 1597.862333 | F75: 404.4868312 | O75: ='Hull Long'!B75 -> 1500 | P75: ='Hull Long'!C75 -> -75 | Q75: ='Hull Plan'!C75 -> 168 | R75: ='Hull Long'!B126 -> 1500 | S75: ='Hull Long'!C126 -> 81.41257453 | T75: ='Hull Plan'!C126 -> 335.5436866 | U75: 229.2068606 | V75: 100.3605998 | W75: 255.8442359 | X75: 100.7814746 | Y75: 238.43462 | Z75: 93.54940764 | AA75: 63.40149287 | AB75: 23.18566538 | AC75: 94.01914701 | AD75: 23.04909948 | AE75: 68.66456593 | AF75: 88.14976869 | AG75: 88.75607395 | AH75: 1499.741464 | AI75: -101.7123364 | AJ75: 1497.862333 | AK75: 127.4868212 | AL75: 229.2068606 | AM75: -4.263256415e-13
A76: 1 | B76: 1699.82853 | C76: 181.5189902 | D76: 1 | E76: 1698.464372 | F76: 401.8285899 | O76: ='Hull Long'!B76 -> 1600 | P76: ='Hull Long'!C76 -> -75 | Q76: ='Hull Plan'!C76 -> 175.5 | R76: ='Hull Long'!B127 -> 1600 | S76: ='Hull Long'!C127 -> 71.1729901 | T76: ='Hull Plan'!C127 -> 340.3382031 | U76: 220.3138231 | V76: 100.2808556 | W76: 247.1173795 | X76: 100.6371526 | Y76: 229.2068606 | Z76: 93.20780621 | AA76: 62.89062063 | AB76: 24.01654141 | AC76: 93.56257732 | AD76: 23.90157316 | AE76: 67.9667913 | AF76: 88.01666729 | AG76: 88.48640665 | AH76: 1599.82853 | AI76: -95.48101977 | AJ76: 1598.464372 | AK76: 124.8285799 | AL76: 220.3138231 | AM76: -3.694822226e-13
A77: 1 | B77: 1799.892912 | C77: 186.9383428 | D77: 1 | E77: 1798.936731 | F77: 398.8153871 | O77: ='Hull Long'!B77 -> 1700 | P77: ='Hull Long'!C77 -> -75 | Q77: ='Hull Plan'!C77 -> 182 | R77: ='Hull Long'!B128 -> 1700 | S77: ='Hull Long'!C128 -> 61.64104198 | T77: ='Hull Plan'!C128 -> 343.9321388 | U77: 211.8792018 | V77: 100.2110273 | W77: 238.8308182 | X77: 100.5175328 | Y77: 220.3138231 | Z77: 92.84146532 | AA77: 62.3823867 | AB77: 24.87235053 | AC77: 93.10003388 | AD77: 24.77614798 | AE77: 67.20022707 | AF77: 87.92742239 | AG77: 88.28219351 | AH77: 1699.892912 | AI77: -90.06166719 | AJ77: 1698.936731 | AK77: 121.8153771 | AL77: 211.8792018 | AM77: -2.842170943e-13
A78: 1 | B78: 1899.938421 | C78: 191.536843 | D78: 1 | E78: 1899.300909 | F78: 395.5766332 | O78: ='Hull Long'!B78 -> 1800 | P78: ='Hull Long'!C78 -> -75 | Q78: ='Hull Plan'!C78 -> 187.5 | R78: ='Hull Long'!B129 -> 1800 | S78: ='Hull Long'!C129 -> 52.87378503 | T78: ='Hull Plan'!C129 -> 346.4997908 | U78: 204.0407862 | V78: 100.1511358 | W78: 231.1101167 | X78: 100.4164211 | Y78: 211.8792018 | Z78: 92.45267859 | AA78: 61.89232832 | AB78: 25.7345445 | AC78: 92.63169573 | AD78: 25.65499308 | AE78: 66.37231851 | AF78: 87.89313698 | AG78: 88.15170554 | AH78: 1799.938421 | AI78: -85.46316704 | AJ78: 1799.300909 | AK78: 118.5766232 | AL78: 204.0407862 | AM78: 0
A79: 1 | B79: 1999.968624 | C79: 195.3062571 | D79: 1 | E79: 1999.574494 | F79: 392.2573283 | O79: ='Hull Long'!B79 -> 1900 | P79: ='Hull Long'!C79 -> -75 | Q79: ='Hull Plan'!C79 -> 192 | R79: ='Hull Long'!B130 -> 1900 | S79: ='Hull Long'!C130 -> 44.944857 | T79: ='Hull Plan'!C130 -> 348.2149389 | U79: 196.9514656 | V79: 100.1011988 | W79: 224.0894025 | X79: 100.3285086 | Y79: 204.0407862 | Z79: 92.04338436 | AA79: 61.44251703 | AB79: 26.57845809 | AC79: 92.15804202 | AD79: 26.51409861 | AE79: 65.49649949 | AF79: 87.92504242 | AG79: 88.10405956 | AH79: 1899.968624 | AI79: -81.69375293 | AJ79: 1899.574494 | AK79: 115.2573183 | AL79: 196.9514656 | AM79: 0
A80: 1 | B80: 2099.986847 | C80: 198.2396945 | D80: 1 | E80: 2099.771656 | F80: 389.022246 | O80: ='Hull Long'!B80 -> 2000 | P80: ='Hull Long'!C80 -> -75 | Q80: ='Hull Plan'!C80 -> 195.5 | R80: ='Hull Long'!B131 -> 2000 | S80: ='Hull Long'!C131 -> 37.95456463 | T80: ='Hull Plan'!C131 -> 349.2507424 | U80: 190.7826729 | V80: 100.0612313 | W80: 217.9140419 | X80: 100.2493744 | Y80: 196.9514656 | Z80: 91.61532204 | AA80: 61.06239857 | AB80: 27.37231104 | AC80: 91.67994805 | AD80: 27.32227939 | AE80: 64.59162245 | AF80: 88.03606651 | AG80: 88.15072417 | AH80: 1999.986847 | AI80: -78.76031546 | AJ80: 1999.771656 | AK80: 112.022236 | AL80: 190.7826729 | AM80: 0
A81: 1 | B81: 2199.996196 | C81: 200.3325626 | D81: 1 | E81: 2199.90351 | F81: 386.066446 | O81: ='Hull Long'!B81 -> 2100 | P81: ='Hull Long'!C81 -> -75 | Q81: ='Hull Plan'!C81 -> 198 | R81: ='Hull Long'!B132 -> 2100 | S81: ='Hull Long'!C132 -> 32.05157182 | T81: ='Hull Plan'!C132 -> 349.7795812 | U81: 185.7339065 | V81: 100.0312451 | W81: 212.7492143 | X81: 100.175471 | Y81: 190.7826729 | Z81: 91.17024608 | AA81: 60.78988888 | AB81: 28.07589913 | AC81: 91.198838 | AD81: 28.03986504 | AE81: 63.67955451 | AF81: 88.24454637 | AG81: 88.30917238 | AH81: 2099.996196 | AI81: -76.66744739 | AJ81: 2099.90351 | AK81: 109.066436 | AL81: 185.7339065 | AM81: 0
A82: 1 | B82: 2299.999615 | C82: 201.5839949 | D82: 1 | E82: 2299.978296 | F82: 383.6468921 | O82: ='Hull Long'!B82 -> 2200 | P82: ='Hull Long'!C82 -> -75 | Q82: ='Hull Plan'!C82 -> 199.5 | R82: ='Hull Long'!B133 -> 2200 | S82: ='Hull Long'!C133 -> 27.49310712 | T82: ='Hull Plan'!C133 -> 349.9727828 | U82: =((O82-R82)^2+(S82-P82)^2+(T82-Q82)^2)^0.5+0.00001 -> 182.0628985 | V82: =((O82-O81)^2+(P82-P81)^2+(Q82-Q81)^2)^0.5 -> 100.0112494 | W82: =((R82-O81)^2+(S82-P81)^2+(T82-Q81)^2)^0.5 -> 208.80748 | X82: =((R82-R81)^2+(S82-S81)^2+(T82-T81)^2)^0.5 -> 100.1040305 | Y82: =U81 -> 185.7339065 | Z82: =ACOS((U82*U82+V82*V82-W82*W82)/2/U82/V82)*180/PI() -> 90.71024659 | AA82: =ACOS((V82*V82+W82*W82-U82*U82)/2/V82/W82)*180/PI() -> 60.67439935 | AB82: =ACOS((W82*W82+Y82*Y82-X82*X82)/2/W82/Y82)*180/PI() -> 28.63723664 | AC82: =AC83+Z82+AA83+AB83-180 -> 90.71695593 | AD82: =ACOS((U82*U82+W82*W82-V82*V82)/2/U82/W82)*180/PI() -> 28.61535406 | AE82: =ACOS((W82*W82+X82*X82-Y82*Y82)/2/W82/X82)*180/PI() -> 62.77635172 | AF82: =ACOS((X82*X82+Y82*Y82-W82*W82)/2/X82/Y82)*180/PI() -> 88.58641164 | AG82: =180+AG83-AF83-AE82-AD82 -> 88.61500356 | AH82: =AH83-V83*SIN(AC83*PI()/180) -> 2199.999615 | AI82: =AI83+V83*COS(AC83*PI()/180) -> -75.41601512 | AJ82: =AJ83-X83*SIN(AG83*PI()/180) -> 2199.978296 | AK82: =AK83+X83*COS(AG83*PI()/180) -> 106.6468821 | AL82: =((AH82-AJ82)^2+(AI82-AK82)^2)^0.5 -> 182.0628985 | AM82: =U82-AL82 -> 0
A83: 1 | B83: 2400 | C83: 202.00001 | D83: 1 | E83: 2400 | F83: 382.2775838 | O83: ='Hull Long'!B83 -> 2300 | P83: ='Hull Long'!C83 -> -75 | Q83: ='Hull Plan'!C83 -> 200 | R83: ='Hull Long'!B134 -> 2300 | S83: ='Hull Long'!C134 -> 25 | T83: ='Hull Plan'!C134 -> 350 | U83: =((O83-R83)^2+(S83-P83)^2+(T83-Q83)^2)^0.5+0.00001 -> 180.2775738 | V83: =((O83-O82)^2+(P83-P82)^2+(Q83-Q82)^2)^0.5 -> 100.00125 | W83: =((R83-O82)^2+(S83-P82)^2+(T83-Q82)^2)^0.5 -> 206.5193696 | X83: =((R83-R82)^2+(S83-S82)^2+(T83-T82)^2)^0.5 -> 100.0310768 | Y83: =U82 -> 182.0628985 | Z83: =ACOS((U83*U83+V83*V83-W83*W83)/2/U83/V83)*180/PI() -> 90.23835682 | AA83: =ACOS((V83*V83+W83*W83-U83*U83)/2/V83/W83)*180/PI() -> 60.80039621 | AB83: =ACOS((W83*W83+Y83*Y83-X83*X83)/2/W83/Y83)*180/PI() -> 28.96795631 | AC83: =Z83 -> 90.23835682 | AD83: =ACOS((U83*U83+W83*W83-V83*V83)/2/U83/W83)*180/PI() -> 28.96124697 | AE83: =ACOS((W83*W83+X83*X83-Y83*Y83)/2/W83/X83)*180/PI() -> 61.82308967 | AF83: =ACOS((X83*X83+Y83*Y83-W83*W83)/2/X83/Y83)*180/PI() -> 89.20895402 | AG83: =180-AD83-AE83 -> 89.21566336 | AH83: =O83 -> 2300 | AI83: =P83 -> -75 | AJ83: =AH83 -> 2300 | AK83: =AI83+U83 -> 105.2775738 | AL83: =((AH83-AJ83)^2+(AI83-AK83)^2)^0.5 -> 180.2775738 | AM83: =U83-AL83 -> 0
A84: 1 | B84: =E83 -> 2400 | C84: =F83 -> 382.2775838 | D84: 0 | E84: 2400 | F84: 382.2775838 | O84: ='Hull Long'!B84 -> 2300 | P84: ='Hull Long'!C84 -> -75 | Q84: ='Hull Plan'!C84 -> 200 | R84: ='Hull Long'!B135 -> 2300 | S84: ='Hull Long'!C135 -> 25 | T84: ='Hull Plan'!C135 -> 350 | U84: =((O84-R84)^2+(S84-P84)^2+(T84-Q84)^2)^0.5+0.00001 -> 180.2775738 | V84: =((O84-O85)^2+(P84-P85)^2+(Q84-Q85)^2)^0.5 -> 100.00125 | W84: =((R84-O85)^2+(S84-P85)^2+(T84-Q85)^2)^0.5 -> 206.5193696 | X84: =((R84-R85)^2+(S84-S85)^2+(T84-T85)^2)^0.5 -> 100.0310768 | Y84: =U85 -> 182.0628985 | Z84: =ACOS((U84*U84+V84*V84-W84*W84)/2/U84/V84)*180/PI() -> 90.23835682 | AA84: =ACOS((V84*V84+W84*W84-U84*U84)/2/V84/W84)*180/PI() -> 60.80039621 | AB84: =ACOS((W84*W84+Y84*Y84-X84*X84)/2/W84/Y84)*180/PI() -> 28.96795631 | AC84: =Z84 -> 90.23835682 | AD84: =ACOS((U84*U84+W84*W84-V84*V84)/2/U84/W84)*180/PI() -> 28.96124697 | AE84: =ACOS((W84*W84+X84*X84-Y84*Y84)/2/W84/X84)*180/PI() -> 61.82308967 | AF84: =ACOS((X84*X84+Y84*Y84-W84*W84)/2/X84/Y84)*180/PI() -> 89.20895402 | AG84: =180-AD84-AE84 -> 89.21566336 | AH84: =O84 -> 2300 | AI84: =P84 -> -75 | AJ84: =AH84 -> 2300 | AK84: =AI84+U84 -> 105.2775738 | AL84: =((AH84-AJ84)^2+(AI84-AK84)^2)^0.5 -> 180.2775738 | AM84: =U84-AL84 -> 0
A85: 0 | B85: 2500.000385 | C85: 201.5839949 | D85: 0 | E85: 2500.021704 | F85: 383.6468921 | O85: ='Hull Long'!B85 -> 2400 | P85: ='Hull Long'!C85 -> -75 | Q85: ='Hull Plan'!C85 -> 199.5 | R85: ='Hull Long'!B136 -> 2400 | S85: ='Hull Long'!C136 -> 27.49310712 | T85: ='Hull Plan'!C136 -> 349.9727828 | U85: =((O85-R85)^2+(S85-P85)^2+(T85-Q85)^2)^0.5+0.00001 -> 182.0628985 | V85: =((O85-O86)^2+(P85-P86)^2+(Q85-Q86)^2)^0.5 -> 100.0112494 | W85: =((R85-O86)^2+(S85-P86)^2+(T85-Q86)^2)^0.5 -> 208.80748 | X85: =((R85-R86)^2+(S85-S86)^2+(T85-T86)^2)^0.5 -> 100.1040305 | Y85: =U86 -> 185.7339065 | Z85: =ACOS((U85*U85+V85*V85-W85*W85)/2/U85/V85)*180/PI() -> 90.71024659 | AA85: =ACOS((V85*V85+W85*W85-U85*U85)/2/V85/W85)*180/PI() -> 60.67439935 | AB85: =ACOS((W85*W85+Y85*Y85-X85*X85)/2/W85/Y85)*180/PI() -> 28.63723664 | AC85: =AC84+Z85+AA84+AB84-180 -> 90.71695593 | AD85: =ACOS((U85*U85+W85*W85-V85*V85)/2/U85/W85)*180/PI() -> 28.61535406 | AE85: =ACOS((W85*W85+X85*X85-Y85*Y85)/2/W85/X85)*180/PI() -> 62.77635172 | AF85: =ACOS((X85*X85+Y85*Y85-W85*W85)/2/X85/Y85)*180/PI() -> 88.58641164 | AG85: =180+AG84-AF84-AE85-AD85 -> 88.61500356 | AH85: =AH84+V84*SIN(AC84*PI()/180) -> 2400.000385 | AI85: =AI84+V84*COS(AC84*PI()/180) -> -75.41601512 | AJ85: =AJ84+X84*SIN(AG84*PI()/180) -> 2400.021704 | AK85: =AK84+X84*COS(AG84*PI()/180) -> 106.6468821 | AL85: =((AH85-AJ85)^2+(AI85-AK85)^2)^0.5 -> 182.0628985 | AM85: =U85-AL85 -> 0
A86: 0 | B86: 2600.003804 | C86: 200.3325626 | D86: 0 | E86: 2600.09649 | F86: 386.066446 | O86: ='Hull Long'!B86 -> 2500 | P86: ='Hull Long'!C86 -> -75 | Q86: ='Hull Plan'!C86 -> 198 | R86: ='Hull Long'!B137 -> 2500 | S86: ='Hull Long'!C137 -> 32.05157182 | T86: ='Hull Plan'!C137 -> 349.7795812 | U86: =((O86-R86)^2+(S86-P86)^2+(T86-Q86)^2)^0.5+0.00001 -> 185.7339065 | V86: =((O86-O87)^2+(P86-P87)^2+(Q86-Q87)^2)^0.5 -> 100.0312451 | W86: =((R86-O87)^2+(S86-P87)^2+(T86-Q87)^2)^0.5 -> 212.7492143 | X86: =((R86-R87)^2+(S86-S87)^2+(T86-T87)^2)^0.5 -> 100.175471 | Y86: =U87 -> 190.7826729 | Z86: =ACOS((U86*U86+V86*V86-W86*W86)/2/U86/V86)*180/PI() -> 91.17024608 | AA86: =ACOS((V86*V86+W86*W86-U86*U86)/2/V86/W86)*180/PI() -> 60.78988888 | AB86: =ACOS((W86*W86+Y86*Y86-X86*X86)/2/W86/Y86)*180/PI() -> 28.07589913 | AC86: =AC85+Z86+AA85+AB85-180 -> 91.198838 | AD86: =ACOS((U86*U86+W86*W86-V86*V86)/2/U86/W86)*180/PI() -> 28.03986504 | AE86: =ACOS((W86*W86+X86*X86-Y86*Y86)/2/W86/X86)*180/PI() -> 63.67955451 | AF86: =ACOS((X86*X86+Y86*Y86-W86*W86)/2/X86/Y86)*180/PI() -> 88.24454637 | AG86: =180+AG85-AF85-AE86-AD86 -> 88.30917238 | AH86: =AH85+V85*SIN(AC85*PI()/180) -> 2500.003804 | AI86: =AI85+V85*COS(AC85*PI()/180) -> -76.66744739 | AJ86: =AJ85+X85*SIN(AG85*PI()/180) -> 2500.09649 | AK86: =AK85+X85*COS(AG85*PI()/180) -> 109.066436 | AL86: =((AH86-AJ86)^2+(AI86-AK86)^2)^0.5 -> 185.7339065 | AM86: =U86-AL86 -> 0
A87: 0 | B87: 2700.013153 | C87: 198.2396945 | D87: 0 | E87: 2700.228344 | F87: 389.022246 | O87: ='Hull Long'!B87 -> 2600 | P87: ='Hull Long'!C87 -> -75 | Q87: ='Hull Plan'!C87 -> 195.5 | R87: ='Hull Long'!B138 -> 2600 | S87: ='Hull Long'!C138 -> 37.95456463 | T87: ='Hull Plan'!C138 -> 349.2507424 | U87: 190.7826729 | V87: 100.0612313 | W87: 217.9140419 | X87: 100.2493744 | Y87: 196.9514656 | Z87: 91.61532204 | AA87: 61.06239857 | AB87: 27.37231104 | AC87: 91.67994805 | AD87: 27.32227939 | AE87: 64.59162245 | AF87: 88.03606651 | AG87: 88.15072417 | AH87: 2600.013153 | AI87: -78.76031546 | AJ87: 2600.228344 | AK87: 112.022236 | AL87: 190.7826729 | AM87: 0
A88: 0 | B88: 2800.031376 | C88: 195.3062571 | D88: 0 | E88: 2800.425506 | F88: 392.2573283 | O88: ='Hull Long'!B88 -> 2700 | P88: ='Hull Long'!C88 -> -75 | Q88: ='Hull Plan'!C88 -> 192 | R88: ='Hull Long'!B139 -> 2700 | S88: ='Hull Long'!C139 -> 44.944857 | T88: ='Hull Plan'!C139 -> 348.2149389 | U88: 196.9514656 | V88: 100.1011988 | W88: 224.0894025 | X88: 100.3285086 | Y88: 204.0407862 | Z88: 92.04338436 | AA88: 61.44251703 | AB88: 26.57845809 | AC88: 92.15804202 | AD88: 26.51409861 | AE88: 65.49649949 | AF88: 87.92504242 | AG88: 88.10405956 | AH88: 2700.031376 | AI88: -81.69375293 | AJ88: 2700.425506 | AK88: 115.2573183 | AL88: 196.9514656 | AM88: 0
A89: 0 | B89: 2900.061579 | C89: 191.536843 | D89: 0 | E89: 2900.699091 | F89: 395.5766332 | O89: ='Hull Long'!B89 -> 2800 | P89: ='Hull Long'!C89 -> -75 | Q89: ='Hull Plan'!C89 -> 187.5 | R89: ='Hull Long'!B140 -> 2800 | S89: ='Hull Long'!C140 -> 52.87378503 | T89: ='Hull Plan'!C140 -> 346.4997908 | U89: 204.0407862 | V89: 100.1511358 | W89: 231.1101167 | X89: 100.4164211 | Y89: 211.8792018 | Z89: 92.45267859 | AA89: 61.89232832 | AB89: 25.7345445 | AC89: 92.63169573 | AD89: 25.65499308 | AE89: 66.37231851 | AF89: 87.89313698 | AG89: 88.15170554 | AH89: 2800.061579 | AI89: -85.46316704 | AJ89: 2800.699091 | AK89: 118.5766232 | AL89: 204.0407862 | AM89: 0
A90: 0 | B90: 3000.107088 | C90: 186.9383428 | D90: 0 | E90: 3001.063269 | F90: 398.8153871 | O90: ='Hull Long'!B90 -> 2900 | P90: ='Hull Long'!C90 -> -75 | Q90: ='Hull Plan'!C90 -> 182 | R90: ='Hull Long'!B141 -> 2900 | S90: ='Hull Long'!C141 -> 61.64104198 | T90: ='Hull Plan'!C141 -> 343.9321388 | U90: 211.8792018 | V90: 100.2110273 | W90: 238.8308182 | X90: 100.5175328 | Y90: 220.3138231 | Z90: 92.84146532 | AA90: 62.3823867 | AB90: 24.87235053 | AC90: 93.10003388 | AD90: 24.77614798 | AE90: 67.20022707 | AF90: 87.92742239 | AG90: 88.28219351 | AH90: 2900.107088 | AI90: -90.06166719 | AJ90: 2901.063269 | AK90: 121.8153771 | AL90: 211.8792018 | AM90: -2.842170943e-13
A91: 0 | B91: 3100.17147 | C91: 181.5189902 | D91: 0 | E91: 3101.535628 | F91: 401.8285899 | O91: ='Hull Long'!B91 -> 3000 | P91: ='Hull Long'!C91 -> -75 | Q91: ='Hull Plan'!C91 -> 175.5 | R91: ='Hull Long'!B142 -> 3000 | S91: ='Hull Long'!C142 -> 71.1729901 | T91: ='Hull Plan'!C142 -> 340.3382031 | U91: 220.3138231 | V91: 100.2808556 | W91: 247.1173795 | X91: 100.6371526 | Y91: 229.2068606 | Z91: 93.20780621 | AA91: 62.89062063 | AB91: 24.01654141 | AC91: 93.56257732 | AD91: 23.90157316 | AE91: 67.9667913 | AF91: 88.01666729 | AG91: 88.48640665 | AH91: 3000.17147 | AI91: -95.48101977 | AJ91: 3001.535628 | AK91: 124.8285799 | AL91: 220.3138231 | AM91: -3.694822226e-13
A92: 0 | B92: 3200.258536 | C92: 175.2876736 | D92: 0 | E92: 3202.137667 | F92: 404.4868312 | O92: ='Hull Long'!B92 -> 3100 | P92: ='Hull Long'!C92 -> -75 | Q92: ='Hull Plan'!C92 -> 168 | R92: ='Hull Long'!B143 -> 3100 | S92: ='Hull Long'!C143 -> 81.41257453 | T92: ='Hull Plan'!C143 -> 335.5436866 | U92: 229.2068606 | V92: 100.3605998 | W92: 255.8442359 | X92: 100.7814746 | Y92: 238.43462 | Z92: 93.54940764 | AA92: 63.40149287 | AB92: 23.18566538 | AC92: 94.01914701 | AD92: 23.04909948 | AE92: 68.66456593 | AF92: 88.14976869 | AG92: 88.75607395 | AH92: 3100.258536 | AI92: -101.7123364 | AJ92: 3102.137667 | AK92: 127.4868212 | AL92: 229.2068606 | AM92: -3.97903932e-13
A93: 0 | B93: 3300.372317 | C93: 168.2534158 | D93: 0 | E93: 3302.895391 | F93: 406.6746861 | O93: ='Hull Long'!B93 -> 3200 | P93: ='Hull Long'!C93 -> -75 | Q93: ='Hull Plan'!C93 -> 159.5 | R93: ='Hull Long'!B144 -> 3200 | S93: ='Hull Long'!C144 -> 92.31389236 | T93: ='Hull Plan'!C144 -> 329.3738493 | U93: 238.43462 | V93: 100.4502364 | W93: 264.8941607 | X93: 100.9575665 | Y93: 247.8877322 | Z93: 93.86350086 | AA93: 63.90515962 | AB93: 22.39311963 | AC93: 94.46980612 | AD93: 22.23133952 | AE93: 69.2919677 | AF93: 88.31491267 | AG93: 89.08299804 | AH93: 3200.372317 | AI93: -108.7465942 | AJ93: 3202.895391 | AK93: 129.6746761 | AL93: 238.43462 | AM93: -4.831690603e-13
A94: 0 | B94: 3400.517039 | C94: 160.4249546 | D94: 0 | E94: 3403.840027 | F94: 408.2904131 | O94: ='Hull Long'!B94 -> 3300 | P94: ='Hull Long'!C94 -> -75 | Q94: ='Hull Plan'!C94 -> 150 | R94: ='Hull Long'!B145 -> 3300 | S94: ='Hull Long'!C145 -> 103.8389696 | T94: ='Hull Plan'!C145 -> 321.6535632 | U94: 247.8877322 | V94: 100.5497389 | W94: 274.159256 | X94: 101.1733475 | Y94: 257.4721706 | Z94: 94.14674552 | AA94: 64.39664213 | AB94: 21.648082 | AC94: 94.91483089 | AD94: 21.45661235 | AE94: 69.85289028 | AF94: 88.49902772 | AG94: 89.45858274 | AH94: 3300.517039 | AI94: -116.5750554 | AJ94: 3303.840027 | AK94: 131.2904031 | AL94: 247.8877322 | AM94: -6.821210263e-13
A95: 0 | B95: =AH95+$H$59 -> 3500.697071 | C95: =AI95+$I$59 -> 151.8103736 | D95: 0 | E95: =AJ95+$H$59 -> 3505.008858 | F95: =AK95+$I$59 -> 409.2464378 | O95: ='Hull Long'!B95 -> 3400 | P95: ='Hull Long'!C95 -> -75 | Q95: ='Hull Plan'!C95 -> 139.5 | R95: ='Hull Long'!B146 -> 3400 | S95: ='Hull Long'!C146 -> 115.9557098 | T95: ='Hull Plan'!C146 -> 312.2073548 | U95: 257.4721706 | V95: 100.6590781 | W95: 283.542647 | X95: 101.4375574 | Y95: 267.1108801 | Z95: 94.39514806 | AA95: 64.87506651 | AB95: 20.95635796 | AC95: 95.35470308 | AD95: 20.72978543 | AE95: 70.35626708 | AF95: 88.68737496 | AG95: 89.87350251 | AH95: 3400.697071 | AI95: -125.1896364 | AJ95: 3405.008858 | AK95: 132.2464278 | AL95: 257.4721706 | AM95: -8.526512829e-13
A96: 0 | B96: 3600.916879 | C96: 142.4167464 | D96: 0 | E96: 3606.446168 | F96: 409.4703912 | O96: ='Hull Long'!B96 -> 3500 | P96: ='Hull Long'!C96 -> -75 | Q96: ='Hull Plan'!C96 -> 128 | R96: ='Hull Long'!B147 -> 3500 | S96: ='Hull Long'!C147 -> 128.636517 | T96: ='Hull Plan'!C147 -> 300.8594396 | U96: 267.1108801 | V96: 100.7782219 | W96: 292.9606678 | X96: 101.7597126 | Y96: 276.7459531 | Z96: 94.60399036 | AA96: 65.34301373 | AB96: 20.32110109 | AC96: 95.79011791 | AD96: 20.05299591 | AE96: 70.81567796 | AF96: 88.86322096 | AG96: 90.31745368 | AH96: 3500.916879 | AI96: -134.5832636 | AJ96: 3506.446168 | AK96: 132.4703812 | AL96: 267.1108801 | AM96: -1.023181539e-12
A97: 0 | B97: 3701.180943 | C97: 132.2497653 | D97: 0 | E97: 3708.204319 | F97: 408.906583 | O97: ='Hull Long'!B97 -> 3600 | P97: ='Hull Long'!C97 -> -75 | Q97: ='Hull Plan'!C97 -> 115.5 | R97: ='Hull Long'!B148 -> 3600 | S97: ='Hull Long'!C148 -> 141.8573324 | T97: ='Hull Plan'!C148 -> 287.43375 | U97: 276.7459531 | V97: 100.8061616 | W97: 302.3038149 | X97: 102.0476836 | Y97: 286.3317649 | Z97: 94.76759495 | AA97: 65.82360417 | AB97: 19.72560871 | AC97: 96.22182767 | AD97: 19.40880088 | AE97: 71.26665629 | AF97: 89.007735 | AG97: 90.77877555 | AH97: 3601.180943 | AI97: -144.7502447 | AJ97: 3608.204319 | AK97: 131.906573 | AL97: 276.7459531 | AM97: -1.193711796e-12
A98: 0 | B98: 3801.39333 | C98: 121.3245867 | D98: 0 | E98: 3810.242576 | F98: 407.5195735 | O98: ='Hull Long'!B98 -> 3699.9 | P98: ='Hull Long'!C98 -> -75 | Q98: ='Hull Plan'!C98 -> 102.0139995 | R98: ='Hull Long'!B149 -> 3699.9 | S98: ='Hull Long'!C149 -> 155.5829454 | T98: ='Hull Plan'!C149 -> 271.7708232 | U98: 286.3317649 | V98: 0.201950489 | W98: 286.348426 | X98: 0.2047461061 | Y98: 286.3509041 | Z98: 94.7121756 | AA98: 85.24755248 | AB98: 0.04096470191 | AC98: 96.48321615 | AD98: 0.04027192176 | AE98: 90.67302633 | AF98: 89.28600897 | AG98: 91.05774231 | AH98: 3701.39333 | AI98: -155.6754233 | AJ98: 3710.242576 | AK98: 130.5195635 | AL98: 286.3317649 | AM98: -1.421085472e-12
A99: 0 | B99: 3801.593989 | C99: 121.301784 | D99: 0 | E99: 3810.447287 | F99: 407.5157938 | O99: ='Hull Long'!B99 -> 3700.1 | P99: ='Hull Long'!C99 -> -75 | Q99: ='Hull Plan'!C99 -> 101.9859995 | R99: ='Hull Long'!B150 -> 3700.1 | S99: ='Hull Long'!C150 -> 155.6109304 | T99: ='Hull Plan'!C150 -> 271.7370918 | U99: 286.3509041 | V99: 202.1365137 | W99: 364.7414387 | X99: 205.6801547 | Y99: 305.3978509 | Z99: 95.04512031 | AA99: 51.44751433 | AB99: 34.31843682 | AC99: 96.81685365 | AD99: 33.50736535 | AE99: 56.83817707 | AF99: 88.84338611 | AG99: 91.42619091 | AH99: 3701.593989 | AI99: -155.698226 | AJ99: 3710.447287 | AK99: 130.5157838 | AL99: 286.3509041 | AM99: -1.47792889e-12
A100: 0 | B100: 4002.301527 | C100: 97.30897915 | D100: 0 | E100: 4016.063726 | F100: 402.3965882 | O100: ='Hull Long'!B100 -> 3900 | P100: ='Hull Long'!C100 -> -75 | Q100: ='Hull Plan'!C100 -> 72 | R100: ='Hull Long'!B151 -> 3900 | S100: ='Hull Long'!C151 -> 184.558856 | T100: ='Hull Plan'!C151 -> 232.9255776 | U100: 305.3978509 | V100: 101.352109 | W100: 329.9251965 | X100: 103.8416955 | Y100: 314.9274309 | Z100: 94.92114876 | AA100: 67.25661397 | AB100: 18.34256382 | AC100: 97.50395355 | AD100: 17.82223728 | AE100: 72.63138939 | AF100: 89.02604679 | AG100: 92.12917813 | AH100: 3902.301527 | AI100: -179.6910309 | AJ100: 3916.063726 | AK100: 125.3965782 | AL100: 305.3978509 | AM100: -2.455635695e-11
A101: 0 | B101: 4102.785641 | C101: 84.07294059 | D101: 0 | E101: 4119.833729 | F101: 398.5385976 | O101: ='Hull Long'!B101 -> 4000 | P101: ='Hull Long'!C101 -> -75 | Q101: ='Hull Plan'!C101 -> 55.5 | R101: ='Hull Long'!B152 -> 4000 | S101: ='Hull Long'!C152 -> 199.7488482 | T101: ='Hull Plan'!C152 -> 209.4231978 | U101: 314.9274309 | V101: 101.5197025 | W101: 338.9289635 | X101: 104.6186743 | Y101: 324.5626818 | Z101: 94.83301972 | AA101: 67.80149405 | AB101: 17.97533215 | AC101: 97.93615106 | AD101: 17.36548623 | AE101: 73.21702742 | AF101: 88.80764043 | AG101: 92.52061769 | AH101: 4002.785641 | AI101: -192.9270694 | AJ101: 4019.833729 | AK101: 121.5385876 | AL101: 314.9274309 | AM101: -3.61524144e-11
A102: 0 | B102: 4203.333043 | C102: 70.0561675 | D102: 0 | E102: 4224.351181 | F102: 393.9375845 | O102: ='Hull Long'!B102 -> 4100 | P102: ='Hull Long'!C102 -> -75 | Q102: ='Hull Plan'!C102 -> 38 | R102: ='Hull Long'!B153 -> 4100 | S102: ='Hull Long'!C153 -> 215.392439 | T102: ='Hull Plan'!C153 -> 182.9591641 | U102: 324.5626818 | V102: 101.6968534 | W102: 347.9176152 | X102: 105.5227438 | Y102: 334.4331231 | Z102: 94.66028399 | AA102: 68.40180831 | AB102: 17.64895467 | AC102: 98.37326125 | AD102: 16.9379077 | AE102: 73.92113631 | AF102: 88.42990903 | AG102: 92.85393325 | AH102: 4103.333043 | AI102: -206.9438425 | AJ102: 4124.351181 | AK102: 116.9375745 | AL102: 324.5626818 | AM102: -4.780531526e-11
A103: 0 | B103: 4303.945849 | C103: 55.24693544 | D103: 0 | E103: 4329.743046 | F103: 388.6836138 | O103: ='Hull Long'!B103 -> 4200 | P103: ='Hull Long'!C103 -> -75 | Q103: ='Hull Plan'!C103 -> 19.5 | R103: ='Hull Long'!B154 -> 4200 | S103: ='Hull Long'!C154 -> 231.4768382 | T103: ='Hull Plan'!C154 -> 153.3560972 | U103: 334.4331231 | V103: 101.8835119 | W103: 356.9960013 | X103: 106.5663988 | Y103: 344.7138886 | Z103: 94.3934667 | AA103: 69.07442841 | AB103: 17.35560464 | AC103: 98.81749092 | AD103: 16.5321049 | AE103: 74.78006702 | AF103: 87.86432834 | AG103: 93.11185231 | AH103: 4203.945849 | AI103: -221.7530746 | AJ103: 4229.743046 | AK103: 111.6836038 | AL103: 334.4331231 | AM103: -5.934452929e-11
A104: 0 | B104: 4404.625264 | C104: 39.62946561 | D104: 0 | E104: 4436.152308 | F104: 382.8986173 | O104: ='Hull Long'!B104 -> 4300 | P104: ='Hull Long'!C104 -> -75 | Q104: ='Hull Plan'!C104 -> 0 | R104: ='Hull Long'!B155 -> 4300 | S104: ='Hull Long'!C155 -> 247.9902802 | T104: ='Hull Plan'!C155 -> 120.4364438 | U104: 344.7138886 | V104: 160.0781059 | W104: 252.3986689 | X104: 107.7620339 | Y104: 230.7622225 | Z104: 42.97433595 | AA104: 111.4098837 | AB104: 25.2669173 | AC104: 48.22185992 | AD104: 25.61578032 | AE104: 66.06813764 | AF104: 88.66494506 | AG104: 93.563606 | AH104: 4304.625264 | AI104: -237.3705444 | AJ104: 4336.152308 | AK104: 105.8986073 | AL104: 344.7138886 | AM104: -7.094058674e-11
A105: 0 | B105: 4524.000349 | C105: 146.2811839 | D105: 0 | E105: 4543.705975 | F105: 376.2004994 | O105: ='Hull Long'!B105 -> 4400 | P105: ='Hull Long'!C105 -> 50 | Q105: ='Hull Plan'!C105 -> 0 | R105: ='Hull Long'!B156 -> 4400 | S105: ='Hull Long'!C156 -> 264.9218944 | T105: ='Hull Plan'!C156 -> 84.02248517 | U105: 230.7622225 | V105: 160.0781059 | W105: 158.5740367 | X105: 109.1217845 | Y105: 115.9114099 | Z105: 43.34221138 | AA105: 92.80050902 | AB105: 43.481723 | AC105: 48.24087233 | AD105: 43.8572796 | AE105: 46.96513817 | AF105: 89.55313883 | AG105: 94.07624317 | AH105: 4424.000349 | AI105: -130.7188261 | AJ105: 4443.705975 | AK105: 99.20048937 | AL105: 230.7622225 | AM105: -8.321876521e-11
A106: 0 | B106: 4643.410818 | C106: 252.8932841 | D106: 0 | E106: 4652.551719 | F106: 368.4437012 | O106: ='Hull Long'!B106 -> 4500 | P106: ='Hull Long'!C106 -> 175 | Q106: ='Hull Plan'!C106 -> 0 | R106: ='Hull Long'!B157 -> 4500 | S106: ='Hull Long'!C157 -> 282.2615969 | T106: ='Hull Plan'!C157 -> 43.9363457 | U106: 115.9114099 | V106: 160.0781059 | W106: 110.6573695 | X106: 110.6573695 | Y106: 1e-05 | Z106: 43.73068408 | AA106: 46.39329401 | AB106: 89.99999741 | AC106: 48.25378843 | AD106: 89.87602191 | AE106: 5.122641878e-06 | AF106: 89.99999741 | AG106: 94.64707731 | AH106: 4543.410818 | AI106: -24.10672587 | AJ106: 4552.551719 | AK106: 91.44369123 | AL106: 115.9114099 | AM106: -9.561063052e-11
A107: 0 | B107: 4762.845317 | C107: 359.4784632 | D107: 0 | E107: 4762.845318 | F107: 359.478473 | O107: ='Hull Long'!B107 -> 4600 | P107: ='Hull Long'!C107 -> 300 | Q107: ='Hull Plan'!C107 -> 0 | R107: ='Hull Long'!B158 -> 4600 | S107: ='Hull Long'!C158 -> 300 | T107: ='Hull Plan'!C158 -> 0 | U107: 1e-05 | V107: 160.0781059 | W107: 160.0781059 | X107: 160.0781059 | Y107: 1e-05 | Z107: 89.99999824 | AA107: 3.622254811e-06 | AB107: 89.99999824 | AC107: 94.64707809 | AD107: 89.99999824 | AE107: 3.622254811e-06 | AF107: 89.99999824 | AG107: 94.64707804 | AH107: 4662.845317 | AI107: 82.47845316 | AJ107: 4662.845318 | AK107: 82.47846302 | AL107: 9.893647672e-06 | AM107: 1.063523275e-07
A108: 0 | B108: 4922.39719 | C108: 346.5092683 | D108: 0 | E108: 4922.397191 | F108: 346.5092783 | O108: ='Hull Long'!B108 -> 4700 | P108: ='Hull Long'!C108 -> 425 | Q108: ='Hull Plan'!C108 -> 0 | R108: ='Hull Long'!B159 -> 4700 | S108: ='Hull Long'!C159 -> 425 | T108: ='Hull Plan'!C159 -> 0 | U108: 1e-05 | AH108: 4822.39719 | AI108: 69.50925828 | AJ108: 4822.397191 | AK108: 69.50926827 | AL108: 1.003087219e-05 | AM108: -3.087218829e-08
A109: 0 | B109: 0 | C109: 0 | D109: 0 | E109: 0 | F109: 0 | O109: X0 | P109: Z0 | Q109: Y0 | R109: X1 | S109: Z1 | T109: Y1 | U109: F | V109: L | W109: D | X109: U | Y109: F' | Z109: A1 | AA109: A2 | AB109: A3 | AC109: A | AD109: B1 | AE109: B2 | AF109: B3 | AG109: B | AH109: XA | AI109: YA | AJ109: XB | AK109: YB | AL109: Check F | AM109: Error F
A110: 0 | B110: =(AH110+$H$110-$H$111)*COS(RADIANS($J$110))+$H$112+(AI110+$I$110-$I$111)*SIN(RADIANS($J$110)) -> 2510.220158 | C110: =(AI110+$I$110-$I$111)*COS(RADIANS($J$110))+$I$112-(AH110+$H$110-$H$111)*SIN(RADIANS($J$110)) -> 373.699734 | D110: 0 | E110: =(AJ110+$H$110-$H$111)*COS(RADIANS($J$110))+$H$112+(AK110+$I$110-$I$111)*SIN(RADIANS($J$110)) -> 2510.220158 | F110: =(AK110+$I$110-$I$111)*COS(RADIANS($J$110))+$I$112-(AJ110+$H$110-$H$111)*SIN(RADIANS($J$110)) -> 373.699724 | G110: Top Side Plank | H110: =-2290*Basic!$D$2 -> -2290 | I110: =161*Basic!$D$2-AI134+AK83+I59 -> 518.2775838 | J110: 172.4 | O110: ='Hull Long'!B110 -> -100 | P110: ='Hull Long'!C110 -> 425 | Q110: ='Hull Plan'!C110 -> 0 | R110: ='Hull Long'!B161 -> -100 | S110: ='Hull Long'!C161 -> 425 | T110: ='Hull Plan'!C161 -> 0 | U110: =((O110-R110)^2+(S110-P110)^2+(T110-Q110)^2)^0.5+0.00001 -> 1e-05 | AH110: =AH111-V111*SIN(AC111*PI()/180) -> -155.8293208 | AI110: =AI111+V111*COS(AC111*PI()/180) -> 523.758293 | AJ110: =AJ111-X111*SIN(AG111*PI()/180) -> -155.8293186 | AK110: =AK111+X111*COS(AG111*PI()/180) -> 523.7583028 | AL110: =((AH110-AJ110)^2+(AI110-AK110)^2)^0.5 -> 1.004449798e-05 | AM110: =U110-AL110 -> -4.449798262e-08
A111: 2 | B111: =(AH111+$H$110-$H$111)*COS(RADIANS($J$110))+$H$112+(AI111+$I$110-$I$111)*SIN(RADIANS($J$110)) -> 2350.819829 | C111: =(AI111+$I$110-$I$111)*COS(RADIANS($J$110))+$I$112-(AH111+$H$110-$H$111)*SIN(RADIANS($J$110)) -> 388.414865 | D111: 2 | E111: =(AJ111+$H$110-$H$111)*COS(RADIANS($J$110))+$H$112+(AK111+$I$110-$I$111)*SIN(RADIANS($J$110)) -> 2350.819828 | F111: =(AK111+$I$110-$I$111)*COS(RADIANS($J$110))+$I$112-(AJ111+$H$110-$H$111)*SIN(RADIANS($J$110)) -> 388.4148551 | H111: =AH134+$H$110 -> 10 | I111: =AI134+$I$110 -> 543.2775838 | O111: ='Hull Long'!B111 -> 0 | P111: ='Hull Long'!C111 -> 300 | Q111: ='Hull Plan'!C111 -> 0 | R111: ='Hull Long'!B162 -> 0 | S111: ='Hull Long'!C162 -> 300 | T111: ='Hull Plan'!C162 -> 0 | U111: 1e-05 | V111: =((O111-O110)^2+(P111-P110)^2+(Q111-Q110)^2)^0.5 -> 160.0781059 | W111: =((R111-O110)^2+(S111-P110)^2+(T111-Q110)^2)^0.5 -> 160.0781059 | X111: =((R111-R110)^2+(S111-S110)^2+(T111-T110)^2)^0.5 -> 160.0781059 | Y111: =U110 -> 1e-05 | Z111: =ACOS((U111*U111+V111*V111-W111*W111)/2/U111/V111)*180/PI() -> 89.99999824 | AA111: =ACOS((V111*V111+W111*W111-U111*U111)/2/V111/W111)*180/PI() -> 3.622254811e-06 | AB111: =ACOS((W111*W111+Y111*Y111-X111*X111)/2/W111/Y111)*180/PI() -> 89.99999824 | AC111: =AC112+Z111+AA112+AB112-180 -> 77.12565694 | AD111: =ACOS((U111*U111+W111*W111-V111*V111)/2/U111/W111)*180/PI() -> 89.99999824 | AE111: =ACOS((W111*W111+X111*X111-Y111*Y111)/2/W111/X111)*180/PI() -> 3.622254811e-06 | AF111: =ACOS((X111*X111+Y111*Y111-W111*W111)/2/X111/Y111)*180/PI() -> 89.99999824 | AG111: =180+AG112-AF112-AE111-AD111 -> 77.12565689 | AH111: 0.2245924018 | AI111: 488.0907143 | AJ111: 0.2245946086 | AK111: 488.090724 | AL111: 9.904077762e-06 | AM111: 9.592223779e-08
A112: 2 | B112: =(AH112+$H$110-$H$111)*COS(RADIANS($J$110))+$H$112+(AI112+$I$110-$I$111)*SIN(RADIANS($J$110)) -> 2245.471125 | C112: =(AI112+$I$110-$I$111)*COS(RADIANS($J$110))+$I$112-(AH112+$H$110-$H$111)*SIN(RADIANS($J$110)) -> 422.277881 | D112: 2 | E112: =(AJ112+$H$110-$H$111)*COS(RADIANS($J$110))+$H$112+(AK112+$I$110-$I$111)*SIN(RADIANS($J$110)) -> 2248.700273 | F112: =(AK112+$I$110-$I$111)*COS(RADIANS($J$110))+$I$112-(AJ112+$H$110-$H$111)*SIN(RADIANS($J$110)) -> 397.8420811 | H112: =AH134+$H$110 -> 10 | I112: =AI134+$I$110 -> 543.2775838 | O112: ='Hull Long'!B112 -> 100 | P112: ='Hull Long'!C112 -> 282.2615969 | Q112: ='Hull Plan'!C112 -> 43.9363457 | R112: ='Hull Long'!B163 -> 100 | S112: ='Hull Long'!C163 -> 291.9370895 | T112: ='Hull Plan'!C163 -> 21.26654064 | U112: 24.64823953 | V112: 110.6573695 | W112: 102.5537726 | X112: 102.5537726 | Y112: 1e-05 | Z112: 64.65273344 | AA112: 12.54501001 | AB112: 89.99999721 | AC112: 64.58065149 | AD112: 102.8022566 | AE112: 5.533085615e-06 | AF112: 89.99999721 | AG112: 77.12565596 | AH112: 100.1692653 | AI112: 440.5921272 | AJ112: 100.2002745 | AK112: 465.2403473 | AL112: 24.64823953 | AM112: -3.46187079e-10
A113: 2 | B113: 2140.613806 | C113: 452.4856061 | D113: 2 | E113: 2146.705607 | F113: 406.3371928 | O113: ='Hull Long'!B113 -> 200 | P113: ='Hull Long'!C113 -> 264.9218944 | Q113: ='Hull Plan'!C113 -> 84.02248517 | R113: ='Hull Long'!B164 -> 200 | S113: ='Hull Long'!C164 -> 284.0554065 | T113: ='Hull Plan'!C164 -> 41.5879017 | U113: 46.54874963 | V113: 109.1217845 | W113: 100.0436552 | X113: 102.3478316 | Y113: 24.64823953 | Z113: 66.40932342 | AA113: 25.2392836 | AB113: 88.35948389 | AC113: 66.32915056 | AD113: 88.35139298 | AE113: 13.92959679 | AF113: 77.71091932 | AG113: 77.63883737 | AH113: 200.110304 | AI113: 396.7817102 | AJ113: 200.1754388 | AK113: 443.3304143 | AL113: 46.54874963 | AM113: -3.025562023e-10
A114: 2 | B114: 2036.221751 | C114: 479.2242422 | D114: 2 | E114: 2044.835558 | F114: 413.8976628 | O114: ='Hull Long'!B114 -> 300 | P114: ='Hull Long'!C114 -> 247.9902802 | Q114: ='Hull Plan'!C114 -> 120.4364438 | R114: ='Hull Long'!B165 -> 300 | S114: ='Hull Long'!C165 -> 276.3592183 | T114: ='Hull Plan'!C165 -> 60.96408318 | U114: 65.89203017 | V114: 107.7620339 | W114: 103.2593932 | X114: 102.1502214 | Y114: 46.54874963 | Z114: 68.12176152 | AA114: 36.31061928 | AB114: 75.57589446 | AC114: 68.03331341 | AD114: 75.56761921 | AE114: 26.18846087 | AF114: 78.23564466 | AG114: 78.15547181 | AH114: 300.0489764 | AI114: 356.4714422 | AJ114: 300.1506946 | AK114: 422.3633939 | AL114: 65.89203017 | AM114: -2.588791403e-10
A115: 2 | B115: 1932.268711 | C115: 502.6797918 | D115: 2 | E115: 1943.089898 | F115: 420.5206752 | O115: ='Hull Long'!B115 -> 400 | P115: ='Hull Long'!C115 -> 231.4768382 | Q115: ='Hull Plan'!C115 -> 153.3560972 | R115: ='Hull Long'!B166 -> 400 | S115: ='Hull Long'!C166 -> 268.8531083 | T115: ='Hull Plan'!C166 -> 79.39508507 | U115: 82.86868251 | V115: 106.5663988 | W115: 110.0892852 | X115: 101.9609902 | Y115: 65.89203017 | Z115: 69.78169064 | AA115: 44.93942203 | AB115: 65.28719363 | AC115: 69.68493624 | AD115: 65.27888733 | AE115: 35.94870437 | AF115: 78.76410201 | AG115: 78.6756539 | AH115: 399.9866989 | AI115: 319.4734831 | AJ115: 400.1266377 | AK115: 402.3420474 | AL115: 82.86868251 | AM115: -2.152376055e-10
A116: 2 | B116: 1828.728367 | C116: 523.0377546 | D116: 2 | E116: 1841.468466 | F116: 426.2031444 | O116: ='Hull Long'!B116 -> 500 | P116: ='Hull Long'!C116 -> 215.392439 | Q116: ='Hull Plan'!C116 -> 182.9591641 | R116: ='Hull Long'!B167 -> 500 | S116: ='Hull Long'!C167 -> 261.5420177 | T116: ='Hull Plan'!C167 -> 96.88090737 | U116: 97.66909364 | V116: 105.5227438 | W116: 118.7154669 | X116: 101.7801848 | Y116: 82.86868251 | Z116: 71.38137047 | AA116: 51.22933764 | AB116: 57.39743431 | AC116: 71.27647364 | AD116: 57.38929188 | AE116: 43.30634473 | AF116: 79.29622096 | AG116: 79.19946656 | AH116: 499.9250261 | AI116: 285.6004818 | AJ116: 500.1038381 | AK116: 383.2694118 | AL116: 97.66909364 | AM116: -1.717097575e-10
A117: 2 | B117: 1725.574403 | C117: 540.4827183 | D117: 2 | E117: 1739.971171 | F117: 430.9417598 | O117: ='Hull Long'!B117 -> 600 | P117: ='Hull Long'!C117 -> 199.7488482 | Q117: ='Hull Plan'!C117 -> 209.4231978 | R117: ='Hull Long'!B168 -> 600 | S117: ='Hull Long'!C168 -> 254.4312946 | T117: ='Hull Plan'!C168 -> 113.4215501 | U117: 110.4829785 | V117: 104.6186743 | W117: 127.904308 | X117: 101.6078503 | Y117: 97.66909364 | Z117: 72.91383467 | AA117: 55.65643838 | AB117: 51.43746422 | AC117: 72.80120057 | AD117: 51.42972695 | AE117: 48.73067235 | AF117: 79.83186343 | AG117: 79.7269666 | AH117: 599.8656302 | AI117: 254.6659918 | AJ117: 600.0828214 | AK117: 365.1487568 | AL117: 110.4829785 | AM117: -1.281250661e-10
A118: 2 | B118: 1622.780612 | C118: 555.1978181 | D118: 2 | E118: 1638.598013 | F118: 434.7330598 | O118: ='Hull Long'!B118 -> 700 | P118: ='Hull Long'!C118 -> 184.558856 | Q118: ='Hull Plan'!C118 -> 232.9255776 | R118: ='Hull Long'!B169 -> 700 | S118: ='Hull Long'!C169 -> 247.5267527 | T118: ='Hull Plan'!C169 -> 129.0170132 | U118: 121.498758 | V118: 103.8416955 | W118: 136.9229078 | X118: 101.4440297 | Y118: 110.4829785 | Z118: 74.37303873 | AA118: 58.71021484 | AB118: 46.92378869 | AC118: 74.25336237 | AD118: 46.91674643 | AE118: 52.70540939 | AF118: 80.37080191 | AG118: 80.25816782 | AH118: 699.8102677 | AI118: 226.4850204 | AJ118: 700.0640476 | AK118: 347.9835134 | AL118: 121.498758 | AM118: -8.461142897e-11
A119: 2 | B119: 1418.279812 | C119: 577.1921156 | D119: 2 | E119: 1436.326635 | F119: 439.4989939 | O119: ='Hull Long'!B119 -> 899.9 | P119: ='Hull Long'!C119 -> 155.6109304 | Q119: ='Hull Plan'!C119 -> 271.7370918 | R119: ='Hull Long'!B170 -> 899.9 | S119: ='Hull Long'!C170 -> 234.3686047 | T119: ='Hull Plan'!C170 -> 157.3591678 | U119: 138.8707441 | V119: 205.6801547 | W119: 219.4340524 | X119: 202.3275181 | Y119: 121.498758 | Z119: 76.39442917 | AA119: 37.95914911 | AB119: 65.65980542 | AC119: 76.26136911 | AD119: 65.64642172 | AE119: 33.17027614 | AF119: 81.16991843 | AG119: 81.05024208 | AH119: 899.6057516 | AI119: 177.6373935 | AJ119: 899.9282558 | AK119: 316.507763 | AL119: 138.8707441 | AM119: 2.529532139e-12
A120: 2 | B120: 1418.075798 | C120: 577.2094133 | D120: 2 | E120: 1436.12451 | F120: 439.501772 | O120: ='Hull Long'!B120 -> 900.1 | P120: ='Hull Long'!C120 -> 155.5829454 | Q120: ='Hull Plan'!C120 -> 271.7708232 | R120: ='Hull Long'!B171 -> 900.1 | S120: ='Hull Long'!C171 -> 234.3558843 | T120: ='Hull Plan'!C171 -> 157.3856328 | U120: 138.8853861 | V120: 0.2047461061 | W120: 138.8418667 | X120: 0.2021440288 | Y120: 138.8707441 | Z120: 77.68672245 | AA120: 102.2307287 | AB120: 0.08255448347 | AC120: 77.55365673 | AD120: 0.08254881743 | AE120: 98.17183813 | AF120: 81.74560739 | AG120: 81.61254733 | AH120: 899.8056858 | AI120: 177.5932655 | AJ120: 900.1282378 | AK120: 316.478277 | AL120: 138.8853861 | AM120: 2.557953849e-12
A121: 2 | B121: 1316.311094 | C121: 584.8037994 | D121: 2 | E121: 1335.225834 | F121: 440.4341878 | O121: ='Hull Long'!B121 -> 1000 | P121: ='Hull Long'!C121 -> 141.8573324 | Q121: ='Hull Plan'!C121 -> 287.43375 | R121: ='Hull Long'!B172 -> 1000 | S121: ='Hull Long'!C172 -> 228.1169693 | T121: ='Hull Plan'!C172 -> 170.1323251 | U121: 145.6034071 | V121: 102.0476836 | W121: 159.9111594 | X121: 100.9029842 | Y121: 138.8853861 | Z121: 78.26794983 | AA121: 63.06300994 | AB121: 38.67182051 | AC121: 78.13210382 | AD121: 38.66904023 | AE121: 59.32457527 | AF121: 82.00360422 | AG121: 81.8705385 | AH121: 999.672036 | AI121: 156.6065596 | AJ121: 1000.017256 | AK121: 302.2095574 | AL121: 145.6034071 | AM121: 2.302158464e-12
A122: 2 | B122: 1214.704173 | C122: 590.3780877 | D122: 2 | E122: 1234.351153 | F122: 440.4081676 | O122: ='Hull Long'!B122 -> 1100 | P122: ='Hull Long'!C122 -> 128.636517 | Q122: ='Hull Plan'!C122 -> 300.8594396 | R122: ='Hull Long'!B173 -> 1100 | S122: ='Hull Long'!C173 -> 222.1075077 | T122: ='Hull Plan'!C173 -> 181.9470699 | U122: 151.2513828 | V122: 101.7597126 | W122: 166.0347262 | X122: 100.8746838 | Y122: 145.6034071 | Z122: 79.39623216 | AA122: 63.56063518 | AB122: 37.04369222 | AC122: 79.25982659 | AD122: 37.04313266 | AE122: 60.40568261 | AF122: 82.55062517 | AG122: 82.41477917 | AH122: 1099.64916 | AI122: 137.6430737 | AJ122: 1100.009248 | AK122: 288.8940279 | AL122: 151.2513828 | AM122: 2.188471626e-12
A123: 2 | B123: 1113.334367 | C123: 594.0848965 | D123: 2 | E123: 1133.601981 | F123: 439.4204851 | O123: ='Hull Long'!B123 -> 1200 | P123: ='Hull Long'!C123 -> 115.9557098 | Q123: ='Hull Plan'!C123 -> 312.2073548 | R123: ='Hull Long'!B174 -> 1200 | S123: ='Hull Long'!C174 -> 216.3435045 | T123: ='Hull Plan'!C174 -> 192.8166352 | U123: 155.9867185 | V123: 101.4375574 | W123: 171.3644165 | X123: 100.7540132 | Y123: 151.2513828 | Z123: 80.44014375 | AA123: 63.84723262 | AB123: 35.71057427 | AC123: 80.30578755 | AD123: 35.71262363 | AE123: 61.19134582 | AF123: 83.09807991 | AG123: 82.96167435 | AH123: 1199.638238 | AI123: 120.5620226 | AJ123: 1200.00402 | AK123: 276.5483123 | AL123: 155.9867185 | AM123: 1.98951966e-12
A124: 2 | B124: 1012.180628 | C124: 596.0767153 | D124: 2 | E124: 1032.978802 | F124: 437.4703662 | O124: ='Hull Long'!B124 -> 1300 | P124: ='Hull Long'!C124 -> 103.8389696 | Q124: ='Hull Plan'!C124 -> 321.6535632 | R124: ='Hull Long'!B175 -> 1300 | S124: ='Hull Long'!C175 -> 210.8358953 | T124: ='Hull Plan'!C175 -> 202.7410208 | U124: 159.9641773 | V124: 101.1733475 | W124: 176.0259295 | X124: 100.6420746 | Y124: 155.9867185 | Z124: 81.40131918 | AA124: 63.96667683 | AB124: 34.62703266 | AC124: 81.2719343 | AD124: 34.63200399 | AE124: 61.72833416 | AF124: 83.64463318 | AG124: 83.51027698 | AH124: 1299.639965 | AI124: 105.2094725 | AJ124: 1300.001195 | AK124: 265.173242 | AL124: 159.9641773 | AM124: 1.705302566e-12
A125: 2 | B125: 911.2239285 | C125: 596.4951908 | D125: 2 | E125: 932.4820894 | F125: 434.5582218 | O125: ='Hull Long'!B125 -> 1400 | P125: ='Hull Long'!C125 -> 92.31389236 | Q125: ='Hull Plan'!C125 -> 329.3738493 | R125: ='Hull Long'!B176 -> 1400 | S125: ='Hull Long'!C176 -> 205.5972238 | T125: ='Hull Plan'!C176 -> 211.7202268 | U125: 163.3263339 | V125: 100.9575665 | W125: 180.1113009 | X125: 100.5388971 | Y125: 159.9641773 | Z125: 82.28380613 | AA125: 63.97424796 | AB125: 33.73386247 | AC125: 82.1625047 | AD125: 33.74194591 | AE125: 62.07692817 | AF125: 84.18920937 | AG125: 84.05982449 | AH125: 1399.654468 | AI125: 91.44250452 | AJ125: 1400.000248 | AK125: 254.7684723 | AL125: 163.3263339 | AM125: 1.47792889e-12
A126: 2 | B126: 810.4476794 | C126: 595.4689156 | D126: 2 | E126: 832.1122613 | F126: 430.6856734 | O126: ='Hull Long'!B126 -> 1500 | P126: ='Hull Long'!C126 -> 81.41257453 | Q126: ='Hull Plan'!C126 -> 335.5436866 | R126: ='Hull Long'!B177 -> 1500 | S126: ='Hull Long'!C177 -> 200.6420793 | T126: ='Hull Plan'!C177 -> 219.7542533 | U126: 166.2012966 | V126: 100.7814746 | W126: 183.7156823 | X126: 100.4445073 | Y126: 163.3263339 | Z126: 83.09356053 | AA126: 63.90961681 | AB126: 32.98561884 | AC126: 82.98346292 | AD126: 32.99682266 | AE126: 62.28354446 | AF126: 84.73083669 | AG126: 84.60953527 | AH126: 1499.681184 | AI126: 79.13146152 | AJ126: 1500.00055 | AK126: 245.3324513 | AL126: 166.2012966 | AM126: 1.307398634e-12
A127: 2 | B127: 709.8381529 | C127: 593.1110228 | D127: 2 | E127: 731.8696436 | F127: 425.8553124 | O127: ='Hull Long'!B127 -> 1600 | P127: ='Hull Long'!C127 -> 71.1729901 | Q127: ='Hull Plan'!C127 -> 340.3382031 | R127: ='Hull Long'!B178 -> 1600 | S127: ='Hull Long'!C178 -> 195.9877228 | T127: ='Hull Plan'!C178 -> 226.8431002 | U127: 168.7005016 | V127: 100.6371526 | W127: 186.9312228 | X127: 100.3589298 | Y127: 166.2012966 | Z127: 83.8385495 | AA127: 63.80026552 | AB127: 32.34709425 | AC127: 83.74254263 | AD127: 32.36118497 | AE127: 62.38404749 | AF127: 85.26885826 | AG127: 85.15876066 | AH127: 1599.718756 | AI127: 68.16238867 | AJ127: 1600.001437 | AK127: 236.8626534 | AL127: 168.7005016 | AM127: 9.947598301e-13
A128: 2 | B128: 609.3849103 | C128: 589.5165172 | D128: 2 | E128: 631.7544732 | F128: 420.070019 | O128: ='Hull Long'!B128 -> 1700 | P128: ='Hull Long'!C128 -> 61.64104198 | Q128: ='Hull Plan'!C128 -> 343.9321388 | R128: ='Hull Long'!B179 -> 1700 | S128: ='Hull Long'!C179 -> 191.6550191 | T128: ='Hull Plan'!C179 -> 232.9867675 | U128: 170.9166846 | V128: 100.5175328 | W128: 189.8426981 | X128: 100.2821867 | Y128: 168.7005016 | Z128: 84.52889048 | AA128: 63.66368554 | AB128: 31.79097435 | AC128: 84.44933324 | AD128: 31.80742398 | AE128: 62.405781 | AF128: 85.80324465 | AG128: 85.70723778 | AH128: 1699.764968 | AI128: 58.43973525 | AJ128: 1700.002292 | AK128: 229.3562551 | AL128: 170.9166846 | AM128: 5.96855898e-13
A129: 2 | B129: 509.0812488 | C129: 584.7590898 | D129: 2 | E129: 531.76698 | F129: 413.3315748 | O129: ='Hull Long'!B129 -> 1800 | P129: ='Hull Long'!C129 -> 52.87378503 | Q129: ='Hull Plan'!C129 -> 346.4997908 | R129: ='Hull Long'!B180 -> 1800 | S129: ='Hull Long'!C180 -> 187.6699023 | T129: ='Hull Plan'!C180 -> 238.1852552 | U129: 172.9220498 | V129: 100.4164211 | W129: 192.5244842 | X129: 100.2142975 | Y129: 170.9166846 | Z129: 85.17712534 | AA129: 63.50868588 | AB129: 31.29623904 | AC129: 85.11551784 | AD129: 31.31418878 | AE129: 62.36870657 | AF129: 86.33505438 | AG129: 86.25549714 | AH129: 1799.816716 | AI129: 49.88957096 | AJ129: 1800.002651 | AK129: 222.8115208 | AL129: 172.9220498 | AM129: 2.842170943e-13
A130: 2 | B130: 408.924747 | C130: 578.8867157 | D130: 2 | E130: 431.907627 | F130: 405.6381042 | O130: ='Hull Long'!B130 -> 1900 | P130: ='Hull Long'!C130 -> 44.944857 | Q130: ='Hull Plan'!C130 -> 348.2149389 | R130: ='Hull Long'!B181 -> 1900 | S130: ='Hull Long'!C181 -> 184.0658441 | T130: ='Hull Plan'!C181 -> 242.4385633 | U130: 174.7663989 | V130: 100.3285086 | W130: 195.0387024 | X130: 100.1552788 | Y130: 172.9220498 | Z130: 85.79888001 | AA130: 63.33585935 | AB130: 30.84700965 | AC130: 85.75552349 | AD130: 30.86526064 | AE130: 62.28584315 | AF130: 86.8671472 | AG130: 86.80553969 | AH130: 1899.870056 | AI130: 42.46402208 | AJ130: 1900.002304 | AK130: 217.2303709 | AL130: 174.7663989 | AM130: 0
A131: 2 | B131: 308.9181451 | C131: 571.9141512 | D131: 2 | E131: 332.1776622 | F131: 396.9793657 | O131: ='Hull Long'!B131 -> 2000 | P131: ='Hull Long'!C131 -> 37.95456463 | Q131: ='Hull Plan'!C131 -> 349.2507424 | R131: ='Hull Long'!B182 -> 2000 | S131: ='Hull Long'!C182 -> 180.8884385 | T131: ='Hull Plan'!C182 -> 245.7466919 | U131: 176.4743162 | V131: 100.2493744 | W131: 197.4345436 | X131: 100.1051428 | Y131: 174.7663989 | Z131: 86.4145814 | AA131: 63.13675142 | AB131: 30.43162459 | AC131: 86.38826748 | AD131: 30.44866718 | AE131: 62.16293739 | AF131: 87.40543802 | AG131: 87.36208151 | AH131: 1999.92032 | AI131: 36.14882423 | AJ131: 2000.001369 | AK131: 212.6231219 | AL131: 176.4743162 | AM131: 0
A132: 2 | B132: 209.0712897 | C132: 563.8067193 | D132: 2 | E132: 232.5803751 | F132: 387.327248 | O132: ='Hull Long'!B132 -> 2100 | P132: ='Hull Long'!C132 -> 32.05157182 | Q132: ='Hull Plan'!C132 -> 349.7795812 | R132: ='Hull Long'!B183 -> 2100 | S132: ='Hull Long'!C183 -> 178.2052599 | T132: ='Hull Plan'!C183 -> 248.1096408 | U132: 178.0384253 | V132: 100.175471 | W132: 199.7492927 | X132: 100.0638945 | Y132: 176.4743162 | Z132: 87.05437515 | AA132: 62.8898104 | AB132: 30.04171894 | AC132: 87.04215673 | AD132: 30.05581446 | AE132: 61.99663569 | AF132: 87.96164536 | AG132: 87.93533144 | AH132: 2099.962335 | AI132: 30.97965206 | AJ132: 2100.000302 | AK132: 209.0180733 | AL132: 178.0384253 | AM132: 0
A133: 2 | B133: 109.4070734 | C133: 554.4333036 | D133: 2 | E133: 133.1244908 | F133: 376.611351 | O133: ='Hull Long'!B133 -> 2200 | P133: ='Hull Long'!C133 -> 27.49310712 | Q133: ='Hull Plan'!C133 -> 349.9727828 | R133: ='Hull Long'!B184 -> 2200 | S133: ='Hull Long'!C184 -> 176.1332305 | T133: ='Hull Plan'!C184 -> 249.5274102 | U133: =((O133-R133)^2+(S133-P133)^2+(T133-Q133)^2)^0.5+0.00001 -> 179.3966631 | V133: =((O133-O132)^2+(P133-P132)^2+(Q133-Q132)^2)^0.5 -> 100.1040305 | W133: =((R133-O132)^2+(S133-P132)^2+(T133-Q132)^2)^0.5 -> 202.0149058 | X133: =((R133-R132)^2+(S133-S132)^2+(T133-T132)^2)^0.5 -> 100.0315119 | Y133: =U132 -> 178.0384253 | Z133: =ACOS((U133*U133+V133*V133-W133*W133)/2/U133/V133)*180/PI() -> 87.77574112 | AA133: =ACOS((V133*V133+W133*W133-U133*U133)/2/V133/W133)*180/PI() -> 62.54431365 | AB133: =ACOS((W133*W133+Y133*Y133-X133*X133)/2/W133/Y133)*180/PI() -> 29.67060662 | AC133: =AC134+Z133+AA134+AB134-180 -> 87.77286132 | AD133: =ACOS((U133*U133+W133*W133-V133*V133)/2/U133/W133)*180/PI() -> 29.67994523 | AE133: =ACOS((W133*W133+X133*X133-Y133*Y133)/2/W133/X133)*180/PI() -> 61.76755194 | AF133: =ACOS((X133*X133+Y133*Y133-W133*W133)/2/X133/Y133)*180/PI() -> 88.56184145 | AG133: =180+AG134-AF134-AE133-AD133 -> 88.54962303 | AH133: =AH134-V134*SIN(AC134*PI()/180) -> 2199.990749 | AI133: =AI134+V134*COS(AC134*PI()/180) -> 27.08949781 | AJ133: =AJ134-X134*SIN(AG134*PI()/180) -> 2199.999766 | AK133: =AK134+X134*COS(AG134*PI()/180) -> 206.4861607 | AL133: =((AH133-AJ133)^2+(AI133-AK133)^2)^0.5 -> 179.3966631 | AM133: =U133-AL133 -> 0
A134: 2 | B134: 10 | C134: 543.2775838 | D134: 2 | E134: 33.84286115 | F134: 364.5836511 | O134: ='Hull Long'!B134 -> 2300 | P134: ='Hull Long'!C134 -> 25 | Q134: ='Hull Plan'!C134 -> 350 | R134: ='Hull Long'!B185 -> 2300 | S134: ='Hull Long'!C185 -> 175 | T134: ='Hull Plan'!C185 -> 250 | U134: =((O134-R134)^2+(S134-P134)^2+(T134-Q134)^2)^0.5+0.00001 -> 180.2775738 | V134: =((O134-O133)^2+(P134-P133)^2+(Q134-Q133)^2)^0.5 -> 100.0310768 | W134: =((R134-O133)^2+(S134-P133)^2+(T134-Q133)^2)^0.5 -> 204.3351187 | X134: =((R134-R133)^2+(S134-S133)^2+(T134-T133)^2)^0.5 -> 100.0075375 | Y134: =U133 -> 179.3966631 | Z134: =ACOS((U134*U134+V134*V134-W134*W134)/2/U134/V134)*180/PI() -> 88.80309082 | AA134: =ACOS((V134*V134+W134*W134-U134*U134)/2/V134/W134)*180/PI() -> 61.89329833 | AB134: =ACOS((W134*W134+Y134*Y134-X134*X134)/2/W134/Y134)*180/PI() -> 29.30073104 | AC134: =Z134 -> 88.80309082 | AD134: =ACOS((U134*U134+W134*W134-V134*V134)/2/U134/W134)*180/PI() -> 29.30361085 | AE134: =ACOS((W134*W134+X134*X134-Y134*Y134)/2/W134/X134)*180/PI() -> 61.38882312 | AF134: =ACOS((X134*X134+Y134*Y134-W134*W134)/2/X134/Y134)*180/PI() -> 89.31044584 | AG134: =180-AD134-AE134 -> 89.30756604 | AH134: =O134 -> 2300 | AI134: =P134 -> 25 | AJ134: =AH134 -> 2300 | AK134: =AI134+U134 -> 205.2775738 | AL134: =((AH134-AJ134)^2+(AI134-AK134)^2)^0.5 -> 180.2775738 | AM134: =U134-AL134 -> 0
A135: 2 | B135: =E134 -> 33.84286115 | C135: =F134 -> 364.5836511 | D135: 0 | E135: 33.84286115 | F135: 364.5836511 | O135: ='Hull Long'!B135 -> 2300 | P135: ='Hull Long'!C135 -> 25 | Q135: ='Hull Plan'!C135 -> 350 | R135: ='Hull Long'!B186 -> 2300 | S135: ='Hull Long'!C186 -> 175 | T135: ='Hull Plan'!C186 -> 250 | U135: =((O135-R135)^2+(S135-P135)^2+(T135-Q135)^2)^0.5+0.00001 -> 180.2775738 | V135: =((O135-O136)^2+(P135-P136)^2+(Q135-Q136)^2)^0.5 -> 100.0310768 | W135: =((R135-O136)^2+(S135-P136)^2+(T135-Q136)^2)^0.5 -> 204.3351187 | X135: =((R135-R136)^2+(S135-S136)^2+(T135-T136)^2)^0.5 -> 100.0075375 | Y135: =U136 -> 179.3966631 | Z135: =ACOS((U135*U135+V135*V135-W135*W135)/2/U135/V135)*180/PI() -> 88.80309082 | AA135: =ACOS((V135*V135+W135*W135-U135*U135)/2/V135/W135)*180/PI() -> 61.89329833 | AB135: =ACOS((W135*W135+Y135*Y135-X135*X135)/2/W135/Y135)*180/PI() -> 29.30073104 | AC135: =Z135 -> 88.80309082 | AD135: =ACOS((U135*U135+W135*W135-V135*V135)/2/U135/W135)*180/PI() -> 29.30361085 | AE135: =ACOS((W135*W135+X135*X135-Y135*Y135)/2/W135/X135)*180/PI() -> 61.38882312 | AF135: =ACOS((X135*X135+Y135*Y135-W135*W135)/2/X135/Y135)*180/PI() -> 89.31044584 | AG135: =180-AD135-AE135 -> 89.30756604 | AH135: =O135 -> 2300 | AI135: =P135 -> 25 | AJ135: =AH135 -> 2300 | AK135: =AI135+U135 -> 205.2775738 | AL135: =((AH135-AJ135)^2+(AI135-AK135)^2)^0.5 -> 180.2775738 | AM135: =U135-AL135 -> 0
A136: 0 | B136: -88.85437451 | C136: 527.9795785 | D136: 0 | E136: -65.11908182 | F136: 350.1600109 | O136: ='Hull Long'!B136 -> 2400 | P136: ='Hull Long'!C136 -> 27.49310712 | Q136: ='Hull Plan'!C136 -> 349.9727828 | R136: ='Hull Long'!B187 -> 2400 | S136: ='Hull Long'!C187 -> 176.1332305 | T136: ='Hull Plan'!C187 -> 249.5274102 | U136: =((O136-R136)^2+(S136-P136)^2+(T136-Q136)^2)^0.5+0.00001 -> 179.3966631 | V136: =((O136-O137)^2+(P136-P137)^2+(Q136-Q137)^2)^0.5 -> 100.1040305 | W136: =((R136-O137)^2+(S136-P137)^2+(T136-Q137)^2)^0.5 -> 202.0149058 | X136: =((R136-R137)^2+(S136-S137)^2+(T136-T137)^2)^0.5 -> 100.0315119 | Y136: =U137 -> 178.0384253 | Z136: =ACOS((U136*U136+V136*V136-W136*W136)/2/U136/V136)*180/PI() -> 87.77574112 | AA136: =ACOS((V136*V136+W136*W136-U136*U136)/2/V136/W136)*180/PI() -> 62.54431365 | AB136: =ACOS((W136*W136+Y136*Y136-X136*X136)/2/W136/Y136)*180/PI() -> 29.67060662 | AC136: =AC135+Z136+AA135+AB135-180 -> 87.77286132 | AD136: =ACOS((U136*U136+W136*W136-V136*V136)/2/U136/W136)*180/PI() -> 29.67994523 | AE136: =ACOS((W136*W136+X136*X136-Y136*Y136)/2/W136/X136)*180/PI() -> 61.76755194 | AF136: =ACOS((X136*X136+Y136*Y136-W136*W136)/2/X136/Y136)*180/PI() -> 88.56184145 | AG136: =180+AG135-AF135-AE136-AD136 -> 88.54962303 | AH136: =AH135+V135*SIN(AC135*PI()/180) -> 2400.009251 | AI136: =AI135+V135*COS(AC135*PI()/180) -> 27.08949781 | AJ136: =AJ135+X135*SIN(AG135*PI()/180) -> 2400.000234 | AK136: =AK135+X135*COS(AG135*PI()/180) -> 206.4861607 | AL136: =((AH136-AJ136)^2+(AI136-AK136)^2)^0.5 -> 179.3966631 | AM136: =U136-AL136 -> 0
A137: 0 | B137: -187.4895953 | C137: 510.8942002 | D137: 0 | E137: -163.9052429 | F137: 334.4247717 | O137: ='Hull Long'!B137 -> 2500 | P137: ='Hull Long'!C137 -> 32.05157182 | Q137: ='Hull Plan'!C137 -> 349.7795812 | R137: ='Hull Long'!B188 -> 2500 | S137: ='Hull Long'!C188 -> 178.2052599 | T137: ='Hull Plan'!C188 -> 248.1096408 | U137: =((O137-R137)^2+(S137-P137)^2+(T137-Q137)^2)^0.5+0.00001 -> 178.0384253 | V137: =((O137-O138)^2+(P137-P138)^2+(Q137-Q138)^2)^0.5 -> 100.175471 | W137: =((R137-O138)^2+(S137-P138)^2+(T137-Q138)^2)^0.5 -> 199.7492927 | X137: =((R137-R138)^2+(S137-S138)^2+(T137-T138)^2)^0.5 -> 100.0638945 | Y137: =U138 -> 176.4743162 | Z137: =ACOS((U137*U137+V137*V137-W137*W137)/2/U137/V137)*180/PI() -> 87.05437515 | AA137: =ACOS((V137*V137+W137*W137-U137*U137)/2/V137/W137)*180/PI() -> 62.8898104 | AB137: =ACOS((W137*W137+Y137*Y137-X137*X137)/2/W137/Y137)*180/PI() -> 30.04171894 | AC137: =AC136+Z137+AA136+AB136-180 -> 87.04215673 | AD137: =ACOS((U137*U137+W137*W137-V137*V137)/2/U137/W137)*180/PI() -> 30.05581446 | AE137: =ACOS((W137*W137+X137*X137-Y137*Y137)/2/W137/X137)*180/PI() -> 61.99663569 | AF137: =ACOS((X137*X137+Y137*Y137-W137*W137)/2/X137/Y137)*180/PI() -> 87.96164536 | AG137: =180+AG136-AF136-AE137-AD137 -> 87.93533144 | AH137: =AH136+V136*SIN(AC136*PI()/180) -> 2500.037665 | AI137: =AI136+V136*COS(AC136*PI()/180) -> 30.97965206 | AJ137: =AJ136+X136*SIN(AG136*PI()/180) -> 2499.999698 | AK137: =AK136+X136*COS(AG136*PI()/180) -> 209.0180733 | AL137: =((AH137-AJ137)^2+(AI137-AK137)^2)^0.5 -> 178.0384253 | AM137: =U137-AL137 -> 0
A138: 0 | B138: -285.9691386 | C138: 492.5392407 | D138: 0 | E138: -262.5489486 | F138: 317.6258936 | O138: ='Hull Long'!B138 -> 2600 | P138: ='Hull Long'!C138 -> 37.95456463 | Q138: ='Hull Plan'!C138 -> 349.2507424 | R138: ='Hull Long'!B189 -> 2600 | S138: ='Hull Long'!C189 -> 180.8884385 | T138: ='Hull Plan'!C189 -> 245.7466919 | U138: 176.4743162 | V138: 100.2493744 | W138: 197.4345436 | X138: 100.1051428 | Y138: 174.7663989 | Z138: 86.4145814 | AA138: 63.13675142 | AB138: 30.43162459 | AC138: 86.38826748 | AD138: 30.44866718 | AE138: 62.16293739 | AF138: 87.40543802 | AG138: 87.36208151 | AH138: 2600.07968 | AI138: 36.14882423 | AJ138: 2599.998631 | AK138: 212.6231219 | AL138: 176.4743162 | AM138: 0
A139: 0 | B139: -384.30529 | C139: 473.0472317 | D139: 0 | E139: -361.0602371 | F139: 299.8336015 | O139: ='Hull Long'!B139 -> 2700 | P139: ='Hull Long'!C139 -> 44.944857 | Q139: ='Hull Plan'!C139 -> 348.2149389 | R139: ='Hull Long'!B190 -> 2700 | S139: ='Hull Long'!C190 -> 184.0658441 | T139: ='Hull Plan'!C190 -> 242.4385633 | U139: 174.7663989 | V139: 100.3285086 | W139: 195.0387024 | X139: 100.1552788 | Y139: 172.9220498 | Z139: 85.79888001 | AA139: 63.33585935 | AB139: 30.84700965 | AC139: 85.75552349 | AD139: 30.86526064 | AE139: 62.28584315 | AF139: 86.8671472 | AG139: 86.80553969 | AH139: 2700.129944 | AI139: 42.46402208 | AJ139: 2699.997696 | AK139: 217.2303709 | AL139: 174.7663989 | AM139: 0
A140: 0 | B140: -482.4976392 | C140: 452.4542187 | D140: 0 | E140: -459.4433046 | F140: 281.0758858 | O140: ='Hull Long'!B140 -> 2800 | P140: ='Hull Long'!C140 -> 52.87378503 | Q140: ='Hull Plan'!C140 -> 346.4997908 | R140: ='Hull Long'!B191 -> 2800 | S140: ='Hull Long'!C191 -> 187.6699023 | T140: ='Hull Plan'!C191 -> 238.1852552 | U140: 172.9220498 | V140: 100.4164211 | W140: 192.5244842 | X140: 100.2142975 | Y140: 170.9166846 | Z140: 85.17712534 | AA140: 63.50868588 | AB140: 31.29623904 | AC140: 85.11551784 | AD140: 31.31418878 | AE140: 62.36870657 | AF140: 86.33505438 | AG140: 86.25549714 | AH140: 2800.183284 | AI140: 49.88957096 | AJ140: 2799.997349 | AK140: 222.8115208 | AL140: 172.9220498 | AM140: 2.842170943e-13
A141: 0 | B141: -580.539673 | C141: 430.7466799 | D141: 0 | E141: -557.6996319 | F141: 261.3629569 | O141: ='Hull Long'!B141 -> 2900 | P141: ='Hull Long'!C141 -> 61.64104198 | Q141: ='Hull Plan'!C141 -> 343.9321388 | R141: ='Hull Long'!B192 -> 2900 | S141: ='Hull Long'!C192 -> 191.6550191 | T141: ='Hull Plan'!C192 -> 232.9867675 | U141: 170.9166846 | V141: 100.5175328 | W141: 189.8426981 | X141: 100.2821867 | Y141: 168.7005016 | Z141: 84.52889048 | AA141: 63.66368554 | AB141: 31.79097435 | AC141: 84.44933324 | AD141: 31.80742398 | AE141: 62.405781 | AF141: 85.80324465 | AG141: 85.70723778 | AH141: 2900.235032 | AI141: 58.43973525 | AJ141: 2899.997708 | AK141: 229.3562551 | AL141: 170.9166846 | AM141: 5.96855898e-13
A142: 0 | B142: -678.4211494 | C142: 407.8776839 | D142: 0 | E142: -655.8292641 | F142: 240.6967462 | O142: ='Hull Long'!B142 -> 3000 | P142: ='Hull Long'!C142 -> 71.1729901 | Q142: ='Hull Plan'!C142 -> 340.3382031 | R142: ='Hull Long'!B193 -> 3000 | S142: ='Hull Long'!C193 -> 195.9877228 | T142: ='Hull Plan'!C193 -> 226.8431002 | U142: 168.7005016 | V142: 100.6371526 | W142: 186.9312228 | X142: 100.3589298 | Y142: 166.2012966 | Z142: 83.8385495 | AA142: 63.80026552 | AB142: 32.34709425 | AC142: 83.74254263 | AD142: 32.36118497 | AE142: 62.38404749 | AF142: 85.26885826 | AG142: 85.15876066 | AH142: 3000.281244 | AI142: 68.16238867 | AJ142: 2999.998563 | AK142: 236.8626534 | AL142: 168.7005016 | AM142: 9.947598301e-13
A143: 0 | B143: -776.129216 | C143: 383.7743602 | D143: 0 | E143: -753.8315119 | F143: 219.0755946 | O143: ='Hull Long'!B143 -> 3100 | P143: ='Hull Long'!C143 -> 81.41257453 | Q143: ='Hull Plan'!C143 -> 335.5436866 | R143: ='Hull Long'!B194 -> 3100 | S143: ='Hull Long'!C194 -> 200.6420793 | T143: ='Hull Plan'!C194 -> 219.7542533 | U143: 166.2012966 | V143: 100.7814746 | W143: 183.7156823 | X143: 100.4445073 | Y143: 163.3263339 | Z143: 83.09356053 | AA143: 63.90961681 | AB143: 32.98561884 | AC143: 82.98346292 | AD143: 32.99682266 | AE143: 62.28354446 | AF143: 84.73083669 | AG143: 84.60953527 | AH143: 3100.318816 | AI143: 79.13146152 | AJ143: 3099.99945 | AK143: 245.3324513 | AL143: 166.2012966 | AM143: 1.307398634e-12
A144: 0 | B144: -873.6490368 | C144: 358.3422907 | D144: 0 | E144: -851.705392 | F144: 196.4967849 | O144: ='Hull Long'!B144 -> 3200 | P144: ='Hull Long'!C144 -> 92.31389236 | Q144: ='Hull Plan'!C144 -> 329.3738493 | R144: ='Hull Long'!B195 -> 3200 | S144: ='Hull Long'!C195 -> 205.5972238 | T144: ='Hull Plan'!C195 -> 211.7202268 | U144: 163.3263339 | V144: 100.9575665 | W144: 180.1113009 | X144: 100.5388971 | Y144: 159.9641773 | Z144: 82.28380613 | AA144: 63.97424796 | AB144: 33.73386247 | AC144: 82.1625047 | AD144: 33.74194591 | AE144: 62.07692817 | AF144: 84.18920937 | AG144: 84.05982449 | AH144: 3200.345532 | AI144: 91.44250452 | AJ144: 3199.999752 | AK144: 254.7684723 | AL144: 163.3263339 | AM144: 1.47792889e-12
A145: 0 | B145: -970.964197 | C145: 331.468701 | D145: 0 | E145: -949.44991 | F145: 172.9579017 | O145: ='Hull Long'!B145 -> 3300 | P145: ='Hull Long'!C145 -> 103.8389696 | Q145: ='Hull Plan'!C145 -> 321.6535632 | R145: ='Hull Long'!B196 -> 3300 | S145: ='Hull Long'!C196 -> 210.8358953 | T145: ='Hull Plan'!C196 -> 202.7410208 | U145: 159.9641773 | V145: 101.1733475 | W145: 176.0259295 | X145: 100.6420746 | Y145: 155.9867185 | Z145: 81.40131918 | AA145: 63.96667683 | AB145: 34.62703266 | AC145: 81.2719343 | AD145: 34.63200399 | AE145: 61.72833416 | AF145: 83.64463318 | AG145: 83.51027698 | AH145: 3300.360035 | AI145: 105.2094725 | AJ145: 3299.998805 | AK145: 265.173242 | AL145: 159.9641773 | AM145: 1.705302566e-12
A146: 0 | B146: -1068.05699 | C146: 303.0251473 | D146: 0 | E146: -1047.064238 | F146: 148.4574899 | O146: ='Hull Long'!B146 -> 3400 | P146: ='Hull Long'!C146 -> 115.9557098 | Q146: ='Hull Plan'!C146 -> 312.2073548 | R146: ='Hull Long'!B197 -> 3400 | S146: ='Hull Long'!C197 -> 216.3435045 | T146: ='Hull Plan'!C197 -> 192.8166352 | U146: 155.9867185 | V146: 101.4375574 | W146: 171.3644165 | X146: 100.7540132 | Y146: 151.2513828 | Z146: 80.44014375 | AA146: 63.84723262 | AB146: 35.71057427 | AC146: 80.30578755 | AD146: 35.71262363 | AE146: 61.19134582 | AF146: 83.09807991 | AG146: 82.96167435 | AH146: 3400.361762 | AI146: 120.5620226 | AJ146: 3399.99598 | AK146: 276.5483123 | AL146: 155.9867185 | AM146: 1.98951966e-12
A147: 0 | B147: -1164.90864 | C147: 272.8699494 | D147: 0 | E147: -1144.54781 | F147: 122.9952771 | O147: ='Hull Long'!B147 -> 3500 | P147: ='Hull Long'!C147 -> 128.636517 | Q147: ='Hull Plan'!C147 -> 300.8594396 | R147: ='Hull Long'!B198 -> 3500 | S147: ='Hull Long'!C198 -> 222.1075077 | T147: ='Hull Plan'!C198 -> 181.9470699 | U147: 151.2513828 | V147: 101.7597126 | W147: 166.0347262 | X147: 100.8746838 | Y147: 145.6034071 | Z147: 79.39623216 | AA147: 63.56063518 | AB147: 37.04369222 | AC147: 79.25982659 | AD147: 37.04313266 | AE147: 60.40568261 | AF147: 82.55062517 | AG147: 82.41477917 | AH147: 3500.35084 | AI147: 137.6430737 | AJ147: 3499.990752 | AK147: 288.8940279 | AL147: 151.2513828 | AM147: 2.188471626e-12
A148: 0 | B148: -1261.499477 | C148: 240.850434 | D148: 0 | E148: -1241.900363 | F148: 96.5721374 | O148: ='Hull Long'!B148 -> 3600 | P148: ='Hull Long'!C148 -> 141.8573324 | Q148: ='Hull Plan'!C148 -> 287.43375 | R148: ='Hull Long'!B199 -> 3600 | S148: ='Hull Long'!C199 -> 228.1169693 | T148: ='Hull Plan'!C199 -> 170.1323251 | U148: 145.6034071 | V148: 102.0476836 | W148: 159.9111594 | X148: 100.9029842 | Y148: 138.8853861 | Z148: 78.26794983 | AA148: 63.06300994 | AB148: 38.67182051 | AC148: 78.13210382 | AD148: 38.66904023 | AE148: 59.32457527 | AF148: 82.00360422 | AG148: 81.8705385 | AH148: 3600.327964 | AI148: 156.6065596 | AJ148: 3599.982744 | AK148: 302.2095574 | AL148: 145.6034071 | AM148: 2.302158464e-12
A149: 0 | B149: -1357.712929 | C149: 206.840122 | D149: 0 | E149: -1339.02478 | F149: 69.21779986 | O149: ='Hull Long'!B149 -> 3699.9 | P149: ='Hull Long'!C149 -> 155.5829454 | Q149: ='Hull Plan'!C149 -> 271.7708232 | R149: ='Hull Long'!B200 -> 3699.9 | S149: ='Hull Long'!C200 -> 234.3558843 | T149: ='Hull Plan'!C200 -> 157.3856328 | U149: 138.8853861 | V149: 0.2047461061 | W149: 138.8418667 | X149: 0.2021440288 | Y149: 138.8707441 | Z149: 77.68672245 | AA149: 102.2307287 | AB149: 0.08255448347 | AC149: 77.55365673 | AD149: 0.08254881743 | AE149: 98.17183813 | AF149: 81.74560739 | AG149: 81.61254733 | AH149: 3700.194314 | AI149: 177.5932655 | AJ149: 3699.871762 | AK149: 316.478277 | AL149: 138.8853861 | AM149: 2.50111043e-12
A150: 0 | B150: -1357.905271 | C150: 206.7699391 | D150: 0 | E150: -1339.219106 | F150: 69.16212397 | O150: ='Hull Long'!B150 -> 3700.1 | P150: ='Hull Long'!C150 -> 155.6109304 | Q150: ='Hull Plan'!C150 -> 271.7370918 | R150: ='Hull Long'!B201 -> 3700.1 | S150: ='Hull Long'!C201 -> 234.3686047 | T150: ='Hull Plan'!C201 -> 157.3591678 | U150: 138.8707441 | V150: 205.6801547 | W150: 219.4340524 | X150: 202.3275181 | Y150: 121.498758 | Z150: 76.39442917 | AA150: 37.95914911 | AB150: 65.65980542 | AC150: 76.26136911 | AD150: 65.64642172 | AE150: 33.17027614 | AF150: 81.16991843 | AG150: 81.05024208 | AH150: 3700.394248 | AI150: 177.6373935 | AJ150: 3700.071744 | AK150: 316.507763 | AL150: 138.8707441 | AM150: 2.47268872e-12
A151: 0 | B151: -1549.485249 | C151: 131.9271827 | D151: 0 | E151: -1533.164746 | F151: 11.52955239 | O151: ='Hull Long'!B151 -> 3900 | P151: ='Hull Long'!C151 -> 184.558856 | Q151: ='Hull Plan'!C151 -> 232.9255776 | R151: ='Hull Long'!B202 -> 3900 | S151: ='Hull Long'!C202 -> 247.5267527 | T151: ='Hull Plan'!C202 -> 129.0170132 | U151: 121.498758 | V151: 103.8416955 | W151: 136.9229078 | X151: 101.4440297 | Y151: 110.4829785 | Z151: 74.37303873 | AA151: 58.71021484 | AB151: 46.92378869 | AC151: 74.25336237 | AD151: 46.91674643 | AE151: 52.70540939 | AF151: 80.37080191 | AG151: 80.25816782 | AH151: 3900.189732 | AI151: 226.4850204 | AJ151: 3899.935952 | AK151: 347.9835134 | AL151: 121.498758 | AM151: -8.412825991e-11
A152: 0 | B152: -1644.824813 | C152: 90.77544893 | D152: 0 | E152: -1629.997478 | F152: -18.70805971 | O152: ='Hull Long'!B152 -> 4000 | P152: ='Hull Long'!C152 -> 199.7488482 | Q152: ='Hull Plan'!C152 -> 209.4231978 | R152: ='Hull Long'!B203 -> 4000 | S152: ='Hull Long'!C203 -> 254.4312946 | T152: ='Hull Plan'!C203 -> 113.4215501 | U152: 110.4829785 | V152: 104.6186743 | W152: 127.904308 | X152: 101.6078503 | Y152: 97.66909364 | Z152: 72.91383467 | AA152: 55.65643838 | AB152: 51.43746422 | AC152: 72.80120057 | AD152: 51.42972695 | AE152: 48.73067235 | AF152: 79.83186343 | AG152: 79.7269666 | AH152: 4000.13437 | AI152: 254.6659918 | AJ152: 3999.917179 | AK152: 365.1487568 | AL152: 110.4829785 | AM152: -1.274287342e-10
A153: 0 | B153: -1739.796209 | C153: 46.89491814 | D153: 0 | E153: -1726.701627 | F153: -49.892394 | O153: ='Hull Long'!B153 -> 4100 | P153: ='Hull Long'!C153 -> 215.392439 | Q153: ='Hull Plan'!C153 -> 182.9591641 | R153: ='Hull Long'!B204 -> 4100 | S153: ='Hull Long'!C204 -> 261.5420177 | T153: ='Hull Plan'!C204 -> 96.88090737 | U153: 97.66909364 | V153: 105.5227438 | W153: 118.7154669 | X153: 101.7801848 | Y153: 82.86868251 | Z153: 71.38137047 | AA153: 51.22933764 | AB153: 57.39743431 | AC153: 71.27647364 | AD153: 57.38929188 | AE153: 43.30634473 | AF153: 79.29622096 | AG153: 79.19946656 | AH153: 4100.074974 | AI153: 285.6004818 | AJ153: 4099.896162 | AK153: 383.2694118 | AL153: 97.66909364 | AM153: -1.708002628e-10
A154: 0 | B154: -1834.376711 | C154: 0.1019904948 | D154: 0 | E154: -1823.278104 | F154: -82.02011048 | O154: ='Hull Long'!B154 -> 4200 | P154: ='Hull Long'!C154 -> 231.4768382 | Q154: ='Hull Plan'!C154 -> 153.3560972 | R154: ='Hull Long'!B205 -> 4200 | S154: ='Hull Long'!C205 -> 268.8531083 | T154: ='Hull Plan'!C205 -> 79.39508507 | U154: 82.86868251 | V154: 106.5663988 | W154: 110.0892852 | X154: 101.9609902 | Y154: 65.89203017 | Z154: 69.78169064 | AA154: 44.93942203 | AB154: 65.28719363 | AC154: 69.68493624 | AD154: 65.27888733 | AE154: 35.94870437 | AF154: 78.76410201 | AG154: 78.6756539 | AH154: 4200.013301 | AI154: 319.4734831 | AJ154: 4199.873362 | AK154: 402.3420474 | AL154: 82.86868251 | AM154: -2.141717914e-10
A155: 0 | B155: -1928.543318 | C155: -49.78836398 | D155: 0 | E155: -1919.727862 | F155: -115.0880376 | O155: ='Hull Long'!B155 -> 4300 | P155: ='Hull Long'!C155 -> 247.9902802 | Q155: ='Hull Plan'!C155 -> 120.4364438 | R155: ='Hull Long'!B206 -> 4300 | S155: ='Hull Long'!C206 -> 276.3592183 | T155: ='Hull Plan'!C206 -> 60.96408318 | U155: 65.89203017 | V155: 107.7620339 | W155: 103.2593932 | X155: 102.1502214 | Y155: 46.54874963 | Z155: 68.12176152 | AA155: 36.31061928 | AB155: 75.57589446 | AC155: 68.03331341 | AD155: 75.56761921 | AE155: 26.18846087 | AF155: 78.23564466 | AG155: 78.15547181 | AH155: 4299.951024 | AI155: 356.4714422 | AJ155: 4299.849305 | AK155: 422.3633939 | AL155: 65.89203017 | AM155: -2.575717417e-10
A156: 0 | B156: -2022.272792 | C156: -102.9620561 | D156: 0 | E156: -2016.051866 | F156: -149.0932405 | O156: ='Hull Long'!B156 -> 4400 | P156: ='Hull Long'!C156 -> 264.9218944 | Q156: ='Hull Plan'!C156 -> 84.02248517 | R156: ='Hull Long'!B207 -> 4400 | S156: ='Hull Long'!C207 -> 284.0554065 | T156: ='Hull Plan'!C207 -> 41.5879017 | U156: 46.54874963 | V156: 109.1217845 | W156: 100.0436552 | X156: 102.3478316 | Y156: 24.64823953 | Z156: 66.40932342 | AA156: 25.2392836 | AB156: 88.35948389 | AC156: 66.32915056 | AD156: 88.35139298 | AE156: 13.92959679 | AF156: 77.71091932 | AG156: 77.63883737 | AH156: 4399.889696 | AI156: 396.7817102 | AJ156: 4399.824561 | AK156: 443.3304143 | AL156: 46.54874963 | AM156: -3.010143246e-10
A157: 0 | B157: -2115.541696 | C157: -159.6054633 | D157: 0 | E157: -2112.251074 | F157: -184.0330609 | O157: ='Hull Long'!B157 -> 4500 | P157: ='Hull Long'!C157 -> 282.2615969 | Q157: ='Hull Plan'!C157 -> 43.9363457 | R157: ='Hull Long'!B208 -> 4500 | S157: ='Hull Long'!C208 -> 291.9370895 | T157: ='Hull Plan'!C208 -> 21.26654064 | U157: 24.64823953 | V157: 110.6573695 | W157: 102.5537726 | X157: 102.5537726 | Y157: 1e-05 | Z157: 64.65273344 | AA157: 12.54501001 | AB157: 89.99999721 | AC157: 64.58065149 | AD157: 102.8022566 | AE157: 5.533085615e-06 | AF157: 89.99999721 | AG157: 77.12565596 | AH157: 4499.830735 | AI157: 440.5921272 | AJ157: 4499.799726 | AK157: 465.2403473 | AL157: 24.64823953 | AM157: -3.444213803e-10
A158: 2 | B158: -2208.326417 | C158: -219.9051226 | D158: 2 | E158: -2208.326413 | F158: -219.9051319 | O158: ='Hull Long'!B158 -> 4600 | P158: ='Hull Long'!C158 -> 300 | Q158: ='Hull Plan'!C158 -> 0 | R158: ='Hull Long'!B209 -> 4600 | S158: ='Hull Long'!C209 -> 300 | T158: ='Hull Plan'!C209 -> 0 | U158: 1e-05 | V158: 160.0781059 | W158: 160.0781059 | X158: 160.0781059 | Y158: 1e-05 | Z158: 89.99999824 | AA158: 3.622254811e-06 | AB158: 89.99999824 | AC158: 77.12565694 | AD158: 89.99999824 | AE158: 3.622254811e-06 | AF158: 89.99999824 | AG158: 77.12565689 | AH158: 4599.775408 | AI158: 488.0907143 | AJ158: 4599.775405 | AK158: 488.090724 | AL158: 9.904075639e-06 | AM158: 9.592436095e-08
A159: 0 | B159: =(AH159+$H$110-$H$111)*COS(RADIANS($J$110))+$H$112+(AI159+$I$110-$I$111)*SIN(RADIANS($J$110)) -> -2358.292216 | C159: =(AI159+$I$110-$I$111)*COS(RADIANS($J$110))+$I$112-(AH159+$H$110-$H$111)*SIN(RADIANS($J$110)) -> -275.8985081 | D159: 0 | E159: =(AJ159+$H$110-$H$111)*COS(RADIANS($J$110))+$H$112+(AK159+$I$110-$I$111)*SIN(RADIANS($J$110)) -> -2358.292212 | F159: =(AK159+$I$110-$I$111)*COS(RADIANS($J$110))+$I$112-(AJ159+$H$110-$H$111)*SIN(RADIANS($J$110)) -> -275.8985175 | O159: ='Hull Long'!B159 -> 4700 | P159: ='Hull Long'!C159 -> 425 | Q159: ='Hull Plan'!C159 -> 0 | R159: ='Hull Long'!B210 -> 4700 | S159: ='Hull Long'!C210 -> 425 | T159: ='Hull Plan'!C210 -> 0 | U159: 1e-05 | AH159: 4755.829321 | AI159: 523.758293 | AJ159: 4755.829319 | AK159: 523.7583028 | AL159: 1.004449538e-05 | AM159: -4.449537975e-08
A160: 0 | B160: 0 | C160: 0 | D160: 0 | E160: 0 | F160: 0 | O160: X0 | P160: Z0 | Q160: Y0 | R160: X1 | S160: Z1 | T160: Y1 | U160: F | V160: L | W160: D | X160: U | Y160: F' | Z160: A1 | AA160: A2 | AB160: A3 | AC160: A | AD160: B1 | AE160: B2 | AF160: B3 | AG160: B | AH160: XA | AI160: YA | AJ160: XB | AK160: YB | AL160: Check F | AM160: Error F
A161: 0 | B161: =(AH161+$H$161-$H$162)*COS(RADIANS($J$161))+$H$163+(AI161+$I$161-$I$162)*SIN(RADIANS($J$161)) -> 6263.006287 | C161: =(AI161+$I$161-$I$162)*COS(RADIANS($J$161))+$I$163-(AH161+$H$161-$H$162)*SIN(RADIANS($J$161)) -> 616.0392589 | D161: 0 | E161: =(AJ161+$H$161-$H$162)*COS(RADIANS($J$161))+$H$163+(AK161+$I$161-$I$162)*SIN(RADIANS($J$161)) -> 6263.006289 | F161: =(AK161+$I$161-$I$162)*COS(RADIANS($J$161))+$I$163-(AJ161+$H$161-$H$162)*SIN(RADIANS($J$161)) -> 616.0392491 | G161: Deck | H161: =1501*Basic!$D$2 -> 1501 | I161: =171*Basic!$D$2 -> 171 | J161: 180.2 | O161: ='Hull Long'!B212 -> -100 | P161: ='Hull Long'!C212 -> 425 | Q161: ='Hull Plan'!C212 -> 0 | R161: ='Hull Long'!B161 -> -100 | S161: ='Hull Long'!C161 -> 425 | T161: ='Hull Plan'!C161 -> 0 | U161: =((O161-R161)^2+(S161-P161)^2+(T161-Q161)^2)^0.5+0.00001 -> 1e-05 | AH161: =AH162-V162*SIN(AC162*PI()/180) -> -161.0486751 | AI161: =AI162+V162*COS(AC162*PI()/180) -> -103.6316195 | AJ161: =AJ162-X162*SIN(AG162*PI()/180) -> -161.0486771 | AK161: =AK162+X162*COS(AG162*PI()/180) -> -103.6316097 | AL161: =((AH161-AJ161)^2+(AI161-AK161)^2)^0.5 -> 1.004769445e-05 | AM161: =U161-AL161 -> -4.769444595e-08
A162: 0 | B162: =(AH162+$H$161-$H$162)*COS(RADIANS($J$161))+$H$163+(AI162+$I$161-$I$162)*SIN(RADIANS($J$161)) -> 6106.184035 | C162: =(AI162+$I$161-$I$162)*COS(RADIANS($J$161))+$I$163-(AH162+$H$161-$H$162)*SIN(RADIANS($J$161)) -> 583.9179102 | D162: 0 | E162: =(AJ162+$H$161-$H$162)*COS(RADIANS($J$161))+$H$163+(AK162+$I$161-$I$162)*SIN(RADIANS($J$161)) -> 6106.184037 | F162: =(AK162+$I$161-$I$162)*COS(RADIANS($J$161))+$I$163-(AJ162+$H$161-$H$162)*SIN(RADIANS($J$161)) -> 583.9179005 | H162: =AH185+$H$161 -> 3801 | I162: =AI185+$I$161 -> 346 | O162: ='Hull Long'!B213 -> 0 | P162: ='Hull Long'!C213 -> 300 | Q162: ='Hull Plan'!C213 -> 0 | R162: ='Hull Long'!B162 -> 0 | S162: ='Hull Long'!C162 -> 300 | T162: ='Hull Plan'!C162 -> 0 | U162: 1e-05 | V162: =((O162-O161)^2+(P162-P161)^2+(Q162-Q161)^2)^0.5 -> 160.0781059 | W162: =((R162-O161)^2+(S162-P161)^2+(T162-Q161)^2)^0.5 -> 160.0781059 | X162: =((R162-R161)^2+(S162-S161)^2+(T162-T161)^2)^0.5 -> 160.0781059 | Y162: =U161 -> 1e-05 | Z162: =ACOS((U162*U162+V162*V162-W162*W162)/2/U162/V162)*180/PI() -> 89.99999824 | AA162: =ACOS((V162*V162+W162*W162-U162*U162)/2/V162/W162)*180/PI() -> 3.622254811e-06 | AB162: =ACOS((W162*W162+Y162*Y162-X162*X162)/2/W162/Y162)*180/PI() -> 89.99999824 | AC162: =AC163+Z162+AA163+AB163-180 -> 101.7755845 | AD162: =ACOS((U162*U162+W162*W162-V162*V162)/2/U162/W162)*180/PI() -> 89.99999824 | AE162: =ACOS((W162*W162+X162*X162-Y162*Y162)/2/W162/X162)*180/PI() -> 3.622254811e-06 | AF162: =ACOS((X162*X162+Y162*Y162-W162*W162)/2/X162/Y162)*180/PI() -> 89.99999824 | AG162: =180+AG163-AF163-AE162-AD162 -> 101.7755844 | AH162: -4.339502188 | AI162: -70.96305461 | AJ162: -4.339504209 | AK162: -70.96304491 | AL162: 9.906802551e-06 | AM162: 9.319744936e-08
A163: 0 | B163: =(AH163+$H$161-$H$162)*COS(RADIANS($J$161))+$H$163+(AI163+$I$161-$I$162)*SIN(RADIANS($J$161)) -> 6005.861865 | C163: =(AI163+$I$161-$I$162)*COS(RADIANS($J$161))+$I$163-(AH163+$H$161-$H$162)*SIN(RADIANS($J$161)) -> 584.6054647 | D163: 0 | E163: 6005.716121 | F163: 563.3394135 | H163: =AH185+$H$161 -> 3801 | I163: =AI185+$I$161 -> 346 | O163: ='Hull Long'!B214 -> 100 | P163: ='Hull Long'!C214 -> 291.9370895 | Q163: ='Hull Plan'!C214 -> 0 | R163: ='Hull Long'!B163 -> 100 | S163: ='Hull Long'!C163 -> 291.9370895 | T163: ='Hull Plan'!C163 -> 21.26654064 | U163: 21.26655064 | V163: 100.324526 | W163: 102.5537726 | X163: 102.5537726 | Y163: 1e-05 | Z163: 89.99999429 | AA163: 11.96825751 | AB163: 89.99999721 | AC163: 89.8073315 | AD163: 78.0317482 | AE163: 5.533085615e-06 | AF163: 89.99999721 | AG163: 101.7755835 | AH163: 95.98445663 | AI163: -71.30041522 | AJ163: 96.0559674 | AK163: -50.03398481 | AL163: 21.26655065 | AM163: -2.904005925e-09
A164: 0 | B164: 5905.554097 | C164: 585.2929301 | D164: 0 | E164: 5905.269082 | F164: 543.705995 | O164: ='Hull Long'!B215 -> 200 | P164: ='Hull Long'!C215 -> 284.0554065 | Q164: ='Hull Plan'!C215 -> 0 | R164: ='Hull Long'!B164 -> 200 | S164: ='Hull Long'!C164 -> 284.0554065 | T164: ='Hull Plan'!C164 -> 41.5879017 | U164: 41.5879117 | V164: 100.3101237 | W164: 108.5894769 | X164: 102.3478316 | Y164: 21.26655064 | Z164: 89.99999429 | AA164: 22.51857257 | AB164: 67.4814386 | AC164: 89.80732604 | AD164: 67.48143314 | AE164: 11.06627908 | AF164: 101.4522823 | AG164: 101.2596195 | AH164: 196.2940132 | AI164: -71.63773696 | AJ164: 196.4338604 | AK164: -30.05006039 | AL164: 41.5879117 | AM164: -2.564917168e-09
A165: 0 | B165: 5805.260733 | C165: 585.9803014 | D165: 0 | E165: 5804.842925 | F165: 525.0176399 | O165: ='Hull Long'!B216 -> 300 | P165: ='Hull Long'!C216 -> 276.3592183 | Q165: ='Hull Plan'!C216 -> 0 | R165: ='Hull Long'!B165 -> 300 | S165: ='Hull Long'!C165 -> 276.3592183 | T165: ='Hull Plan'!C165 -> 60.96408318 | U165: 60.96409318 | V165: 100.2957193 | W165: 117.3705702 | X165: 102.1502214 | Y165: 41.5879117 | Z165: 89.99999429 | AA165: 31.29305242 | AB165: 58.70695595 | AC165: 89.80732338 | AD165: 58.70695329 | AE165: 20.35875538 | AF165: 100.9342887 | AG165: 100.7416204 | AH165: 296.5891654 | AI165: -71.97501493 | AJ165: 296.7941715 | AK165: -11.01126644 | AL165: 60.96409318 | AM165: -2.225668538e-09
A166: 0 | B166: 5704.981775 | C166: 586.667577 | D166: 0 | E166: 5704.437651 | F166: 507.2743465 | O166: ='Hull Long'!B217 -> 400 | P166: ='Hull Long'!C217 -> 268.8531083 | Q166: ='Hull Plan'!C217 -> 0 | R166: ='Hull Long'!B166 -> 400 | S166: ='Hull Long'!C166 -> 268.8531083 | T166: ='Hull Plan'!C166 -> 79.39508507 | U166: 79.39509507 | V166: 100.2813128 | W166: 127.9059077 | X166: 101.9609902 | Y166: 60.96409318 | Z166: 89.99999429 | AA166: 38.36949741 | AB166: 51.63051004 | AC166: 89.80732165 | AD166: 51.63050831 | AE166: 27.95516193 | AF166: 100.414328 | AG166: 100.2216571 | AH166: 396.8699111 | AI166: -72.31224747 | AJ166: 397.1368982 | AK166: 7.082398691 | AL166: 79.39509507 | AM166: -1.88643412e-09
A167: 0 | B167: 5604.717226 | C167: 587.3547561 | D167: 0 | E167: 5604.053262 | F167: 490.4761139 | O167: ='Hull Long'!B218 -> 500 | P167: ='Hull Long'!C218 -> 261.5420177 | Q167: ='Hull Plan'!C218 -> 0 | R167: ='Hull Long'!B167 -> 500 | S167: ='Hull Long'!C167 -> 261.5420177 | T167: ='Hull Plan'!C167 -> 96.88090737 | U167: 96.88091737 | V167: 100.266904 | W167: 139.4251134 | X167: 101.7801848 | Y167: 79.39509507 | Z167: 89.99999429 | AA167: 44.01605238 | AB167: 45.98395459 | AC167: 89.80732039 | AD167: 45.98395333 | AE167: 34.12356869 | AF167: 99.89247672 | AG167: 99.69980408 | AH167: 497.1362482 | AI167: -72.64943376 | AJ167: 497.4620381 | AK167: 24.23093583 | AL167: 96.88091737 | AM167: -1.547206807e-09
A168: 0 | B168: 5504.467087 | C168: 588.0418381 | D168: 0 | E168: 5503.689762 | F168: 474.6229417 | O168: ='Hull Long'!B219 -> 600 | P168: ='Hull Long'!C219 -> 254.4312946 | Q168: ='Hull Plan'!C219 -> 0 | R168: ='Hull Long'!B168 -> 600 | S168: ='Hull Long'!C168 -> 254.4312946 | T168: ='Hull Plan'!C168 -> 113.4215501 | U168: 113.4215601 | V168: 100.2524932 | W168: 151.3770472 | X168: 101.6078503 | Y168: 96.88091737 | Z168: 89.99999428 | AA168: 48.52677104 | AB168: 41.47323565 | AC168: 89.80731942 | AD168: 41.47323468 | AE168: 39.15795268 | AF168: 99.36881166 | AG168: 99.17613777 | AH168: 597.3881745 | AI168: -72.9865733 | AJ168: 597.769589 | AK168: 40.43434549 | AL168: 113.4215601 | AM168: -1.208007916e-09
A169: 0 | B169: 5404.231361 | C169: 588.7288227 | D169: 0 | E169: 5403.347152 | F169: 459.7148294 | O169: ='Hull Long'!B220 -> 700 | P169: ='Hull Long'!C220 -> 247.5267527 | Q169: ='Hull Plan'!C220 -> 0 | R169: ='Hull Long'!B169 -> 700 | S169: ='Hull Long'!C169 -> 247.5267527 | T169: ='Hull Plan'!C169 -> 129.0170132 | U169: 129.0170232 | V169: 100.2380801 | W169: 163.3801163 | X169: 101.4440297 | Y169: 113.4215601 | Z169: 89.99999428 | AA169: 52.15505287 | AB169: 37.84495363 | AC169: 89.80731863 | AD169: 37.84495284 | AE169: 43.31163498 | AF169: 98.8434114 | AG169: 98.65073653 | AH169: 697.6256878 | AI169: -73.32366574 | AJ169: 698.0595486 | AK169: 55.69262799 | AL169: 129.0170232 | AM169: -8.688232356e-10
A170: 0 | B170: 5203.903476 | C170: 590.1018002 | D170: 0 | E170: 5202.825024 | F170: 432.746318 | O170: ='Hull Long'!B221 -> 899.9 | P170: ='Hull Long'!C221 -> 234.3686047 | Q170: ='Hull Plan'!C221 -> 0 | R170: ='Hull Long'!B170 -> 899.9 | S170: ='Hull Long'!C170 -> 234.3686047 | T170: ='Hull Plan'!C170 -> 157.3591678 | U170: 157.3591778 | V170: 200.3325906 | W170: 254.7450776 | X170: 202.3275181 | Y170: 129.0170232 | Z170: 89.99999714 | AA170: 38.14926914 | AB170: 51.85073435 | AC170: 89.80732086 | AD170: 51.85073372 | AE170: 30.0967605 | AF170: 98.05250516 | AG170: 97.8598295 | AH170: 897.9571456 | AI170: -73.99736003 | AJ170: 898.4863176 | AK170: 83.36092798 | AL170: 157.3591778 | AM170: -1.910791525e-10
A171: 0 | B171: 5202.627933 | C171: 433.721241 | D171: 0 | E171: 5202.624442 | F171: 432.7212371 | O171: ='Hull Long'!B222 -> 900.1 | P171: ='Hull Long'!C222 -> 234.3558843 | Q171: ='Hull Plan'!C222 -> 156.3856328 | R171: ='Hull Long'!B171 -> 900.1 | S171: ='Hull Long'!C171 -> 234.3558843 | T171: ='Hull Plan'!C171 -> 157.3856328 | U171: 1.00001 | V171: 156.3857612 | W171: 157.3857604 | X171: 0.2021440288 | Y171: 157.3591778 | Z171: 179.7326682 | AA171: 0.001698588194 | AB171: 0.07295697471 | AC171: 179.7326682 | AD171: 0.2656332586 | AE171: 82.40704874 | AF171: 97.51999429 | AG171: 97.327318 | AH171: 898.6868109 | AI171: 82.38669893 | AJ171: 898.6868109 | AK171: 83.38670893 | AL171: 1.00001 | AM171: -1.914517433e-10
A172: 0 | B172: 5102.489406 | C172: 421.3241593 | D172: 0 | E172: 5102.485915 | F172: 420.3241553 | O172: ='Hull Long'!B223 -> 1000 | P172: ='Hull Long'!C223 -> 228.1169693 | Q172: ='Hull Plan'!C223 -> 169.1323251 | R172: ='Hull Long'!B172 -> 1000 | S172: ='Hull Long'!C172 -> 228.1169693 | T172: ='Hull Plan'!C172 -> 170.1323251 | U172: 1.00001 | V172: 100.9029842 | W172: 101.0341804 | X172: 100.9029842 | Y172: 1.00001 | Z172: 97.25727093 | AA172: 0.5625646708 | AB172: 82.1801644 | AC172: 97.25727093 | AD172: 82.1801644 | AE172: 0.5625646708 | AF172: 97.25727093 | AG172: 97.25727093 | AH172: 998.7814539 | AI172: 95.13325381 | AJ172: 998.7814539 | AK172: 96.13326381 | AL172: 1.00001 | AM172: -1.633568836e-10
A173: 0 | B173: 5002.268355 | C173: 409.8593095 | D173: 0 | E173: 5002.264864 | F173: 408.8593056 | O173: ='Hull Long'!B224 -> 1100 | P173: ='Hull Long'!C224 -> 222.1075077 | Q173: ='Hull Plan'!C224 -> 180.9470699 | R173: ='Hull Long'!B173 -> 1100 | S173: ='Hull Long'!C173 -> 222.1075077 | T173: ='Hull Plan'!C173 -> 181.9470699 | U173: 1.00001 | V173: 100.8746838 | W173: 100.9966896 | X173: 100.8746838 | Y173: 1.00001 | Z173: 96.7260179 | AA173: 0.5634138251 | AB173: 82.71056828 | AC173: 96.7260179 | AD173: 82.71056828 | AE173: 0.5634138251 | AF173: 96.7260179 | AG173: 96.7260179 | AH173: 1098.961874 | AI173: 106.9478705 | AJ173: 1098.961874 | AK173: 107.9478805 | AL173: 1.00001 | AM173: -1.376778691e-10
A174: 0 | B174: 4902.06503 | C174: 399.3395738 | D174: 0 | E174: 4902.061539 | F174: 398.3395699 | O174: ='Hull Long'!B225 -> 1200 | P174: ='Hull Long'!C225 -> 216.3435045 | Q174: ='Hull Plan'!C225 -> 191.8166352 | R174: ='Hull Long'!B174 -> 1200 | S174: ='Hull Long'!C174 -> 216.3435045 | T174: ='Hull Plan'!C174 -> 192.8166352 | U174: 1.00001 | V174: 100.7540132 | W174: 100.8667949 | X174: 100.7540132 | Y174: 1.00001 | Z174: 96.19318048 | AA174: 0.5647337414 | AB174: 83.24208578 | AC174: 96.19318048 | AD174: 83.24208578 | AE174: 0.5647337414 | AF174: 96.19318048 | AG174: 96.19318048 | AH174: 1199.127868 | AI174: 117.817317 | AJ174: 1199.127868 | AK174: 118.817327 | AL174: 1.00001 | AM174: -1.131641447e-10
A175: 0 | B175: 4801.879433 | C175: 389.764952 | D175: 0 | E175: 4801.875942 | F175: 388.7649481 | O175: ='Hull Long'!B226 -> 1300 | P175: ='Hull Long'!C226 -> 210.8358953 | Q175: ='Hull Plan'!C226 -> 201.7410208 | R175: ='Hull Long'!B175 -> 1300 | S175: ='Hull Long'!C175 -> 210.8358953 | T175: ='Hull Plan'!C175 -> 202.7410208 | U175: 1.00001 | V175: 100.6420746 | W175: 100.7456002 | X175: 100.6420746 | Y175: 1.00001 | Z175: 95.65911164 | AA175: 0.5659604818 | AB175: 83.77492788 | AC175: 95.65911164 | AD175: 83.77492788 | AE175: 0.5659604818 | AF175: 95.65911164 | AG175: 95.65911164 | AH175: 1299.279433 | AI175: 127.7415934 | AJ175: 1299.279433 | AK175: 128.7416034 | AL175: 1.00001 | AM175: -9.207523632e-11
A176: 0 | B176: 4701.711567 | C176: 381.1354443 | D176: 0 | E176: 4701.708076 | F176: 380.1354404 | O176: ='Hull Long'!B227 -> 1400 | P176: ='Hull Long'!C227 -> 205.5972238 | Q176: ='Hull Plan'!C227 -> 210.7202268 | R176: ='Hull Long'!B176 -> 1400 | S176: ='Hull Long'!C176 -> 205.5972238 | T176: ='Hull Plan'!C176 -> 211.7202268 | U176: 1.00001 | V176: 100.5388971 | W176: 100.6331369 | X176: 100.5388971 | Y176: 1.00001 | Z176: 95.1239002 | AA176: 0.5670927483 | AB176: 84.30900705 | AC176: 95.1239002 | AD176: 84.30900705 | AE176: 0.5670927483 | AF176: 95.1239002 | AG176: 95.1239002 | AH176: 1399.416566 | AI176: 136.7206996 | AJ176: 1399.416566 | AK176: 137.7207096 | AL176: 1.00001 | AM176: -7.290479331e-11
A177: 0 | B177: 4601.561434 | C177: 373.4510506 | D177: 0 | E177: 4601.557943 | F177: 372.4510467 | O177: ='Hull Long'!B228 -> 1500 | P177: ='Hull Long'!C228 -> 200.6420793 | Q177: ='Hull Plan'!C228 -> 218.7542533 | R177: ='Hull Long'!B177 -> 1500 | S177: ='Hull Long'!C177 -> 200.6420793 | T177: ='Hull Plan'!C177 -> 219.7542533 | U177: 1.00001 | V177: 100.4445073 | W177: 100.529434 | X177: 100.4445073 | Y177: 1.00001 | Z177: 94.58763613 | AA177: 0.5681293316 | AB177: 84.84423454 | AC177: 94.58763613 | AD177: 84.84423454 | AE177: 0.5681293316 | AF177: 94.58763613 | AG177: 94.58763613 | AH177: 1499.539266 | AI177: 144.7546358 | AJ177: 1499.539266 | AK177: 145.7546458 | AL177: 1.00001 | AM177: -5.437383876e-11
A178: 0 | B178: 4501.429037 | C178: 366.7117708 | D178: 0 | E178: 4501.425546 | F178: 365.7117669 | O178: ='Hull Long'!B229 -> 1600 | P178: ='Hull Long'!C229 -> 195.9877228 | Q178: ='Hull Plan'!C229 -> 225.8431002 | R178: ='Hull Long'!B178 -> 1600 | S178: ='Hull Long'!C178 -> 195.9877228 | T178: ='Hull Plan'!C178 -> 226.8431002 | U178: 1.00001 | V178: 100.3589298 | W178: 100.4345184 | X178: 100.3589298 | Y178: 1.00001 | Z178: 94.05041052 | AA178: 0.5690691152 | AB178: 85.38052036 | AC178: 94.05041052 | AD178: 85.38052036 | AE178: 0.5690691152 | AF178: 94.05041052 | AG178: 94.05041052 | AH178: 1599.647528 | AI178: 151.8434018 | AJ178: 1599.647528 | AK178: 152.8434118 | AL178: 1.00001 | AM178: -3.76050302e-11
A179: 0 | B179: 4401.31438 | C179: 360.917605 | D179: 0 | E179: 4401.310889 | F179: 359.9176011 | O179: ='Hull Long'!B230 -> 1700 | P179: ='Hull Long'!C230 -> 191.6550191 | Q179: ='Hull Plan'!C230 -> 231.9867675 | R179: ='Hull Long'!B179 -> 1700 | S179: ='Hull Long'!C179 -> 191.6550191 | T179: ='Hull Plan'!C179 -> 232.9867675 | U179: 1.00001 | V179: 100.2821867 | W179: 100.3484146 | X179: 100.2821867 | Y179: 1.00001 | Z179: 93.51231545 | AA179: 0.5699110779 | AB179: 85.91777347 | AC179: 93.51231545 | AD179: 85.91777347 | AE179: 0.5699110779 | AF179: 93.51231545 | AG179: 93.51231545 | AH179: 1699.74135 | AI179: 157.9869976 | AJ179: 1699.74135 | AK179: 158.9870076 | AL179: 1.00001 | AM179: -2.527000831e-11
A180: 0 | B180: 4301.217466 | C180: 356.0685532 | D180: 0 | E180: 4301.213975 | F180: 355.0685493 | O180: ='Hull Long'!B231 -> 1800 | P180: ='Hull Long'!C231 -> 187.6699023 | Q180: ='Hull Plan'!C231 -> 237.1852552 | R180: ='Hull Long'!B180 -> 1800 | S180: ='Hull Long'!C180 -> 187.6699023 | T180: ='Hull Plan'!C180 -> 238.1852552 | U180: 1.00001 | V180: 100.2142975 | W180: 100.2711444 | X180: 100.2142975 | Y180: 1.00001 | Z180: 92.9734439 | AA180: 0.5706542979 | AB180: 86.4559018 | AC180: 92.9734439 | AD180: 86.4559018 | AE180: 0.5706542979 | AF180: 92.9734439 | AG180: 92.9734439 | AH180: 1799.820727 | AI180: 163.1854233 | AJ180: 1799.820727 | AK180: 164.1854333 | AL180: 1.00001 | AM180: -1.628874813e-11
A181: 0 | B181: 4201.138302 | C181: 352.1646153 | D181: 0 | E181: 4201.134811 | F181: 351.1646114 | O181: ='Hull Long'!B232 -> 1900 | P181: ='Hull Long'!C232 -> 184.0658441 | Q181: ='Hull Plan'!C232 -> 241.4385633 | R181: ='Hull Long'!B181 -> 1900 | S181: ='Hull Long'!C181 -> 184.0658441 | T181: ='Hull Plan'!C181 -> 242.4385633 | U181: 1.00001 | V181: 100.1552788 | W181: 100.2027269 | X181: 100.1552788 | Y181: 1.00001 | Z181: 92.4338897 | AA181: 0.5712979575 | AB181: 86.99481235 | AC181: 92.4338897 | AD181: 86.99481235 | AE181: 0.5712979575 | AF181: 92.4338897 | AG181: 92.4338897 | AH181: 1899.885655 | AI181: 167.4386789 | AJ181: 1899.885655 | AK181: 168.4386889 | AL181: 1.00001 | AM181: -9.922285216e-12
A182: 0 | B182: 4101.076896 | C182: 349.2057913 | D182: 0 | E182: 4101.073405 | F182: 348.2057874 | O182: ='Hull Long'!B233 -> 2000 | P182: ='Hull Long'!C233 -> 180.8884385 | Q182: ='Hull Plan'!C233 -> 244.7466919 | R182: ='Hull Long'!B182 -> 2000 | S182: ='Hull Long'!C182 -> 180.8884385 | T182: ='Hull Plan'!C182 -> 245.7466919 | U182: 1.00001 | V182: 100.1051428 | W182: 100.1431769 | X182: 100.1051428 | Y182: 1.00001 | Z182: 91.89374736 | AA182: 0.5718413506 | AB182: 87.53441129 | AC182: 91.89374736 | AD182: 87.53441129 | AE182: 0.5718413506 | AF182: 91.89374736 | AG182: 91.89374736 | AH182: 1999.936123 | AI182: 170.7467644 | AJ182: 1999.936123 | AK182: 171.7467744 | AL182: 1.00001 | AM182: -6.852740597e-12
A183: 0 | B183: 4001.033265 | C183: 347.1920811 | D183: 0 | E183: 4001.029775 | F183: 346.1920772 | O183: ='Hull Long'!B234 -> 2100 | P183: ='Hull Long'!C234 -> 178.2052599 | Q183: ='Hull Plan'!C234 -> 247.1096408 | R183: ='Hull Long'!B183 -> 2100 | S183: ='Hull Long'!C183 -> 178.2052599 | T183: ='Hull Plan'!C183 -> 248.1096408 | U183: 1.00001 | V183: 100.0638945 | W183: 100.0925016 | X183: 100.0638945 | Y183: 1.00001 | Z183: 91.35311205 | AA183: 0.572283906 | AB183: 88.07460404 | AC183: 91.35311205 | AD183: 88.07460404 | AE183: 0.572283906 | AF183: 91.35311205 | AG183: 91.35311205 | AH183: 2099.972115 | AI183: 173.1096797 | AJ183: 2099.972115 | AK183: 174.1096897 | AL183: 1.00001 | AM183: -2.816857858e-12
A184: 0 | B184: 3901.007461 | C184: 346.1234846 | D184: 0 | E184: 3901.003971 | F184: 345.1234807 | O184: ='Hull Long'!B235 -> 2200 | P184: ='Hull Long'!C235 -> 176.1332305 | Q184: ='Hull Plan'!C235 -> 248.5274102 | R184: ='Hull Long'!B184 -> 2200 | S184: ='Hull Long'!C184 -> 176.1332305 | T184: ='Hull Plan'!C184 -> 249.5274102 | U184: =((O184-R184)^2+(S184-P184)^2+(T184-Q184)^2)^0.5+0.00001 -> 1.00001 | V184: =((O184-O183)^2+(P184-P183)^2+(Q184-Q183)^2)^0.5 -> 100.0315119 | W184: =((R184-O183)^2+(S184-P183)^2+(T184-Q183)^2)^0.5 -> 100.0506817 | X184: =((R184-R183)^2+(S184-S183)^2+(T184-T183)^2)^0.5 -> 100.0315119 | Y184: =U183 -> 1.00001 | Z184: =ACOS((U184*U184+V184*V184-W184*W184)/2/U184/V184)*180/PI() -> 90.81207946 | AA184: =ACOS((V184*V184+W184*W184-U184*U184)/2/V184/W184)*180/PI() -> 0.5726252963 | AB184: =ACOS((W184*W184+Y184*Y184-X184*X184)/2/W184/Y184)*180/PI() -> 88.61529524 | AC184: =AC185+Z184+AA185+AB185-180 -> 90.81207946 | AD184: =ACOS((U184*U184+W184*W184-V184*V184)/2/U184/W184)*180/PI() -> 88.61529524 | AE184: =ACOS((W184*W184+X184*X184-Y184*Y184)/2/W184/X184)*180/PI() -> 0.5726252963 | AF184: =ACOS((X184*X184+Y184*Y184-W184*W184)/2/X184/Y184)*180/PI() -> 90.81207946 | AG184: =180+AG185-AF185-AE184-AD184 -> 90.81207946 | AH184: =AH185-V185*SIN(AC185*PI()/180) -> 2199.993579 | AI184: =AI185+V185*COS(AC185*PI()/180) -> 174.5274249 | AJ184: =AJ185-X185*SIN(AG185*PI()/180) -> 2199.993579 | AK184: =AK185+X185*COS(AG185*PI()/180) -> 175.5274349 | AL184: =((AH184-AJ184)^2+(AI184-AK184)^2)^0.5 -> 1.00001 | AM184: =U184-AL184 -> -4.294342659e-13
A185: 0 | B185: 3801 | C185: 346 | D185: 0 | E185: 3800.996509 | F185: 344.9999961 | O185: ='Hull Long'!B236 -> 2300 | P185: ='Hull Long'!C236 -> 175 | Q185: ='Hull Plan'!C236 -> 249 | R185: ='Hull Long'!B185 -> 2300 | S185: ='Hull Long'!C185 -> 175 | T185: ='Hull Plan'!C185 -> 250 | U185: =((O185-R185)^2+(S185-P185)^2+(T185-Q185)^2)^0.5+0.00001 -> 1.00001 | V185: =((O185-O184)^2+(P185-P184)^2+(Q185-Q184)^2)^0.5 -> 100.0075375 | W185: =((R185-O184)^2+(S185-P184)^2+(T185-Q184)^2)^0.5 -> 100.0172622 | X185: =((R185-R184)^2+(S185-S184)^2+(T185-T184)^2)^0.5 -> 100.0075375 | Y185: =U184 -> 1.00001 | Z185: =ACOS((U185*U185+V185*V185-W185*W185)/2/U185/V185)*180/PI() -> 90.27074617 | AA185: =ACOS((V185*V185+W185*W185-U185*U185)/2/V185/W185)*180/PI() -> 0.5728677847 | AB185: =ACOS((W185*W185+Y185*Y185-X185*X185)/2/W185/Y185)*180/PI() -> 89.15638605 | AC185: =Z185 -> 90.27074617 | AD185: =ACOS((U185*U185+W185*W185-V185*V185)/2/U185/W185)*180/PI() -> 89.15638605 | AE185: =ACOS((W185*W185+X185*X185-Y185*Y185)/2/W185/X185)*180/PI() -> 0.5728677847 | AF185: =ACOS((X185*X185+Y185*Y185-W185*W185)/2/X185/Y185)*180/PI() -> 90.27074617 | AG185: =180-AD185-AE185 -> 90.27074617 | AH185: =O185 -> 2300 | AI185: =P185 -> 175 | AJ185: =AH185 -> 2300 | AK185: =AI185+U185 -> 176.00001 | AL185: =((AH185-AJ185)^2+(AI185-AK185)^2)^0.5 -> 1.00001 | AM185: =U185-AL185 -> -3.108624469e-15
A186: 0 | B186: 3801 | C186: 346 | D186: 0 | E186: 3800.996509 | F186: 344.9999961 | O186: ='Hull Long'!B237 -> 2300 | P186: ='Hull Long'!C237 -> 175 | Q186: ='Hull Plan'!C237 -> 249 | R186: ='Hull Long'!B186 -> 2300 | S186: ='Hull Long'!C186 -> 175 | T186: ='Hull Plan'!C186 -> 250 | U186: =((O186-R186)^2+(S186-P186)^2+(T186-Q186)^2)^0.5+0.00001 -> 1.00001 | V186: =((O186-O187)^2+(P186-P187)^2+(Q186-Q187)^2)^0.5 -> 100.0075375 | W186: =((R186-O187)^2+(S186-P187)^2+(T186-Q187)^2)^0.5 -> 100.0172622 | X186: =((R186-R187)^2+(S186-S187)^2+(T186-T187)^2)^0.5 -> 100.0075375 | Y186: =U187 -> 1.00001 | Z186: =ACOS((U186*U186+V186*V186-W186*W186)/2/U186/V186)*180/PI() -> 90.27074617 | AA186: =ACOS((V186*V186+W186*W186-U186*U186)/2/V186/W186)*180/PI() -> 0.5728677847 | AB186: =ACOS((W186*W186+Y186*Y186-X186*X186)/2/W186/Y186)*180/PI() -> 89.15638605 | AC186: =Z186 -> 90.27074617 | AD186: =ACOS((U186*U186+W186*W186-V186*V186)/2/U186/W186)*180/PI() -> 89.15638605 | AE186: =ACOS((W186*W186+X186*X186-Y186*Y186)/2/W186/X186)*180/PI() -> 0.5728677847 | AF186: =ACOS((X186*X186+Y186*Y186-W186*W186)/2/X186/Y186)*180/PI() -> 90.27074617 | AG186: =180-AD186-AE186 -> 90.27074617 | AH186: =O186 -> 2300 | AI186: =P186 -> 175 | AJ186: =AH186 -> 2300 | AK186: =AI186+U186 -> 176.00001 | AL186: =((AH186-AJ186)^2+(AI186-AK186)^2)^0.5 -> 1.00001 | AM186: =U186-AL186 -> -3.108624469e-15
A187: 0 | B187: 3700.995838 | C187: 346.8216597 | D187: 0 | E187: 3700.992347 | F187: 345.8216558 | O187: ='Hull Long'!B238 -> 2400 | P187: ='Hull Long'!C238 -> 176.1332305 | Q187: ='Hull Plan'!C238 -> 248.5274102 | R187: ='Hull Long'!B187 -> 2400 | S187: ='Hull Long'!C187 -> 176.1332305 | T187: ='Hull Plan'!C187 -> 249.5274102 | U187: =((O187-R187)^2+(S187-P187)^2+(T187-Q187)^2)^0.5+0.00001 -> 1.00001 | V187: =((O187-O188)^2+(P187-P188)^2+(Q187-Q188)^2)^0.5 -> 100.0315119 | W187: =((R187-O188)^2+(S187-P188)^2+(T187-Q188)^2)^0.5 -> 100.0506817 | X187: =((R187-R188)^2+(S187-S188)^2+(T187-T188)^2)^0.5 -> 100.0315119 | Y187: =U188 -> 1.00001 | Z187: =ACOS((U187*U187+V187*V187-W187*W187)/2/U187/V187)*180/PI() -> 90.81207946 | AA187: =ACOS((V187*V187+W187*W187-U187*U187)/2/V187/W187)*180/PI() -> 0.5726252963 | AB187: =ACOS((W187*W187+Y187*Y187-X187*X187)/2/W187/Y187)*180/PI() -> 88.61529524 | AC187: =AC186+Z187+AA186+AB186-180 -> 90.81207946 | AD187: =ACOS((U187*U187+W187*W187-V187*V187)/2/U187/W187)*180/PI() -> 88.61529524 | AE187: =ACOS((W187*W187+X187*X187-Y187*Y187)/2/W187/X187)*180/PI() -> 0.5726252963 | AF187: =ACOS((X187*X187+Y187*Y187-W187*W187)/2/X187/Y187)*180/PI() -> 90.81207946 | AG187: =180+AG186-AF186-AE187-AD187 -> 90.81207946 | AH187: =AH186+V186*SIN(AC186*PI()/180) -> 2400.006421 | AI187: =AI186+V186*COS(AC186*PI()/180) -> 174.5274249 | AJ187: =AJ186+X186*SIN(AG186*PI()/180) -> 2400.006421 | AK187: =AK186+X186*COS(AG186*PI()/180) -> 175.5274349 | AL187: =((AH187-AJ187)^2+(AI187-AK187)^2)^0.5 -> 1.00001 | AM187: =U187-AL187 -> -4.294342659e-13
A188: 0 | B188: 3600.979932 | C188: 348.5885364 | D188: 0 | E188: 3600.976441 | F188: 347.5885325 | O188: ='Hull Long'!B239 -> 2500 | P188: ='Hull Long'!C239 -> 178.2052599 | Q188: ='Hull Plan'!C239 -> 247.1096408 | R188: ='Hull Long'!B188 -> 2500 | S188: ='Hull Long'!C188 -> 178.2052599 | T188: ='Hull Plan'!C188 -> 248.1096408 | U188: =((O188-R188)^2+(S188-P188)^2+(T188-Q188)^2)^0.5+0.00001 -> 1.00001 | V188: =((O188-O189)^2+(P188-P189)^2+(Q188-Q189)^2)^0.5 -> 100.0638945 | W188: =((R188-O189)^2+(S188-P189)^2+(T188-Q189)^2)^0.5 -> 100.0925016 | X188: =((R188-R189)^2+(S188-S189)^2+(T188-T189)^2)^0.5 -> 100.0638945 | Y188: =U189 -> 1.00001 | Z188: =ACOS((U188*U188+V188*V188-W188*W188)/2/U188/V188)*180/PI() -> 91.35311205 | AA188: =ACOS((V188*V188+W188*W188-U188*U188)/2/V188/W188)*180/PI() -> 0.572283906 | AB188: =ACOS((W188*W188+Y188*Y188-X188*X188)/2/W188/Y188)*180/PI() -> 88.07460404 | AC188: =AC187+Z188+AA187+AB187-180 -> 91.35311205 | AD188: =ACOS((U188*U188+W188*W188-V188*V188)/2/U188/W188)*180/PI() -> 88.07460404 | AE188: =ACOS((W188*W188+X188*X188-Y188*Y188)/2/W188/X188)*180/PI() -> 0.572283906 | AF188: =ACOS((X188*X188+Y188*Y188-W188*W188)/2/X188/Y188)*180/PI() -> 91.35311205 | AG188: =180+AG187-AF187-AE188-AD188 -> 91.35311205 | AH188: =AH187+V187*SIN(AC187*PI()/180) -> 2500.027885 | AI188: =AI187+V187*COS(AC187*PI()/180) -> 173.1096797 | AJ188: =AJ187+X187*SIN(AG187*PI()/180) -> 2500.027885 | AK188: =AK187+X187*COS(AG187*PI()/180) -> 174.1096897 | AL188: =((AH188-AJ188)^2+(AI188-AK188)^2)^0.5 -> 1.00001 | AM188: =U188-AL188 -> -2.816857858e-12
A189: 0 | B189: 3500.952798 | C189: 351.3006281 | D189: 0 | E189: 3500.949307 | F189: 350.3006242 | O189: ='Hull Long'!B240 -> 2600 | P189: ='Hull Long'!C240 -> 180.8884385 | Q189: ='Hull Plan'!C240 -> 244.7466919 | R189: ='Hull Long'!B189 -> 2600 | S189: ='Hull Long'!C189 -> 180.8884385 | T189: ='Hull Plan'!C189 -> 245.7466919 | U189: 1.00001 | V189: 100.1051428 | W189: 100.1431769 | X189: 100.1051428 | Y189: 1.00001 | Z189: 91.89374736 | AA189: 0.5718413506 | AB189: 87.53441129 | AC189: 91.89374736 | AD189: 87.53441129 | AE189: 0.5718413506 | AF189: 91.89374736 | AG189: 91.89374736 | AH189: 2600.063877 | AI189: 170.7467644 | AJ189: 2600.063877 | AK189: 171.7467744 | AL189: 1.00001 | AM189: -6.852740597e-12
A190: 0 | B190: 3400.914486 | C190: 354.9579347 | D190: 0 | E190: 3400.910996 | F190: 353.9579308 | O190: ='Hull Long'!B241 -> 2700 | P190: ='Hull Long'!C241 -> 184.0658441 | Q190: ='Hull Plan'!C241 -> 241.4385633 | R190: ='Hull Long'!B190 -> 2700 | S190: ='Hull Long'!C190 -> 184.0658441 | T190: ='Hull Plan'!C190 -> 242.4385633 | U190: 1.00001 | V190: 100.1552788 | W190: 100.2027269 | X190: 100.1552788 | Y190: 1.00001 | Z190: 92.4338897 | AA190: 0.5712979575 | AB190: 86.99481235 | AC190: 92.4338897 | AD190: 86.99481235 | AE190: 0.5712979575 | AF190: 92.4338897 | AG190: 92.4338897 | AH190: 2700.114345 | AI190: 167.4386789 | AJ190: 2700.114345 | AK190: 168.4386889 | AL190: 1.00001 | AM190: -9.922285216e-12
A191: 0 | B191: 3300.865015 | C191: 359.5604562 | D191: 0 | E191: 3300.861525 | F191: 358.5604523 | O191: ='Hull Long'!B242 -> 2800 | P191: ='Hull Long'!C242 -> 187.6699023 | Q191: ='Hull Plan'!C242 -> 237.1852552 | R191: ='Hull Long'!B191 -> 2800 | S191: ='Hull Long'!C191 -> 187.6699023 | T191: ='Hull Plan'!C191 -> 238.1852552 | U191: 1.00001 | V191: 100.2142975 | W191: 100.2711444 | X191: 100.2142975 | Y191: 1.00001 | Z191: 92.9734439 | AA191: 0.5706542979 | AB191: 86.4559018 | AC191: 92.9734439 | AD191: 86.4559018 | AE191: 0.5706542979 | AF191: 92.9734439 | AG191: 92.9734439 | AH191: 2800.179273 | AI191: 163.1854233 | AJ191: 2800.179273 | AK191: 164.1854333 | AL191: 1.00001 | AM191: -1.628874813e-11
A192: 0 | B192: 3200.804393 | C192: 365.1081924 | D192: 0 | E192: 3200.800903 | F192: 364.1081885 | O192: ='Hull Long'!B243 -> 2900 | P192: ='Hull Long'!C243 -> 191.6550191 | Q192: ='Hull Plan'!C243 -> 231.9867675 | R192: ='Hull Long'!B192 -> 2900 | S192: ='Hull Long'!C192 -> 191.6550191 | T192: ='Hull Plan'!C192 -> 232.9867675 | U192: 1.00001 | V192: 100.2821867 | W192: 100.3484146 | X192: 100.2821867 | Y192: 1.00001 | Z192: 93.51231545 | AA192: 0.5699110779 | AB192: 85.91777347 | AC192: 93.51231545 | AD192: 85.91777347 | AE192: 0.5699110779 | AF192: 93.51231545 | AG192: 93.51231545 | AH192: 2900.25865 | AI192: 157.9869976 | AJ192: 2900.25865 | AK192: 158.9870076 | AL192: 1.00001 | AM192: -2.527000831e-11
A193: 0 | B193: 3100.732626 | C193: 371.6011435 | D193: 0 | E193: 3100.729136 | F193: 370.6011396 | O193: ='Hull Long'!B244 -> 3000 | P193: ='Hull Long'!C244 -> 195.9877228 | Q193: ='Hull Plan'!C244 -> 225.8431002 | R193: ='Hull Long'!B193 -> 3000 | S193: ='Hull Long'!C193 -> 195.9877228 | T193: ='Hull Plan'!C193 -> 226.8431002 | U193: 1.00001 | V193: 100.3589298 | W193: 100.4345184 | X193: 100.3589298 | Y193: 1.00001 | Z193: 94.05041052 | AA193: 0.5690691152 | AB193: 85.38052036 | AC193: 94.05041052 | AD193: 85.38052036 | AE193: 0.5690691152 | AF193: 94.05041052 | AG193: 94.05041052 | AH193: 3000.352472 | AI193: 151.8434018 | AJ193: 3000.352472 | AK193: 152.8434118 | AL193: 1.00001 | AM193: -3.76050302e-11
A194: 0 | B194: 3000.649718 | C194: 379.0393094 | D194: 0 | E194: 3000.646228 | F194: 378.0393055 | O194: ='Hull Long'!B245 -> 3100 | P194: ='Hull Long'!C245 -> 200.6420793 | Q194: ='Hull Plan'!C245 -> 218.7542533 | R194: ='Hull Long'!B194 -> 3100 | S194: ='Hull Long'!C194 -> 200.6420793 | T194: ='Hull Plan'!C194 -> 219.7542533 | U194: 1.00001 | V194: 100.4445073 | W194: 100.529434 | X194: 100.4445073 | Y194: 1.00001 | Z194: 94.58763613 | AA194: 0.5681293316 | AB194: 84.84423454 | AC194: 94.58763613 | AD194: 84.84423454 | AE194: 0.5681293316 | AF194: 94.58763613 | AG194: 94.58763613 | AH194: 3100.460734 | AI194: 144.7546358 | AJ194: 3100.460734 | AK194: 145.7546458 | AL194: 1.00001 | AM194: -5.437383876e-11
A195: 0 | B195: 2900.555673 | C195: 387.42269 | D195: 0 | E195: 2900.552182 | F195: 386.4226861 | O195: ='Hull Long'!B246 -> 3200 | P195: ='Hull Long'!C246 -> 205.5972238 | Q195: ='Hull Plan'!C246 -> 210.7202268 | R195: ='Hull Long'!B195 -> 3200 | S195: ='Hull Long'!C195 -> 205.5972238 | T195: ='Hull Plan'!C195 -> 211.7202268 | U195: 1.00001 | V195: 100.5388971 | W195: 100.6331369 | X195: 100.5388971 | Y195: 1.00001 | Z195: 95.1239002 | AA195: 0.5670927483 | AB195: 84.30900705 | AC195: 95.1239002 | AD195: 84.30900705 | AE195: 0.5670927483 | AF195: 95.1239002 | AG195: 95.1239002 | AH195: 3200.583434 | AI195: 136.7206996 | AJ195: 3200.583434 | AK195: 137.7207096 | AL195: 1.00001 | AM195: -7.290479331e-11
A196: 0 | B196: 2800.450492 | C196: 396.7512854 | D196: 0 | E196: 2800.447002 | F196: 395.7512815 | O196: ='Hull Long'!B247 -> 3300 | P196: ='Hull Long'!C247 -> 210.8358953 | Q196: ='Hull Plan'!C247 -> 201.7410208 | R196: ='Hull Long'!B196 -> 3300 | S196: ='Hull Long'!C196 -> 210.8358953 | T196: ='Hull Plan'!C196 -> 202.7410208 | U196: 1.00001 | V196: 100.6420746 | W196: 100.7456002 | X196: 100.6420746 | Y196: 1.00001 | Z196: 95.65911164 | AA196: 0.5659604818 | AB196: 83.77492788 | AC196: 95.65911164 | AD196: 83.77492788 | AE196: 0.5659604818 | AF196: 95.65911164 | AG196: 95.65911164 | AH196: 3300.720567 | AI196: 127.7415934 | AJ196: 3300.720567 | AK196: 128.7416034 | AL196: 1.00001 | AM196: -9.207523632e-11
A197: 0 | B197: 2700.33418 | C197: 407.0250955 | D197: 0 | E197: 2700.330689 | F197: 406.0250916 | O197: ='Hull Long'!B248 -> 3400 | P197: ='Hull Long'!C248 -> 216.3435045 | Q197: ='Hull Plan'!C248 -> 191.8166352 | R197: ='Hull Long'!B197 -> 3400 | S197: ='Hull Long'!C197 -> 216.3435045 | T197: ='Hull Plan'!C197 -> 192.8166352 | U197: 1.00001 | V197: 100.7540132 | W197: 100.8667949 | X197: 100.7540132 | Y197: 1.00001 | Z197: 96.19318048 | AA197: 0.5647337414 | AB197: 83.24208578 | AC197: 96.19318048 | AD197: 83.24208578 | AE197: 0.5647337414 | AF197: 96.19318048 | AG197: 96.19318048 | AH197: 3400.872132 | AI197: 117.817317 | AJ197: 3400.872132 | AK197: 118.817327 | AL197: 1.00001 | AM197: -1.131641447e-10
A198: 0 | B198: 2600.206738 | C198: 418.2441204 | D198: 0 | E198: 2600.203247 | F198: 417.2441165 | O198: ='Hull Long'!B249 -> 3500 | P198: ='Hull Long'!C249 -> 222.1075077 | Q198: ='Hull Plan'!C249 -> 180.9470699 | R198: ='Hull Long'!B198 -> 3500 | S198: ='Hull Long'!C198 -> 222.1075077 | T198: ='Hull Plan'!C198 -> 181.9470699 | U198: 1.00001 | V198: 100.8746838 | W198: 100.9966896 | X198: 100.8746838 | Y198: 1.00001 | Z198: 96.7260179 | AA198: 0.5634138251 | AB198: 82.71056828 | AC198: 96.7260179 | AD198: 82.71056828 | AE198: 0.5634138251 | AF198: 96.7260179 | AG198: 96.7260179 | AH198: 3501.038126 | AI198: 106.9478705 | AJ198: 3501.038126 | AK198: 107.9478805 | AL198: 1.00001 | AM198: -1.376778691e-10
A199: 0 | B199: 2500.068168 | C199: 430.40836 | D199: 0 | E199: 2500.064678 | F199: 429.4083561 | O199: ='Hull Long'!B250 -> 3600 | P199: ='Hull Long'!C250 -> 228.1169693 | Q199: ='Hull Plan'!C250 -> 169.1323251 | R199: ='Hull Long'!B199 -> 3600 | S199: ='Hull Long'!C199 -> 228.1169693 | T199: ='Hull Plan'!C199 -> 170.1323251 | U199: 1.00001 | V199: 100.9029842 | W199: 101.0341804 | X199: 100.9029842 | Y199: 1.00001 | Z199: 97.25727093 | AA199: 0.5625646708 | AB199: 82.1801644 | AC199: 97.25727093 | AD199: 82.1801644 | AE199: 0.5625646708 | AF199: 97.25727093 | AG199: 97.25727093 | AH199: 3601.218546 | AI199: 95.13325381 | AJ199: 3601.218546 | AK199: 96.13326381 | AL199: 1.00001 | AM199: -1.633568836e-10
A200: 3 | B200: 2400.018629 | C200: 443.5042327 | D200: 3 | E200: 2400.015138 | F200: 442.5042288 | O200: ='Hull Long'!B251 -> 3699.9 | P200: ='Hull Long'!C251 -> 234.3558843 | Q200: ='Hull Plan'!C251 -> 156.3856328 | R200: ='Hull Long'!B200 -> 3699.9 | S200: ='Hull Long'!C200 -> 234.3558843 | T200: ='Hull Plan'!C200 -> 157.3856328 | U200: 1.00001 | V200: 156.3857612 | W200: 157.3857604 | X200: 0.2021440288 | Y200: 157.3591778 | Z200: 179.7326682 | AA200: 0.001698588194 | AB200: 0.07295697471 | AC200: 179.7326682 | AD200: 0.2656332586 | AE200: 82.40704874 | AF200: 97.51999429 | AG200: 97.327318 | AH200: 3701.313189 | AI200: 82.38669893 | AJ200: 3701.313189 | AK200: 83.38670893 | AL200: 1.00001 | AM200: -1.892490609e-10
A201: 3 | B201: 2399.83485 | C201: 599.8898859 | D201: 3 | E201: 2399.814736 | F201: 442.5307094 | O201: ='Hull Long'!B252 -> 3700.1 | P201: ='Hull Long'!C252 -> 234.3686047 | Q201: ='Hull Plan'!C252 -> 0 | R201: ='Hull Long'!B201 -> 3700.1 | S201: ='Hull Long'!C201 -> 234.3686047 | T201: ='Hull Plan'!C201 -> 157.3591678 | U201: 157.3591778 | V201: 200.3325906 | W201: 254.7450776 | X201: 202.3275181 | Y201: 129.0170232 | Z201: 89.99999714 | AA201: 38.14926914 | AB201: 51.85073435 | AC201: 89.80732086 | AD201: 51.85073372 | AE201: 30.0967605 | AF201: 98.05250516 | AG201: 97.8598295 | AH201: 3702.042854 | AI201: -73.99736003 | AJ201: 3701.513682 | AK201: 83.36092798 | AL201: 157.3591778 | AM201: -1.888906809e-10
A202: 3 | B202: 2199.502261 | C202: 599.915483 | D202: 3 | E202: 2199.485769 | F202: 470.8984608 | O202: ='Hull Long'!B253 -> 3900 | P202: ='Hull Long'!C253 -> 247.5267527 | Q202: ='Hull Plan'!C253 -> 0 | R202: ='Hull Long'!B202 -> 3900 | S202: ='Hull Long'!C202 -> 247.5267527 | T202: ='Hull Plan'!C202 -> 129.0170132 | U202: 129.0170232 | V202: 100.2380801 | W202: 163.3801163 | X202: 101.4440297 | Y202: 113.4215601 | Z202: 89.99999428 | AA202: 52.15505287 | AB202: 37.84495363 | AC202: 89.80731863 | AD202: 37.84495284 | AE202: 43.31163498 | AF202: 98.8434114 | AG202: 98.65073653 | AH202: 3902.374312 | AI202: -73.32366574 | AJ202: 3901.940451 | AK202: 55.69262799 | AL202: 129.0170232 | AM202: -8.623715075e-10
A203: 3 | B203: 2099.264182 | C203: 599.9282869 | D203: 3 | E203: 2099.249681 | F203: 486.5067277 | O203: ='Hull Long'!B254 -> 4000 | P203: ='Hull Long'!C254 -> 254.4312946 | Q203: ='Hull Plan'!C254 -> 0 | R203: ='Hull Long'!B203 -> 4000 | S203: ='Hull Long'!C203 -> 254.4312946 | T203: ='Hull Plan'!C203 -> 113.4215501 | U203: 113.4215601 | V203: 100.2524932 | W203: 151.3770472 | X203: 101.6078503 | Y203: 96.88091737 | Z203: 89.99999428 | AA203: 48.52677104 | AB203: 41.47323565 | AC203: 89.80731942 | AD203: 41.47323468 | AE203: 39.15795268 | AF203: 99.36881166 | AG203: 99.17613777 | AH203: 4002.611826 | AI203: -72.9865733 | AJ203: 4002.230411 | AK203: 40.43434549 | AL203: 113.4215601 | AM203: -1.199325084e-09
... 226 more rows

Sheet Export
A1: 0 | B1: 0 | C1: 0 | D1: 0
A2: ='Hull Long'!A8 -> 0 | B2: ='Hull Long'!B8 -> -100 | C2: ='Hull Long'!C8 -> 425 | D2: ='Hull Plan'!C8 -> 0
A3: ='Hull Long'!A9 -> 1 | B3: ='Hull Long'!B9 -> 0 | C3: ='Hull Long'!C9 -> 300 | D3: ='Hull Plan'!C9 -> 0
A4: ='Hull Long'!A10 -> 1 | B4: ='Hull Long'!B10 -> 100 | C4: ='Hull Long'!C10 -> 175 | D4: ='Hull Plan'!C10 -> 0
A5: ='Hull Long'!A11 -> 1 | B5: ='Hull Long'!B11 -> 200 | C5: ='Hull Long'!C11 -> 50 | D5: ='Hull Plan'!C11 -> 0
A6: ='Hull Long'!A12 -> 1 | B6: ='Hull Long'!B12 -> 300 | C6: ='Hull Long'!C12 -> -75 | D6: ='Hull Plan'!C12 -> 0
A7: ='Hull Long'!A13 -> 1 | B7: ='Hull Long'!B13 -> 400 | C7: ='Hull Long'!C13 -> -75 | D7: ='Hull Plan'!C13 -> 0
A8: ='Hull Long'!A14 -> 1 | B8: ='Hull Long'!B14 -> 500 | C8: ='Hull Long'!C14 -> -75 | D8: ='Hull Plan'!C14 -> 0
A9: ='Hull Long'!A15 -> 1 | B9: ='Hull Long'!B15 -> 600 | C9: ='Hull Long'!C15 -> -75 | D9: ='Hull Plan'!C15 -> 0
A10: ='Hull Long'!A16 -> 1 | B10: ='Hull Long'!B16 -> 700 | C10: ='Hull Long'!C16 -> -75 | D10: ='Hull Plan'!C16 -> 0
A11: ='Hull Long'!A17 -> 1 | B11: ='Hull Long'!B17 -> 899.9 | C11: ='Hull Long'!C17 -> -75 | D11: ='Hull Plan'!C17 -> 0
A12: ='Hull Long'!A18 -> 1 | B12: ='Hull Long'!B18 -> 900.1 | C12: ='Hull Long'!C18 -> -75 | D12: ='Hull Plan'!C18 -> 0
A13: ='Hull Long'!A19 -> 1 | B13: ='Hull Long'!B19 -> 1000 | C13: ='Hull Long'!C19 -> -75 | D13: ='Hull Plan'!C19 -> 0
A14: ='Hull Long'!A20 -> 1 | B14: ='Hull Long'!B20 -> 1100 | C14: ='Hull Long'!C20 -> -75 | D14: ='Hull Plan'!C20 -> 0
A15: ='Hull Long'!A21 -> 1 | B15: ='Hull Long'!B21 -> 1200 | C15: ='Hull Long'!C21 -> -75 | D15: ='Hull Plan'!C21 -> 0
A16: ='Hull Long'!A22 -> 1 | B16: ='Hull Long'!B22 -> 1300 | C16: ='Hull Long'!C22 -> -75 | D16: ='Hull Plan'!C22 -> 0
A17: ='Hull Long'!A23 -> 1 | B17: ='Hull Long'!B23 -> 1400 | C17: ='Hull Long'!C23 -> -75 | D17: ='Hull Plan'!C23 -> 0
A18: ='Hull Long'!A24 -> 1 | B18: ='Hull Long'!B24 -> 1500 | C18: ='Hull Long'!C24 -> -75 | D18: ='Hull Plan'!C24 -> 0
A19: ='Hull Long'!A25 -> 1 | B19: ='Hull Long'!B25 -> 1600 | C19: ='Hull Long'!C25 -> -75 | D19: ='Hull Plan'!C25 -> 0
A20: ='Hull Long'!A26 -> 1 | B20: ='Hull Long'!B26 -> 1700 | C20: ='Hull Long'!C26 -> -75 | D20: ='Hull Plan'!C26 -> 0
A21: ='Hull Long'!A27 -> 1 | B21: ='Hull Long'!B27 -> 1800 | C21: ='Hull Long'!C27 -> -75 | D21: ='Hull Plan'!C27 -> 0
A22: ='Hull Long'!A28 -> 1 | B22: ='Hull Long'!B28 -> 1900 | C22: ='Hull Long'!C28 -> -75 | D22: ='Hull Plan'!C28 -> 0
A23: ='Hull Long'!A29 -> 1 | B23: ='Hull Long'!B29 -> 2000 | C23: ='Hull Long'!C29 -> -75 | D23: ='Hull Plan'!C29 -> 0
A24: ='Hull Long'!A30 -> 1 | B24: ='Hull Long'!B30 -> 2100 | C24: ='Hull Long'!C30 -> -75 | D24: ='Hull Plan'!C30 -> 0
A25: ='Hull Long'!A31 -> 1 | B25: ='Hull Long'!B31 -> 2200 | C25: ='Hull Long'!C31 -> -75 | D25: ='Hull Plan'!C31 -> 0
A26: ='Hull Long'!A32 -> 1 | B26: ='Hull Long'!B32 -> 2300 | C26: ='Hull Long'!C32 -> -75 | D26: ='Hull Plan'!C32 -> 0
A27: ='Hull Long'!A33 -> 1 | B27: ='Hull Long'!B33 -> 2300 | C27: ='Hull Long'!C33 -> -75 | D27: ='Hull Plan'!C33 -> 0
A28: ='Hull Long'!A34 -> 1 | B28: ='Hull Long'!B34 -> 2400 | C28: ='Hull Long'!C34 -> -75 | D28: ='Hull Plan'!C34 -> 0
A29: ='Hull Long'!A35 -> 1 | B29: ='Hull Long'!B35 -> 2500 | C29: ='Hull Long'!C35 -> -75 | D29: ='Hull Plan'!C35 -> 0
A30: ='Hull Long'!A36 -> 1 | B30: ='Hull Long'!B36 -> 2600 | C30: ='Hull Long'!C36 -> -75 | D30: ='Hull Plan'!C36 -> 0
A31: ='Hull Long'!A37 -> 1 | B31: ='Hull Long'!B37 -> 2700 | C31: ='Hull Long'!C37 -> -75 | D31: ='Hull Plan'!C37 -> 0
A32: ='Hull Long'!A38 -> 1 | B32: ='Hull Long'!B38 -> 2800 | C32: ='Hull Long'!C38 -> -75 | D32: ='Hull Plan'!C38 -> 0
A33: ='Hull Long'!A39 -> 1 | B33: ='Hull Long'!B39 -> 2900 | C33: ='Hull Long'!C39 -> -75 | D33: ='Hull Plan'!C39 -> 0
A34: ='Hull Long'!A40 -> 1 | B34: ='Hull Long'!B40 -> 3000 | C34: ='Hull Long'!C40 -> -75 | D34: ='Hull Plan'!C40 -> 0
A35: ='Hull Long'!A41 -> 1 | B35: ='Hull Long'!B41 -> 3100 | C35: ='Hull Long'!C41 -> -75 | D35: ='Hull Plan'!C41 -> 0
A36: ='Hull Long'!A42 -> 1 | B36: ='Hull Long'!B42 -> 3200 | C36: ='Hull Long'!C42 -> -75 | D36: ='Hull Plan'!C42 -> 0
A37: ='Hull Long'!A43 -> 1 | B37: ='Hull Long'!B43 -> 3300 | C37: ='Hull Long'!C43 -> -75 | D37: ='Hull Plan'!C43 -> 0
A38: ='Hull Long'!A44 -> 1 | B38: ='Hull Long'!B44 -> 3400 | C38: ='Hull Long'!C44 -> -75 | D38: ='Hull Plan'!C44 -> 0
A39: ='Hull Long'!A45 -> 1 | B39: ='Hull Long'!B45 -> 3500 | C39: ='Hull Long'!C45 -> -75 | D39: ='Hull Plan'!C45 -> 0
A40: ='Hull Long'!A46 -> 1 | B40: ='Hull Long'!B46 -> 3600 | C40: ='Hull Long'!C46 -> -75 | D40: ='Hull Plan'!C46 -> 0
A41: ='Hull Long'!A47 -> 1 | B41: ='Hull Long'!B47 -> 3699.9 | C41: ='Hull Long'!C47 -> -75 | D41: ='Hull Plan'!C47 -> 0
A42: ='Hull Long'!A48 -> 1 | B42: ='Hull Long'!B48 -> 3700.1 | C42: ='Hull Long'!C48 -> -75 | D42: ='Hull Plan'!C48 -> 0
A43: ='Hull Long'!A49 -> 1 | B43: ='Hull Long'!B49 -> 3900 | C43: ='Hull Long'!C49 -> -75 | D43: ='Hull Plan'!C49 -> 0
A44: ='Hull Long'!A50 -> 1 | B44: ='Hull Long'!B50 -> 4000 | C44: ='Hull Long'!C50 -> -75 | D44: ='Hull Plan'!C50 -> 0
A45: ='Hull Long'!A51 -> 1 | B45: ='Hull Long'!B51 -> 4100 | C45: ='Hull Long'!C51 -> -75 | D45: ='Hull Plan'!C51 -> 0
A46: ='Hull Long'!A52 -> 1 | B46: ='Hull Long'!B52 -> 4200 | C46: ='Hull Long'!C52 -> -75 | D46: ='Hull Plan'!C52 -> 0
A47: ='Hull Long'!A53 -> 1 | B47: ='Hull Long'!B53 -> 4300 | C47: ='Hull Long'!C53 -> -75 | D47: ='Hull Plan'!C53 -> 0
A48: ='Hull Long'!A54 -> 1 | B48: ='Hull Long'!B54 -> 4400 | C48: ='Hull Long'!C54 -> 50 | D48: ='Hull Plan'!C54 -> 0
A49: ='Hull Long'!A55 -> 1 | B49: ='Hull Long'!B55 -> 4500 | C49: ='Hull Long'!C55 -> 175 | D49: ='Hull Plan'!C55 -> 0
A50: ='Hull Long'!A56 -> 1 | B50: ='Hull Long'!B56 -> 4600 | C50: ='Hull Long'!C56 -> 300 | D50: ='Hull Plan'!C56 -> 0
A51: ='Hull Long'!A57 -> 0 | B51: ='Hull Long'!B57 -> 4700 | C51: ='Hull Long'!C57 -> 425 | D51: ='Hull Plan'!C57 -> 0
A52: ='Hull Long'!A58 -> 0 | B52: ='Hull Long'!B58 -> 0 | C52: ='Hull Long'!C58 -> 0 | D52: ='Hull Plan'!C58 -> 0
A53: ='Hull Long'!A59 -> 0 | B53: ='Hull Long'!B59 -> -100 | C53: ='Hull Long'!C59 -> 425 | D53: ='Hull Plan'!C59 -> 0
A54: ='Hull Long'!A60 -> 2 | B54: ='Hull Long'!B60 -> 0 | C54: ='Hull Long'!C60 -> 300 | D54: ='Hull Plan'!C60 -> 0
A55: ='Hull Long'!A61 -> 2 | B55: ='Hull Long'!B61 -> 100 | C55: ='Hull Long'!C61 -> 175 | D55: ='Hull Plan'!C61 -> 0
A56: ='Hull Long'!A62 -> 2 | B56: ='Hull Long'!B62 -> 200 | C56: ='Hull Long'!C62 -> 50 | D56: ='Hull Plan'!C62 -> 0
A57: ='Hull Long'!A63 -> 2 | B57: ='Hull Long'!B63 -> 300 | C57: ='Hull Long'!C63 -> -75 | D57: ='Hull Plan'!C63 -> 0
A58: ='Hull Long'!A64 -> 2 | B58: ='Hull Long'!B64 -> 400 | C58: ='Hull Long'!C64 -> -75 | D58: ='Hull Plan'!C64 -> 19.5
A59: ='Hull Long'!A65 -> 2 | B59: ='Hull Long'!B65 -> 500 | C59: ='Hull Long'!C65 -> -75 | D59: ='Hull Plan'!C65 -> 38
A60: ='Hull Long'!A66 -> 2 | B60: ='Hull Long'!B66 -> 600 | C60: ='Hull Long'!C66 -> -75 | D60: ='Hull Plan'!C66 -> 55.5
A61: ='Hull Long'!A67 -> 2 | B61: ='Hull Long'!B67 -> 700 | C61: ='Hull Long'!C67 -> -75 | D61: ='Hull Plan'!C67 -> 72
A62: ='Hull Long'!A68 -> 2 | B62: ='Hull Long'!B68 -> 899.9 | C62: ='Hull Long'!C68 -> -75 | D62: ='Hull Plan'!C68 -> 101.9859995
A63: ='Hull Long'!A69 -> 2 | B63: ='Hull Long'!B69 -> 900.1 | C63: ='Hull Long'!C69 -> -75 | D63: ='Hull Plan'!C69 -> 102.0139995
A64: ='Hull Long'!A70 -> 2 | B64: ='Hull Long'!B70 -> 1000 | C64: ='Hull Long'!C70 -> -75 | D64: ='Hull Plan'!C70 -> 115.5
A65: ='Hull Long'!A71 -> 2 | B65: ='Hull Long'!B71 -> 1100 | C65: ='Hull Long'!C71 -> -75 | D65: ='Hull Plan'!C71 -> 128
A66: ='Hull Long'!A72 -> 2 | B66: ='Hull Long'!B72 -> 1200 | C66: ='Hull Long'!C72 -> -75 | D66: ='Hull Plan'!C72 -> 139.5
A67: ='Hull Long'!A73 -> 2 | B67: ='Hull Long'!B73 -> 1300 | C67: ='Hull Long'!C73 -> -75 | D67: ='Hull Plan'!C73 -> 150
A68: ='Hull Long'!A74 -> 2 | B68: ='Hull Long'!B74 -> 1400 | C68: ='Hull Long'!C74 -> -75 | D68: ='Hull Plan'!C74 -> 159.5
A69: ='Hull Long'!A75 -> 2 | B69: ='Hull Long'!B75 -> 1500 | C69: ='Hull Long'!C75 -> -75 | D69: ='Hull Plan'!C75 -> 168
A70: ='Hull Long'!A76 -> 2 | B70: ='Hull Long'!B76 -> 1600 | C70: ='Hull Long'!C76 -> -75 | D70: ='Hull Plan'!C76 -> 175.5
A71: ='Hull Long'!A77 -> 2 | B71: ='Hull Long'!B77 -> 1700 | C71: ='Hull Long'!C77 -> -75 | D71: ='Hull Plan'!C77 -> 182
A72: ='Hull Long'!A78 -> 2 | B72: ='Hull Long'!B78 -> 1800 | C72: ='Hull Long'!C78 -> -75 | D72: ='Hull Plan'!C78 -> 187.5
A73: ='Hull Long'!A79 -> 2 | B73: ='Hull Long'!B79 -> 1900 | C73: ='Hull Long'!C79 -> -75 | D73: ='Hull Plan'!C79 -> 192
A74: ='Hull Long'!A80 -> 2 | B74: ='Hull Long'!B80 -> 2000 | C74: ='Hull Long'!C80 -> -75 | D74: ='Hull Plan'!C80 -> 195.5
A75: ='Hull Long'!A81 -> 2 | B75: ='Hull Long'!B81 -> 2100 | C75: ='Hull Long'!C81 -> -75 | D75: ='Hull Plan'!C81 -> 198
A76: ='Hull Long'!A82 -> 2 | B76: ='Hull Long'!B82 -> 2200 | C76: ='Hull Long'!C82 -> -75 | D76: ='Hull Plan'!C82 -> 199.5
A77: ='Hull Long'!A83 -> 2 | B77: ='Hull Long'!B83 -> 2300 | C77: ='Hull Long'!C83 -> -75 | D77: ='Hull Plan'!C83 -> 200
A78: ='Hull Long'!A84 -> 2 | B78: ='Hull Long'!B84 -> 2300 | C78: ='Hull Long'!C84 -> -75 | D78: ='Hull Plan'!C84 -> 200
A79: ='Hull Long'!A85 -> 2 | B79: ='Hull Long'!B85 -> 2400 | C79: ='Hull Long'!C85 -> -75 | D79: ='Hull Plan'!C85 -> 199.5
A80: ='Hull Long'!A86 -> 2 | B80: ='Hull Long'!B86 -> 2500 | C80: ='Hull Long'!C86 -> -75 | D80: ='Hull Plan'!C86 -> 198
A81: ='Hull Long'!A87 -> 2 | B81: ='Hull Long'!B87 -> 2600 | C81: ='Hull Long'!C87 -> -75 | D81: ='Hull Plan'!C87 -> 195.5
A82: ='Hull Long'!A88 -> 2 | B82: ='Hull Long'!B88 -> 2700 | C82: ='Hull Long'!C88 -> -75 | D82: ='Hull Plan'!C88 -> 192
A83: ='Hull Long'!A89 -> 2 | B83: ='Hull Long'!B89 -> 2800 | C83: ='Hull Long'!C89 -> -75 | D83: ='Hull Plan'!C89 -> 187.5
A84: ='Hull Long'!A90 -> 2 | B84: ='Hull Long'!B90 -> 2900 | C84: ='Hull Long'!C90 -> -75 | D84: ='Hull Plan'!C90 -> 182
A85: ='Hull Long'!A91 -> 2 | B85: ='Hull Long'!B91 -> 3000 | C85: ='Hull Long'!C91 -> -75 | D85: ='Hull Plan'!C91 -> 175.5
A86: ='Hull Long'!A92 -> 2 | B86: ='Hull Long'!B92 -> 3100 | C86: ='Hull Long'!C92 -> -75 | D86: ='Hull Plan'!C92 -> 168
A87: ='Hull Long'!A93 -> 2 | B87: ='Hull Long'!B93 -> 3200 | C87: ='Hull Long'!C93 -> -75 | D87: ='Hull Plan'!C93 -> 159.5
A88: ='Hull Long'!A94 -> 2 | B88: ='Hull Long'!B94 -> 3300 | C88: ='Hull Long'!C94 -> -75 | D88: ='Hull Plan'!C94 -> 150
A89: ='Hull Long'!A95 -> 2 | B89: ='Hull Long'!B95 -> 3400 | C89: ='Hull Long'!C95 -> -75 | D89: ='Hull Plan'!C95 -> 139.5
A90: ='Hull Long'!A96 -> 2 | B90: ='Hull Long'!B96 -> 3500 | C90: ='Hull Long'!C96 -> -75 | D90: ='Hull Plan'!C96 -> 128
A91: ='Hull Long'!A97 -> 2 | B91: ='Hull Long'!B97 -> 3600 | C91: ='Hull Long'!C97 -> -75 | D91: ='Hull Plan'!C97 -> 115.5
A92: ='Hull Long'!A98 -> 2 | B92: ='Hull Long'!B98 -> 3699.9 | C92: ='Hull Long'!C98 -> -75 | D92: ='Hull Plan'!C98 -> 102.0139995
A93: ='Hull Long'!A99 -> 2 | B93: ='Hull Long'!B99 -> 3700.1 | C93: ='Hull Long'!C99 -> -75 | D93: ='Hull Plan'!C99 -> 101.9859995
A94: ='Hull Long'!A100 -> 2 | B94: ='Hull Long'!B100 -> 3900 | C94: ='Hull Long'!C100 -> -75 | D94: ='Hull Plan'!C100 -> 72
A95: ='Hull Long'!A101 -> 2 | B95: ='Hull Long'!B101 -> 4000 | C95: ='Hull Long'!C101 -> -75 | D95: ='Hull Plan'!C101 -> 55.5
A96: ='Hull Long'!A102 -> 2 | B96: ='Hull Long'!B102 -> 4100 | C96: ='Hull Long'!C102 -> -75 | D96: ='Hull Plan'!C102 -> 38
A97: ='Hull Long'!A103 -> 2 | B97: ='Hull Long'!B103 -> 4200 | C97: ='Hull Long'!C103 -> -75 | D97: ='Hull Plan'!C103 -> 19.5
A98: ='Hull Long'!A104 -> 2 | B98: ='Hull Long'!B104 -> 4300 | C98: ='Hull Long'!C104 -> -75 | D98: ='Hull Plan'!C104 -> 0
A99: ='Hull Long'!A105 -> 2 | B99: ='Hull Long'!B105 -> 4400 | C99: ='Hull Long'!C105 -> 50 | D99: ='Hull Plan'!C105 -> 0
A100: ='Hull Long'!A106 -> 2 | B100: ='Hull Long'!B106 -> 4500 | C100: ='Hull Long'!C106 -> 175 | D100: ='Hull Plan'!C106 -> 0
A101: ='Hull Long'!A107 -> 2 | B101: ='Hull Long'!B107 -> 4600 | C101: ='Hull Long'!C107 -> 300 | D101: ='Hull Plan'!C107 -> 0
A102: ='Hull Long'!A108 -> 0 | B102: ='Hull Long'!B108 -> 4700 | C102: ='Hull Long'!C108 -> 425 | D102: ='Hull Plan'!C108 -> 0
A103: ='Hull Long'!A109 -> 0 | B103: ='Hull Long'!B109 -> 0 | C103: ='Hull Long'!C109 -> 0 | D103: ='Hull Plan'!C109 -> 0
A104: ='Hull Long'!A110 -> 0 | B104: ='Hull Long'!B110 -> -100 | C104: ='Hull Long'!C110 -> 425 | D104: ='Hull Plan'!C110 -> 0
A105: ='Hull Long'!A111 -> 3 | B105: ='Hull Long'!B111 -> 0 | C105: ='Hull Long'!C111 -> 300 | D105: ='Hull Plan'!C111 -> 0
A106: ='Hull Long'!A112 -> 3 | B106: ='Hull Long'!B112 -> 100 | C106: ='Hull Long'!C112 -> 282.2615969 | D106: ='Hull Plan'!C112 -> 43.9363457
A107: ='Hull Long'!A113 -> 3 | B107: ='Hull Long'!B113 -> 200 | C107: ='Hull Long'!C113 -> 264.9218944 | D107: ='Hull Plan'!C113 -> 84.02248517
A108: ='Hull Long'!A114 -> 3 | B108: ='Hull Long'!B114 -> 300 | C108: ='Hull Long'!C114 -> 247.9902802 | D108: ='Hull Plan'!C114 -> 120.4364438
A109: ='Hull Long'!A115 -> 3 | B109: ='Hull Long'!B115 -> 400 | C109: ='Hull Long'!C115 -> 231.4768382 | D109: ='Hull Plan'!C115 -> 153.3560972
A110: ='Hull Long'!A116 -> 3 | B110: ='Hull Long'!B116 -> 500 | C110: ='Hull Long'!C116 -> 215.392439 | D110: ='Hull Plan'!C116 -> 182.9591641
A111: ='Hull Long'!A117 -> 3 | B111: ='Hull Long'!B117 -> 600 | C111: ='Hull Long'!C117 -> 199.7488482 | D111: ='Hull Plan'!C117 -> 209.4231978
A112: ='Hull Long'!A118 -> 3 | B112: ='Hull Long'!B118 -> 700 | C112: ='Hull Long'!C118 -> 184.558856 | D112: ='Hull Plan'!C118 -> 232.9255776
A113: ='Hull Long'!A119 -> 3 | B113: ='Hull Long'!B119 -> 899.9 | C113: ='Hull Long'!C119 -> 155.6109304 | D113: ='Hull Plan'!C119 -> 271.7370918
A114: ='Hull Long'!A120 -> 3 | B114: ='Hull Long'!B120 -> 900.1 | C114: ='Hull Long'!C120 -> 155.5829454 | D114: ='Hull Plan'!C120 -> 271.7708232
A115: ='Hull Long'!A121 -> 3 | B115: ='Hull Long'!B121 -> 1000 | C115: ='Hull Long'!C121 -> 141.8573324 | D115: ='Hull Plan'!C121 -> 287.43375
A116: ='Hull Long'!A122 -> 3 | B116: ='Hull Long'!B122 -> 1100 | C116: ='Hull Long'!C122 -> 128.636517 | D116: ='Hull Plan'!C122 -> 300.8594396
A117: ='Hull Long'!A123 -> 3 | B117: ='Hull Long'!B123 -> 1200 | C117: ='Hull Long'!C123 -> 115.9557098 | D117: ='Hull Plan'!C123 -> 312.2073548
A118: ='Hull Long'!A124 -> 3 | B118: ='Hull Long'!B124 -> 1300 | C118: ='Hull Long'!C124 -> 103.8389696 | D118: ='Hull Plan'!C124 -> 321.6535632
A119: ='Hull Long'!A125 -> 3 | B119: ='Hull Long'!B125 -> 1400 | C119: ='Hull Long'!C125 -> 92.31389236 | D119: ='Hull Plan'!C125 -> 329.3738493
A120: ='Hull Long'!A126 -> 3 | B120: ='Hull Long'!B126 -> 1500 | C120: ='Hull Long'!C126 -> 81.41257453 | D120: ='Hull Plan'!C126 -> 335.5436866
A121: ='Hull Long'!A127 -> 3 | B121: ='Hull Long'!B127 -> 1600 | C121: ='Hull Long'!C127 -> 71.1729901 | D121: ='Hull Plan'!C127 -> 340.3382031
A122: ='Hull Long'!A128 -> 3 | B122: ='Hull Long'!B128 -> 1700 | C122: ='Hull Long'!C128 -> 61.64104198 | D122: ='Hull Plan'!C128 -> 343.9321388
A123: ='Hull Long'!A129 -> 3 | B123: ='Hull Long'!B129 -> 1800 | C123: ='Hull Long'!C129 -> 52.87378503 | D123: ='Hull Plan'!C129 -> 346.4997908
A124: ='Hull Long'!A130 -> 3 | B124: ='Hull Long'!B130 -> 1900 | C124: ='Hull Long'!C130 -> 44.944857 | D124: ='Hull Plan'!C130 -> 348.2149389
A125: ='Hull Long'!A131 -> 3 | B125: ='Hull Long'!B131 -> 2000 | C125: ='Hull Long'!C131 -> 37.95456463 | D125: ='Hull Plan'!C131 -> 349.2507424
A126: ='Hull Long'!A132 -> 3 | B126: ='Hull Long'!B132 -> 2100 | C126: ='Hull Long'!C132 -> 32.05157182 | D126: ='Hull Plan'!C132 -> 349.7795812
A127: ='Hull Long'!A133 -> 3 | B127: ='Hull Long'!B133 -> 2200 | C127: ='Hull Long'!C133 -> 27.49310712 | D127: ='Hull Plan'!C133 -> 349.9727828
A128: ='Hull Long'!A134 -> 3 | B128: ='Hull Long'!B134 -> 2300 | C128: ='Hull Long'!C134 -> 25 | D128: ='Hull Plan'!C134 -> 350
A129: ='Hull Long'!A135 -> 3 | B129: ='Hull Long'!B135 -> 2300 | C129: ='Hull Long'!C135 -> 25 | D129: ='Hull Plan'!C135 -> 350
A130: ='Hull Long'!A136 -> 3 | B130: ='Hull Long'!B136 -> 2400 | C130: ='Hull Long'!C136 -> 27.49310712 | D130: ='Hull Plan'!C136 -> 349.9727828
A131: ='Hull Long'!A137 -> 3 | B131: ='Hull Long'!B137 -> 2500 | C131: ='Hull Long'!C137 -> 32.05157182 | D131: ='Hull Plan'!C137 -> 349.7795812
A132: ='Hull Long'!A138 -> 3 | B132: ='Hull Long'!B138 -> 2600 | C132: ='Hull Long'!C138 -> 37.95456463 | D132: ='Hull Plan'!C138 -> 349.2507424
A133: ='Hull Long'!A139 -> 3 | B133: ='Hull Long'!B139 -> 2700 | C133: ='Hull Long'!C139 -> 44.944857 | D133: ='Hull Plan'!C139 -> 348.2149389
A134: ='Hull Long'!A140 -> 3 | B134: ='Hull Long'!B140 -> 2800 | C134: ='Hull Long'!C140 -> 52.87378503 | D134: ='Hull Plan'!C140 -> 346.4997908
A135: ='Hull Long'!A141 -> 3 | B135: ='Hull Long'!B141 -> 2900 | C135: ='Hull Long'!C141 -> 61.64104198 | D135: ='Hull Plan'!C141 -> 343.9321388
A136: ='Hull Long'!A142 -> 3 | B136: ='Hull Long'!B142 -> 3000 | C136: ='Hull Long'!C142 -> 71.1729901 | D136: ='Hull Plan'!C142 -> 340.3382031
A137: ='Hull Long'!A143 -> 3 | B137: ='Hull Long'!B143 -> 3100 | C137: ='Hull Long'!C143 -> 81.41257453 | D137: ='Hull Plan'!C143 -> 335.5436866
A138: ='Hull Long'!A144 -> 3 | B138: ='Hull Long'!B144 -> 3200 | C138: ='Hull Long'!C144 -> 92.31389236 | D138: ='Hull Plan'!C144 -> 329.3738493
A139: ='Hull Long'!A145 -> 3 | B139: ='Hull Long'!B145 -> 3300 | C139: ='Hull Long'!C145 -> 103.8389696 | D139: ='Hull Plan'!C145 -> 321.6535632
A140: ='Hull Long'!A146 -> 3 | B140: ='Hull Long'!B146 -> 3400 | C140: ='Hull Long'!C146 -> 115.9557098 | D140: ='Hull Plan'!C146 -> 312.2073548
A141: ='Hull Long'!A147 -> 3 | B141: ='Hull Long'!B147 -> 3500 | C141: ='Hull Long'!C147 -> 128.636517 | D141: ='Hull Plan'!C147 -> 300.8594396
A142: ='Hull Long'!A148 -> 3 | B142: ='Hull Long'!B148 -> 3600 | C142: ='Hull Long'!C148 -> 141.8573324 | D142: ='Hull Plan'!C148 -> 287.43375
A143: ='Hull Long'!A149 -> 3 | B143: ='Hull Long'!B149 -> 3699.9 | C143: ='Hull Long'!C149 -> 155.5829454 | D143: ='Hull Plan'!C149 -> 271.7708232
A144: ='Hull Long'!A150 -> 3 | B144: ='Hull Long'!B150 -> 3700.1 | C144: ='Hull Long'!C150 -> 155.6109304 | D144: ='Hull Plan'!C150 -> 271.7370918
A145: ='Hull Long'!A151 -> 3 | B145: ='Hull Long'!B151 -> 3900 | C145: ='Hull Long'!C151 -> 184.558856 | D145: ='Hull Plan'!C151 -> 232.9255776
A146: ='Hull Long'!A152 -> 3 | B146: ='Hull Long'!B152 -> 4000 | C146: ='Hull Long'!C152 -> 199.7488482 | D146: ='Hull Plan'!C152 -> 209.4231978
A147: ='Hull Long'!A153 -> 3 | B147: ='Hull Long'!B153 -> 4100 | C147: ='Hull Long'!C153 -> 215.392439 | D147: ='Hull Plan'!C153 -> 182.9591641
A148: ='Hull Long'!A154 -> 3 | B148: ='Hull Long'!B154 -> 4200 | C148: ='Hull Long'!C154 -> 231.4768382 | D148: ='Hull Plan'!C154 -> 153.3560972
A149: ='Hull Long'!A155 -> 3 | B149: ='Hull Long'!B155 -> 4300 | C149: ='Hull Long'!C155 -> 247.9902802 | D149: ='Hull Plan'!C155 -> 120.4364438
A150: ='Hull Long'!A156 -> 3 | B150: ='Hull Long'!B156 -> 4400 | C150: ='Hull Long'!C156 -> 264.9218944 | D150: ='Hull Plan'!C156 -> 84.02248517
A151: ='Hull Long'!A157 -> 3 | B151: ='Hull Long'!B157 -> 4500 | C151: ='Hull Long'!C157 -> 282.2615969 | D151: ='Hull Plan'!C157 -> 43.9363457
A152: ='Hull Long'!A158 -> 3 | B152: ='Hull Long'!B158 -> 4600 | C152: ='Hull Long'!C158 -> 300 | D152: ='Hull Plan'!C158 -> 0
A153: ='Hull Long'!A159 -> 0 | B153: ='Hull Long'!B159 -> 4700 | C153: ='Hull Long'!C159 -> 425 | D153: ='Hull Plan'!C159 -> 0
A154: ='Hull Long'!A160 -> 0 | B154: ='Hull Long'!B160 -> 0 | C154: ='Hull Long'!C160 -> 0 | D154: ='Hull Plan'!C160 -> 0
A155: ='Hull Long'!A161 -> 0 | B155: ='Hull Long'!B161 -> -100 | C155: ='Hull Long'!C161 -> 425 | D155: ='Hull Plan'!C161 -> 0
A156: ='Hull Long'!A162 -> 5 | B156: ='Hull Long'!B162 -> 0 | C156: ='Hull Long'!C162 -> 300 | D156: ='Hull Plan'!C162 -> 0
A157: ='Hull Long'!A163 -> 5 | B157: ='Hull Long'!B163 -> 100 | C157: ='Hull Long'!C163 -> 291.9370895 | D157: ='Hull Plan'!C163 -> 21.26654064
A158: ='Hull Long'!A164 -> 5 | B158: ='Hull Long'!B164 -> 200 | C158: ='Hull Long'!C164 -> 284.0554065 | D158: ='Hull Plan'!C164 -> 41.5879017
A159: ='Hull Long'!A165 -> 5 | B159: ='Hull Long'!B165 -> 300 | C159: ='Hull Long'!C165 -> 276.3592183 | D159: ='Hull Plan'!C165 -> 60.96408318
A160: ='Hull Long'!A166 -> 5 | B160: ='Hull Long'!B166 -> 400 | C160: ='Hull Long'!C166 -> 268.8531083 | D160: ='Hull Plan'!C166 -> 79.39508507
A161: ='Hull Long'!A167 -> 5 | B161: ='Hull Long'!B167 -> 500 | C161: ='Hull Long'!C167 -> 261.5420177 | D161: ='Hull Plan'!C167 -> 96.88090737
A162: ='Hull Long'!A168 -> 5 | B162: ='Hull Long'!B168 -> 600 | C162: ='Hull Long'!C168 -> 254.4312946 | D162: ='Hull Plan'!C168 -> 113.4215501
A163: ='Hull Long'!A169 -> 5 | B163: ='Hull Long'!B169 -> 700 | C163: ='Hull Long'!C169 -> 247.5267527 | D163: ='Hull Plan'!C169 -> 129.0170132
A164: ='Hull Long'!A170 -> 5 | B164: ='Hull Long'!B170 -> 899.9 | C164: ='Hull Long'!C170 -> 234.3686047 | D164: ='Hull Plan'!C170 -> 157.3591678
A165: ='Hull Long'!A171 -> 5 | B165: ='Hull Long'!B171 -> 900.1 | C165: ='Hull Long'!C171 -> 234.3558843 | D165: ='Hull Plan'!C171 -> 157.3856328
A166: ='Hull Long'!A172 -> 5 | B166: ='Hull Long'!B172 -> 1000 | C166: ='Hull Long'!C172 -> 228.1169693 | D166: ='Hull Plan'!C172 -> 170.1323251
A167: ='Hull Long'!A173 -> 5 | B167: ='Hull Long'!B173 -> 1100 | C167: ='Hull Long'!C173 -> 222.1075077 | D167: ='Hull Plan'!C173 -> 181.9470699
A168: ='Hull Long'!A174 -> 5 | B168: ='Hull Long'!B174 -> 1200 | C168: ='Hull Long'!C174 -> 216.3435045 | D168: ='Hull Plan'!C174 -> 192.8166352
A169: ='Hull Long'!A175 -> 5 | B169: ='Hull Long'!B175 -> 1300 | C169: ='Hull Long'!C175 -> 210.8358953 | D169: ='Hull Plan'!C175 -> 202.7410208
A170: ='Hull Long'!A176 -> 5 | B170: ='Hull Long'!B176 -> 1400 | C170: ='Hull Long'!C176 -> 205.5972238 | D170: ='Hull Plan'!C176 -> 211.7202268
A171: ='Hull Long'!A177 -> 5 | B171: ='Hull Long'!B177 -> 1500 | C171: ='Hull Long'!C177 -> 200.6420793 | D171: ='Hull Plan'!C177 -> 219.7542533
A172: ='Hull Long'!A178 -> 5 | B172: ='Hull Long'!B178 -> 1600 | C172: ='Hull Long'!C178 -> 195.9877228 | D172: ='Hull Plan'!C178 -> 226.8431002
A173: ='Hull Long'!A179 -> 5 | B173: ='Hull Long'!B179 -> 1700 | C173: ='Hull Long'!C179 -> 191.6550191 | D173: ='Hull Plan'!C179 -> 232.9867675
A174: ='Hull Long'!A180 -> 5 | B174: ='Hull Long'!B180 -> 1800 | C174: ='Hull Long'!C180 -> 187.6699023 | D174: ='Hull Plan'!C180 -> 238.1852552
A175: ='Hull Long'!A181 -> 5 | B175: ='Hull Long'!B181 -> 1900 | C175: ='Hull Long'!C181 -> 184.0658441 | D175: ='Hull Plan'!C181 -> 242.4385633
A176: ='Hull Long'!A182 -> 5 | B176: ='Hull Long'!B182 -> 2000 | C176: ='Hull Long'!C182 -> 180.8884385 | D176: ='Hull Plan'!C182 -> 245.7466919
A177: ='Hull Long'!A183 -> 5 | B177: ='Hull Long'!B183 -> 2100 | C177: ='Hull Long'!C183 -> 178.2052599 | D177: ='Hull Plan'!C183 -> 248.1096408
A178: ='Hull Long'!A184 -> 5 | B178: ='Hull Long'!B184 -> 2200 | C178: ='Hull Long'!C184 -> 176.1332305 | D178: ='Hull Plan'!C184 -> 249.5274102
A179: ='Hull Long'!A185 -> 5 | B179: ='Hull Long'!B185 -> 2300 | C179: ='Hull Long'!C185 -> 175 | D179: ='Hull Plan'!C185 -> 250
A180: ='Hull Long'!A186 -> 5 | B180: ='Hull Long'!B186 -> 2300 | C180: ='Hull Long'!C186 -> 175 | D180: ='Hull Plan'!C186 -> 250
A181: ='Hull Long'!A187 -> 5 | B181: ='Hull Long'!B187 -> 2400 | C181: ='Hull Long'!C187 -> 176.1332305 | D181: ='Hull Plan'!C187 -> 249.5274102
A182: ='Hull Long'!A188 -> 5 | B182: ='Hull Long'!B188 -> 2500 | C182: ='Hull Long'!C188 -> 178.2052599 | D182: ='Hull Plan'!C188 -> 248.1096408
A183: ='Hull Long'!A189 -> 5 | B183: ='Hull Long'!B189 -> 2600 | C183: ='Hull Long'!C189 -> 180.8884385 | D183: ='Hull Plan'!C189 -> 245.7466919
A184: ='Hull Long'!A190 -> 5 | B184: ='Hull Long'!B190 -> 2700 | C184: ='Hull Long'!C190 -> 184.0658441 | D184: ='Hull Plan'!C190 -> 242.4385633
A185: ='Hull Long'!A191 -> 5 | B185: ='Hull Long'!B191 -> 2800 | C185: ='Hull Long'!C191 -> 187.6699023 | D185: ='Hull Plan'!C191 -> 238.1852552
A186: ='Hull Long'!A192 -> 5 | B186: ='Hull Long'!B192 -> 2900 | C186: ='Hull Long'!C192 -> 191.6550191 | D186: ='Hull Plan'!C192 -> 232.9867675
A187: ='Hull Long'!A193 -> 5 | B187: ='Hull Long'!B193 -> 3000 | C187: ='Hull Long'!C193 -> 195.9877228 | D187: ='Hull Plan'!C193 -> 226.8431002
A188: ='Hull Long'!A194 -> 5 | B188: ='Hull Long'!B194 -> 3100 | C188: ='Hull Long'!C194 -> 200.6420793 | D188: ='Hull Plan'!C194 -> 219.7542533
A189: ='Hull Long'!A195 -> 5 | B189: ='Hull Long'!B195 -> 3200 | C189: ='Hull Long'!C195 -> 205.5972238 | D189: ='Hull Plan'!C195 -> 211.7202268
A190: ='Hull Long'!A196 -> 5 | B190: ='Hull Long'!B196 -> 3300 | C190: ='Hull Long'!C196 -> 210.8358953 | D190: ='Hull Plan'!C196 -> 202.7410208
A191: ='Hull Long'!A197 -> 5 | B191: ='Hull Long'!B197 -> 3400 | C191: ='Hull Long'!C197 -> 216.3435045 | D191: ='Hull Plan'!C197 -> 192.8166352
A192: ='Hull Long'!A198 -> 5 | B192: ='Hull Long'!B198 -> 3500 | C192: ='Hull Long'!C198 -> 222.1075077 | D192: ='Hull Plan'!C198 -> 181.9470699
A193: ='Hull Long'!A199 -> 5 | B193: ='Hull Long'!B199 -> 3600 | C193: ='Hull Long'!C199 -> 228.1169693 | D193: ='Hull Plan'!C199 -> 170.1323251
A194: ='Hull Long'!A200 -> 5 | B194: ='Hull Long'!B200 -> 3699.9 | C194: ='Hull Long'!C200 -> 234.3558843 | D194: ='Hull Plan'!C200 -> 157.3856328
A195: ='Hull Long'!A201 -> 5 | B195: ='Hull Long'!B201 -> 3700.1 | C195: ='Hull Long'!C201 -> 234.3686047 | D195: ='Hull Plan'!C201 -> 157.3591678
A196: ='Hull Long'!A202 -> 5 | B196: ='Hull Long'!B202 -> 3900 | C196: ='Hull Long'!C202 -> 247.5267527 | D196: ='Hull Plan'!C202 -> 129.0170132
A197: ='Hull Long'!A203 -> 5 | B197: ='Hull Long'!B203 -> 4000 | C197: ='Hull Long'!C203 -> 254.4312946 | D197: ='Hull Plan'!C203 -> 113.4215501
A198: ='Hull Long'!A204 -> 5 | B198: ='Hull Long'!B204 -> 4100 | C198: ='Hull Long'!C204 -> 261.5420177 | D198: ='Hull Plan'!C204 -> 96.88090737
A199: ='Hull Long'!A205 -> 5 | B199: ='Hull Long'!B205 -> 4200 | C199: ='Hull Long'!C205 -> 268.8531083 | D199: ='Hull Plan'!C205 -> 79.39508507
A200: ='Hull Long'!A206 -> 5 | B200: ='Hull Long'!B206 -> 4300 | C200: ='Hull Long'!C206 -> 276.3592183 | D200: ='Hull Plan'!C206 -> 60.96408318
... 56 more rows

Sheet T-section
A1: T-Section
A2: Fw | B2: 42 | C2: mm
A3: Ft | B3: 19 | C3: mm | E3: Fw
A4: Wh | B4: 42 | C4: mm | H4: Ft
A5: Wt | B5: 19 | C5: mm | G5: Wh
A6: cy | B6: =(B2*B3*(B4+B3/2)+B4*B5*B4/2)/(B2*B3+B4*B5) -> 36.25 | C6: mm | E6: cy
A7: I | B7: =(B2*B3^3/12+B2*B3*(B4+B3/2-B6)^2+B5*B4^3/12+B4*B5*(B4/2-B6)^2) -> 512482.25 | C7: mm^4
A8: A | B8: =B2*B3+B4*B5 -> 1596 | C8: mm^2
A9: Z | B9: =B7/B6 -> 14137.44138 | C9: mm^3 | F9: Wt
A10: r | B10: =(B7/B8)^0.5 -> 17.91937964
